Workbook

Sheet DAILY 1
B1: START | C1: FINISH | D1: BET | E1: FINISH | F1: UP/DWN | I1: START | J1: FINISH | K1: BET | L1: FINISH | M1: UP/DWN | P1: START | Q1: FINISH | R1: BET | S1: FINISH | T1: UP/DWN | W1: START | X1: FINISH | Y1: BET | Z1: FINISH | AA1: UP/DWN | AE1: START | AF1: FINISH | AG1: BET | AH1: FINISH | AI1: UP/DWN | AL1: START | AM1: FINISH | AN1: BET | AO1: FINISH | AP1: UP/DWN
C2: LUXBET | E2: SABU42 | F2: 59600 | J2: IAS | M2: Z491458 | Q2: BOOKMAKER | T2: SAB57 | X2: TAB | Z2: 535071 | AF2: DYNABET | AH2: a/c142347 | AM2: BETJACK | AO2: 8985 | AR2: total bet.
E3: 397.33 | L3: 397.33 | S3: 397.33 | Z3: 397.33 | AD3: benboo43 | AH3: 397.33 | AM3: AT10352 | AO3: 397.33 | AR3: =AN4 -> 8 | AT3: $50 in free bets
A4: 2012-11-13 | B4: 112.05 | C4: 354.33 | D4: =B4-C4 -> -242.28 | E4: 112.05 | F4: =E4-B4 -> 0 | H4: 2012-11-13 | I4: 58.23 | J4: 354.33 | K4: =I4-J4 -> -296.1 | L4: 58.23 | M4: =I4-L4 -> 0 | O4: 2012-11-13 | P4: 53.96 | Q4: 354.33 | R4: =P4-Q4 -> -300.37 | S4: 53.96 | T4: =P4-S4 -> 0 | V4: 2012-11-13 | W4: 57.86 | X4: 354.33 | Y4: =W4-X4 -> -296.47 | Z4: 57.86 | AA4: =W4-Z4 -> 0 | AD4: 2012-11-13 | AE4: 90.76 | AF4: 354.33 | AG4: =AE4-AF4 -> -263.57 | AH4: 90.76 | AI4: =AE4-AH4 -> 0 | AK4: 2012-12-01 | AL4: 150 | AM4: 142 | AN4: =AL4-AM4 -> 8 | AO4: 155.2 | AP4: =AO4-AL4 -> 5.2 | AR4: =AR3+AN5 -> 16
A5: 2012-11-14 | B5: =E4 -> 112.05 | C5: 355.93 | D5: =B5-C5 -> -243.88 | E5: 103.95 | F5: =E5-B5 -> -8.1 | H5: 2012-11-24 | I5: =L4 -> 58.23 | J5: 355.93 | K5: =I5-J5 -> -297.7 | L5: 51.91 | M5: =I5-L5 -> 6.32 | O5: 2012-11-15 | P5: =S4 -> 53.96 | Q5: 355.93 | R5: =P5-Q5 -> -301.97 | S5: 57.76 | T5: =S5-P5 -> 3.8 | V5: 2012-11-17 | W5: =Z4 -> 57.86 | X5: 355.93 | Y5: =W5-X5 -> -298.07 | Z5: 87.59 | AA5: =Z5-W5 -> 29.73 | AD5: 2012-11-28 | AE5: =AH4 -> 90.76 | AF5: 355.93 | AG5: -265.17 | AH5: 84.42 | AI5: =AH5-AE5 -> -6.34 | AK5: 2012-12-02 | AL5: =AO4 -> 155.2 | AM5: 147.2 | AN5: 8 | AO5: 153.6 | AP5: =AO5-AL5 -> -1.6 | AR5: =AR4+AN6 -> 24
A6: 2012-11-15 | B6: =E5 -> 103.95 | D6: 103.95 | E6: 103.15 | F6: -0.8 | H6: w/d 51.9 | I6: =L5 -> 51.91 | J6: 905.13 | K6: -853.22 | L6: 51.91 | M6: 0 | O6: 2012-11-17 | P6: =S5 -> 57.76 | Q6: 905.13 | R6: -847.37 | S6: 49.76 | T6: =P6-S6 -> 8 | V6: 2012-11-18 | W6: =Z5 -> 87.59 | X6: 63.59 | Y6: 24 | Z6: 66.66 | AA6: =Z6-W6 -> -20.93 | AD6: 2012-12-15 | AE6: 84.42 | AF6: 63.59 | AG6: 20.83 | AH6: 85.97 | AI6: =AH6-AE6 -> 1.55 | AK6: 2012-12-03 | AL6: 153.6 | AM6: 145.6 | AN6: 8 | AO6: 145.6 | AP6: -8 | AR6: 32
A7: 2012-11-16 | B7: 103.15 | D7: 103.15 | E7: 95.25 | F7: -7.9 | H7: 2012-12-15 | I7: 51.91 | J7: 977.63 | K7: -925.72 | L7: 51.75 | M7: =L7-I7 -> -0.16 | O7: 2012-11-20 | P7: 49.76 | Q7: 977.63 | R7: -927.87 | S7: 52.46 | T7: =S7-P7 -> 2.7 | V7: 2012-11-20 | W7: 66.66 | X7: 977.63 | Y7: -910.97 | Z7: 54.41 | AA7: -12.25 | AD7: 2012-12-22 | AE7: 85.97 | AF7: 977.63 | AG7: -891.66 | AH7: 73.09 | AI7: =AH7-AE7 -> -12.88 | AK7: 2012-12-05 | AL7: 145.6 | AM7: 137.6 | AN7: 8 | AO7: 147.2 | AP7: 1.6 | AR7: 42
A8: 2012-11-17 | B8: 95.25 | D8: 95.25 | E8: 59.45 | F8: -35.8 | H8: 2012-12-28 | I8: 51.75 | J8: 871.63 | K8: -819.88 | L8: 54.41 | M8: =L8-I8 -> 2.66 | O8: 2012-11-21 | P8: 52.46 | Q8: 871.63 | R8: -819.17 | S8: 43.46 | T8: 9 | V8: 2012-11-24 | W8: 54.41 | X8: 871.63 | Y8: -817.22 | Z8: 67.51 | AA8: 13.1 | AD8: 2013-01-11 | AE8: 73.09 | AF8: 871.63 | AG8: -798.54 | AH8: 47.14 | AI8: -25.95 | AK8: 2012-12-06 | AL8: 147.2 | AM8: 137.2 | AN8: 10 | AO8: 144.7 | AP8: -2.5 | AR8: 52
A9: 2012-11-19 | B9: 59.45 | D9: 59.45 | E9: 46.15 | F9: -13.3 | H9: 2012-12-29 | I9: 54.41 | J9: 855.83 | K9: -801.42 | L9: 39.41 | M9: -15 | O9: 2012-11-24 | P9: 43.46 | Q9: 855.83 | R9: -812.37 | S9: 149.06 | T9: =S9-P9 -> 105.6 | V9: 2012-11-25 | W9: 67.51 | X9: 855.83 | Y9: -788.32 | Z9: 62.51 | AA9: -5 | AD9: 2013-01-12 | AE9: 47.14 | AF9: 855.83 | AG9: -808.69 | AH9: 49.24 | AI9: 2.1 | AK9: 2012-12-09 | AL9: 144.7 | AM9: 134.7 | AN9: 10 | AO9: 143.7 | AP9: -1 | AR9: 57
A10: 2012-11-20 | B10: 46.15 | D10: 46.15 | E10: 27.75 | F10: -18.4 | H10: 2013-01-07 | I10: 39.41 | J10: 853.43 | K10: -814.02 | L10: 37.93 | M10: -1.48 | O10: 2012-11-25 | P10: 149.06 | Q10: 853.43 | R10: -704.37 | S10: 148.66 | T10: =S10-P10 -> -0.4 | V10: 2012-12-01 | W10: 62.51 | X10: 853.43 | Y10: -790.92 | Z10: 55.51 | AA10: -7 | AE10: 49.24 | AF10: 853.43 | AG10: -804.19 | AH10: 853.43 | AI10: 804.19 | AK10: 2012-12-11 | AL10: 143.7 | AM10: 138.7 | AN10: 5 | AO10: 138.7 | AP10: -5 | AR10: 69
A11: 2012-11-21 | B11: 27.75 | D11: 27.75 | E11: 33.85 | F11: 6.1 | H11: 2013-01-11 | I11: 37.93 | J11: 23.93 | K11: 14 | L11: 31.74 | M11: -6.19 | O11: 2012-11-26 | P11: 148.66 | Q11: 828.43 | R11: -679.77 | S11: 161.76 | T11: 13.1 | V11: 2012-12-15 | W11: 55.51 | X11: 828.43 | Y11: -772.92 | Z11: 67.71 | AA11: 12.2 | AE11: 853.43 | AF11: 828.43 | AG11: 25 | AH11: 861.13 | AI11: 7.7 | AK11: 2012-12-12 | AL11: 138.7 | AM11: 126.7 | AN11: 12 | AO11: 138.7 | AP11: 0 | AR11: 81
A12: 2012-11-22 | B12: 33.85 | D12: 33.85 | E12: 18.85 | F12: -15 | H12: 2013-01-14 | I12: 31.74 | K12: 31.74 | L12: 32.02 | M12: 0.28 | O12: 2012-12-01 | P12: 161.76 | R12: 161.76 | S12: 139.26 | T12: -22.5 | V12: 2012-12-22 | W12: 67.71 | Y12: 67.71 | Z12: 118.26 | AA12: 50.55 | AE12: 861.13 | AG12: 861.13 | AI12: -861.13 | AK12: 2012-12-13 | AL12: 138.7 | AM12: 126.7 | AN12: 12 | AO12: 144.1 | AP12: 5.4 | AR12: 91
A13: 2012-11-23 | B13: 18.85 | D13: 18.85 | E13: 107.65 | F13: 88.8 | H13: 2013-01-15 | I13: 32.02 | K13: 32.02 | L13: 29.28 | M13: -2.74 | O13: 2012-12-03 | P13: 139.26 | R13: 139.26 | S13: 134.26 | T13: -5 | V13: 2012-12-29 | W13: 118.26 | X13: 77.26 | Y13: 41 | Z13: 99.96 | AA13: -18.3 | AE13: 0 | AG13: 0 | AI13: 0 | AK13: 2012-12-14 | AL13: 144.1 | AM13: 134.1 | AN13: 10 | AO13: 147.6 | AP13: 3.5 | AR13: 101
A14: 2012-11-24 | B14: 107.65 | D14: 107.65 | E14: 89.85 | F14: -17.8 | I14: 29.28 | K14: 29.28 | M14: -29.28 | O14: 2012-12-04 | P14: 134.26 | R14: 134.26 | S14: 129.96 | T14: -4.3 | V14: 2013-01-01 | W14: 99.96 | Y14: 99.96 | Z14: 86.96 | AA14: -13 | AE14: 0 | AG14: 0 | AI14: 0 | AK14: 2012-12-15 | AL14: 147.6 | AM14: 137.6 | AN14: 10 | AO14: 137.6 | AP14: -10 | AR14: 113
A15: 2012-11-25 | B15: 89.85 | D15: 89.85 | E15: 99.45 | F15: 9.6 | I15: 0 | K15: 0 | M15: 0 | O15: 2012-12-06 | P15: 129.96 | Q15: 96.96 | R15: 33 | S15: 105.36 | T15: -24.6 | V15: 2013-01-05 | W15: 86.96 | Y15: 86.96 | Z15: 53.03 | AA15: -33.93 | AE15: 0 | AG15: 0 | AI15: 0 | AK15: 2012-12-16 | AL15: 137.6 | AM15: 125.6 | AN15: 12 | AO15: 143 | AP15: 5.4 | AR15: 123
A16: 2012-11-27 | B16: 99.45 | D16: 99.45 | E16: 102.25 | F16: 2.8 | I16: 0 | K16: 0 | M16: 0 | O16: 2012-12-07 | P16: 105.36 | R16: 105.36 | S16: 79.96 | T16: -25.4 | V16: 2013-01-12 | W16: 53.03 | Y16: 53.03 | Z16: 37.03 | AA16: -16 | AE16: 0 | AG16: 0 | AI16: 0 | AK16: 2012-12-17 | AL16: 143 | AM16: 133 | AN16: 10 | AO16: 133 | AP16: -10 | AR16: 135
A17: 2012-11-29 | B17: =E16 -> 102.25 | D17: =B17-C17 -> 102.25 | E17: 107.45 | F17: =E17-B17 -> 5.2 | I17: 0 | K17: 0 | M17: 0 | O17: 2012-12-09 | P17: 79.96 | R17: 79.96 | S17: 75.26 | T17: -4.7 | W17: 37.03 | Y17: 37.03 | AA17: -37.03 | AE17: 0 | AG17: 0 | AI17: 0 | AK17: 2012-12-18 | AL17: 133 | AM17: 121 | AN17: 12 | AO17: 148.6 | AP17: 15.6 | AR17: 145
A18: 2012-12-02 | B18: 107.45 | C18: 72.45 | D18: 35 | E18: 127.65 | F18: 20.2 | I18: 0 | K18: 0 | O18: 2012-12-11 | P18: 75.26 | R18: 75.26 | S18: 74.86 | T18: -0.4 | W18: 0 | Y18: 0 | AA18: 0 | AE18: 0 | AG18: 0 | AI18: 0 | AK18: 2012-12-19 | AL18: 148.6 | AM18: 138.6 | AN18: 10 | AO18: 138.6 | AP18: -10 | AR18: 157
A19: 2012-12-05 | B19: 127.65 | D19: 127.65 | E19: 96.25 | F19: -31.4 | K19: 0 | O19: 2012-12-12 | P19: =S18 -> 74.86 | R19: =P19-Q19 -> 74.86 | S19: 69.26 | T19: =S19-P19 -> -5.6 | W19: 0 | Y19: 0 | AA19: 0 | AE19: 0 | AG19: 0 | AI19: 0 | AK19: 2012-12-20 | AL19: 138.6 | AM19: 126.6 | AN19: 12 | AO19: 126.6 | AP19: -12 | AR19: 171
A20: 2012-12-08 | B20: 96.25 | D20: 96.25 | E20: 106.5 | F20: 10.25 | K20: 0 | O20: 2012-12-14 | P20: 69.26 | R20: 69.26 | S20: 61.26 | T20: -8 | Y20: 0 | AA20: =W20-Z20 -> 0 | AG20: 0 | AI20: 0 | AK20: 2012-12-22 | AL20: 126.6 | AM20: 112.6 | AN20: 14 | AO20: 168.6 | AP20: 42 | AR20: 179
A21: 2012-12-13 | B21: 106.5 | D21: 106.5 | E21: 97.5 | F21: -9 | K21: 0 | O21: 2012-12-15 | P21: 61.26 | Q21: 11.26 | R21: 50 | S21: 80.06 | T21: 18.8 | Y21: 0 | AG21: 0 | AI21: 0 | AK21: 2012-12-23 | AL21: 168.6 | AM21: 160.6 | AN21: 8 | AO21: 171.8 | AP21: 3.2 | AR21: 189
A22: 2012-12-16 | B22: 97.5 | D22: 97.5 | E22: 94.8 | F22: -2.7 | K22: 0 | O22: 2012-12-18 | P22: 80.06 | R22: 80.06 | S22: 84.66 | T22: 4.6 | Y22: 0 | AG22: 0 | AK22: 2012-12-24 | AL22: 171.8 | AM22: 161.8 | AN22: 10 | AO22: 170.3 | AP22: -1.5 | AR22: 199
A23: 2012-12-17 | B23: 94.8 | C23: 91.8 | D23: 3 | E23: 91.8 | F23: -3 | K23: 0 | O23: 2012-12-20 | P23: 84.66 | R23: 84.66 | S23: 91.81 | T23: 7.15 | Y23: 0 | AG23: 0 | AK23: 2012-12-26 | AL23: 170.3 | AM23: 160.3 | AN23: 10 | AO23: 172.8 | AP23: 2.5 | AR23: 209
A24: 2012-12-19 | B24: 91.8 | D24: 91.8 | E24: 105.2 | F24: 13.4 | K24: 0 | O24: 2012-12-23 | P24: 91.81 | R24: 91.81 | S24: 87.21 | T24: -4.6 | Y24: 0 | AG24: 0 | AK24: 2012-12-28 | AL24: 172.8 | AM24: 162.8 | AN24: 10 | AO24: 179.3 | AP24: 6.5 | AR24: 219
A25: 2012-12-21 | B25: 105.2 | D25: 105.2 | E25: 96.2 | F25: -9 | K25: 0 | O25: 2012-12-27 | P25: 87.21 | R25: 87.21 | S25: 87.41 | T25: 0.2 | Y25: 0 | AG25: 0 | AK25: 2012-12-29 | AL25: 179.3 | AM25: 169.3 | AN25: 10 | AO25: 179.8 | AP25: 0.5 | AR25: 229
A26: 2012-12-26 | B26: 96.2 | C26: 72.2 | D26: 24 | E26: 142.6 | F26: 46.4 | O26: 2012-12-29 | P26: 87.41 | Q26: 63.41 | R26: 24 | S26: 63.41 | T26: -24 | Y26: 0 | AG26: 0 | AK26: 2012-12-30 | AL26: 179.8 | AM26: 169.8 | AN26: 10 | AO26: 188.3 | AP26: 8.5 | AR26: 239
A27: 2012-12-29 | B27: 142.6 | C27: 104.6 | D27: 38 | E27: 127.1 | F27: -15.5 | O27: 2012-12-30 | P27: 63.41 | R27: 63.41 | S27: 60.41 | T27: -3 | Y27: 0 | AG27: 0 | AK27: 2012-12-31 | AL27: 188.3 | AM27: 178.3 | AN27: 10 | AO27: 187.8 | AP27: -0.5 | AR27: 249
A28: 2012-12-31 | B28: 127.1 | D28: 127.1 | E28: 121.1 | F28: -6 | O28: 2013-01-02 | P28: 60.41 | R28: 60.41 | S28: 72.51 | T28: 12.1 | Y28: 0 | AG28: 0 | AK28: 2013-01-01 | AL28: 187.8 | AM28: 177.8 | AN28: 10 | AO28: 185.3 | AP28: -2.5 | AR28: 261
A29: 2013-01-01 | B29: 121.1 | D29: 121.1 | E29: 126.74 | F29: 5.64 | O29: 2013-01-05 | P29: 72.51 | R29: 72.51 | S29: 78.51 | T29: 6 | Y29: 0 | AG29: 0 | AK29: 2013-01-02 | AL29: 185.3 | AM29: 173.3 | AN29: 12 | AO29: 184.1 | AP29: -1.2 | AR29: 274.99
A30: 2013-01-05 | B30: 126.74 | D30: 126.74 | E30: 145.84 | F30: 19.1 | O30: 2013-01-06 | P30: 78.51 | R30: 78.51 | S30: 97.41 | T30: 18.9 | Y30: 0 | AG30: 0 | AK30: 2013-01-09 | AL30: =AO29 -> 184.1 | AM30: 170.11 | AN30: =AL30-AM30 -> 13.99 | AO30: 184.1 | AP30: 0 | AR30: 285.79
A31: 2013-01-11 | B31: 145.84 | C31: 122.84 | D31: 23 | E31: 141.24 | F31: -4.6 | O31: 2013-01-08 | P31: 97.41 | R31: 97.41 | S31: 109.41 | T31: 12 | AK31: 2013-01-12 | AL31: 184.1 | AM31: 173.3 | AN31: 10.8 | AO31: 197.1 | AP31: 13 | AR31: 301.79
A32: 2013-01-12 | B32: =E31 -> 141.24 | C32: 122.84 | D32: =B32-C32 -> 18.4 | E32: 97.04 | F32: =E32-B32 -> -44.2 | O32: 2013-01-09 | P32: =S31 -> 109.41 | R32: =P32-Q32 -> 109.41 | S32: 106.71 | T32: =S32-P32 -> -2.7 | AK32: 2013-01-13 | AL32: 197.1 | AM32: 181.1 | AN32: 16 | AO32: 197.9 | AP32: 0.8 | AR32: 317.79
B33: 97.04 | C33: 122.84 | D33: -25.8 | E33: 141.24 | F33: 44.2 | O33: 2013-01-10 | P33: 106.71 | Q33: 89.71 | R33: 17 | S33: 100.21 | T33: -6.5 | AK33: 2013-01-14 | AL33: 197.9 | AM33: 181.9 | AN33: 16 | AO33: 181.9 | AP33: -16 | AR33: 337.79
B34: 141.24 | C34: 122.84 | D34: 18.4 | E34: 141.24 | F34: 0 | O34: 2013-01-12 | P34: 100.21 | R34: 100.21 | S34: 84.31 | T34: -15.9 | AK34: 2013-01-15 | AL34: 181.9 | AM34: 161.9 | AN34: 20 | AO34: 196.9 | AP34: 15 | AR34: 357.79
B35: 141.24 | C35: 122.84 | D35: 18.4 | E35: 141.24 | F35: 0 | O35: 2013-01-13 | P35: 84.31 | R35: 84.31 | S35: 76.31 | T35: -8 | AK35: 2013-01-16 | AL35: 196.9 | AM35: 176.9 | AN35: 20 | AO35: 176.9 | AP35: -20 | AR35: 361.39
B36: 141.24 | C36: 122.84 | D36: 18.4 | E36: 141.24 | F36: 0 | P36: 76.31 | R36: 76.31 | S36: 109.41 | T36: 33.1 | AL36: 176.9 | AM36: 173.3 | AN36: 3.6 | AO36: 184.1 | AP36: 7.2 | AR36: 372.19
B37: 141.24 | C37: 122.84 | D37: 18.4 | E37: 141.24 | F37: 0 | P37: 109.41 | R37: 109.41 | S37: 109.41 | T37: 0 | AL37: 184.1 | AM37: 173.3 | AN37: 10.8 | AO37: 184.1 | AP37: 0 | AR37: 382.99
B38: 141.24 | C38: 122.84 | D38: 18.4 | E38: 141.24 | F38: 0 | P38: 109.41 | R38: 109.41 | S38: 109.41 | T38: 0 | AL38: 184.1 | AM38: 173.3 | AN38: 10.8 | AO38: 184.1 | AP38: 0
B39: 141.24 | C39: 122.84 | D39: 18.4 | E39: 141.24 | F39: 0 | P39: 109.41 | R39: 109.41 | S39: 109.41 | T39: 0 | AM39: 173.3 | AO39: 184.1
AP40: 0
AP41: 0
AP42: 0
AP43: 0
AP44: 0

Sheet BETEZY VIP
B1: START | C1: FINISH | D1: BET | E1: FINISH | F1: UP/DWN | K1: START | L1: FINISH | M1: BET | N1: FINISH | O1: UP/DWN
C2: BETEZY VIP | F2: 3255 | H2: total bet. | L2: BETEZY VIP | N2: FREEBIES | O2: 3255 | Q2: total bet.
E3: 801.08 | H3: =D4 -> 1.08 | N3: 400 | Q3: =M4 -> 0
A4: 2012-12-19 | B4: 801.08 | C4: 800 | D4: =B4-C4 -> 1.08 | E4: 401.08 | F4: =B4-E4 -> 400 | H4: =H3+D5 -> 1.08 | J4: 2012-12-19 | K4: 400 | L4: 400 | M4: =K4-L4 -> 0 | N4: 400 | O4: =K4-N4 -> 0 | Q4: =Q3+M5 -> 46
A5: 2012-12-22 | B5: =E4 -> 401.08 | C5: 401.08 | D5: =B5-C5 -> 0 | E5: 427.9 | F5: =E5-B5 -> 26.82 | H5: =H4+D6 -> 1.08 | J5: 2012-12-22 | K5: =N4 -> 400 | L5: 354 | M5: =K5-L5 -> 46 | N5: 354 | O5: =K5-N5 -> 46 | Q5: =Q4+M6 -> 66
A6: 2012-12-26 | B6: =E5 -> 427.9 | C6: 427.9 | D6: 0 | E6: 449.43 | F6: =E6-B6 -> 21.53 | H6: 10.08 | J6: 2012-12-23 | K6: =N5 -> 354 | L6: 334 | M6: 20 | N6: 334 | O6: 20 | Q6: 74
A7: 2012-12-28 | B7: 449.43 | C7: 440.43 | D7: 9 | E7: 440.43 | F7: =B7-E7 -> 9 | H7: 10.08 | J7: 2012-12-26 | K7: 334 | L7: 326 | M7: 8 | N7: 326 | O7: 8 | Q7: 128
A8: 2012-12-29 | B8: 440.43 | C8: 440.43 | D8: 0 | E8: 465.64 | F8: -25.21 | H8: 10.08 | J8: 2012-12-29 | K8: 326 | L8: 272 | M8: 54 | N8: 272 | O8: 54 | Q8: 138
A9: 2012-12-30 | B9: 465.64 | C9: 465.64 | D9: 0 | E9: 476.64 | F9: -11 | H9: 10.08 | J9: 2012-12-30 | K9: 272 | L9: 262 | M9: 10 | N9: 262 | O9: 10 | Q9: 143
A10: 2013-01-03 | B10: 476.64 | C10: 476.64 | D10: 0 | E10: 476.64 | F10: 0 | H10: 10.08 | J10: 2012-12-31 | K10: 262 | L10: 257 | M10: 5 | N10: 257 | O10: 5 | Q10: 155
A11: 2013-01-04 | B11: 476.64 | C11: 476.64 | D11: 0 | E11: 489.95 | F11: =E11-B11 -> 13.31 | H11: 10.08 | J11: 2013-01-03 | K11: 257 | L11: 245 | M11: 12 | N11: 245 | O11: 12 | Q11: 169
A12: 2013-01-05 | B12: 489.95 | C12: 489.95 | D12: 0 | E12: 537.57 | F12: =E12-B12 -> 47.62 | H12: 10.08 | J12: 2013-01-04 | K12: 245 | L12: 231 | M12: 14 | N12: 231 | O12: 14 | Q12: 234
A13: 2013-01-07 | B13: 537.57 | C13: 537.57 | D13: 0 | E13: 555.88 | F13: 18.31 | H13: 565.96 | J13: 2013-01-05 | K13: 231 | L13: 166 | M13: 65 | N13: 166 | O13: 65 | Q13: 246
A14: 2013-01-10 | B14: 555.88 | D14: 555.88 | E14: 561.29 | F14: 5.41 | H14: 1127.25 | J14: 2013-01-06 | K14: 166 | L14: 154 | M14: 12 | N14: 154 | O14: 12 | Q14: 260
B15: 561.29 | D15: 561.29 | F15: -561.29 | H15: 1127.25 | J15: 2013-01-07 | K15: 154 | L15: 140 | M15: 14 | N15: 140 | O15: 14 | Q15: 274
B16: 0 | D16: 0 | F16: 0 | H16: 1127.25 | J16: 2013-01-08 | K16: 140 | L16: 126 | M16: 14 | N16: 126 | O16: 14 | Q16: 284
B17: 0 | D17: 0 | F17: 0 | H17: 1127.25 | J17: 2013-01-09 | K17: 126 | L17: 116 | M17: 10 | N17: 116 | O17: 10 | Q17: 302
B18: 0 | D18: 0 | F18: 0 | H18: 1127.25 | J18: 2013-01-10 | K18: 116 | L18: 98 | M18: 18 | N18: 98 | O18: 18 | Q18: 311
D19: 0 | F19: 0 | H19: 1127.25 | J19: 2013-01-13 | K19: 98 | L19: 89 | M19: 9 | Q19: 311
D20: 0 | H20: 1127.25 | K20: 0 | M20: 0 | Q20: 311
D21: 0 | H21: 1127.25 | K21: 0 | M21: 0 | Q21: 311
D22: 0 | H22: 1127.25 | K22: 0 | M22: 0 | Q22: 311
D23: 0 | H23: 1127.25 | K23: 0 | M23: 0 | Q23: 311
D24: 0 | H24: 1127.25 | K24: 0 | M24: 0 | Q24: 311
D25: 0 | H25: 1127.25 | K25: 0 | M25: 0 | Q25: 311
H26: 1127.25 | K26: 0 | Q26: 311
H27: 1127.25 | K27: 0 | Q27: 311
H28: 1127.25 | K28: 0 | Q28: 311
H29: 1127.25 | K29: 0 | Q29: 311
H30: 1127.25 | K30: 0 | Q30: 311

Sheet RETIREMENT.
A1: DATE | B1: TRACK | C1: Race No. | D1: Horse No. | E1: Horse Name | F1: RESULT | G1: DIVIDEND | H1: DIVISOR | I1: TARGET | J1: BET | K1: Profit/Loss | L1: BANK | N1: BET TOTAL
A2: 2012-12-01 | B2: haw | C2: 1 | D2: 1900-01-04 | H2: 10 | I2: 40 | J2: =ROUND(I2/H2,0) -> 4 | K2: =(G2-1)*J2 -> -4 | L2: =500+K2 -> 496 | N2: =J2 -> 4
D3: 8 | G3: 3.3 | H3: 10 | I3: =IF(I2-K2<40,(40),(I2-K2)) -> 44 | J3: 4 | K3: 9.2 | L3: =L2+K3 -> 505.2 | N3: =N2+J3 -> 8
A4: 2012-12-02 | B4: qen | C4: 1 | D4: 2 | G4: 1.6 | H4: 10 | I4: =IF(I3-K3<40,(40),(I3-K3)) -> 40 | J4: 4 | K4: 2.4 | L4: 507.6 | N4: =N3+J4 -> 12 | Q4: The columns you’ll have to enter are from A-G which are the details of your bet.
D5: 3 | H5: 10 | I5: 40 | J5: 4 | K5: -4 | L5: 503.6 | N5: 16 | Q5: You will also have to enter Column H which is your divisor.
A6: 2012-12-03 | B6: ara | C6: 1 | D6: 9 | H6: 10 | I6: 44 | J6: 4 | K6: -4 | L6: 499.6 | N6: 20 | Q6: Column I-L are automatically populated through formulae.
D7: 12 | H7: 10 | I7: 48 | J7: 4 | K7: -4 | L7: 495.6 | N7: 24 | Q7: To change the size of the bank you will need to get into the formulae in cells I to L of the 1st row.
A8: 2012-12-05 | B8: bak | C8: 1 | D8: 2 | H8: 10 | I8: 52 | J8: 4 | K8: -4 | L8: 491.6 | N8: 28
D9: 4 | G9: 2.4 | H9: 10 | I9: 56 | J9: 4 | K9: 5.6 | L9: 497.2 | N9: 32
A10: 2012-12-06 | B10: war | C10: 1 | D10: 2 | G10: 1.5 | H10: 10 | I10: 50.4 | J10: 5 | K10: 2.5 | L10: 499.7 | N10: 37
D11: 4 | H11: 10 | I11: 47.9 | J11: 5 | K11: -5 | L11: 494.7 | N11: 42
A12: 2012-12-09 | B12: gee | C12: 1 | D12: 8 | H12: 10 | I12: 52.9 | J12: 5 | K12: -5 | L12: 489.7 | N12: 47
D13: 9 | G13: 1.8 | H13: 10 | I13: 57.9 | J13: 5 | K13: 4 | L13: 493.7 | N13: 52
A14: 2012-12-11 | B14: mac | C14: 1 | D14: 2 | H14: 10 | I14: 53.9 | J14: 5 | K14: -5 | L14: 488.7 | N14: 57
D15: 1 | H15: 10 | I15: 58.9 | J15: =ROUND(I15/H15,0) -> 6 | K15: -6 | L15: 482.7 | N15: 63
A16: 2012-12-12 | B16: can | C16: 2 | D16: 3 | G16: 2 | H16: 10 | I16: 64.9 | J16: 6 | K16: 6 | L16: 488.7 | N16: 69
A17: 2012-12-13 | B17: kyn | C17: 1 | D17: 2 | G17: 2.9 | H17: 10 | I17: 58.9 | J17: 6 | K17: 11.4 | L17: 500.1 | N17: 75
D18: 7 | H18: 10 | I18: 47.5 | J18: 5 | K18: -5 | L18: 495.1 | N18: 80
A19: 2012-12-14 | B19: bed | C19: 2 | D19: 4 | H19: 10 | I19: 52.5 | J19: 5 | K19: -5 | L19: 490.1 | N19: 85
D20: 7 | G20: 2.7 | H20: 10 | I20: 57.5 | J20: 5 | K20: 8.5 | L20: 498.6 | N20: 90
A21: 2012-12-15 | B21: mpk | C21: 1 | D21: 3 | H21: 10 | I21: 49 | J21: 5 | K21: -5 | L21: 493.6 | N21: 95
D22: 4 | H22: 10 | I22: 54 | J22: 5 | K22: -5 | L22: 488.6 | N22: 100
A23: 2012-12-16 | B23: wer | C23: 2 | D23: 5 | H23: 10 | I23: 59 | J23: 6 | K23: -6 | L23: 482.6 | N23: 106
D24: 8 | G24: 2.9 | H24: 10 | I24: 65 | J24: 6 | K24: 11.4 | L24: 494 | N24: 112
A25: 2012-12-17 | B25: dub | C25: 2 | D25: 1 | H25: 10 | I25: 53.6 | J25: 5 | K25: -5 | L25: 489 | N25: 117
D26: 2 | H26: 10 | I26: =IF(I25-K25<40,(40),(I25-K25)) -> 58.6 | J26: 5 | K26: =(G26-1)*J26 -> -5 | L26: =L25+K26 -> 484 | N26: =N25+J26 -> 122
A27: 2012-12-18 | B27: dub | C27: 1 | D27: 1 | H27: 10 | I27: 63.6 | J27: =ROUND(I27/H27,0) -> 6 | K27: -6 | L27: 478 | N27: 128
D28: 2 | G28: 4.6 | H28: 10 | I28: 69.6 | J28: 6 | K28: 21.6 | L28: 499.6 | N28: 134
A29: 2012-12-19 | B29: gaw | C29: 1 | D29: 1 | H29: 10 | I29: 48 | J29: 5 | K29: -5 | L29: 494.6 | N29: 139
D30: 2 | H30: 10 | I30: 53 | J30: 5 | K30: -5 | L30: 489.6 | N30: 144
A31: 2012-12-20 | B31: sey | C31: 1 | D31: 1 | H31: 10 | I31: 58 | J31: 6 | K31: -6 | L31: 483.6 | N31: 150
D32: 9 | H32: 10 | I32: 64 | J32: 6 | K32: -6 | L32: 477.6 | N32: 156
A33: 2012-12-22 | B33: mop | C33: 1 | D33: 2 | H33: 10 | I33: 70 | J33: 7 | K33: -7 | L33: 470.6 | N33: 163
D34: 4 | G34: 8 | H34: 10 | I34: 77 | J34: 7 | K34: 49 | L34: 519.6 | N34: 170
A35: 2012-12-23 | B35: pol | C35: 2 | D35: 4 | G35: 2.8 | H35: 10 | I35: 40 | J35: 4 | K35: 7.2 | L35: 526.8 | N35: 174
D36: 5 | H36: 10 | I36: 40 | J36: 4 | K36: -4 | L36: 522.8 | N36: 178
A37: 2012-12-24 | B37: ora | C37: 1 | D37: 1 | H37: 10 | I37: 44 | J37: 5 | K37: -5 | L37: 517.8 | N37: 183
D38: 2 | G38: 1.7 | H38: 10 | I38: 49 | J38: 5 | K38: 3.5 | L38: 521.3 | N38: 188
A39: 2012-12-26 | B39: cau | C39: 1 | D39: 2 | H39: 10 | I39: 45.5 | J39: 5 | K39: -5 | L39: 516.3 | N39: 193
D40: 4 | G40: 2.5 | H40: 10 | I40: 50.5 | J40: 5 | K40: 7.5 | L40: 523.8 | N40: 198
A41: 2012-12-28 | B41: cab | C41: 1 | D41: 1 | G41: 3.3 | H41: 10 | I41: 43 | J41: 5 | K41: 11.5 | L41: 535.3 | N41: 203
D42: 2 | H42: 10 | I42: =IF(I41-K41<40,(40),(I41-K41)) -> 40 | J42: =ROUND(I42/H42,0) -> 4 | K42: =(G42-1)*J42 -> -4 | L42: =L41+K42 -> 531.3 | N42: =N41+J42 -> 207
A43: 2012-12-29 | B43: mpk | C43: 1 | D43: 3 | H43: 10 | I43: 44 | J43: 5 | K43: -5 | L43: 526.3 | N43: 212
D44: 5 | G44: 2.1 | H44: 10 | I44: 49 | J44: 5 | K44: 5.5 | L44: 531.8 | N44: 217
A45: 2012-12-30 | B45: nar | C45: 1 | D45: 1 | H45: 10 | I45: 43.5 | J45: 5 | K45: -5 | L45: 526.8 | N45: 222
D46: 3 | G46: 3.7 | H46: 10 | I46: 48.5 | J46: 5 | K46: 13.5 | L46: 540.3 | N46: 227
A47: 2013-01-01 | B47: nar | C47: 1 | D47: 3 | H47: 10 | I47: 54 | J47: 5 | K47: -5 | L47: 535.3 | N47: 232
D48: 4 | G48: 1.5 | H48: 10 | I48: 59 | J48: 5 | K48: 2.5 | L48: 537.8 | N48: 237 | Q48: *******
A49: 2013-01-02 | B49: doo | C49: 1 | D49: 2 | H49: 10 | I49: 56.5 | J49: 6 | K49: -6 | L49: 531.8 | N49: 243
D50: 3 | G50: 1.8 | H50: 10 | I50: 62.5 | J50: 6 | K50: 4.8 | L50: 536.6 | N50: 249
A51: 2013-01-03 | B51: kyn | C51: 1 | D51: 2 | H51: 10 | I51: 57.7 | J51: 6 | K51: -6 | L51: 530.6 | N51: 255
D52: 7 | H52: 10 | I52: 63.7 | J52: 6 | K52: -6 | L52: 524.6 | N52: 261
A53: 2013-01-04 | B53: wat | C53: 1 | D53: 2 | G53: 2.9 | H53: 10 | I53: 69.7 | J53: 7 | K53: 13.3 | L53: 537.9 | N53: 268
D54: 6 | H54: 10 | I54: =IF(I53-K53<40,(40),(I53-K53)) -> 56.4 | J54: 7 | K54: =(G54-1)*J54 -> -7 | L54: =L53+K54 -> 530.9 | N54: =N53+J54 -> 275
A55: 2013-01-05 | B55: cau | C55: 1 | D55: 3 | G55: 2.5 | H55: 10 | I55: 63.4 | J55: 7 | K55: 10.5 | L55: 541.4 | N55: 282 | Q55: *****
D56: 6 | H56: 10 | I56: 52.9 | J56: 6 | K56: -6 | L56: 535.4 | N56: 288
A57: 2013-01-06 | B57: gil | C57: 1 | D57: 6 | H57: 10 | I57: 58.9 | J57: =ROUND(I57/H57,0) -> 6 | K57: -6 | L57: 529.4 | N57: 294
D58: 8 | H58: 10 | I58: 64.9 | J58: 6 | K58: -6 | L58: 523.4 | N58: 300
A59: 2013-01-07 | B59: moy | C59: 1 | D59: 2 | H59: 10 | I59: 70.9 | J59: 7 | K59: -7 | L59: 516.4 | N59: 307
D60: 4 | G60: 3.6 | H60: 10 | I60: 77.9 | J60: 7 | K60: 18.2 | L60: 534.6 | N60: 314
A61: 2013-01-08 | B61: ech | C61: 3 | D61: 3 | H61: 10 | I61: 59.7 | J61: 7 | K61: -7 | L61: 527.6 | N61: 321
D62: 5 | H62: 10 | I62: 66.7 | J62: 7 | K62: -7 | L62: 520.6 | N62: 328
A63: 2013-01-09 | B63: gaw | C63: 1 | D63: 4 | H63: 10 | I63: 73.7 | J63: 7 | K63: -7 | L63: 513.6 | N63: 335
D64: 8 | H64: 10 | I64: 80.7 | J64: 7 | K64: -7 | L64: 506.6 | N64: 342
A65: 2013-01-10 | B65: pen | C65: 3 | D65: 4 | G65: 1.6 | H65: 10 | I65: 87.7 | J65: 9 | K65: 5.4 | L65: 512 | N65: 351
D66: 5 | H66: 10 | I66: 82.3 | J66: 9 | K66: -9 | L66: 503 | N66: 360
A67: 2013-01-11 | B67: cab | C67: 1 | D67: 1 | H67: 10 | I67: 91.3 | J67: 9 | K67: -9 | L67: 494 | N67: 369
D68: 5 | H68: 10 | I68: 100.3 | J68: 9 | K68: -9 | L68: 485 | N68: 378
A69: 2013-01-12 | B69: qen | C69: 1 | D69: 1 | H69: 10 | I69: 109.3 | J69: 10 | K69: -10 | L69: 475 | N69: 388
D70: 3 | G70: 4.7 | H70: 10 | I70: 119.3 | J70: 10 | K70: 37 | L70: 512 | N70: 398
A71: 2013-01-13 | B71: cow | C71: 1 | D71: 3 | G71: 2.1 | H71: 10 | I71: 82.3 | J71: 8 | K71: 8.8 | L71: 520.8 | N71: 406
D72: 6 | H72: 10 | I72: 73.5 | J72: 8 | K72: -8 | L72: 512.8 | N72: 414
A73: 2013-01-14 | B73: ara | C73: 2 | D73: 3 | H73: 10 | I73: 81.5 | J73: 8 | K73: -8 | L73: 504.8 | N73: 422
D74: 4 | H74: 10 | I74: 89.5 | J74: 8 | K74: -8 | L74: 496.8 | N74: 430
A75: 2013-01-15 | B75: now | C75: 1 | D75: 2 | H75: 10 | I75: 97.5 | J75: 10 | K75: -10 | L75: 486.8 | N75: 440
D76: 3 | G76: 3.5 | H76: 10 | I76: =IF(I75-K75<40,(40),(I75-K75)) -> 107.5 | J76: 10 | K76: =(G76-1)*J76 -> 25 | L76: 511.8 | N76: =N75+J76 -> 450
A77: 2013-01-16 | B77: wyo | C77: 1 | D77: 1 | H77: 10 | I77: 82.5 | J77: 10 | K77: -10 | L77: 501.8 | N77: 460
D78: 3 | H78: 10 | I78: 92.5 | J78: 10 | K78: -10 | L78: 491.8 | N78: 470
H79: 10 | I79: 102.5 | J79: =ROUND(I79/H79,0) -> 10 | K79: -10 | L79: 481.8 | N79: 480
H80: 10 | I80: 112.5 | J80: 11 | K80: -11 | L80: 470.8 | N80: 491
H81: 10 | I81: 123.5 | J81: 12 | K81: -12 | L81: 458.8 | N81: 503
H82: 10 | I82: 135.5 | J82: 14 | K82: -14 | L82: 444.8 | N82: 517
H83: 10 | I83: 149.5 | J83: 15 | K83: -15 | L83: 429.8 | N83: 532
H84: 10 | I84: 164.5 | J84: 16 | K84: -16 | L84: 413.8 | N84: 548
H85: 10 | I85: 180.5 | J85: 18 | K85: -18 | L85: 395.8 | N85: 566
H86: 10 | I86: 198.5 | J86: 20 | K86: -20 | L86: 375.8 | N86: 586
H87: 10 | I87: 218.5 | J87: 22 | K87: -22 | L87: 353.8 | N87: 608
H88: 10 | I88: 240.5 | J88: 24 | K88: -24 | L88: 329.8 | N88: 632
H89: 10 | I89: 264.5 | J89: 26 | K89: -26 | L89: 303.8 | N89: 658
H90: 10 | I90: 290.5 | J90: 29 | K90: -29 | L90: 274.8 | N90: 687
H91: 10 | I91: 319.5 | J91: 32 | K91: -32 | L91: 242.8 | N91: 719
H92: 10 | I92: 351.5 | J92: 35 | K92: -35 | N92: 754
H93: 10 | I93: 386.5 | J93: 39 | K93: -39 | N93: 793

Sheet Sheet1
A1: DATE | B1: TRACK | C1: Race No. | D1: Horse No. | E1: Horse Name | F1: RESULT | G1: DIVIDEND | H1: DIVISOR | I1: TARGET | J1: BET | K1: Profit/Loss | L1: BANK | N1: BET TOTAL
D2: 2 | I2: single | L2: 500
A3: 2012-12-01 | B3: haw | C3: 1 | D3: 4\8 | G3: 3.3 | I3: =J3/2 -> 5 | J3: 10 | K3: =G3*I3-J3 -> 6.5 | L3: =L2+K3 -> 506.5
A4: 2012-12-02 | B4: qen | C4: 1 | D4: 2\3 | F4: 1 | G4: 1.6 | I4: =J4/2 -> 5 | J4: 10 | K4: =G4*I4-J4 -> -2 | L4: =L3+K4 -> 504.5 | EW4: qen | EX4: 1 | EY4: 2 | EZ4: 2012-12-02 | FA4: qen | FB4: 1 | FC4: 2 | FD4: 2012-12-02 | FE4: qen | FF4: 1 | FG4: 2 | FH4: 2012-12-02 | FI4: qen | FJ4: 1 | FK4: 2 | FL4: 2012-12-02 | FM4: qen | FN4: 1 | FO4: 2 | FP4: 2012-12-02 | FQ4: qen | FR4: 1 | FS4: 2 | FT4: 2012-12-02 | FU4: qen | FV4: 1 | FW4: 2 | FX4: 2012-12-02 | FY4: qen | FZ4: 1 | GA4: 2 | GB4: 2012-12-02 | GC4: qen | GD4: 1 | GE4: 2 | GF4: 2012-12-02 | GG4: qen | GH4: 1 | GI4: 2 | GJ4: 2012-12-02 | GK4: qen | GL4: 1 | GM4: 2 | GN4: 2012-12-02 | GO4: qen | GP4: 1 | GQ4: 2 | GR4: 2012-12-02 | GS4: qen | GT4: 1 | GU4: 2 | GV4: 2012-12-02 | GW4: qen | GX4: 1 | GY4: 2 | GZ4: 2012-12-02 | HA4: qen | HB4: 1 | HC4: 2 | HD4: 2012-12-02 | HE4: qen | HF4: 1 | HG4: 2 | HH4: 2012-12-02 | HI4: qen | HJ4: 1 | HK4: 2 | HL4: 2012-12-02 | HM4: qen | HN4: 1 | HO4: 2 | HP4: 2012-12-02 | HQ4: qen | HR4: 1 | HS4: 2 | HT4: 2012-12-02 | HU4: qen | HV4: 1 | HW4: 2 | HX4: 2012-12-02 | HY4: qen | HZ4: 1 | IA4: 2 | IB4: 2012-12-02 | IC4: qen | ID4: 1 | IE4: 2 | IF4: 2012-12-02 | IG4: qen | IH4: 1 | II4: 2 | IJ4: 2012-12-02 | IK4: qen | IL4: 1 | IM4: 2 | IN4: 2012-12-02 | IO4: qen | IP4: 1 | IQ4: 2 | IR4: 2012-12-02 | IS4: qen | IT4: 1 | IU4: 2 | IV4: 2012-12-02 | IW4: qen | IX4: 1 | IY4: 2 | IZ4: 2012-12-02 | JA4: qen | JB4: 1 | JC4: 2 | JD4: 2012-12-02 | JE4: qen | JF4: 1 | JG4: 2 | JH4: 2012-12-02 | JI4: qen | JJ4: 1 | JK4: 2 | JL4: 2012-12-02 | JM4: qen | JN4: 1 | JO4: 2 | JP4: 2012-12-02 | JQ4: qen | JR4: 1 | JS4: 2 | JT4: 2012-12-02 | JU4: qen | JV4: 1 | JW4: 2 | JX4: 2012-12-02 | JY4: qen | JZ4: 1 | KA4: 2 | KB4: 2012-12-02 | KC4: qen | KD4: 1 | KE4: 2 | KF4: 2012-12-02 | KG4: qen | KH4: 1 | KI4: 2 | KJ4: 2012-12-02 | KK4: qen | KL4: 1 | KM4: 2 | KN4: 2012-12-02 | KO4: qen | KP4: 1 | KQ4: 2 | KR4: 2012-12-02 | KS4: qen | KT4: 1 | KU4: 2 | KV4: 2012-12-02 | KW4: qen | KX4: 1 | KY4: 2 | KZ4: 2012-12-02 | LA4: qen | LB4: 1 | LC4: 2 | LD4: 2012-12-02 | LE4: qen | LF4: 1 | LG4: 2 | LH4: 2012-12-02 | LI4: qen | LJ4: 1 | LK4: 2 | LL4: 2012-12-02 | LM4: qen | LN4: 1 | LO4: 2 | LP4: 2012-12-02 | LQ4: qen | LR4: 1 | LS4: 2 | LT4: 2012-12-02 | LU4: qen | LV4: 1 | LW4: 2 | LX4: 2012-12-02 | LY4: qen | LZ4: 1 | MA4: 2 | MB4: 2012-12-02 | MC4: qen | MD4: 1 | ME4: 2 | MF4: 2012-12-02 | MG4: qen | MH4: 1 | MI4: 2 | MJ4: 2012-12-02 | MK4: qen | ML4: 1 | MM4: 2 | MN4: 2012-12-02 | MO4: qen | MP4: 1 | MQ4: 2 | MR4: 2012-12-02 | MS4: qen | MT4: 1 | MU4: 2 | MV4: 2012-12-02 | MW4: qen | MX4: 1 | MY4: 2 | MZ4: 2012-12-02 | NA4: qen | NB4: 1 | NC4: 2 | ND4: 2012-12-02 | NE4: qen | NF4: 1 | NG4: 2 | NH4: 2012-12-02 | NI4: qen | NJ4: 1 | NK4: 2 | NL4: 2012-12-02 | NM4: qen | NN4: 1 | NO4: 2 | NP4: 2012-12-02 | NQ4: qen | NR4: 1 | NS4: 2 | NT4: 2012-12-02 | NU4: qen | NV4: 1 | NW4: 2 | NX4: 2012-12-02 | NY4: qen | NZ4: 1 | OA4: 2 | OB4: 2012-12-02 | OC4: qen | OD4: 1 | OE4: 2 | OF4: 2012-12-02 | OG4: qen | OH4: 1 | OI4: 2 | OJ4: 2012-12-02 | OK4: qen | OL4: 1 | OM4: 2 | ON4: 2012-12-02 | OO4: qen | OP4: 1 | OQ4: 2 | OR4: 2012-12-02 | OS4: qen | OT4: 1 | OU4: 2 | OV4: 2012-12-02 | OW4: qen | OX4: 1 | OY4: 2 | OZ4: 2012-12-02 | PA4: qen | PB4: 1 | PC4: 2 | PD4: 2012-12-02 | PE4: qen | PF4: 1 | PG4: 2 | PH4: 2012-12-02 | PI4: qen | PJ4: 1 | PK4: 2 | PL4: 2012-12-02 | PM4: qen | PN4: 1 | PO4: 2 | PP4: 2012-12-02 | PQ4: qen | PR4: 1 | PS4: 2 | PT4: 2012-12-02 | PU4: qen | PV4: 1 | PW4: 2 | PX4: 2012-12-02 | PY4: qen | PZ4: 1 | QA4: 2 | QB4: 2012-12-02 | QC4: qen | QD4: 1 | QE4: 2 | QF4: 2012-12-02 | QG4: qen | QH4: 1 | QI4: 2 | QJ4: 2012-12-02 | QK4: qen | QL4: 1 | QM4: 2 | QN4: 2012-12-02 | QO4: qen | QP4: 1 | QQ4: 2 | QR4: 2012-12-02 | QS4: qen | QT4: 1 | QU4: 2 | QV4: 2012-12-02 | QW4: qen | QX4: 1 | QY4: 2 | QZ4: 2012-12-02 | RA4: qen | RB4: 1 | RC4: 2 | RD4: 2012-12-02 | RE4: qen | RF4: 1 | RG4: 2 | RH4: 2012-12-02 | RI4: qen | RJ4: 1 | RK4: 2 | RL4: 2012-12-02 | RM4: qen | RN4: 1 | RO4: 2 | RP4: 2012-12-02 | RQ4: qen | RR4: 1 | RS4: 2 | RT4: 2012-12-02 | RU4: qen | RV4: 1 | RW4: 2 | RX4: 2012-12-02 | RY4: qen | RZ4: 1 | SA4: 2 | SB4: 2012-12-02 | SC4: qen | SD4: 1 | SE4: 2 | SF4: 2012-12-02 | SG4: qen | SH4: 1 | SI4: 2 | SJ4: 2012-12-02 | SK4: qen | SL4: 1 | SM4: 2 | SN4: 2012-12-02 | SO4: qen | SP4: 1 | SQ4: 2 | SR4: 2012-12-02 | SS4: qen | ST4: 1 | SU4: 2 | SV4: 2012-12-02 | SW4: qen | SX4: 1 | SY4: 2 | SZ4: 2012-12-02 | TA4: qen | TB4: 1 | TC4: 2 | TD4: 2012-12-02 | TE4: qen | TF4: 1 | TG4: 2 | TH4: 2012-12-02 | TI4: qen | TJ4: 1 | TK4: 2 | TL4: 2012-12-02 | TM4: qen | TN4: 1 | TO4: 2 | TP4: 2012-12-02 | TQ4: qen | TR4: 1 | TS4: 2 | TT4: 2012-12-02 | TU4: qen | TV4: 1 | TW4: 2 | TX4: 2012-12-02 | TY4: qen | TZ4: 1 | UA4: 2 | UB4: 2012-12-02 | UC4: qen | UD4: 1 | UE4: 2 | UF4: 2012-12-02 | UG4: qen | UH4: 1 | UI4: 2 | UJ4: 2012-12-02 | UK4: qen | UL4: 1 | UM4: 2 | UN4: 2012-12-02 | UO4: qen | UP4: 1 | UQ4: 2 | UR4: 2012-12-02 | US4: qen | UT4: 1 | UU4: 2 | UV4: 2012-12-02 | UW4: qen | UX4: 1 | UY4: 2 | UZ4: 2012-12-02 | VA4: qen | VB4: 1 | VC4: 2 | VD4: 2012-12-02 | VE4: qen | VF4: 1 | VG4: 2 | VH4: 2012-12-02 | VI4: qen | VJ4: 1 | VK4: 2 | VL4: 2012-12-02 | VM4: qen | VN4: 1 | VO4: 2 | VP4: 2012-12-02 | VQ4: qen | VR4: 1 | VS4: 2 | VT4: 2012-12-02 | VU4: qen | VV4: 1 | VW4: 2 | VX4: 2012-12-02 | VY4: qen | VZ4: 1 | WA4: 2 | WB4: 2012-12-02 | WC4: qen | WD4: 1 | WE4: 2 | WF4: 2012-12-02 | WG4: qen | WH4: 1 | WI4: 2 | WJ4: 2012-12-02 | WK4: qen | WL4: 1 | WM4: 2 | WN4: 2012-12-02 | WO4: qen | WP4: 1 | WQ4: 2 | WR4: 2012-12-02 | WS4: qen | WT4: 1 | WU4: 2 | WV4: 2012-12-02 | WW4: qen | WX4: 1 | WY4: 2 | WZ4: 2012-12-02 | XA4: qen | XB4: 1 | XC4: 2 | XD4: 2012-12-02 | XE4: qen | XF4: 1 | XG4: 2 | XH4: 2012-12-02 | XI4: qen | XJ4: 1 | XK4: 2 | XL4: 2012-12-02 | XM4: qen | XN4: 1 | XO4: 2 | XP4: 2012-12-02 | XQ4: qen | XR4: 1 | XS4: 2 | XT4: 2012-12-02 | XU4: qen | XV4: 1 | XW4: 2 | XX4: 2012-12-02 | XY4: qen | XZ4: 1 | YA4: 2 | YB4: 2012-12-02 | YC4: qen | YD4: 1 | YE4: 2 | YF4: 2012-12-02 | YG4: qen | YH4: 1 | YI4: 2 | YJ4: 2012-12-02 | YK4: qen | YL4: 1 | YM4: 2 | YN4: 2012-12-02 | YO4: qen | YP4: 1 | YQ4: 2 | YR4: 2012-12-02 | YS4: qen | YT4: 1 | YU4: 2 | YV4: 2012-12-02 | YW4: qen | YX4: 1 | YY4: 2 | YZ4: 2012-12-02 | ZA4: qen | ZB4: 1 | ZC4: 2 | ZD4: 2012-12-02 | ZE4: qen | ZF4: 1 | ZG4: 2 | ZH4: 2012-12-02 | ZI4: qen | ZJ4: 1 | ZK4: 2 | ZL4: 2012-12-02 | ZM4: qen | ZN4: 1 | ZO4: 2 | ZP4: 2012-12-02 | ZQ4: qen | ZR4: 1 | ZS4: 2 | ZT4: 2012-12-02 | ZU4: qen | ZV4: 1 | ZW4: 2 | ZX4: 2012-12-02 | ZY4: qen | ZZ4: 1 | AAA4: 2 | AAB4: 2012-12-02 | AAC4: qen | AAD4: 1 | AAE4: 2 | AAF4: 2012-12-02 | AAG4: qen | AAH4: 1 | AAI4: 2 | AAJ4: 2012-12-02 | AAK4: qen | AAL4: 1 | AAM4: 2 | AAN4: 2012-12-02 | AAO4: qen | AAP4: 1 | AAQ4: 2 | AAR4: 2012-12-02 | AAS4: qen | AAT4: 1 | AAU4: 2 | AAV4: 2012-12-02 | AAW4: qen | AAX4: 1 | AAY4: 2 | AAZ4: 2012-12-02 | ABA4: qen | ABB4: 1 | ABC4: 2 | ABD4: 2012-12-02 | ABE4: qen | ABF4: 1 | ABG4: 2 | ABH4: 2012-12-02 | ABI4: qen | ABJ4: 1 | ABK4: 2 | ABL4: 2012-12-02 | ABM4: qen | ABN4: 1 | ABO4: 2 | ABP4: 2012-12-02 | ABQ4: qen | ABR4: 1 | ABS4: 2 | ABT4: 2012-12-02 | ABU4: qen | ABV4: 1 | ABW4: 2 | ABX4: 2012-12-02 | ABY4: qen | ABZ4: 1 | ACA4: 2 | ACB4: 2012-12-02 | ACC4: qen | ACD4: 1 | ACE4: 2 | ACF4: 2012-12-02 | ACG4: qen | ACH4: 1 | ACI4: 2 | ACJ4: 2012-12-02 | ACK4: qen | ACL4: 1 | ACM4: 2 | ACN4: 2012-12-02 | ACO4: qen | ACP4: 1 | ACQ4: 2 | ACR4: 2012-12-02 | ACS4: qen | ACT4: 1 | ACU4: 2 | ACV4: 2012-12-02 | ACW4: qen | ACX4: 1 | ACY4: 2 | ACZ4: 2012-12-02 | ADA4: qen | ADB4: 1 | ADC4: 2 | ADD4: 2012-12-02 | ADE4: qen | ADF4: 1 | ADG4: 2 | ADH4: 2012-12-02 | ADI4: qen | ADJ4: 1 | ADK4: 2 | ADL4: 2012-12-02 | ADM4: qen | ADN4: 1 | ADO4: 2 | ADP4: 2012-12-02 | ADQ4: qen | ADR4: 1 | ADS4: 2 | ADT4: 2012-12-02 | ADU4: qen | ADV4: 1 | ADW4: 2 | ADX4: 2012-12-02 | ADY4: qen | ADZ4: 1 | AEA4: 2 | AEB4: 2012-12-02 | AEC4: qen | AED4: 1 | AEE4: 2 | AEF4: 2012-12-02 | AEG4: qen | AEH4: 1 | AEI4: 2 | AEJ4: 2012-12-02 | AEK4: qen | AEL4: 1 | AEM4: 2 | AEN4: 2012-12-02 | AEO4: qen | AEP4: 1 | AEQ4: 2 | AER4: 2012-12-02 | AES4: qen | AET4: 1 | AEU4: 2 | AEV4: 2012-12-02 | AEW4: qen | AEX4: 1 | AEY4: 2 | AEZ4: 2012-12-02 | AFA4: qen | AFB4: 1 | AFC4: 2 | AFD4: 2012-12-02 | AFE4: qen | AFF4: 1 | AFG4: 2 | AFH4: 2012-12-02 | AFI4: qen | AFJ4: 1 | AFK4: 2 | AFL4: 2012-12-02 | AFM4: qen | AFN4: 1 | AFO4: 2 | AFP4: 2012-12-02 | AFQ4: qen | AFR4: 1 | AFS4: 2 | AFT4: 2012-12-02 | AFU4: qen | AFV4: 1 | AFW4: 2 | AFX4: 2012-12-02 | AFY4: qen | AFZ4: 1 | AGA4: 2 | AGB4: 2012-12-02 | AGC4: qen | AGD4: 1 | AGE4: 2 | AGF4: 2012-12-02 | AGG4: qen | AGH4: 1 | AGI4: 2 | AGJ4: 2012-12-02 | AGK4: qen | AGL4: 1 | AGM4: 2 | AGN4: 2012-12-02 | AGO4: qen | AGP4: 1 | AGQ4: 2 | AGR4: 2012-12-02 | AGS4: qen | AGT4: 1 | AGU4: 2 | AGV4: 2012-12-02 | AGW4: qen | AGX4: 1 | AGY4: 2 | AGZ4: 2012-12-02 | AHA4: qen | AHB4: 1 | AHC4: 2 | AHD4: 2012-12-02 | AHE4: qen | AHF4: 1 | AHG4: 2 | AHH4: 2012-12-02 | AHI4: qen | AHJ4: 1 | AHK4: 2 | AHL4: 2012-12-02 | AHM4: qen | AHN4: 1 | AHO4: 2 | AHP4: 2012-12-02 | AHQ4: qen | AHR4: 1 | AHS4: 2 | AHT4: 2012-12-02 | AHU4: qen | AHV4: 1 | AHW4: 2 | AHX4: 2012-12-02 | AHY4: qen | AHZ4: 1 | AIA4: 2 | AIB4: 2012-12-02 | AIC4: qen | AID4: 1 | AIE4: 2 | AIF4: 2012-12-02 | AIG4: qen | AIH4: 1 | AII4: 2 | AIJ4: 2012-12-02 | AIK4: qen | AIL4: 1 | AIM4: 2 | AIN4: 2012-12-02 | AIO4: qen | AIP4: 1 | AIQ4: 2 | AIR4: 2012-12-02 | AIS4: qen | AIT4: 1 | AIU4: 2 | AIV4: 2012-12-02 | AIW4: qen | AIX4: 1 | AIY4: 2 | AIZ4: 2012-12-02 | AJA4: qen | AJB4: 1 | AJC4: 2 | AJD4: 2012-12-02 | AJE4: qen | AJF4: 1 | AJG4: 2 | AJH4: 2012-12-02 | AJI4: qen | AJJ4: 1 | AJK4: 2 | AJL4: 2012-12-02 | AJM4: qen | AJN4: 1 | AJO4: 2 | AJP4: 2012-12-02 | AJQ4: qen | AJR4: 1 | AJS4: 2 | AJT4: 2012-12-02 | AJU4: qen | AJV4: 1 | AJW4: 2 | AJX4: 2012-12-02 | AJY4: qen | AJZ4: 1 | AKA4: 2 | AKB4: 2012-12-02 | AKC4: qen | AKD4: 1 | AKE4: 2 | AKF4: 2012-12-02 | AKG4: qen | AKH4: 1 | AKI4: 2 | AKJ4: 2012-12-02 | AKK4: qen | AKL4: 1 | AKM4: 2 | AKN4: 2012-12-02 | AKO4: qen | AKP4: 1 | AKQ4: 2 | AKR4: 2012-12-02 | AKS4: qen | AKT4: 1 | AKU4: 2 | AKV4: 2012-12-02 | AKW4: qen | AKX4: 1 | AKY4: 2 | AKZ4: 2012-12-02 | ALA4: qen | ALB4: 1 | ALC4: 2 | ALD4: 2012-12-02 | ALE4: qen | ALF4: 1 | ALG4: 2 | ALH4: 2012-12-02 | ALI4: qen | ALJ4: 1 | ALK4: 2 | ALL4: 2012-12-02 | ALM4: qen | ALN4: 1 | ALO4: 2 | ALP4: 2012-12-02 | ALQ4: qen | ALR4: 1 | ALS4: 2 | ALT4: 2012-12-02 | ALU4: qen | ALV4: 1 | ALW4: 2 | ALX4: 2012-12-02 | ALY4: qen | ALZ4: 1 | AMA4: 2 | AMB4: 2012-12-02 | AMC4: qen | AMD4: 1 | AME4: 2 | AMF4: 2012-12-02 | AMG4: qen | AMH4: 1 | AMI4: 2 | AMJ4: 2012-12-02 | AMK4: qen | AML4: 1 | AMM4: 2 | AMN4: 2012-12-02 | AMO4: qen | AMP4: 1 | AMQ4: 2 | AMR4: 2012-12-02 | AMS4: qen | AMT4: 1 | AMU4: 2 | AMV4: 2012-12-02 | AMW4: qen | AMX4: 1 | AMY4: 2 | AMZ4: 2012-12-02 | ANA4: qen | ANB4: 1 | ANC4: 2 | AND4: 2012-12-02 | ANE4: qen | ANF4: 1 | ANG4: 2 | ANH4: 2012-12-02 | ANI4: qen | ANJ4: 1 | ANK4: 2 | ANL4: 2012-12-02 | ANM4: qen | ANN4: 1 | ANO4: 2 | ANP4: 2012-12-02 | ANQ4: qen | ANR4: 1 | ANS4: 2 | ANT4: 2012-12-02 | ANU4: qen | ANV4: 1 | ANW4: 2 | ANX4: 2012-12-02 | ANY4: qen | ANZ4: 1 | AOA4: 2 | AOB4: 2012-12-02 | AOC4: qen | AOD4: 1 | AOE4: 2 | AOF4: 2012-12-02 | AOG4: qen | AOH4: 1 | AOI4: 2 | AOJ4: 2012-12-02 | AOK4: qen | AOL4: 1 | AOM4: 2 | AON4: 2012-12-02 | AOO4: qen | AOP4: 1 | AOQ4: 2 | AOR4: 2012-12-02 | AOS4: qen | AOT4: 1 | AOU4: 2 | AOV4: 2012-12-02 | AOW4: qen | AOX4: 1 | AOY4: 2 | AOZ4: 2012-12-02 | APA4: qen | APB4: 1 | APC4: 2 | APD4: 2012-12-02 | APE4: qen | APF4: 1 | APG4: 2 | APH4: 2012-12-02 | API4: qen | APJ4: 1 | APK4: 2 | APL4: 2012-12-02 | APM4: qen | APN4: 1 | APO4: 2 | APP4: 2012-12-02 | APQ4: qen | APR4: 1 | APS4: 2 | APT4: 2012-12-02 | APU4: qen | APV4: 1 | APW4: 2 | APX4: 2012-12-02 | APY4: qen | APZ4: 1 | AQA4: 2 | AQB4: 2012-12-02 | AQC4: qen | AQD4: 1 | AQE4: 2 | AQF4: 2012-12-02 | AQG4: qen | AQH4: 1 | AQI4: 2 | AQJ4: 2012-12-02 | AQK4: qen | AQL4: 1 | AQM4: 2 | AQN4: 2012-12-02 | AQO4: qen | AQP4: 1 | AQQ4: 2 | AQR4: 2012-12-02 | AQS4: qen | AQT4: 1 | AQU4: 2 | AQV4: 2012-12-02 | AQW4: qen | AQX4: 1 | AQY4: 2 | AQZ4: 2012-12-02 | ARA4: qen | ARB4: 1 | ARC4: 2 | ARD4: 2012-12-02 | ARE4: qen | ARF4: 1 | ARG4: 2 | ARH4: 2012-12-02 | ARI4: qen | ARJ4: 1 | ARK4: 2 | ARL4: 2012-12-02 | ARM4: qen | ARN4: 1 | ARO4: 2 | ARP4: 2012-12-02 | ARQ4: qen | ARR4: 1 | ARS4: 2 | ART4: 2012-12-02 | ARU4: qen | ARV4: 1 | ARW4: 2 | ARX4: 2012-12-02 | ARY4: qen | ARZ4: 1 | ASA4: 2 | ASB4: 2012-12-02 | ASC4: qen | ASD4: 1 | ASE4: 2 | ASF4: 2012-12-02 | ASG4: qen | ASH4: 1 | ASI4: 2 | ASJ4: 2012-12-02 | ASK4: qen | ASL4: 1 | ASM4: 2 | ASN4: 2012-12-02 | ASO4: qen | ASP4: 1 | ASQ4: 2 | ASR4: 2012-12-02 | ASS4: qen | AST4: 1 | ASU4: 2 | ASV4: 2012-12-02 | ASW4: qen | ASX4: 1 | ASY4: 2 | ASZ4: 2012-12-02 | ATA4: qen | ATB4: 1 | ATC4: 2 | ATD4: 2012-12-02 | ATE4: qen | ATF4: 1 | ATG4: 2 | ATH4: 2012-12-02 | ATI4: qen | ATJ4: 1 | ATK4: 2 | ATL4: 2012-12-02 | ATM4: qen | ATN4: 1 | ATO4: 2 | ATP4: 2012-12-02 | ATQ4: qen | ATR4: 1 | ATS4: 2 | ATT4: 2012-12-02 | ATU4: qen | ATV4: 1 | ATW4: 2 | ATX4: 2012-12-02 | ATY4: qen | ATZ4: 1 | AUA4: 2 | AUB4: 2012-12-02 | AUC4: qen | AUD4: 1 | AUE4: 2 | AUF4: 2012-12-02 | AUG4: qen | AUH4: 1 | AUI4: 2 | AUJ4: 2012-12-02 | AUK4: qen | AUL4: 1 | AUM4: 2 | AUN4: 2012-12-02 | AUO4: qen | AUP4: 1 | AUQ4: 2 | AUR4: 2012-12-02 | AUS4: qen | AUT4: 1 | AUU4: 2 | AUV4: 2012-12-02 | AUW4: qen | AUX4: 1 | AUY4: 2 | AUZ4: 2012-12-02 | AVA4: qen | AVB4: 1 | AVC4: 2 | AVD4: 2012-12-02 | AVE4: qen | AVF4: 1 | AVG4: 2 | AVH4: 2012-12-02 | AVI4: qen | AVJ4: 1 | AVK4: 2 | AVL4: 2012-12-02 | AVM4: qen | AVN4: 1 | AVO4: 2 | AVP4: 2012-12-02 | AVQ4: qen | AVR4: 1 | AVS4: 2 | AVT4: 2012-12-02 | AVU4: qen | AVV4: 1 | AVW4: 2 | AVX4: 2012-12-02 | AVY4: qen | AVZ4: 1 | AWA4: 2 | AWB4: 2012-12-02 | AWC4: qen | AWD4: 1 | AWE4: 2 | AWF4: 2012-12-02 | AWG4: qen | AWH4: 1 | AWI4: 2 | AWJ4: 2012-12-02 | AWK4: qen | AWL4: 1 | AWM4: 2 | AWN4: 2012-12-02 | AWO4: qen | AWP4: 1 | AWQ4: 2 | AWR4: 2012-12-02 | AWS4: qen | AWT4: 1 | AWU4: 2 | AWV4: 2012-12-02 | AWW4: qen | AWX4: 1 | AWY4: 2 | AWZ4: 2012-12-02 | AXA4: qen | AXB4: 1 | AXC4: 2 | AXD4: 2012-12-02 | AXE4: qen | AXF4: 1 | AXG4: 2 | AXH4: 2012-12-02 | AXI4: qen | AXJ4: 1 | AXK4: 2 | AXL4: 2012-12-02 | AXM4: qen | AXN4: 1 | AXO4: 2 | AXP4: 2012-12-02 | AXQ4: qen | AXR4: 1 | AXS4: 2 | AXT4: 2012-12-02 | AXU4: qen | AXV4: 1 | AXW4: 2 | AXX4: 2012-12-02 | AXY4: qen | AXZ4: 1 | AYA4: 2 | AYB4: 2012-12-02 | AYC4: qen | AYD4: 1 | AYE4: 2 | AYF4: 2012-12-02 | AYG4: qen | AYH4: 1 | AYI4: 2 | AYJ4: 2012-12-02 | AYK4: qen | AYL4: 1 | AYM4: 2 | AYN4: 2012-12-02 | AYO4: qen | AYP4: 1 | AYQ4: 2 | AYR4: 2012-12-02 | AYS4: qen | AYT4: 1 | AYU4: 2 | AYV4: 2012-12-02 | AYW4: qen | AYX4: 1 | AYY4: 2 | AYZ4: 2012-12-02 | AZA4: qen | AZB4: 1 | AZC4: 2 | AZD4: 2012-12-02 | AZE4: qen | AZF4: 1 | AZG4: 2 | AZH4: 2012-12-02 | AZI4: qen | AZJ4: 1 | AZK4: 2 | AZL4: 2012-12-02 | AZM4: qen | AZN4: 1 | AZO4: 2 | AZP4: 2012-12-02 | AZQ4: qen | AZR4: 1 | AZS4: 2 | AZT4: 2012-12-02 | AZU4: qen | AZV4: 1 | AZW4: 2 | AZX4: 2012-12-02 | AZY4: qen | AZZ4: 1 | BAA4: 2 | BAB4: 2012-12-02 | BAC4: qen | BAD4: 1 | BAE4: 2 | BAF4: 2012-12-02 | BAG4: qen | BAH4: 1 | BAI4: 2 | BAJ4: 2012-12-02 | BAK4: qen | BAL4: 1 | BAM4: 2 | BAN4: 2012-12-02 | BAO4: qen | BAP4: 1 | BAQ4: 2 | BAR4: 2012-12-02 | BAS4: qen | BAT4: 1 | BAU4: 2 | BAV4: 2012-12-02 | BAW4: qen | BAX4: 1 | BAY4: 2 | BAZ4: 2012-12-02 | BBA4: qen | BBB4: 1 | BBC4: 2 | BBD4: 2012-12-02 | BBE4: qen | BBF4: 1 | BBG4: 2 | BBH4: 2012-12-02 | BBI4: qen | BBJ4: 1 | BBK4: 2 | BBL4: 2012-12-02 | BBM4: qen | BBN4: 1 | BBO4: 2 | BBP4: 2012-12-02 | BBQ4: qen | BBR4: 1 | BBS4: 2 | BBT4: 2012-12-02 | BBU4: qen | BBV4: 1 | BBW4: 2 | BBX4: 2012-12-02 | BBY4: qen | BBZ4: 1 | BCA4: 2 | BCB4: 2012-12-02 | BCC4: qen | BCD4: 1 | BCE4: 2 | BCF4: 2012-12-02 | BCG4: qen | BCH4: 1 | BCI4: 2 | BCJ4: 2012-12-02 | BCK4: qen | BCL4: 1 | BCM4: 2 | BCN4: 2012-12-02 | BCO4: qen | BCP4: 1 | BCQ4: 2 | BCR4: 2012-12-02 | BCS4: qen | BCT4: 1 | BCU4: 2 | BCV4: 2012-12-02 | BCW4: qen | BCX4: 1 | BCY4: 2 | BCZ4: 2012-12-02 | BDA4: qen | BDB4: 1 | BDC4: 2 | BDD4: 2012-12-02 | BDE4: qen | BDF4: 1 | BDG4: 2 | BDH4: 2012-12-02 | BDI4: qen | BDJ4: 1 | BDK4: 2 | BDL4: 2012-12-02 | BDM4: qen | BDN4: 1 | BDO4: 2 | BDP4: 2012-12-02 | BDQ4: qen | BDR4: 1 | BDS4: 2 | BDT4: 2012-12-02 | BDU4: qen | BDV4: 1 | BDW4: 2 | BDX4: 2012-12-02 | BDY4: qen | BDZ4: 1 | BEA4: 2 | BEB4: 2012-12-02 | BEC4: qen | BED4: 1 | BEE4: 2 | BEF4: 2012-12-02 | BEG4: qen | BEH4: 1 | BEI4: 2 | BEJ4: 2012-12-02 | BEK4: qen | BEL4: 1 | BEM4: 2 | BEN4: 2012-12-02 | BEO4: qen | BEP4: 1 | BEQ4: 2 | BER4: 2012-12-02 | BES4: qen | BET4: 1 | BEU4: 2 | BEV4: 2012-12-02 | BEW4: qen | BEX4: 1 | BEY4: 2 | BEZ4: 2012-12-02 | BFA4: qen | BFB4: 1 | BFC4: 2 | BFD4: 2012-12-02 | BFE4: qen | BFF4: 1 | BFG4: 2 | BFH4: 2012-12-02 | BFI4: qen | BFJ4: 1 | BFK4: 2 | BFL4: 2012-12-02 | BFM4: qen | BFN4: 1 | BFO4: 2 | BFP4: 2012-12-02 | BFQ4: qen | BFR4: 1 | BFS4: 2 | BFT4: 2012-12-02 | BFU4: qen | BFV4: 1 | BFW4: 2 | BFX4: 2012-12-02 | BFY4: qen | BFZ4: 1 | BGA4: 2 | BGB4: 2012-12-02 | BGC4: qen | BGD4: 1 | BGE4: 2 | BGF4: 2012-12-02 | BGG4: qen | BGH4: 1 | BGI4: 2 | BGJ4: 2012-12-02 | BGK4: qen | BGL4: 1 | BGM4: 2 | BGN4: 2012-12-02 | BGO4: qen | BGP4: 1 | BGQ4: 2 | BGR4: 2012-12-02 | BGS4: qen | BGT4: 1 | BGU4: 2 | BGV4: 2012-12-02 | BGW4: qen | BGX4: 1 | BGY4: 2 | BGZ4: 2012-12-02 | BHA4: qen | BHB4: 1 | BHC4: 2 | BHD4: 2012-12-02 | BHE4: qen | BHF4: 1 | BHG4: 2 | BHH4: 2012-12-02 | BHI4: qen | BHJ4: 1 | BHK4: 2 | BHL4: 2012-12-02 | BHM4: qen | BHN4: 1 | BHO4: 2 | BHP4: 2012-12-02 | BHQ4: qen | BHR4: 1 | BHS4: 2 | BHT4: 2012-12-02 | BHU4: qen | BHV4: 1 | BHW4: 2 | BHX4: 2012-12-02 | BHY4: qen | BHZ4: 1 | BIA4: 2 | BIB4: 2012-12-02 | BIC4: qen | BID4: 1 | BIE4: 2 | BIF4: 2012-12-02 | BIG4: qen | BIH4: 1 | BII4: 2 | BIJ4: 2012-12-02 | BIK4: qen | BIL4: 1 | BIM4: 2 | BIN4: 2012-12-02 | BIO4: qen | BIP4: 1 | BIQ4: 2 | BIR4: 2012-12-02 | BIS4: qen | BIT4: 1 | BIU4: 2 | BIV4: 2012-12-02 | BIW4: qen | BIX4: 1 | BIY4: 2 | BIZ4: 2012-12-02 | BJA4: qen | BJB4: 1 | BJC4: 2 | BJD4: 2012-12-02 | BJE4: qen | BJF4: 1 | BJG4: 2 | BJH4: 2012-12-02 | BJI4: qen | BJJ4: 1 | BJK4: 2 | BJL4: 2012-12-02 | BJM4: qen | BJN4: 1 | BJO4: 2 | BJP4: 2012-12-02 | BJQ4: qen | BJR4: 1 | BJS4: 2 | BJT4: 2012-12-02 | BJU4: qen | BJV4: 1 | BJW4: 2 | BJX4: 2012-12-02 | BJY4: qen | BJZ4: 1 | BKA4: 2 | BKB4: 2012-12-02 | BKC4: qen | BKD4: 1 | BKE4: 2 | BKF4: 2012-12-02 | BKG4: qen | BKH4: 1 | BKI4: 2 | BKJ4: 2012-12-02 | BKK4: qen | BKL4: 1 | BKM4: 2 | BKN4: 2012-12-02 | BKO4: qen | BKP4: 1 | BKQ4: 2 | BKR4: 2012-12-02 | BKS4: qen | BKT4: 1 | BKU4: 2 | BKV4: 2012-12-02 | BKW4: qen | BKX4: 1 | BKY4: 2 | BKZ4: 2012-12-02 | BLA4: qen | BLB4: 1 | BLC4: 2 | BLD4: 2012-12-02 | BLE4: qen | BLF4: 1 | BLG4: 2 | BLH4: 2012-12-02 | BLI4: qen | BLJ4: 1 | BLK4: 2 | BLL4: 2012-12-02 | BLM4: qen | BLN4: 1 | BLO4: 2 | BLP4: 2012-12-02 | BLQ4: qen | BLR4: 1 | BLS4: 2 | BLT4: 2012-12-02 | BLU4: qen | BLV4: 1 | BLW4: 2 | BLX4: 2012-12-02 | BLY4: qen | BLZ4: 1 | BMA4: 2 | BMB4: 2012-12-02 | BMC4: qen | BMD4: 1 | BME4: 2 | BMF4: 2012-12-02 | BMG4: qen | BMH4: 1 | BMI4: 2 | BMJ4: 2012-12-02 | BMK4: qen | BML4: 1 | BMM4: 2 | BMN4: 2012-12-02 | BMO4: qen | BMP4: 1 | BMQ4: 2 | BMR4: 2012-12-02 | BMS4: qen | BMT4: 1 | BMU4: 2 | BMV4: 2012-12-02 | BMW4: qen | BMX4: 1 | BMY4: 2 | BMZ4: 2012-12-02 | BNA4: qen | BNB4: 1 | BNC4: 2 | BND4: 2012-12-02 | BNE4: qen | BNF4: 1 | BNG4: 2 | BNH4: 2012-12-02 | BNI4: qen | BNJ4: 1 | BNK4: 2 | BNL4: 2012-12-02 | BNM4: qen | BNN4: 1 | BNO4: 2 | BNP4: 2012-12-02 | BNQ4: qen | BNR4: 1 | BNS4: 2 | BNT4: 2012-12-02 | BNU4: qen | BNV4: 1 | BNW4: 2 | BNX4: 2012-12-02 | BNY4: qen | BNZ4: 1 | BOA4: 2 | BOB4: 2012-12-02 | BOC4: qen | BOD4: 1 | BOE4: 2 | BOF4: 2012-12-02 | BOG4: qen | BOH4: 1 | BOI4: 2 | BOJ4: 2012-12-02 | BOK4: qen | BOL4: 1 | BOM4: 2 | BON4: 2012-12-02 | BOO4: qen | BOP4: 1 | BOQ4: 2 | BOR4: 2012-12-02 | BOS4: qen | BOT4: 1 | BOU4: 2 | BOV4: 2012-12-02 | BOW4: qen | BOX4: 1 | BOY4: 2 | BOZ4: 2012-12-02 | BPA4: qen | BPB4: 1 | BPC4: 2 | BPD4: 2012-12-02 | BPE4: qen | BPF4: 1 | BPG4: 2 | BPH4: 2012-12-02 | BPI4: qen | BPJ4: 1 | BPK4: 2 | BPL4: 2012-12-02 | BPM4: qen | BPN4: 1 | BPO4: 2 | BPP4: 2012-12-02 | BPQ4: qen | BPR4: 1 | BPS4: 2 | BPT4: 2012-12-02 | BPU4: qen | BPV4: 1 | BPW4: 2 | BPX4: 2012-12-02 | BPY4: qen | BPZ4: 1 | BQA4: 2 | BQB4: 2012-12-02 | BQC4: qen | BQD4: 1 | BQE4: 2 | BQF4: 2012-12-02 | BQG4: qen | BQH4: 1 | BQI4: 2 | BQJ4: 2012-12-02 | BQK4: qen | BQL4: 1 | BQM4: 2 | BQN4: 2012-12-02 | BQO4: qen | BQP4: 1 | BQQ4: 2 | BQR4: 2012-12-02 | BQS4: qen | BQT4: 1 | BQU4: 2 | BQV4: 2012-12-02 | BQW4: qen | BQX4: 1 | BQY4: 2 | BQZ4: 2012-12-02 | BRA4: qen | BRB4: 1 | BRC4: 2 | BRD4: 2012-12-02 | BRE4: qen | BRF4: 1 | BRG4: 2 | BRH4: 2012-12-02 | BRI4: qen | BRJ4: 1 | BRK4: 2 | BRL4: 2012-12-02 | BRM4: qen | BRN4: 1 | BRO4: 2 | BRP4: 2012-12-02 | BRQ4: qen | BRR4: 1 | BRS4: 2 | BRT4: 2012-12-02 | BRU4: qen | BRV4: 1 | BRW4: 2 | BRX4: 2012-12-02 | BRY4: qen | BRZ4: 1 | BSA4: 2 | BSB4: 2012-12-02 | BSC4: qen | BSD4: 1 | BSE4: 2 | BSF4: 2012-12-02 | BSG4: qen | BSH4: 1 | BSI4: 2 | BSJ4: 2012-12-02 | BSK4: qen | BSL4: 1 | BSM4: 2 | BSN4: 2012-12-02 | BSO4: qen | BSP4: 1 | BSQ4: 2 | BSR4: 2012-12-02 | BSS4: qen | BST4: 1 | BSU4: 2 | BSV4: 2012-12-02 | BSW4: qen | BSX4: 1 | BSY4: 2 | BSZ4: 2012-12-02 | BTA4: qen | BTB4: 1 | BTC4: 2 | BTD4: 2012-12-02 | BTE4: qen | BTF4: 1 | BTG4: 2 | BTH4: 2012-12-02 | BTI4: qen | BTJ4: 1 | BTK4: 2 | BTL4: 2012-12-02 | BTM4: qen | BTN4: 1 | BTO4: 2 | BTP4: 2012-12-02 | BTQ4: qen | BTR4: 1 | BTS4: 2 | BTT4: 2012-12-02 | BTU4: qen | BTV4: 1 | BTW4: 2 | BTX4: 2012-12-02 | BTY4: qen | BTZ4: 1 | BUA4: 2 | BUB4: 2012-12-02 | BUC4: qen | BUD4: 1 | BUE4: 2 | BUF4: 2012-12-02 | BUG4: qen | BUH4: 1 | BUI4: 2 | BUJ4: 2012-12-02 | BUK4: qen | BUL4: 1 | BUM4: 2 | BUN4: 2012-12-02 | BUO4: qen | BUP4: 1 | BUQ4: 2 | BUR4: 2012-12-02 | BUS4: qen | BUT4: 1 | BUU4: 2 | BUV4: 2012-12-02 | BUW4: qen | BUX4: 1 | BUY4: 2 | BUZ4: 2012-12-02 | BVA4: qen | BVB4: 1 | BVC4: 2 | BVD4: 2012-12-02 | BVE4: qen | BVF4: 1 | BVG4: 2 | BVH4: 2012-12-02 | BVI4: qen | BVJ4: 1 | BVK4: 2 | BVL4: 2012-12-02 | BVM4: qen | BVN4: 1 | BVO4: 2 | BVP4: 2012-12-02 | BVQ4: qen | BVR4: 1 | BVS4: 2 | BVT4: 2012-12-02 | BVU4: qen | BVV4: 1 | BVW4: 2 | BVX4: 2012-12-02 | BVY4: qen | BVZ4: 1 | BWA4: 2 | BWB4: 2012-12-02 | BWC4: qen | BWD4: 1 | BWE4: 2 | BWF4: 2012-12-02 | BWG4: qen | BWH4: 1 | BWI4: 2 | BWJ4: 2012-12-02 | BWK4: qen | BWL4: 1 | BWM4: 2 | BWN4: 2012-12-02 | BWO4: qen | BWP4: 1 | BWQ4: 2 | BWR4: 2012-12-02 | BWS4: qen | BWT4: 1 | BWU4: 2 | BWV4: 2012-12-02 | BWW4: qen | BWX4: 1 | BWY4: 2 | BWZ4: 2012-12-02 | BXA4: qen | BXB4: 1 | BXC4: 2 | BXD4: 2012-12-02 | BXE4: qen | BXF4: 1 | BXG4: 2 | BXH4: 2012-12-02 | BXI4: qen | BXJ4: 1 | BXK4: 2 | BXL4: 2012-12-02 | BXM4: qen | BXN4: 1 | BXO4: 2 | BXP4: 2012-12-02 | BXQ4: qen | BXR4: 1 | BXS4: 2 | BXT4: 2012-12-02 | BXU4: qen | BXV4: 1 | BXW4: 2 | BXX4: 2012-12-02 | BXY4: qen | BXZ4: 1 | BYA4: 2 | BYB4: 2012-12-02 | BYC4: qen | BYD4: 1 | BYE4: 2 | BYF4: 2012-12-02 | BYG4: qen | BYH4: 1 | BYI4: 2 | BYJ4: 2012-12-02 | BYK4: qen | BYL4: 1 | BYM4: 2 | BYN4: 2012-12-02 | BYO4: qen | BYP4: 1 | BYQ4: 2 | BYR4: 2012-12-02 | BYS4: qen | BYT4: 1 | BYU4: 2 | BYV4: 2012-12-02 | BYW4: qen | BYX4: 1 | BYY4: 2 | BYZ4: 2012-12-02 | BZA4: qen | BZB4: 1 | BZC4: 2 | BZD4: 2012-12-02 | BZE4: qen | BZF4: 1 | BZG4: 2 | BZH4: 2012-12-02 | BZI4: qen | BZJ4: 1 | BZK4: 2 | BZL4: 2012-12-02 | BZM4: qen | BZN4: 1 | BZO4: 2 | BZP4: 2012-12-02 | BZQ4: qen | BZR4: 1 | BZS4: 2 | BZT4: 2012-12-02 | BZU4: qen | BZV4: 1 | BZW4: 2 | BZX4: 2012-12-02 | BZY4: qen | BZZ4: 1 | CAA4: 2 | CAB4: 2012-12-02 | CAC4: qen | CAD4: 1 | CAE4: 2 | CAF4: 2012-12-02 | CAG4: qen | CAH4: 1 | CAI4: 2 | CAJ4: 2012-12-02 | CAK4: qen | CAL4: 1 | CAM4: 2 | CAN4: 2012-12-02 | CAO4: qen | CAP4: 1 | CAQ4: 2 | CAR4: 2012-12-02 | CAS4: qen | CAT4: 1 | CAU4: 2 | CAV4: 2012-12-02 | CAW4: qen | CAX4: 1 | CAY4: 2 | CAZ4: 2012-12-02 | CBA4: qen | CBB4: 1 | CBC4: 2 | CBD4: 2012-12-02 | CBE4: qen | CBF4: 1 | CBG4: 2 | CBH4: 2012-12-02 | CBI4: qen | CBJ4: 1 | CBK4: 2 | CBL4: 2012-12-02 | CBM4: qen | CBN4: 1 | CBO4: 2 | CBP4: 2012-12-02 | CBQ4: qen | CBR4: 1 | CBS4: 2 | CBT4: 2012-12-02 | CBU4: qen | CBV4: 1 | CBW4: 2 | CBX4: 2012-12-02 | CBY4: qen | CBZ4: 1 | CCA4: 2 | CCB4: 2012-12-02 | CCC4: qen | CCD4: 1 | CCE4: 2 | CCF4: 2012-12-02 | CCG4: qen | CCH4: 1 | CCI4: 2 | CCJ4: 2012-12-02 | CCK4: qen | CCL4: 1 | CCM4: 2 | CCN4: 2012-12-02 | CCO4: qen | CCP4: 1 | CCQ4: 2 | CCR4: 2012-12-02 | CCS4: qen | CCT4: 1 | CCU4: 2 | CCV4: 2012-12-02 | CCW4: qen | CCX4: 1 | CCY4: 2 | CCZ4: 2012-12-02 | CDA4: qen | CDB4: 1 | CDC4: 2 | CDD4: 2012-12-02 | CDE4: qen | CDF4: 1 | CDG4: 2 | CDH4: 2012-12-02 | CDI4: qen | CDJ4: 1 | CDK4: 2 | CDL4: 2012-12-02 | CDM4: qen | CDN4: 1 | CDO4: 2 | CDP4: 2012-12-02 | CDQ4: qen | CDR4: 1 | CDS4: 2 | CDT4: 2012-12-02 | CDU4: qen | CDV4: 1 | CDW4: 2 | CDX4: 2012-12-02 | CDY4: qen | CDZ4: 1 | CEA4: 2 | CEB4: 2012-12-02 | CEC4: qen | CED4: 1 | CEE4: 2 | CEF4: 2012-12-02 | CEG4: qen | CEH4: 1 | CEI4: 2 | CEJ4: 2012-12-02 | CEK4: qen | CEL4: 1 | CEM4: 2 | CEN4: 2012-12-02 | CEO4: qen | CEP4: 1 | CEQ4: 2 | CER4: 2012-12-02 | CES4: qen | CET4: 1 | CEU4: 2 | CEV4: 2012-12-02 | CEW4: qen | CEX4: 1 | CEY4: 2 | CEZ4: 2012-12-02 | CFA4: qen | CFB4: 1 | CFC4: 2 | CFD4: 2012-12-02 | CFE4: qen | CFF4: 1 | CFG4: 2 | CFH4: 2012-12-02 | CFI4: qen | CFJ4: 1 | CFK4: 2 | CFL4: 2012-12-02 | CFM4: qen | CFN4: 1 | CFO4: 2 | CFP4: 2012-12-02 | CFQ4: qen | CFR4: 1 | CFS4: 2 | CFT4: 2012-12-02 | CFU4: qen | CFV4: 1 | CFW4: 2 | CFX4: 2012-12-02 | CFY4: qen | CFZ4: 1 | CGA4: 2 | CGB4: 2012-12-02 | CGC4: qen | CGD4: 1 | CGE4: 2 | CGF4: 2012-12-02 | CGG4: qen | CGH4: 1 | CGI4: 2 | CGJ4: 2012-12-02 | CGK4: qen | CGL4: 1 | CGM4: 2 | CGN4: 2012-12-02 | CGO4: qen | CGP4: 1 | CGQ4: 2 | CGR4: 2012-12-02 | CGS4: qen | CGT4: 1 | CGU4: 2 | CGV4: 2012-12-02 | CGW4: qen | CGX4: 1 | CGY4: 2 | CGZ4: 2012-12-02 | CHA4: qen | CHB4: 1 | CHC4: 2 | CHD4: 2012-12-02 | CHE4: qen | CHF4: 1 | CHG4: 2 | CHH4: 2012-12-02 | CHI4: qen | CHJ4: 1 | CHK4: 2 | CHL4: 2012-12-02 | CHM4: qen | CHN4: 1 | CHO4: 2 | CHP4: 2012-12-02 | CHQ4: qen | CHR4: 1 | CHS4: 2 | CHT4: 2012-12-02 | CHU4: qen | CHV4: 1 | CHW4: 2 | CHX4: 2012-12-02 | CHY4: qen | CHZ4: 1 | CIA4: 2 | CIB4: 2012-12-02 | CIC4: qen | CID4: 1 | CIE4: 2 | CIF4: 2012-12-02 | CIG4: qen | CIH4: 1 | CII4: 2 | CIJ4: 2012-12-02 | CIK4: qen | CIL4: 1 | CIM4: 2 | CIN4: 2012-12-02 | CIO4: qen | CIP4: 1 | CIQ4: 2 | CIR4: 2012-12-02 | CIS4: qen | CIT4: 1 | CIU4: 2 | CIV4: 2012-12-02 | CIW4: qen | CIX4: 1 | CIY4: 2 | CIZ4: 2012-12-02 | CJA4: qen | CJB4: 1 | CJC4: 2 | CJD4: 2012-12-02 | CJE4: qen | CJF4: 1 | CJG4: 2 | CJH4: 2012-12-02 | CJI4: qen | CJJ4: 1 | CJK4: 2 | CJL4: 2012-12-02 | CJM4: qen | CJN4: 1 | CJO4: 2 | CJP4: 2012-12-02 | CJQ4: qen | CJR4: 1 | CJS4: 2 | CJT4: 2012-12-02 | CJU4: qen | CJV4: 1 | CJW4: 2 | CJX4: 2012-12-02 | CJY4: qen | CJZ4: 1 | CKA4: 2 | CKB4: 2012-12-02 | CKC4: qen | CKD4: 1 | CKE4: 2 | CKF4: 2012-12-02 | CKG4: qen | CKH4: 1 | CKI4: 2 | CKJ4: 2012-12-02 | CKK4: qen | CKL4: 1 | CKM4: 2 | CKN4: 2012-12-02 | CKO4: qen | CKP4: 1 | CKQ4: 2 | CKR4: 2012-12-02 | CKS4: qen | CKT4: 1 | CKU4: 2 | CKV4: 2012-12-02 | CKW4: qen | CKX4: 1 | CKY4: 2 | CKZ4: 2012-12-02 | CLA4: qen | CLB4: 1 | CLC4: 2 | CLD4: 2012-12-02 | CLE4: qen | CLF4: 1 | CLG4: 2 | CLH4: 2012-12-02 | CLI4: qen | CLJ4: 1 | CLK4: 2 | CLL4: 2012-12-02 | CLM4: qen | CLN4: 1 | CLO4: 2 | CLP4: 2012-12-02 | CLQ4: qen | CLR4: 1 | CLS4: 2 | CLT4: 2012-12-02 | CLU4: qen | CLV4: 1 | CLW4: 2 | CLX4: 2012-12-02 | CLY4: qen | CLZ4: 1 | CMA4: 2 | CMB4: 2012-12-02 | CMC4: qen | CMD4: 1 | CME4: 2 | CMF4: 2012-12-02 | CMG4: qen | CMH4: 1 | CMI4: 2 | CMJ4: 2012-12-02 | CMK4: qen | CML4: 1 | CMM4: 2 | CMN4: 2012-12-02 | CMO4: qen | CMP4: 1 | CMQ4: 2 | CMR4: 2012-12-02 | CMS4: qen | CMT4: 1 | CMU4: 2 | CMV4: 2012-12-02 | CMW4: qen | CMX4: 1 | CMY4: 2 | CMZ4: 2012-12-02 | CNA4: qen | CNB4: 1 | CNC4: 2 | CND4: 2012-12-02 | CNE4: qen | CNF4: 1 | CNG4: 2 | CNH4: 2012-12-02 | CNI4: qen | CNJ4: 1 | CNK4: 2 | CNL4: 2012-12-02 | CNM4: qen | CNN4: 1 | CNO4: 2 | CNP4: 2012-12-02 | CNQ4: qen | CNR4: 1 | CNS4: 2 | CNT4: 2012-12-02 | CNU4: qen | CNV4: 1 | CNW4: 2 | CNX4: 2012-12-02 | CNY4: qen | CNZ4: 1 | COA4: 2 | COB4: 2012-12-02 | COC4: qen | COD4: 1 | COE4: 2 | COF4: 2012-12-02 | COG4: qen | COH4: 1 | COI4: 2 | COJ4: 2012-12-02 | COK4: qen | COL4: 1 | COM4: 2 | CON4: 2012-12-02 | COO4: qen | COP4: 1 | COQ4: 2 | COR4: 2012-12-02 | COS4: qen | COT4: 1 | COU4: 2 | COV4: 2012-12-02 | COW4: qen | COX4: 1 | COY4: 2 | COZ4: 2012-12-02 | CPA4: qen | CPB4: 1 | CPC4: 2 | CPD4: 2012-12-02 | CPE4: qen | CPF4: 1 | CPG4: 2 | CPH4: 2012-12-02 | CPI4: qen | CPJ4: 1 | CPK4: 2 | CPL4: 2012-12-02 | CPM4: qen | CPN4: 1 | CPO4: 2 | CPP4: 2012-12-02 | CPQ4: qen | CPR4: 1 | CPS4: 2 | CPT4: 2012-12-02 | CPU4: qen | CPV4: 1 | CPW4: 2 | CPX4: 2012-12-02 | CPY4: qen | CPZ4: 1 | CQA4: 2 | CQB4: 2012-12-02 | CQC4: qen | CQD4: 1 | CQE4: 2 | CQF4: 2012-12-02 | CQG4: qen | CQH4: 1 | CQI4: 2 | CQJ4: 2012-12-02 | CQK4: qen | CQL4: 1 | CQM4: 2 | CQN4: 2012-12-02 | CQO4: qen | CQP4: 1 | CQQ4: 2 | CQR4: 2012-12-02 | CQS4: qen | CQT4: 1 | CQU4: 2 | CQV4: 2012-12-02 | CQW4: qen | CQX4: 1 | CQY4: 2 | CQZ4: 2012-12-02 | CRA4: qen | CRB4: 1 | CRC4: 2 | CRD4: 2012-12-02 | CRE4: qen | CRF4: 1 | CRG4: 2 | CRH4: 2012-12-02 | CRI4: qen | CRJ4: 1 | CRK4: 2 | CRL4: 2012-12-02 | CRM4: qen | CRN4: 1 | CRO4: 2 | CRP4: 2012-12-02 | CRQ4: qen | CRR4: 1 | CRS4: 2 | CRT4: 2012-12-02 | CRU4: qen | CRV4: 1 | CRW4: 2 | CRX4: 2012-12-02 | CRY4: qen | CRZ4: 1 | CSA4: 2 | CSB4: 2012-12-02 | CSC4: qen | CSD4: 1 | CSE4: 2 | CSF4: 2012-12-02 | CSG4: qen | CSH4: 1 | CSI4: 2 | CSJ4: 2012-12-02 | CSK4: qen | CSL4: 1 | CSM4: 2 | CSN4: 2012-12-02 | CSO4: qen | CSP4: 1 | CSQ4: 2 | CSR4: 2012-12-02 | CSS4: qen | CST4: 1 | CSU4: 2 | CSV4: 2012-12-02 | CSW4: qen | CSX4: 1 | CSY4: 2 | CSZ4: 2012-12-02 | CTA4: qen | CTB4: 1 | CTC4: 2 | CTD4: 2012-12-02 | CTE4: qen | CTF4: 1 | CTG4: 2 | CTH4: 2012-12-02 | CTI4: qen | CTJ4: 1 | CTK4: 2 | CTL4: 2012-12-02 | CTM4: qen | CTN4: 1 | CTO4: 2 | CTP4: 2012-12-02 | CTQ4: qen | CTR4: 1 | CTS4: 2 | CTT4: 2012-12-02 | CTU4: qen | CTV4: 1 | CTW4: 2 | CTX4: 2012-12-02 | CTY4: qen | CTZ4: 1 | CUA4: 2 | CUB4: 2012-12-02 | CUC4: qen | CUD4: 1 | CUE4: 2 | CUF4: 2012-12-02 | CUG4: qen | CUH4: 1 | CUI4: 2 | CUJ4: 2012-12-02 | CUK4: qen | CUL4: 1 | CUM4: 2 | CUN4: 2012-12-02 | CUO4: qen | CUP4: 1 | CUQ4: 2 | CUR4: 2012-12-02 | CUS4: qen | CUT4: 1 | CUU4: 2 | CUV4: 2012-12-02 | CUW4: qen | CUX4: 1 | CUY4: 2 | CUZ4: 2012-12-02 | CVA4: qen | CVB4: 1 | CVC4: 2 | CVD4: 2012-12-02 | CVE4: qen | CVF4: 1 | CVG4: 2 | CVH4: 2012-12-02 | CVI4: qen | CVJ4: 1 | CVK4: 2 | CVL4: 2012-12-02 | CVM4: qen | CVN4: 1 | CVO4: 2 | CVP4: 2012-12-02 | CVQ4: qen | CVR4: 1 | CVS4: 2 | CVT4: 2012-12-02 | CVU4: qen | CVV4: 1 | CVW4: 2 | CVX4: 2012-12-02 | CVY4: qen | CVZ4: 1 | CWA4: 2 | CWB4: 2012-12-02 | CWC4: qen | CWD4: 1 | CWE4: 2 | CWF4: 2012-12-02 | CWG4: qen | CWH4: 1 | CWI4: 2 | CWJ4: 2012-12-02 | CWK4: qen | CWL4: 1 | CWM4: 2 | CWN4: 2012-12-02 | CWO4: qen | CWP4: 1 | CWQ4: 2 | CWR4: 2012-12-02 | CWS4: qen | CWT4: 1 | CWU4: 2 | CWV4: 2012-12-02 | CWW4: qen | CWX4: 1 | CWY4: 2 | CWZ4: 2012-12-02 | CXA4: qen | CXB4: 1 | CXC4: 2 | CXD4: 2012-12-02 | CXE4: qen | CXF4: 1 | CXG4: 2 | CXH4: 2012-12-02 | CXI4: qen | CXJ4: 1 | CXK4: 2 | CXL4: 2012-12-02 | CXM4: qen | CXN4: 1 | CXO4: 2 | CXP4: 2012-12-02 | CXQ4: qen | CXR4: 1 | CXS4: 2 | CXT4: 2012-12-02 | CXU4: qen | CXV4: 1 | CXW4: 2 | CXX4: 2012-12-02 | CXY4: qen | CXZ4: 1 | CYA4: 2 | CYB4: 2012-12-02 | CYC4: qen | CYD4: 1 | CYE4: 2 | CYF4: 2012-12-02 | CYG4: qen | CYH4: 1 | CYI4: 2 | CYJ4: 2012-12-02 | CYK4: qen | CYL4: 1 | CYM4: 2 | CYN4: 2012-12-02 | CYO4: qen | CYP4: 1 | CYQ4: 2 | CYR4: 2012-12-02 | CYS4: qen | CYT4: 1 | CYU4: 2 | CYV4: 2012-12-02 | CYW4: qen | CYX4: 1 | CYY4: 2 | CYZ4: 2012-12-02 | CZA4: qen | CZB4: 1 | CZC4: 2 | CZD4: 2012-12-02 | CZE4: qen | CZF4: 1 | CZG4: 2 | CZH4: 2012-12-02 | CZI4: qen | CZJ4: 1 | CZK4: 2 | CZL4: 2012-12-02 | CZM4: qen | CZN4: 1 | CZO4: 2 | CZP4: 2012-12-02 | CZQ4: qen | CZR4: 1 | CZS4: 2 | CZT4: 2012-12-02 | CZU4: qen | CZV4: 1 | CZW4: 2 | CZX4: 2012-12-02 | CZY4: qen | CZZ4: 1 | DAA4: 2 | DAB4: 2012-12-02 | DAC4: qen | DAD4: 1 | DAE4: 2 | DAF4: 2012-12-02 | DAG4: qen | DAH4: 1 | DAI4: 2 | DAJ4: 2012-12-02 | DAK4: qen | DAL4: 1 | DAM4: 2 | DAN4: 2012-12-02 | DAO4: qen | DAP4: 1 | DAQ4: 2 | DAR4: 2012-12-02 | DAS4: qen | DAT4: 1 | DAU4: 2 | DAV4: 2012-12-02 | DAW4: qen | DAX4: 1 | DAY4: 2 | DAZ4: 2012-12-02 | DBA4: qen | DBB4: 1 | DBC4: 2 | DBD4: 2012-12-02 | DBE4: qen | DBF4: 1 | DBG4: 2 | DBH4: 2012-12-02 | DBI4: qen | DBJ4: 1 | DBK4: 2 | DBL4: 2012-12-02 | DBM4: qen | DBN4: 1 | DBO4: 2 | DBP4: 2012-12-02 | DBQ4: qen | DBR4: 1 | DBS4: 2 | DBT4: 2012-12-02 | DBU4: qen | DBV4: 1 | DBW4: 2 | DBX4: 2012-12-02 | DBY4: qen | DBZ4: 1 | DCA4: 2 | DCB4: 2012-12-02 | DCC4: qen | DCD4: 1 | DCE4: 2 | DCF4: 2012-12-02 | DCG4: qen | DCH4: 1 | DCI4: 2 | DCJ4: 2012-12-02 | DCK4: qen | DCL4: 1 | DCM4: 2 | DCN4: 2012-12-02 | DCO4: qen | DCP4: 1 | DCQ4: 2 | DCR4: 2012-12-02 | DCS4: qen | DCT4: 1 | DCU4: 2 | DCV4: 2012-12-02 | DCW4: qen | DCX4: 1 | DCY4: 2 | DCZ4: 2012-12-02 | DDA4: qen | DDB4: 1 | DDC4: 2 | DDD4: 2012-12-02 | DDE4: qen | DDF4: 1 | DDG4: 2 | DDH4: 2012-12-02 | DDI4: qen | DDJ4: 1 | DDK4: 2 | DDL4: 2012-12-02 | DDM4: qen | DDN4: 1 | DDO4: 2 | DDP4: 2012-12-02 | DDQ4: qen | DDR4: 1 | DDS4: 2 | DDT4: 2012-12-02 | DDU4: qen | DDV4: 1 | DDW4: 2 | DDX4: 2012-12-02 | DDY4: qen | DDZ4: 1 | DEA4: 2 | DEB4: 2012-12-02 | DEC4: qen | DED4: 1 | DEE4: 2 | DEF4: 2012-12-02 | DEG4: qen | DEH4: 1 | DEI4: 2 | DEJ4: 2012-12-02 | DEK4: qen | DEL4: 1 | DEM4: 2 | DEN4: 2012-12-02 | DEO4: qen | DEP4: 1 | DEQ4: 2 | DER4: 2012-12-02 | DES4: qen | DET4: 1 | DEU4: 2 | DEV4: 2012-12-02 | DEW4: qen | DEX4: 1 | DEY4: 2 | DEZ4: 2012-12-02 | DFA4: qen | DFB4: 1 | DFC4: 2 | DFD4: 2012-12-02 | DFE4: qen | DFF4: 1 | DFG4: 2 | DFH4: 2012-12-02 | DFI4: qen | DFJ4: 1 | DFK4: 2 | DFL4: 2012-12-02 | DFM4: qen | DFN4: 1 | DFO4: 2 | DFP4: 2012-12-02 | DFQ4: qen | DFR4: 1 | DFS4: 2 | DFT4: 2012-12-02 | DFU4: qen | DFV4: 1 | DFW4: 2 | DFX4: 2012-12-02 | DFY4: qen | DFZ4: 1 | DGA4: 2 | DGB4: 2012-12-02 | DGC4: qen | DGD4: 1 | DGE4: 2 | DGF4: 2012-12-02 | DGG4: qen | DGH4: 1 | DGI4: 2 | DGJ4: 2012-12-02 | DGK4: qen | DGL4: 1 | DGM4: 2 | DGN4: 2012-12-02 | DGO4: qen | DGP4: 1 | DGQ4: 2 | DGR4: 2012-12-02 | DGS4: qen | DGT4: 1 | DGU4: 2 | DGV4: 2012-12-02 | DGW4: qen | DGX4: 1 | DGY4: 2 | DGZ4: 2012-12-02 | DHA4: qen | DHB4: 1 | DHC4: 2 | DHD4: 2012-12-02 | DHE4: qen | DHF4: 1 | DHG4: 2 | DHH4: 2012-12-02 | DHI4: qen | DHJ4: 1 | DHK4: 2 | DHL4: 2012-12-02 | DHM4: qen | DHN4: 1 | DHO4: 2 | DHP4: 2012-12-02 | DHQ4: qen | DHR4: 1 | DHS4: 2 | DHT4: 2012-12-02 | DHU4: qen | DHV4: 1 | DHW4: 2 | DHX4: 2012-12-02 | DHY4: qen | DHZ4: 1 | DIA4: 2 | DIB4: 2012-12-02 | DIC4: qen | DID4: 1 | DIE4: 2 | DIF4: 2012-12-02 | DIG4: qen | DIH4: 1 | DII4: 2 | DIJ4: 2012-12-02 | DIK4: qen | DIL4: 1 | DIM4: 2 | DIN4: 2012-12-02 | DIO4: qen | DIP4: 1 | DIQ4: 2 | DIR4: 2012-12-02 | DIS4: qen | DIT4: 1 | DIU4: 2 | DIV4: 2012-12-02 | DIW4: qen | DIX4: 1 | DIY4: 2 | DIZ4: 2012-12-02 | DJA4: qen | DJB4: 1 | DJC4: 2 | DJD4: 2012-12-02 | DJE4: qen | DJF4: 1 | DJG4: 2 | DJH4: 2012-12-02 | DJI4: qen | DJJ4: 1 | DJK4: 2 | DJL4: 2012-12-02 | DJM4: qen | DJN4: 1 | DJO4: 2 | DJP4: 2012-12-02 | DJQ4: qen | DJR4: 1 | DJS4: 2 | DJT4: 2012-12-02 | DJU4: qen | DJV4: 1 | DJW4: 2 | DJX4: 2012-12-02 | DJY4: qen | DJZ4: 1 | DKA4: 2 | DKB4: 2012-12-02 | DKC4: qen | DKD4: 1 | DKE4: 2 | DKF4: 2012-12-02 | DKG4: qen | DKH4: 1 | DKI4: 2 | DKJ4: 2012-12-02 | DKK4: qen | DKL4: 1 | DKM4: 2 | DKN4: 2012-12-02 | DKO4: qen | DKP4: 1 | DKQ4: 2 | DKR4: 2012-12-02 | DKS4: qen | DKT4: 1 | DKU4: 2 | DKV4: 2012-12-02 | DKW4: qen | DKX4: 1 | DKY4: 2 | DKZ4: 2012-12-02 | DLA4: qen | DLB4: 1 | DLC4: 2 | DLD4: 2012-12-02 | DLE4: qen | DLF4: 1 | DLG4: 2 | DLH4: 2012-12-02 | DLI4: qen | DLJ4: 1 | DLK4: 2 | DLL4: 2012-12-02 | DLM4: qen | DLN4: 1 | DLO4: 2 | DLP4: 2012-12-02 | DLQ4: qen | DLR4: 1 | DLS4: 2 | DLT4: 2012-12-02 | DLU4: qen | DLV4: 1 | DLW4: 2 | DLX4: 2012-12-02 | DLY4: qen | DLZ4: 1 | DMA4: 2 | DMB4: 2012-12-02 | DMC4: qen | DMD4: 1 | DME4: 2 | DMF4: 2012-12-02 | DMG4: qen | DMH4: 1 | DMI4: 2 | DMJ4: 2012-12-02 | DMK4: qen | DML4: 1 | DMM4: 2 | DMN4: 2012-12-02 | DMO4: qen | DMP4: 1 | DMQ4: 2 | DMR4: 2012-12-02 | DMS4: qen | DMT4: 1 | DMU4: 2 | DMV4: 2012-12-02 | DMW4: qen | DMX4: 1 | DMY4: 2 | DMZ4: 2012-12-02 | DNA4: qen | DNB4: 1 | DNC4: 2 | DND4: 2012-12-02 | DNE4: qen | DNF4: 1 | DNG4: 2 | DNH4: 2012-12-02 | DNI4: qen | DNJ4: 1 | DNK4: 2 | DNL4: 2012-12-02 | DNM4: qen | DNN4: 1 | DNO4: 2 | DNP4: 2012-12-02 | DNQ4: qen | DNR4: 1 | DNS4: 2 | DNT4: 2012-12-02 | DNU4: qen | DNV4: 1 | DNW4: 2 | DNX4: 2012-12-02 | DNY4: qen | DNZ4: 1 | DOA4: 2 | DOB4: 2012-12-02 | DOC4: qen | DOD4: 1 | DOE4: 2 | DOF4: 2012-12-02 | DOG4: qen | DOH4: 1 | DOI4: 2 | DOJ4: 2012-12-02 | DOK4: qen | DOL4: 1 | DOM4: 2 | DON4: 2012-12-02 | DOO4: qen | DOP4: 1 | DOQ4: 2 | DOR4: 2012-12-02 | DOS4: qen | DOT4: 1 | DOU4: 2 | DOV4: 2012-12-02 | DOW4: qen | DOX4: 1 | DOY4: 2 | DOZ4: 2012-12-02 | DPA4: qen | DPB4: 1 | DPC4: 2 | DPD4: 2012-12-02 | DPE4: qen | DPF4: 1 | DPG4: 2 | DPH4: 2012-12-02 | DPI4: qen | DPJ4: 1 | DPK4: 2 | DPL4: 2012-12-02 | DPM4: qen | DPN4: 1 | DPO4: 2 | DPP4: 2012-12-02 | DPQ4: qen | DPR4: 1 | DPS4: 2 | DPT4: 2012-12-02 | DPU4: qen | DPV4: 1 | DPW4: 2 | DPX4: 2012-12-02 | DPY4: qen | DPZ4: 1 | DQA4: 2 | DQB4: 2012-12-02 | DQC4: qen | DQD4: 1 | DQE4: 2 | DQF4: 2012-12-02 | DQG4: qen | DQH4: 1 | DQI4: 2 | DQJ4: 2012-12-02 | DQK4: qen | DQL4: 1 | DQM4: 2 | DQN4: 2012-12-02 | DQO4: qen | DQP4: 1 | DQQ4: 2 | DQR4: 2012-12-02 | DQS4: qen | DQT4: 1 | DQU4: 2 | DQV4: 2012-12-02 | DQW4: qen | DQX4: 1 | DQY4: 2 | DQZ4: 2012-12-02 | DRA4: qen | DRB4: 1 | DRC4: 2 | DRD4: 2012-12-02 | DRE4: qen | DRF4: 1 | DRG4: 2 | DRH4: 2012-12-02 | DRI4: qen | DRJ4: 1 | DRK4: 2 | DRL4: 2012-12-02 | DRM4: qen | DRN4: 1 | DRO4: 2 | DRP4: 2012-12-02 | DRQ4: qen | DRR4: 1 | DRS4: 2 | DRT4: 2012-12-02 | DRU4: qen | DRV4: 1 | DRW4: 2 | DRX4: 2012-12-02 | DRY4: qen | DRZ4: 1 | DSA4: 2 | DSB4: 2012-12-02 | DSC4: qen | DSD4: 1 | DSE4: 2 | DSF4: 2012-12-02 | DSG4: qen | DSH4: 1 | DSI4: 2 | DSJ4: 2012-12-02 | DSK4: qen | DSL4: 1 | DSM4: 2 | DSN4: 2012-12-02 | DSO4: qen | DSP4: 1 | DSQ4: 2 | DSR4: 2012-12-02 | DSS4: qen | DST4: 1 | DSU4: 2 | DSV4: 2012-12-02 | DSW4: qen | DSX4: 1 | DSY4: 2 | DSZ4: 2012-12-02 | DTA4: qen | DTB4: 1 | DTC4: 2 | DTD4: 2012-12-02 | DTE4: qen | DTF4: 1 | DTG4: 2 | DTH4: 2012-12-02 | DTI4: qen | DTJ4: 1 | DTK4: 2 | DTL4: 2012-12-02 | DTM4: qen | DTN4: 1 | DTO4: 2 | DTP4: 2012-12-02 | DTQ4: qen | DTR4: 1 | DTS4: 2 | DTT4: 2012-12-02 | DTU4: qen | DTV4: 1 | DTW4: 2 | DTX4: 2012-12-02 | DTY4: qen | DTZ4: 1 | DUA4: 2 | DUB4: 2012-12-02 | DUC4: qen | DUD4: 1 | DUE4: 2 | DUF4: 2012-12-02 | DUG4: qen | DUH4: 1 | DUI4: 2 | DUJ4: 2012-12-02 | DUK4: qen | DUL4: 1 | DUM4: 2 | DUN4: 2012-12-02 | DUO4: qen | DUP4: 1 | DUQ4: 2 | DUR4: 2012-12-02 | DUS4: qen | DUT4: 1 | DUU4: 2 | DUV4: 2012-12-02 | DUW4: qen | DUX4: 1 | DUY4: 2 | DUZ4: 2012-12-02 | DVA4: qen | DVB4: 1 | DVC4: 2 | DVD4: 2012-12-02 | DVE4: qen | DVF4: 1 | DVG4: 2 | DVH4: 2012-12-02 | DVI4: qen | DVJ4: 1 | DVK4: 2 | DVL4: 2012-12-02 | DVM4: qen | DVN4: 1 | DVO4: 2 | DVP4: 2012-12-02 | DVQ4: qen | DVR4: 1 | DVS4: 2 | DVT4: 2012-12-02 | DVU4: qen | DVV4: 1 | DVW4: 2 | DVX4: 2012-12-02 | DVY4: qen | DVZ4: 1 | DWA4: 2 | DWB4: 2012-12-02 | DWC4: qen | DWD4: 1 | DWE4: 2 | DWF4: 2012-12-02 | DWG4: qen | DWH4: 1 | DWI4: 2 | DWJ4: 2012-12-02 | DWK4: qen | DWL4: 1 | DWM4: 2 | DWN4: 2012-12-02 | DWO4: qen | DWP4: 1 | DWQ4: 2 | DWR4: 2012-12-02 | DWS4: qen | DWT4: 1 | DWU4: 2 | DWV4: 2012-12-02 | DWW4: qen | DWX4: 1 | DWY4: 2 | DWZ4: 2012-12-02 | DXA4: qen | DXB4: 1 | DXC4: 2 | DXD4: 2012-12-02 | DXE4: qen | DXF4: 1 | DXG4: 2 | DXH4: 2012-12-02 | DXI4: qen | DXJ4: 1 | DXK4: 2 | DXL4: 2012-12-02 | DXM4: qen | DXN4: 1 | DXO4: 2 | DXP4: 2012-12-02 | DXQ4: qen | DXR4: 1 | DXS4: 2 | DXT4: 2012-12-02 | DXU4: qen | DXV4: 1 | DXW4: 2 | DXX4: 2012-12-02 | DXY4: qen | DXZ4: 1 | DYA4: 2 | DYB4: 2012-12-02 | DYC4: qen | DYD4: 1 | DYE4: 2 | DYF4: 2012-12-02 | DYG4: qen | DYH4: 1 | DYI4: 2 | DYJ4: 2012-12-02 | DYK4: qen | DYL4: 1 | DYM4: 2 | DYN4: 2012-12-02 | DYO4: qen | DYP4: 1 | DYQ4: 2 | DYR4: 2012-12-02 | DYS4: qen | DYT4: 1 | DYU4: 2 | DYV4: 2012-12-02 | DYW4: qen | DYX4: 1 | DYY4: 2 | DYZ4: 2012-12-02 | DZA4: qen | DZB4: 1 | DZC4: 2 | DZD4: 2012-12-02 | DZE4: qen | DZF4: 1 | DZG4: 2 | DZH4: 2012-12-02 | DZI4: qen | DZJ4: 1 | DZK4: 2 | DZL4: 2012-12-02 | DZM4: qen | DZN4: 1 | DZO4: 2 | DZP4: 2012-12-02 | DZQ4: qen | DZR4: 1 | DZS4: 2 | DZT4: 2012-12-02 | DZU4: qen | DZV4: 1 | DZW4: 2 | DZX4: 2012-12-02 | DZY4: qen | DZZ4: 1 | EAA4: 2 | EAB4: 2012-12-02 | EAC4: qen | EAD4: 1 | EAE4: 2 | EAF4: 2012-12-02 | EAG4: qen | EAH4: 1 | EAI4: 2 | EAJ4: 2012-12-02 | EAK4: qen | EAL4: 1 | EAM4: 2 | EAN4: 2012-12-02 | EAO4: qen | EAP4: 1 | EAQ4: 2 | EAR4: 2012-12-02 | EAS4: qen | EAT4: 1 | EAU4: 2 | EAV4: 2012-12-02 | EAW4: qen | EAX4: 1 | EAY4: 2 | EAZ4: 2012-12-02 | EBA4: qen | EBB4: 1 | EBC4: 2 | EBD4: 2012-12-02 | EBE4: qen | EBF4: 1 | EBG4: 2 | EBH4: 2012-12-02 | EBI4: qen | EBJ4: 1 | EBK4: 2 | EBL4: 2012-12-02 | EBM4: qen | EBN4: 1 | EBO4: 2 | EBP4: 2012-12-02 | EBQ4: qen | EBR4: 1 | EBS4: 2 | EBT4: 2012-12-02 | EBU4: qen | EBV4: 1 | EBW4: 2 | EBX4: 2012-12-02 | EBY4: qen | EBZ4: 1 | ECA4: 2 | ECB4: 2012-12-02 | ECC4: qen | ECD4: 1 | ECE4: 2 | ECF4: 2012-12-02 | ECG4: qen | ECH4: 1 | ECI4: 2 | ECJ4: 2012-12-02 | ECK4: qen | ECL4: 1 | ECM4: 2 | ECN4: 2012-12-02 | ECO4: qen | ECP4: 1 | ECQ4: 2 | ECR4: 2012-12-02 | ECS4: qen | ECT4: 1 | ECU4: 2 | ECV4: 2012-12-02 | ECW4: qen | ECX4: 1 | ECY4: 2 | ECZ4: 2012-12-02 | EDA4: qen | EDB4: 1 | EDC4: 2 | EDD4: 2012-12-02 | EDE4: qen | EDF4: 1 | EDG4: 2 | EDH4: 2012-12-02 | EDI4: qen | EDJ4: 1 | EDK4: 2 | EDL4: 2012-12-02 | EDM4: qen | EDN4: 1 | EDO4: 2 | EDP4: 2012-12-02 | EDQ4: qen | EDR4: 1 | EDS4: 2 | EDT4: 2012-12-02 | EDU4: qen | EDV4: 1 | EDW4: 2 | EDX4: 2012-12-02 | EDY4: qen | EDZ4: 1 | EEA4: 2 | EEB4: 2012-12-02 | EEC4: qen | EED4: 1 | EEE4: 2 | EEF4: 2012-12-02 | EEG4: qen | EEH4: 1 | EEI4: 2 | EEJ4: 2012-12-02 | EEK4: qen | EEL4: 1 | EEM4: 2 | EEN4: 2012-12-02 | EEO4: qen | EEP4: 1 | EEQ4: 2 | EER4: 2012-12-02 | EES4: qen | EET4: 1 | EEU4: 2 | EEV4: 2012-12-02 | EEW4: qen | EEX4: 1 | EEY4: 2 | EEZ4: 2012-12-02 | EFA4: qen | EFB4: 1 | EFC4: 2 | EFD4: 2012-12-02 | EFE4: qen | EFF4: 1 | EFG4: 2 | EFH4: 2012-12-02 | EFI4: qen | EFJ4: 1 | EFK4: 2 | EFL4: 2012-12-02 | EFM4: qen | EFN4: 1 | EFO4: 2 | EFP4: 2012-12-02 | EFQ4: qen | EFR4: 1 | EFS4: 2 | EFT4: 2012-12-02 | EFU4: qen | EFV4: 1 | EFW4: 2 | EFX4: 2012-12-02 | EFY4: qen | EFZ4: 1 | EGA4: 2 | EGB4: 2012-12-02 | EGC4: qen | EGD4: 1 | EGE4: 2 | EGF4: 2012-12-02 | EGG4: qen | EGH4: 1 | EGI4: 2 | EGJ4: 2012-12-02 | EGK4: qen | EGL4: 1 | EGM4: 2 | EGN4: 2012-12-02 | EGO4: qen | EGP4: 1 | EGQ4: 2 | EGR4: 2012-12-02 | EGS4: qen | EGT4: 1 | EGU4: 2 | EGV4: 2012-12-02 | EGW4: qen | EGX4: 1 | EGY4: 2 | EGZ4: 2012-12-02 | EHA4: qen | EHB4: 1 | EHC4: 2 | EHD4: 2012-12-02 | EHE4: qen | EHF4: 1 | EHG4: 2 | EHH4: 2012-12-02 | EHI4: qen | EHJ4: 1 | EHK4: 2 | EHL4: 2012-12-02 | EHM4: qen | EHN4: 1 | EHO4: 2 | EHP4: 2012-12-02 | EHQ4: qen | EHR4: 1 | EHS4: 2 | EHT4: 2012-12-02 | EHU4: qen | EHV4: 1 | EHW4: 2 | EHX4: 2012-12-02 | EHY4: qen | EHZ4: 1 | EIA4: 2 | EIB4: 2012-12-02 | EIC4: qen | EID4: 1 | EIE4: 2 | EIF4: 2012-12-02 | EIG4: qen | EIH4: 1 | EII4: 2 | EIJ4: 2012-12-02 | EIK4: qen | EIL4: 1 | EIM4: 2 | EIN4: 2012-12-02 | EIO4: qen | EIP4: 1 | EIQ4: 2 | EIR4: 2012-12-02 | EIS4: qen | EIT4: 1 | EIU4: 2 | EIV4: 2012-12-02 | EIW4: qen | EIX4: 1 | EIY4: 2 | EIZ4: 2012-12-02 | EJA4: qen | EJB4: 1 | EJC4: 2 | EJD4: 2012-12-02 | EJE4: qen | EJF4: 1 | EJG4: 2 | EJH4: 2012-12-02 | EJI4: qen | EJJ4: 1 | EJK4: 2 | EJL4: 2012-12-02 | EJM4: qen | EJN4: 1 | EJO4: 2 | EJP4: 2012-12-02 | EJQ4: qen | EJR4: 1 | EJS4: 2 | EJT4: 2012-12-02 | EJU4: qen | EJV4: 1 | EJW4: 2 | EJX4: 2012-12-02 | EJY4: qen | EJZ4: 1 | EKA4: 2 | EKB4: 2012-12-02 | EKC4: qen | EKD4: 1 | EKE4: 2 | EKF4: 2012-12-02 | EKG4: qen | EKH4: 1 | EKI4: 2 | EKJ4: 2012-12-02 | EKK4: qen | EKL4: 1 | EKM4: 2 | EKN4: 2012-12-02 | EKO4: qen | EKP4: 1 | EKQ4: 2 | EKR4: 2012-12-02 | EKS4: qen | EKT4: 1 | EKU4: 2 | EKV4: 2012-12-02 | EKW4: qen | EKX4: 1 | EKY4: 2 | EKZ4: 2012-12-02 | ELA4: qen | ELB4: 1 | ELC4: 2 | ELD4: 2012-12-02 | ELE4: qen | ELF4: 1 | ELG4: 2 | ELH4: 2012-12-02 | ELI4: qen | ELJ4: 1 | ELK4: 2 | ELL4: 2012-12-02 | ELM4: qen | ELN4: 1 | ELO4: 2 | ELP4: 2012-12-02 | ELQ4: qen | ELR4: 1 | ELS4: 2 | ELT4: 2012-12-02 | ELU4: qen | ELV4: 1 | ELW4: 2 | ELX4: 2012-12-02 | ELY4: qen | ELZ4: 1 | EMA4: 2 | EMB4: 2012-12-02 | EMC4: qen | EMD4: 1 | EME4: 2 | EMF4: 2012-12-02 | EMG4: qen | EMH4: 1 | EMI4: 2 | EMJ4: 2012-12-02 | EMK4: qen | EML4: 1 | EMM4: 2 | EMN4: 2012-12-02 | EMO4: qen | EMP4: 1 | EMQ4: 2 | EMR4: 2012-12-02 | EMS4: qen | EMT4: 1 | EMU4: 2 | EMV4: 2012-12-02 | EMW4: qen | EMX4: 1 | EMY4: 2 | EMZ4: 2012-12-02 | ENA4: qen | ENB4: 1 | ENC4: 2 | END4: 2012-12-02 | ENE4: qen | ENF4: 1 | ENG4: 2 | ENH4: 2012-12-02 | ENI4: qen | ENJ4: 1 | ENK4: 2 | ENL4: 2012-12-02 | ENM4: qen | ENN4: 1 | ENO4: 2 | ENP4: 2012-12-02 | ENQ4: qen | ENR4: 1 | ENS4: 2 | ENT4: 2012-12-02 | ENU4: qen | ENV4: 1 | ENW4: 2 | ENX4: 2012-12-02 | ENY4: qen | ENZ4: 1 | EOA4: 2 | EOB4: 2012-12-02 | EOC4: qen | EOD4: 1 | EOE4: 2 | EOF4: 2012-12-02 | EOG4: qen | EOH4: 1 | EOI4: 2 | EOJ4: 2012-12-02 | EOK4: qen | EOL4: 1 | EOM4: 2 | EON4: 2012-12-02 | EOO4: qen | EOP4: 1 | EOQ4: 2 | EOR4: 2012-12-02 | EOS4: qen | EOT4: 1 | EOU4: 2 | EOV4: 2012-12-02 | EOW4: qen | EOX4: 1 | EOY4: 2 | EOZ4: 2012-12-02 | EPA4: qen | EPB4: 1 | EPC4: 2 | EPD4: 2012-12-02 | EPE4: qen | EPF4: 1 | EPG4: 2 | EPH4: 2012-12-02 | EPI4: qen | EPJ4: 1 | EPK4: 2 | EPL4: 2012-12-02 | EPM4: qen | EPN4: 1 | EPO4: 2 | EPP4: 2012-12-02 | EPQ4: qen | EPR4: 1 | EPS4: 2 | EPT4: 2012-12-02 | EPU4: qen | EPV4: 1 | EPW4: 2 | EPX4: 2012-12-02 | EPY4: qen | EPZ4: 1 | EQA4: 2 | EQB4: 2012-12-02 | EQC4: qen | EQD4: 1 | EQE4: 2 | EQF4: 2012-12-02 | EQG4: qen | EQH4: 1 | EQI4: 2 | EQJ4: 2012-12-02 | EQK4: qen | EQL4: 1 | EQM4: 2 | EQN4: 2012-12-02 | EQO4: qen | EQP4: 1 | EQQ4: 2 | EQR4: 2012-12-02 | EQS4: qen | EQT4: 1 | EQU4: 2 | EQV4: 2012-12-02 | EQW4: qen | EQX4: 1 | EQY4: 2 | EQZ4: 2012-12-02 | ERA4: qen | ERB4: 1 | ERC4: 2 | ERD4: 2012-12-02 | ERE4: qen | ERF4: 1 | ERG4: 2 | ERH4: 2012-12-02 | ERI4: qen | ERJ4: 1 | ERK4: 2 | ERL4: 2012-12-02 | ERM4: qen | ERN4: 1 | ERO4: 2 | ERP4: 2012-12-02 | ERQ4: qen | ERR4: 1 | ERS4: 2 | ERT4: 2012-12-02 | ERU4: qen | ERV4: 1 | ERW4: 2 | ERX4: 2012-12-02 | ERY4: qen | ERZ4: 1 | ESA4: 2 | ESB4: 2012-12-02 | ESC4: qen | ESD4: 1 | ESE4: 2 | ESF4: 2012-12-02 | ESG4: qen | ESH4: 1 | ESI4: 2 | ESJ4: 2012-12-02 | ESK4: qen | ESL4: 1 | ESM4: 2 | ESN4: 2012-12-02 | ESO4: qen | ESP4: 1 | ESQ4: 2 | ESR4: 2012-12-02 | ESS4: qen | EST4: 1 | ESU4: 2 | ESV4: 2012-12-02 | ESW4: qen | ESX4: 1 | ESY4: 2 | ESZ4: 2012-12-02 | ETA4: qen | ETB4: 1 | ETC4: 2 | ETD4: 2012-12-02 | ETE4: qen | ETF4: 1 | ETG4: 2 | ETH4: 2012-12-02 | ETI4: qen | ETJ4: 1 | ETK4: 2 | ETL4: 2012-12-02 | ETM4: qen | ETN4: 1 | ETO4: 2 | ETP4: 2012-12-02 | ETQ4: qen | ETR4: 1 | ETS4: 2 | ETT4: 2012-12-02 | ETU4: qen | ETV4: 1 | ETW4: 2 | ETX4: 2012-12-02 | ETY4: qen | ETZ4: 1 | EUA4: 2 | EUB4: 2012-12-02 | EUC4: qen | EUD4: 1 | EUE4: 2 | EUF4: 2012-12-02 | EUG4: qen | EUH4: 1 | EUI4: 2 | EUJ4: 2012-12-02 | EUK4: qen | EUL4: 1 | EUM4: 2 | EUN4: 2012-12-02 | EUO4: qen | EUP4: 1 | EUQ4: 2 | EUR4: 2012-12-02 | EUS4: qen | EUT4: 1 | EUU4: 2 | EUV4: 2012-12-02 | EUW4: qen | EUX4: 1 | EUY4: 2 | EUZ4: 2012-12-02 | EVA4: qen | EVB4: 1 | EVC4: 2 | EVD4: 2012-12-02 | EVE4: qen | EVF4: 1 | EVG4: 2 | EVH4: 2012-12-02 | EVI4: qen | EVJ4: 1 | EVK4: 2 | EVL4: 2012-12-02 | EVM4: qen | EVN4: 1 | EVO4: 2 | EVP4: 2012-12-02 | EVQ4: qen | EVR4: 1 | EVS4: 2 | EVT4: 2012-12-02 | EVU4: qen | EVV4: 1 | EVW4: 2 | EVX4: 2012-12-02 | EVY4: qen | EVZ4: 1 | EWA4: 2 | EWB4: 2012-12-02 | EWC4: qen | EWD4: 1 | EWE4: 2 | EWF4: 2012-12-02 | EWG4: qen | EWH4: 1 | EWI4: 2 | EWJ4: 2012-12-02 | EWK4: qen | EWL4: 1 | EWM4: 2 | EWN4: 2012-12-02 | EWO4: qen | EWP4: 1 | EWQ4: 2 | EWR4: 2012-12-02 | EWS4: qen | EWT4: 1 | EWU4: 2 | EWV4: 2012-12-02 | EWW4: qen | EWX4: 1 | EWY4: 2 | EWZ4: 2012-12-02 | EXA4: qen | EXB4: 1 | EXC4: 2 | EXD4: 2012-12-02 | EXE4: qen | EXF4: 1 | EXG4: 2 | EXH4: 2012-12-02 | EXI4: qen | EXJ4: 1 | EXK4: 2 | EXL4: 2012-12-02 | EXM4: qen | EXN4: 1 | EXO4: 2 | EXP4: 2012-12-02 | EXQ4: qen | EXR4: 1 | EXS4: 2 | EXT4: 2012-12-02 | EXU4: qen | EXV4: 1 | EXW4: 2 | EXX4: 2012-12-02 | EXY4: qen | EXZ4: 1 | EYA4: 2 | EYB4: 2012-12-02 | EYC4: qen | EYD4: 1 | EYE4: 2 | EYF4: 2012-12-02 | EYG4: qen | EYH4: 1 | EYI4: 2 | EYJ4: 2012-12-02 | EYK4: qen | EYL4: 1 | EYM4: 2 | EYN4: 2012-12-02 | EYO4: qen | EYP4: 1 | EYQ4: 2 | EYR4: 2012-12-02 | EYS4: qen | EYT4: 1 | EYU4: 2 | EYV4: 2012-12-02 | EYW4: qen | EYX4: 1 | EYY4: 2 | EYZ4: 2012-12-02 | EZA4: qen | EZB4: 1 | EZC4: 2 | EZD4: 2012-12-02 | EZE4: qen | EZF4: 1 | EZG4: 2 | EZH4: 2012-12-02 | EZI4: qen | EZJ4: 1 | EZK4: 2 | EZL4: 2012-12-02 | EZM4: qen | EZN4: 1 | EZO4: 2 | EZP4: 2012-12-02 | EZQ4: qen | EZR4: 1 | EZS4: 2 | EZT4: 2012-12-02 | EZU4: qen | EZV4: 1 | EZW4: 2 | EZX4: 2012-12-02 | EZY4: qen | EZZ4: 1 | FAA4: 2 | FAB4: 2012-12-02 | FAC4: qen | FAD4: 1 | FAE4: 2 | FAF4: 2012-12-02 | FAG4: qen | FAH4: 1 | FAI4: 2 | FAJ4: 2012-12-02 | FAK4: qen | FAL4: 1 | FAM4: 2 | FAN4: 2012-12-02 | FAO4: qen | FAP4: 1 | FAQ4: 2 | FAR4: 2012-12-02 | FAS4: qen | FAT4: 1 | FAU4: 2 | FAV4: 2012-12-02 | FAW4: qen | FAX4: 1 | FAY4: 2 | FAZ4: 2012-12-02 | FBA4: qen | FBB4: 1 | FBC4: 2 | FBD4: 2012-12-02 | FBE4: qen | FBF4: 1 | FBG4: 2 | FBH4: 2012-12-02 | FBI4: qen | FBJ4: 1 | FBK4: 2 | FBL4: 2012-12-02 | FBM4: qen | FBN4: 1 | FBO4: 2 | FBP4: 2012-12-02 | FBQ4: qen | FBR4: 1 | FBS4: 2 | FBT4: 2012-12-02 | FBU4: qen | FBV4: 1 | FBW4: 2 | FBX4: 2012-12-02 | FBY4: qen | FBZ4: 1 | FCA4: 2 | FCB4: 2012-12-02 | FCC4: qen | FCD4: 1 | FCE4: 2 | FCF4: 2012-12-02 | FCG4: qen | FCH4: 1 | FCI4: 2 | FCJ4: 2012-12-02 | FCK4: qen | FCL4: 1 | FCM4: 2 | FCN4: 2012-12-02 | FCO4: qen | FCP4: 1 | FCQ4: 2 | FCR4: 2012-12-02 | FCS4: qen | FCT4: 1 | FCU4: 2 | FCV4: 2012-12-02 | FCW4: qen | FCX4: 1 | FCY4: 2 | FCZ4: 2012-12-02 | FDA4: qen | FDB4: 1 | FDC4: 2 | FDD4: 2012-12-02 | FDE4: qen | FDF4: 1 | FDG4: 2 | FDH4: 2012-12-02 | FDI4: qen | FDJ4: 1 | FDK4: 2 | FDL4: 2012-12-02 | FDM4: qen | FDN4: 1 | FDO4: 2 | FDP4: 2012-12-02 | FDQ4: qen | FDR4: 1 | FDS4: 2 | FDT4: 2012-12-02 | FDU4: qen | FDV4: 1 | FDW4: 2 | FDX4: 2012-12-02 | FDY4: qen | FDZ4: 1 | FEA4: 2 | FEB4: 2012-12-02 | FEC4: qen | FED4: 1 | FEE4: 2 | FEF4: 2012-12-02 | FEG4: qen | FEH4: 1 | FEI4: 2 | FEJ4: 2012-12-02 | FEK4: qen | FEL4: 1 | FEM4: 2 | FEN4: 2012-12-02 | FEO4: qen | FEP4: 1 | FEQ4: 2 | FER4: 2012-12-02 | FES4: qen | FET4: 1 | FEU4: 2 | FEV4: 2012-12-02 | FEW4: qen | FEX4: 1 | FEY4: 2 | FEZ4: 2012-12-02 | FFA4: qen | FFB4: 1 | FFC4: 2 | FFD4: 2012-12-02 | FFE4: qen | FFF4: 1 | FFG4: 2 | FFH4: 2012-12-02 | FFI4: qen | FFJ4: 1 | FFK4: 2 | FFL4: 2012-12-02 | FFM4: qen | FFN4: 1 | FFO4: 2 | FFP4: 2012-12-02 | FFQ4: qen | FFR4: 1 | FFS4: 2 | FFT4: 2012-12-02 | FFU4: qen | FFV4: 1 | FFW4: 2 | FFX4: 2012-12-02 | FFY4: qen | FFZ4: 1 | FGA4: 2 | FGB4: 2012-12-02 | FGC4: qen | FGD4: 1 | FGE4: 2 | FGF4: 2012-12-02 | FGG4: qen | FGH4: 1 | FGI4: 2 | FGJ4: 2012-12-02 | FGK4: qen | FGL4: 1 | FGM4: 2 | FGN4: 2012-12-02 | FGO4: qen | FGP4: 1 | FGQ4: 2 | FGR4: 2012-12-02 | FGS4: qen | FGT4: 1 | FGU4: 2 | FGV4: 2012-12-02 | FGW4: qen | FGX4: 1 | FGY4: 2 | FGZ4: 2012-12-02 | FHA4: qen | FHB4: 1 | FHC4: 2 | FHD4: 2012-12-02 | FHE4: qen | FHF4: 1 | FHG4: 2 | FHH4: 2012-12-02 | FHI4: qen | FHJ4: 1 | FHK4: 2 | FHL4: 2012-12-02 | FHM4: qen | FHN4: 1 | FHO4: 2 | FHP4: 2012-12-02 | FHQ4: qen | FHR4: 1 | FHS4: 2 | FHT4: 2012-12-02 | FHU4: qen | FHV4: 1 | FHW4: 2 | FHX4: 2012-12-02 | FHY4: qen | FHZ4: 1 | FIA4: 2 | FIB4: 2012-12-02 | FIC4: qen | FID4: 1 | FIE4: 2 | FIF4: 2012-12-02 | FIG4: qen | FIH4: 1 | FII4: 2 | FIJ4: 2012-12-02 | FIK4: qen | FIL4: 1 | FIM4: 2 | FIN4: 2012-12-02 | FIO4: qen | FIP4: 1 | FIQ4: 2 | FIR4: 2012-12-02 | FIS4: qen | FIT4: 1 | FIU4: 2 | FIV4: 2012-12-02 | FIW4: qen | FIX4: 1 | FIY4: 2 | FIZ4: 2012-12-02 | FJA4: qen | FJB4: 1 | FJC4: 2 | FJD4: 2012-12-02 | FJE4: qen | FJF4: 1 | FJG4: 2 | FJH4: 2012-12-02 | FJI4: qen | FJJ4: 1 | FJK4: 2 | FJL4: 2012-12-02 | FJM4: qen | FJN4: 1 | FJO4: 2 | FJP4: 2012-12-02 | FJQ4: qen | FJR4: 1 | FJS4: 2 | FJT4: 2012-12-02 | FJU4: qen | FJV4: 1 | FJW4: 2 | FJX4: 2012-12-02 | FJY4: qen | FJZ4: 1 | FKA4: 2 | FKB4: 2012-12-02 | FKC4: qen | FKD4: 1 | FKE4: 2 | FKF4: 2012-12-02 | FKG4: qen | FKH4: 1 | FKI4: 2 | FKJ4: 2012-12-02 | FKK4: qen | FKL4: 1 | FKM4: 2 | FKN4: 2012-12-02 | FKO4: qen | FKP4: 1 | FKQ4: 2 | FKR4: 2012-12-02 | FKS4: qen | FKT4: 1 | FKU4: 2 | FKV4: 2012-12-02 | FKW4: qen | FKX4: 1 | FKY4: 2 | FKZ4: 2012-12-02 | FLA4: qen | FLB4: 1 | FLC4: 2 | FLD4: 2012-12-02 | FLE4: qen | FLF4: 1 | FLG4: 2 | FLH4: 2012-12-02 | FLI4: qen | FLJ4: 1 | FLK4: 2 | FLL4: 2012-12-02 | FLM4: qen | FLN4: 1 | FLO4: 2 | FLP4: 2012-12-02 | FLQ4: qen | FLR4: 1 | FLS4: 2 | FLT4: 2012-12-02 | FLU4: qen | FLV4: 1 | FLW4: 2 | FLX4: 2012-12-02 | FLY4: qen | FLZ4: 1 | FMA4: 2 | FMB4: 2012-12-02 | FMC4: qen | FMD4: 1 | FME4: 2 | FMF4: 2012-12-02 | FMG4: qen | FMH4: 1 | FMI4: 2 | FMJ4: 2012-12-02 | FMK4: qen | FML4: 1 | FMM4: 2 | FMN4: 2012-12-02 | FMO4: qen | FMP4: 1 | FMQ4: 2 | FMR4: 2012-12-02 | FMS4: qen | FMT4: 1 | FMU4: 2 | FMV4: 2012-12-02 | FMW4: qen | FMX4: 1 | FMY4: 2 | FMZ4: 2012-12-02 | FNA4: qen | FNB4: 1 | FNC4: 2 | FND4: 2012-12-02 | FNE4: qen | FNF4: 1 | FNG4: 2 | FNH4: 2012-12-02 | FNI4: qen | FNJ4: 1 | FNK4: 2 | FNL4: 2012-12-02 | FNM4: qen | FNN4: 1 | FNO4: 2 | FNP4: 2012-12-02 | FNQ4: qen | FNR4: 1 | FNS4: 2 | FNT4: 2012-12-02 | FNU4: qen | FNV4: 1 | FNW4: 2 | FNX4: 2012-12-02 | FNY4: qen | FNZ4: 1 | FOA4: 2 | FOB4: 2012-12-02 | FOC4: qen | FOD4: 1 | FOE4: 2 | FOF4: 2012-12-02 | FOG4: qen | FOH4: 1 | FOI4: 2 | FOJ4: 2012-12-02 | FOK4: qen | FOL4: 1 | FOM4: 2 | FON4: 2012-12-02 | FOO4: qen | FOP4: 1 | FOQ4: 2 | FOR4: 2012-12-02 | FOS4: qen | FOT4: 1 | FOU4: 2 | FOV4: 2012-12-02 | FOW4: qen | FOX4: 1 | FOY4: 2 | FOZ4: 2012-12-02 | FPA4: qen | FPB4: 1 | FPC4: 2 | FPD4: 2012-12-02 | FPE4: qen | FPF4: 1 | FPG4: 2 | FPH4: 2012-12-02 | FPI4: qen | FPJ4: 1 | FPK4: 2 | FPL4: 2012-12-02 | FPM4: qen | FPN4: 1 | FPO4: 2 | FPP4: 2012-12-02 | FPQ4: qen | FPR4: 1 | FPS4: 2 | FPT4: 2012-12-02 | FPU4: qen | FPV4: 1 | FPW4: 2 | FPX4: 2012-12-02 | FPY4: qen | FPZ4: 1 | FQA4: 2 | FQB4: 2012-12-02 | FQC4: qen | FQD4: 1 | FQE4: 2 | FQF4: 2012-12-02 | FQG4: qen | FQH4: 1 | FQI4: 2 | FQJ4: 2012-12-02 | FQK4: qen | FQL4: 1 | FQM4: 2 | FQN4: 2012-12-02 | FQO4: qen | FQP4: 1 | FQQ4: 2 | FQR4: 2012-12-02 | FQS4: qen | FQT4: 1 | FQU4: 2 | FQV4: 2012-12-02 | FQW4: qen | FQX4: 1 | FQY4: 2 | FQZ4: 2012-12-02 | FRA4: qen | FRB4: 1 | FRC4: 2 | FRD4: 2012-12-02 | FRE4: qen | FRF4: 1 | FRG4: 2 | FRH4: 2012-12-02 | FRI4: qen | FRJ4: 1 | FRK4: 2 | FRL4: 2012-12-02 | FRM4: qen | FRN4: 1 | FRO4: 2 | FRP4: 2012-12-02 | FRQ4: qen | FRR4: 1 | FRS4: 2 | FRT4: 2012-12-02 | FRU4: qen | FRV4: 1 | FRW4: 2 | FRX4: 2012-12-02 | FRY4: qen | FRZ4: 1 | FSA4: 2 | FSB4: 2012-12-02 | FSC4: qen | FSD4: 1 | FSE4: 2 | FSF4: 2012-12-02 | FSG4: qen | FSH4: 1 | FSI4: 2 | FSJ4: 2012-12-02 | FSK4: qen | FSL4: 1 | FSM4: 2 | FSN4: 2012-12-02 | FSO4: qen | FSP4: 1 | FSQ4: 2 | FSR4: 2012-12-02 | FSS4: qen | FST4: 1 | FSU4: 2 | FSV4: 2012-12-02 | FSW4: qen | FSX4: 1 | FSY4: 2 | FSZ4: 2012-12-02 | FTA4: qen | FTB4: 1 | FTC4: 2 | FTD4: 2012-12-02 | FTE4: qen | FTF4: 1 | FTG4: 2 | FTH4: 2012-12-02 | FTI4: qen | FTJ4: 1 | FTK4: 2 | FTL4: 2012-12-02 | FTM4: qen | FTN4: 1 | FTO4: 2 | FTP4: 2012-12-02 | FTQ4: qen | FTR4: 1 | FTS4: 2 | FTT4: 2012-12-02 | FTU4: qen | FTV4: 1 | FTW4: 2 | FTX4: 2012-12-02 | FTY4: qen | FTZ4: 1 | FUA4: 2 | FUB4: 2012-12-02 | FUC4: qen | FUD4: 1 | FUE4: 2 | FUF4: 2012-12-02 | FUG4: qen | FUH4: 1 | FUI4: 2 | FUJ4: 2012-12-02 | FUK4: qen | FUL4: 1 | FUM4: 2 | FUN4: 2012-12-02 | FUO4: qen | FUP4: 1 | FUQ4: 2 | FUR4: 2012-12-02 | FUS4: qen | FUT4: 1 | FUU4: 2 | FUV4: 2012-12-02 | FUW4: qen | FUX4: 1 | FUY4: 2 | FUZ4: 2012-12-02 | FVA4: qen | FVB4: 1 | FVC4: 2 | FVD4: 2012-12-02 | FVE4: qen | FVF4: 1 | FVG4: 2 | FVH4: 2012-12-02 | FVI4: qen | FVJ4: 1 | FVK4: 2 | FVL4: 2012-12-02 | FVM4: qen | FVN4: 1 | FVO4: 2 | FVP4: 2012-12-02 | FVQ4: qen | FVR4: 1 | FVS4: 2 | FVT4: 2012-12-02 | FVU4: qen | FVV4: 1 | FVW4: 2 | FVX4: 2012-12-02 | FVY4: qen | FVZ4: 1 | FWA4: 2 | FWB4: 2012-12-02 | FWC4: qen | FWD4: 1 | FWE4: 2 | FWF4: 2012-12-02 | FWG4: qen | FWH4: 1 | FWI4: 2 | FWJ4: 2012-12-02 | FWK4: qen | FWL4: 1 | FWM4: 2 | FWN4: 2012-12-02 | FWO4: qen | FWP4: 1 | FWQ4: 2 | FWR4: 2012-12-02 | FWS4: qen | FWT4: 1 | FWU4: 2 | FWV4: 2012-12-02 | FWW4: qen | FWX4: 1 | FWY4: 2 | FWZ4: 2012-12-02 | FXA4: qen | FXB4: 1 | FXC4: 2 | FXD4: 2012-12-02 | FXE4: qen | FXF4: 1 | FXG4: 2 | FXH4: 2012-12-02 | FXI4: qen | FXJ4: 1 | FXK4: 2 | FXL4: 2012-12-02 | FXM4: qen | FXN4: 1 | FXO4: 2 | FXP4: 2012-12-02 | FXQ4: qen | FXR4: 1 | FXS4: 2 | FXT4: 2012-12-02 | FXU4: qen | FXV4: 1 | FXW4: 2 | FXX4: 2012-12-02 | FXY4: qen | FXZ4: 1 | FYA4: 2 | FYB4: 2012-12-02 | FYC4: qen | FYD4: 1 | FYE4: 2 | FYF4: 2012-12-02 | FYG4: qen | FYH4: 1 | FYI4: 2 | FYJ4: 2012-12-02 | FYK4: qen | FYL4: 1 | FYM4: 2 | FYN4: 2012-12-02 | FYO4: qen | FYP4: 1 | FYQ4: 2 | FYR4: 2012-12-02 | FYS4: qen | FYT4: 1 | FYU4: 2 | FYV4: 2012-12-02 | FYW4: qen | FYX4: 1 | FYY4: 2 | FYZ4: 2012-12-02 | FZA4: qen | FZB4: 1 | FZC4: 2 | FZD4: 2012-12-02 | FZE4: qen | FZF4: 1 | FZG4: 2 | FZH4: 2012-12-02 | FZI4: qen | FZJ4: 1 | FZK4: 2 | FZL4: 2012-12-02 | FZM4: qen | FZN4: 1 | FZO4: 2 | FZP4: 2012-12-02 | FZQ4: qen | FZR4: 1 | FZS4: 2 | FZT4: 2012-12-02 | FZU4: qen | FZV4: 1 | FZW4: 2 | FZX4: 2012-12-02 | FZY4: qen | FZZ4: 1 | GAA4: 2 | GAB4: 2012-12-02 | GAC4: qen | GAD4: 1 | GAE4: 2 | GAF4: 2012-12-02 | GAG4: qen | GAH4: 1 | GAI4: 2 | GAJ4: 2012-12-02 | GAK4: qen | GAL4: 1 | GAM4: 2 | GAN4: 2012-12-02 | GAO4: qen | GAP4: 1 | GAQ4: 2 | GAR4: 2012-12-02 | GAS4: qen | GAT4: 1 | GAU4: 2 | GAV4: 2012-12-02 | GAW4: qen | GAX4: 1 | GAY4: 2 | GAZ4: 2012-12-02 | GBA4: qen | GBB4: 1 | GBC4: 2 | GBD4: 2012-12-02 | GBE4: qen | GBF4: 1 | GBG4: 2 | GBH4: 2012-12-02 | GBI4: qen | GBJ4: 1 | GBK4: 2 | GBL4: 2012-12-02 | GBM4: qen | GBN4: 1 | GBO4: 2 | GBP4: 2012-12-02 | GBQ4: qen | GBR4: 1 | GBS4: 2 | GBT4: 2012-12-02 | GBU4: qen | GBV4: 1 | GBW4: 2 | GBX4: 2012-12-02 | GBY4: qen | GBZ4: 1 | GCA4: 2 | GCB4: 2012-12-02 | GCC4: qen | GCD4: 1 | GCE4: 2 | GCF4: 2012-12-02 | GCG4: qen | GCH4: 1 | GCI4: 2 | GCJ4: 2012-12-02 | GCK4: qen | GCL4: 1 | GCM4: 2 | GCN4: 2012-12-02 | GCO4: qen | GCP4: 1 | GCQ4: 2 | GCR4: 2012-12-02 | GCS4: qen | GCT4: 1 | GCU4: 2 | GCV4: 2012-12-02 | GCW4: qen | GCX4: 1 | GCY4: 2 | GCZ4: 2012-12-02 | GDA4: qen | GDB4: 1 | GDC4: 2 | GDD4: 2012-12-02 | GDE4: qen | GDF4: 1 | GDG4: 2 | GDH4: 2012-12-02 | GDI4: qen | GDJ4: 1 | GDK4: 2 | GDL4: 2012-12-02 | GDM4: qen | GDN4: 1 | GDO4: 2 | GDP4: 2012-12-02 | GDQ4: qen | GDR4: 1 | GDS4: 2 | GDT4: 2012-12-02 | GDU4: qen | GDV4: 1 | GDW4: 2 | GDX4: 2012-12-02 | GDY4: qen | GDZ4: 1 | GEA4: 2 | GEB4: 2012-12-02 | GEC4: qen | GED4: 1 | GEE4: 2 | GEF4: 2012-12-02 | GEG4: qen | GEH4: 1 | GEI4: 2 | GEJ4: 2012-12-02 | GEK4: qen | GEL4: 1 | GEM4: 2 | GEN4: 2012-12-02 | GEO4: qen | GEP4: 1 | GEQ4: 2 | GER4: 2012-12-02 | GES4: qen | GET4: 1 | GEU4: 2 | GEV4: 2012-12-02 | GEW4: qen | GEX4: 1 | GEY4: 2 | GEZ4: 2012-12-02 | GFA4: qen | GFB4: 1 | GFC4: 2 | GFD4: 2012-12-02 | GFE4: qen | GFF4: 1 | GFG4: 2 | GFH4: 2012-12-02 | GFI4: qen | GFJ4: 1 | GFK4: 2 | GFL4: 2012-12-02 | GFM4: qen | GFN4: 1 | GFO4: 2 | GFP4: 2012-12-02 | GFQ4: qen | GFR4: 1 | GFS4: 2 | GFT4: 2012-12-02 | GFU4: qen | GFV4: 1 | GFW4: 2 | GFX4: 2012-12-02 | GFY4: qen | GFZ4: 1 | GGA4: 2 | GGB4: 2012-12-02 | GGC4: qen | GGD4: 1 | GGE4: 2 | GGF4: 2012-12-02 | GGG4: qen | GGH4: 1 | GGI4: 2 | GGJ4: 2012-12-02 | GGK4: qen | GGL4: 1 | GGM4: 2 | GGN4: 2012-12-02 | GGO4: qen | GGP4: 1 | GGQ4: 2 | GGR4: 2012-12-02 | GGS4: qen | GGT4: 1 | GGU4: 2 | GGV4: 2012-12-02 | GGW4: qen | GGX4: 1 | GGY4: 2 | GGZ4: 2012-12-02 | GHA4: qen | GHB4: 1 | GHC4: 2 | GHD4: 2012-12-02 | GHE4: qen | GHF4: 1 | GHG4: 2 | GHH4: 2012-12-02 | GHI4: qen | GHJ4: 1 | GHK4: 2 | GHL4: 2012-12-02 | GHM4: qen | GHN4: 1 | GHO4: 2 | GHP4: 2012-12-02 | GHQ4: qen | GHR4: 1 | GHS4: 2 | GHT4: 2012-12-02 | GHU4: qen | GHV4: 1 | GHW4: 2 | GHX4: 2012-12-02 | GHY4: qen | GHZ4: 1 | GIA4: 2 | GIB4: 2012-12-02 | GIC4: qen | GID4: 1 | GIE4: 2 | GIF4: 2012-12-02 | GIG4: qen | GIH4: 1 | GII4: 2 | GIJ4: 2012-12-02 | GIK4: qen | GIL4: 1 | GIM4: 2 | GIN4: 2012-12-02 | GIO4: qen | GIP4: 1 | GIQ4: 2 | GIR4: 2012-12-02 | GIS4: qen | GIT4: 1 | GIU4: 2 | GIV4: 2012-12-02 | GIW4: qen | GIX4: 1 | GIY4: 2 | GIZ4: 2012-12-02 | GJA4: qen | GJB4: 1 | GJC4: 2 | GJD4: 2012-12-02 | GJE4: qen | GJF4: 1 | GJG4: 2 | GJH4: 2012-12-02 | GJI4: qen | GJJ4: 1 | GJK4: 2 | GJL4: 2012-12-02 | GJM4: qen | GJN4: 1 | GJO4: 2 | GJP4: 2012-12-02 | GJQ4: qen | GJR4: 1 | GJS4: 2 | GJT4: 2012-12-02 | GJU4: qen | GJV4: 1 | GJW4: 2 | GJX4: 2012-12-02 | GJY4: qen | GJZ4: 1 | GKA4: 2 | GKB4: 2012-12-02 | GKC4: qen | GKD4: 1 | GKE4: 2 | GKF4: 2012-12-02 | GKG4: qen | GKH4: 1 | GKI4: 2 | GKJ4: 2012-12-02 | GKK4: qen | GKL4: 1 | GKM4: 2 | GKN4: 2012-12-02 | GKO4: qen | GKP4: 1 | GKQ4: 2 | GKR4: 2012-12-02 | GKS4: qen | GKT4: 1 | GKU4: 2 | GKV4: 2012-12-02 | GKW4: qen | GKX4: 1 | GKY4: 2 | GKZ4: 2012-12-02 | GLA4: qen | GLB4: 1 | GLC4: 2 | GLD4: 2012-12-02 | GLE4: qen | GLF4: 1 | GLG4: 2 | GLH4: 2012-12-02 | GLI4: qen | GLJ4: 1 | GLK4: 2 | GLL4: 2012-12-02 | GLM4: qen | GLN4: 1 | GLO4: 2 | GLP4: 2012-12-02 | GLQ4: qen | GLR4: 1 | GLS4: 2 | GLT4: 2012-12-02 | GLU4: qen | GLV4: 1 | GLW4: 2 | GLX4: 2012-12-02 | GLY4: qen | GLZ4: 1 | GMA4: 2 | GMB4: 2012-12-02 | GMC4: qen | GMD4: 1 | GME4: 2 | GMF4: 2012-12-02 | GMG4: qen | GMH4: 1 | GMI4: 2 | GMJ4: 2012-12-02 | GMK4: qen | GML4: 1 | GMM4: 2 | GMN4: 2012-12-02 | GMO4: qen | GMP4: 1 | GMQ4: 2 | GMR4: 2012-12-02 | GMS4: qen | GMT4: 1 | GMU4: 2 | GMV4: 2012-12-02 | GMW4: qen | GMX4: 1 | GMY4: 2 | GMZ4: 2012-12-02 | GNA4: qen | GNB4: 1 | GNC4: 2 | GND4: 2012-12-02 | GNE4: qen | GNF4: 1 | GNG4: 2 | GNH4: 2012-12-02 | GNI4: qen | GNJ4: 1 | GNK4: 2 | GNL4: 2012-12-02 | GNM4: qen | GNN4: 1 | GNO4: 2 | GNP4: 2012-12-02 | GNQ4: qen | GNR4: 1 | GNS4: 2 | GNT4: 2012-12-02 | GNU4: qen | GNV4: 1 | GNW4: 2 | GNX4: 2012-12-02 | GNY4: qen | GNZ4: 1 | GOA4: 2 | GOB4: 2012-12-02 | GOC4: qen | GOD4: 1 | GOE4: 2 | GOF4: 2012-12-02 | GOG4: qen | GOH4: 1 | GOI4: 2 | GOJ4: 2012-12-02 | GOK4: qen | GOL4: 1 | GOM4: 2 | GON4: 2012-12-02 | GOO4: qen | GOP4: 1 | GOQ4: 2 | GOR4: 2012-12-02 | GOS4: qen | GOT4: 1 | GOU4: 2 | GOV4: 2012-12-02 | GOW4: qen | GOX4: 1 | GOY4: 2 | GOZ4: 2012-12-02 | GPA4: qen | GPB4: 1 | GPC4: 2 | GPD4: 2012-12-02 | GPE4: qen | GPF4: 1 | GPG4: 2 | GPH4: 2012-12-02 | GPI4: qen | GPJ4: 1 | GPK4: 2 | GPL4: 2012-12-02 | GPM4: qen | GPN4: 1 | GPO4: 2 | GPP4: 2012-12-02 | GPQ4: qen | GPR4: 1 | GPS4: 2 | GPT4: 2012-12-02 | GPU4: qen | GPV4: 1 | GPW4: 2 | GPX4: 2012-12-02 | GPY4: qen | GPZ4: 1 | GQA4: 2 | GQB4: 2012-12-02 | GQC4: qen | GQD4: 1 | GQE4: 2 | GQF4: 2012-12-02 | GQG4: qen | GQH4: 1 | GQI4: 2 | GQJ4: 2012-12-02 | GQK4: qen | GQL4: 1 | GQM4: 2 | GQN4: 2012-12-02 | GQO4: qen | GQP4: 1 | GQQ4: 2 | GQR4: 2012-12-02 | GQS4: qen | GQT4: 1 | GQU4: 2 | GQV4: 2012-12-02 | GQW4: qen | GQX4: 1 | GQY4: 2 | GQZ4: 2012-12-02 | GRA4: qen | GRB4: 1 | GRC4: 2 | GRD4: 2012-12-02 | GRE4: qen | GRF4: 1 | GRG4: 2 | GRH4: 2012-12-02 | GRI4: qen | GRJ4: 1 | GRK4: 2 | GRL4: 2012-12-02 | GRM4: qen | GRN4: 1 | GRO4: 2 | GRP4: 2012-12-02 | GRQ4: qen | GRR4: 1 | GRS4: 2 | GRT4: 2012-12-02 | GRU4: qen | GRV4: 1 | GRW4: 2 | GRX4: 2012-12-02 | GRY4: qen | GRZ4: 1 | GSA4: 2 | GSB4: 2012-12-02 | GSC4: qen | GSD4: 1 | GSE4: 2 | GSF4: 2012-12-02 | GSG4: qen | GSH4: 1 | GSI4: 2 | GSJ4: 2012-12-02 | GSK4: qen | GSL4: 1 | GSM4: 2 | GSN4: 2012-12-02 | GSO4: qen | GSP4: 1 | GSQ4: 2 | GSR4: 2012-12-02 | GSS4: qen | GST4: 1 | GSU4: 2 | GSV4: 2012-12-02 | GSW4: qen | GSX4: 1 | GSY4: 2 | GSZ4: 2012-12-02 | GTA4: qen | GTB4: 1 | GTC4: 2 | GTD4: 2012-12-02 | GTE4: qen | GTF4: 1 | GTG4: 2 | GTH4: 2012-12-02 | GTI4: qen | GTJ4: 1 | GTK4: 2 | GTL4: 2012-12-02 | GTM4: qen | GTN4: 1 | GTO4: 2 | GTP4: 2012-12-02 | GTQ4: qen | GTR4: 1 | GTS4: 2 | GTT4: 2012-12-02 | GTU4: qen | GTV4: 1 | GTW4: 2 | GTX4: 2012-12-02 | GTY4: qen | GTZ4: 1 | GUA4: 2 | GUB4: 2012-12-02 | GUC4: qen | GUD4: 1 | GUE4: 2 | GUF4: 2012-12-02 | GUG4: qen | GUH4: 1 | GUI4: 2 | GUJ4: 2012-12-02 | GUK4: qen | GUL4: 1 | GUM4: 2 | GUN4: 2012-12-02 | GUO4: qen | GUP4: 1 | GUQ4: 2 | GUR4: 2012-12-02 | GUS4: qen | GUT4: 1 | GUU4: 2 | GUV4: 2012-12-02 | GUW4: qen | GUX4: 1 | GUY4: 2 | GUZ4: 2012-12-02 | GVA4: qen | GVB4: 1 | GVC4: 2 | GVD4: 2012-12-02 | GVE4: qen | GVF4: 1 | GVG4: 2 | GVH4: 2012-12-02 | GVI4: qen | GVJ4: 1 | GVK4: 2 | GVL4: 2012-12-02 | GVM4: qen | GVN4: 1 | GVO4: 2 | GVP4: 2012-12-02 | GVQ4: qen | GVR4: 1 | GVS4: 2 | GVT4: 2012-12-02 | GVU4: qen | GVV4: 1 | GVW4: 2 | GVX4: 2012-12-02 | GVY4: qen | GVZ4: 1 | GWA4: 2 | GWB4: 2012-12-02 | GWC4: qen | GWD4: 1 | GWE4: 2 | GWF4: 2012-12-02 | GWG4: qen | GWH4: 1 | GWI4: 2 | GWJ4: 2012-12-02 | GWK4: qen | GWL4: 1 | GWM4: 2 | GWN4: 2012-12-02 | GWO4: qen | GWP4: 1 | GWQ4: 2 | GWR4: 2012-12-02 | GWS4: qen | GWT4: 1 | GWU4: 2 | GWV4: 2012-12-02 | GWW4: qen | GWX4: 1 | GWY4: 2 | GWZ4: 2012-12-02 | GXA4: qen | GXB4: 1 | GXC4: 2 | GXD4: 2012-12-02 | GXE4: qen | GXF4: 1 | GXG4: 2 | GXH4: 2012-12-02 | GXI4: qen | GXJ4: 1 | GXK4: 2 | GXL4: 2012-12-02 | GXM4: qen | GXN4: 1 | GXO4: 2 | GXP4: 2012-12-02 | GXQ4: qen | GXR4: 1 | GXS4: 2 | GXT4: 2012-12-02 | GXU4: qen | GXV4: 1 | GXW4: 2 | GXX4: 2012-12-02 | GXY4: qen | GXZ4: 1 | GYA4: 2 | GYB4: 2012-12-02 | GYC4: qen | GYD4: 1 | GYE4: 2 | GYF4: 2012-12-02 | GYG4: qen | GYH4: 1 | GYI4: 2 | GYJ4: 2012-12-02 | GYK4: qen | GYL4: 1 | GYM4: 2 | GYN4: 2012-12-02 | GYO4: qen | GYP4: 1 | GYQ4: 2 | GYR4: 2012-12-02 | GYS4: qen | GYT4: 1 | GYU4: 2 | GYV4: 2012-12-02 | GYW4: qen | GYX4: 1 | GYY4: 2 | GYZ4: 2012-12-02 | GZA4: qen | GZB4: 1 | GZC4: 2 | GZD4: 2012-12-02 | GZE4: qen | GZF4: 1 | GZG4: 2 | GZH4: 2012-12-02 | GZI4: qen | GZJ4: 1 | GZK4: 2 | GZL4: 2012-12-02 | GZM4: qen | GZN4: 1 | GZO4: 2 | GZP4: 2012-12-02 | GZQ4: qen | GZR4: 1 | GZS4: 2 | GZT4: 2012-12-02 | GZU4: qen | GZV4: 1 | GZW4: 2 | GZX4: 2012-12-02 | GZY4: qen | GZZ4: 1 | HAA4: 2 | HAB4: 2012-12-02 | HAC4: qen | HAD4: 1 | HAE4: 2 | HAF4: 2012-12-02 | HAG4: qen | HAH4: 1 | HAI4: 2 | HAJ4: 2012-12-02 | HAK4: qen | HAL4: 1 | HAM4: 2 | HAN4: 2012-12-02 | HAO4: qen | HAP4: 1 | HAQ4: 2 | HAR4: 2012-12-02 | HAS4: qen | HAT4: 1 | HAU4: 2 | HAV4: 2012-12-02 | HAW4: qen | HAX4: 1 | HAY4: 2 | HAZ4: 2012-12-02 | HBA4: qen | HBB4: 1 | HBC4: 2 | HBD4: 2012-12-02 | HBE4: qen | HBF4: 1 | HBG4: 2 | HBH4: 2012-12-02 | HBI4: qen | HBJ4: 1 | HBK4: 2 | HBL4: 2012-12-02 | HBM4: qen | HBN4: 1 | HBO4: 2 | HBP4: 2012-12-02 | HBQ4: qen | HBR4: 1 | HBS4: 2 | HBT4: 2012-12-02 | HBU4: qen | HBV4: 1 | HBW4: 2 | HBX4: 2012-12-02 | HBY4: qen | HBZ4: 1 | HCA4: 2 | HCB4: 2012-12-02 | HCC4: qen | HCD4: 1 | HCE4: 2 | HCF4: 2012-12-02 | HCG4: qen | HCH4: 1 | HCI4: 2 | HCJ4: 2012-12-02 | HCK4: qen | HCL4: 1 | HCM4: 2 | HCN4: 2012-12-02 | HCO4: qen | HCP4: 1 | HCQ4: 2 | HCR4: 2012-12-02 | HCS4: qen | HCT4: 1 | HCU4: 2 | HCV4: 2012-12-02 | HCW4: qen | HCX4: 1 | HCY4: 2 | HCZ4: 2012-12-02 | HDA4: qen | HDB4: 1 | HDC4: 2 | HDD4: 2012-12-02 | HDE4: qen | HDF4: 1 | HDG4: 2 | HDH4: 2012-12-02 | HDI4: qen | HDJ4: 1 | HDK4: 2 | HDL4: 2012-12-02 | HDM4: qen | HDN4: 1 | HDO4: 2 | HDP4: 2012-12-02 | HDQ4: qen | HDR4: 1 | HDS4: 2 | HDT4: 2012-12-02 | HDU4: qen | HDV4: 1 | HDW4: 2 | HDX4: 2012-12-02 | HDY4: qen | HDZ4: 1 | HEA4: 2 | HEB4: 2012-12-02 | HEC4: qen | HED4: 1 | HEE4: 2 | HEF4: 2012-12-02 | HEG4: qen | HEH4: 1 | HEI4: 2 | HEJ4: 2012-12-02 | HEK4: qen | HEL4: 1 | HEM4: 2 | HEN4: 2012-12-02 | HEO4: qen | HEP4: 1 | HEQ4: 2 | HER4: 2012-12-02 | HES4: qen | HET4: 1 | HEU4: 2 | HEV4: 2012-12-02 | HEW4: qen | HEX4: 1 | HEY4: 2 | HEZ4: 2012-12-02 | HFA4: qen | HFB4: 1 | HFC4: 2 | HFD4: 2012-12-02 | HFE4: qen | HFF4: 1 | HFG4: 2 | HFH4: 2012-12-02 | HFI4: qen | HFJ4: 1 | HFK4: 2 | HFL4: 2012-12-02 | HFM4: qen | HFN4: 1 | HFO4: 2 | HFP4: 2012-12-02 | HFQ4: qen | HFR4: 1 | HFS4: 2 | HFT4: 2012-12-02 | HFU4: qen | HFV4: 1 | HFW4: 2 | HFX4: 2012-12-02 | HFY4: qen | HFZ4: 1 | HGA4: 2 | HGB4: 2012-12-02 | HGC4: qen | HGD4: 1 | HGE4: 2 | HGF4: 2012-12-02 | HGG4: qen | HGH4: 1 | HGI4: 2 | HGJ4: 2012-12-02 | HGK4: qen | HGL4: 1 | HGM4: 2 | HGN4: 2012-12-02 | HGO4: qen | HGP4: 1 | HGQ4: 2 | HGR4: 2012-12-02 | HGS4: qen | HGT4: 1 | HGU4: 2 | HGV4: 2012-12-02 | HGW4: qen | HGX4: 1 | HGY4: 2 | HGZ4: 2012-12-02 | HHA4: qen | HHB4: 1 | HHC4: 2 | HHD4: 2012-12-02 | HHE4: qen | HHF4: 1 | HHG4: 2 | HHH4: 2012-12-02 | HHI4: qen | HHJ4: 1 | HHK4: 2 | HHL4: 2012-12-02 | HHM4: qen | HHN4: 1 | HHO4: 2 | HHP4: 2012-12-02 | HHQ4: qen | HHR4: 1 | HHS4: 2 | HHT4: 2012-12-02 | HHU4: qen | HHV4: 1 | HHW4: 2 | HHX4: 2012-12-02 | HHY4: qen | HHZ4: 1 | HIA4: 2 | HIB4: 2012-12-02 | HIC4: qen | HID4: 1 | HIE4: 2 | HIF4: 2012-12-02 | HIG4: qen | HIH4: 1 | HII4: 2 | HIJ4: 2012-12-02 | HIK4: qen | HIL4: 1 | HIM4: 2 | HIN4: 2012-12-02 | HIO4: qen | HIP4: 1 | HIQ4: 2 | HIR4: 2012-12-02 | HIS4: qen | HIT4: 1 | HIU4: 2 | HIV4: 2012-12-02 | HIW4: qen | HIX4: 1 | HIY4: 2 | HIZ4: 2012-12-02 | HJA4: qen | HJB4: 1 | HJC4: 2 | HJD4: 2012-12-02 | HJE4: qen | HJF4: 1 | HJG4: 2 | HJH4: 2012-12-02 | HJI4: qen | HJJ4: 1 | HJK4: 2 | HJL4: 2012-12-02 | HJM4: qen | HJN4: 1 | HJO4: 2 | HJP4: 2012-12-02 | HJQ4: qen | HJR4: 1 | HJS4: 2 | HJT4: 2012-12-02 | HJU4: qen | HJV4: 1 | HJW4: 2 | HJX4: 2012-12-02 | HJY4: qen | HJZ4: 1 | HKA4: 2 | HKB4: 2012-12-02 | HKC4: qen | HKD4: 1 | HKE4: 2 | HKF4: 2012-12-02 | HKG4: qen | HKH4: 1 | HKI4: 2 | HKJ4: 2012-12-02 | HKK4: qen | HKL4: 1 | HKM4: 2 | HKN4: 2012-12-02 | HKO4: qen | HKP4: 1 | HKQ4: 2 | HKR4: 2012-12-02 | HKS4: qen | HKT4: 1 | HKU4: 2 | HKV4: 2012-12-02 | HKW4: qen | HKX4: 1 | HKY4: 2 | HKZ4: 2012-12-02 | HLA4: qen | HLB4: 1 | HLC4: 2 | HLD4: 2012-12-02 | HLE4: qen | HLF4: 1 | HLG4: 2 | HLH4: 2012-12-02 | HLI4: qen | HLJ4: 1 | HLK4: 2 | HLL4: 2012-12-02 | HLM4: qen | HLN4: 1 | HLO4: 2 | HLP4: 2012-12-02 | HLQ4: qen | HLR4: 1 | HLS4: 2 | HLT4: 2012-12-02 | HLU4: qen | HLV4: 1 | HLW4: 2 | HLX4: 2012-12-02 | HLY4: qen | HLZ4: 1 | HMA4: 2 | HMB4: 2012-12-02 | HMC4: qen | HMD4: 1 | HME4: 2 | HMF4: 2012-12-02 | HMG4: qen | HMH4: 1 | HMI4: 2 | HMJ4: 2012-12-02 | HMK4: qen | HML4: 1 | HMM4: 2 | HMN4: 2012-12-02 | HMO4: qen | HMP4: 1 | HMQ4: 2 | HMR4: 2012-12-02 | HMS4: qen | HMT4: 1 | HMU4: 2 | HMV4: 2012-12-02 | HMW4: qen | HMX4: 1 | HMY4: 2 | HMZ4: 2012-12-02 | HNA4: qen | HNB4: 1 | HNC4: 2 | HND4: 2012-12-02 | HNE4: qen | HNF4: 1 | HNG4: 2 | HNH4: 2012-12-02 | HNI4: qen | HNJ4: 1 | HNK4: 2 | HNL4: 2012-12-02 | HNM4: qen | HNN4: 1 | HNO4: 2 | HNP4: 2012-12-02 | HNQ4: qen | HNR4: 1 | HNS4: 2 | HNT4: 2012-12-02 | HNU4: qen | HNV4: 1 | HNW4: 2 | HNX4: 2012-12-02 | HNY4: qen | HNZ4: 1 | HOA4: 2 | HOB4: 2012-12-02 | HOC4: qen | HOD4: 1 | HOE4: 2 | HOF4: 2012-12-02 | HOG4: qen | HOH4: 1 | HOI4: 2 | HOJ4: 2012-12-02 | HOK4: qen | HOL4: 1 | HOM4: 2 | HON4: 2012-12-02 | HOO4: qen | HOP4: 1 | HOQ4: 2 | HOR4: 2012-12-02 | HOS4: qen | HOT4: 1 | HOU4: 2 | HOV4: 2012-12-02 | HOW4: qen | HOX4: 1 | HOY4: 2 | HOZ4: 2012-12-02 | HPA4: qen | HPB4: 1 | HPC4: 2 | HPD4: 2012-12-02 | HPE4: qen | HPF4: 1 | HPG4: 2 | HPH4: 2012-12-02 | HPI4: qen | HPJ4: 1 | HPK4: 2 | HPL4: 2012-12-02 | HPM4: qen | HPN4: 1 | HPO4: 2 | HPP4: 2012-12-02 | HPQ4: qen | HPR4: 1 | HPS4: 2 | HPT4: 2012-12-02 | HPU4: qen | HPV4: 1 | HPW4: 2 | HPX4: 2012-12-02 | HPY4: qen | HPZ4: 1 | HQA4: 2 | HQB4: 2012-12-02 | HQC4: qen | HQD4: 1 | HQE4: 2 | HQF4: 2012-12-02 | HQG4: qen | HQH4: 1 | HQI4: 2 | HQJ4: 2012-12-02 | HQK4: qen | HQL4: 1 | HQM4: 2 | HQN4: 2012-12-02 | HQO4: qen | HQP4: 1 | HQQ4: 2 | HQR4: 2012-12-02 | HQS4: qen | HQT4: 1 | HQU4: 2 | HQV4: 2012-12-02 | HQW4: qen | HQX4: 1 | HQY4: 2 | HQZ4: 2012-12-02 | HRA4: qen | HRB4: 1 | HRC4: 2 | HRD4: 2012-12-02 | HRE4: qen | HRF4: 1 | HRG4: 2 | HRH4: 2012-12-02 | HRI4: qen | HRJ4: 1 | HRK4: 2 | HRL4: 2012-12-02 | HRM4: qen | HRN4: 1 | HRO4: 2 | HRP4: 2012-12-02 | HRQ4: qen | HRR4: 1 | HRS4: 2 | HRT4: 2012-12-02 | HRU4: qen | HRV4: 1 | HRW4: 2 | HRX4: 2012-12-02 | HRY4: qen | HRZ4: 1 | HSA4: 2 | HSB4: 2012-12-02 | HSC4: qen | HSD4: 1 | HSE4: 2 | HSF4: 2012-12-02 | HSG4: qen | HSH4: 1 | HSI4: 2 | HSJ4: 2012-12-02 | HSK4: qen | HSL4: 1 | HSM4: 2 | HSN4: 2012-12-02 | HSO4: qen | HSP4: 1 | HSQ4: 2 | HSR4: 2012-12-02 | HSS4: qen | HST4: 1 | HSU4: 2 | HSV4: 2012-12-02 | HSW4: qen | HSX4: 1 | HSY4: 2 | HSZ4: 2012-12-02 | HTA4: qen | HTB4: 1 | HTC4: 2 | HTD4: 2012-12-02 | HTE4: qen | HTF4: 1 | HTG4: 2 | HTH4: 2012-12-02 | HTI4: qen | HTJ4: 1 | HTK4: 2 | HTL4: 2012-12-02 | HTM4: qen | HTN4: 1 | HTO4: 2 | HTP4: 2012-12-02 | HTQ4: qen | HTR4: 1 | HTS4: 2 | HTT4: 2012-12-02 | HTU4: qen | HTV4: 1 | HTW4: 2 | HTX4: 2012-12-02 | HTY4: qen | HTZ4: 1 | HUA4: 2 | HUB4: 2012-12-02 | HUC4: qen | HUD4: 1 | HUE4: 2 | HUF4: 2012-12-02 | HUG4: qen | HUH4: 1 | HUI4: 2 | HUJ4: 2012-12-02 | HUK4: qen | HUL4: 1 | HUM4: 2 | HUN4: 2012-12-02 | HUO4: qen | HUP4: 1 | HUQ4: 2 | HUR4: 2012-12-02 | HUS4: qen | HUT4: 1 | HUU4: 2 | HUV4: 2012-12-02 | HUW4: qen | HUX4: 1 | HUY4: 2 | HUZ4: 2012-12-02 | HVA4: qen | HVB4: 1 | HVC4: 2 | HVD4: 2012-12-02 | HVE4: qen | HVF4: 1 | HVG4: 2 | HVH4: 2012-12-02 | HVI4: qen | HVJ4: 1 | HVK4: 2 | HVL4: 2012-12-02 | HVM4: qen | HVN4: 1 | HVO4: 2 | HVP4: 2012-12-02 | HVQ4: qen | HVR4: 1 | HVS4: 2 | HVT4: 2012-12-02 | HVU4: qen | HVV4: 1 | HVW4: 2 | HVX4: 2012-12-02 | HVY4: qen | HVZ4: 1 | HWA4: 2 | HWB4: 2012-12-02 | HWC4: qen | HWD4: 1 | HWE4: 2 | HWF4: 2012-12-02 | HWG4: qen | HWH4: 1 | HWI4: 2 | HWJ4: 2012-12-02 | HWK4: qen | HWL4: 1 | HWM4: 2 | HWN4: 2012-12-02 | HWO4: qen | HWP4: 1 | HWQ4: 2 | HWR4: 2012-12-02 | HWS4: qen | HWT4: 1 | HWU4: 2 | HWV4: 2012-12-02 | HWW4: qen | HWX4: 1 | HWY4: 2 | HWZ4: 2012-12-02 | HXA4: qen | HXB4: 1 | HXC4: 2 | HXD4: 2012-12-02 | HXE4: qen | HXF4: 1 | HXG4: 2 | HXH4: 2012-12-02 | HXI4: qen | HXJ4: 1 | HXK4: 2 | HXL4: 2012-12-02 | HXM4: qen | HXN4: 1 | HXO4: 2 | HXP4: 2012-12-02 | HXQ4: qen | HXR4: 1 | HXS4: 2 | HXT4: 2012-12-02 | HXU4: qen | HXV4: 1 | HXW4: 2 | HXX4: 2012-12-02 | HXY4: qen | HXZ4: 1 | HYA4: 2 | HYB4: 2012-12-02 | HYC4: qen | HYD4: 1 | HYE4: 2 | HYF4: 2012-12-02 | HYG4: qen | HYH4: 1 | HYI4: 2 | HYJ4: 2012-12-02 | HYK4: qen | HYL4: 1 | HYM4: 2 | HYN4: 2012-12-02 | HYO4: qen | HYP4: 1 | HYQ4: 2 | HYR4: 2012-12-02 | HYS4: qen | HYT4: 1 | HYU4: 2 | HYV4: 2012-12-02 | HYW4: qen | HYX4: 1 | HYY4: 2 | HYZ4: 2012-12-02 | HZA4: qen | HZB4: 1 | HZC4: 2 | HZD4: 2012-12-02 | HZE4: qen | HZF4: 1 | HZG4: 2 | HZH4: 2012-12-02 | HZI4: qen | HZJ4: 1 | HZK4: 2 | HZL4: 2012-12-02 | HZM4: qen | HZN4: 1 | HZO4: 2 | HZP4: 2012-12-02 | HZQ4: qen | HZR4: 1 | HZS4: 2 | HZT4: 2012-12-02 | HZU4: qen | HZV4: 1 | HZW4: 2 | HZX4: 2012-12-02 | HZY4: qen | HZZ4: 1 | IAA4: 2 | IAB4: 2012-12-02 | IAC4: qen | IAD4: 1 | IAE4: 2 | IAF4: 2012-12-02 | IAG4: qen | IAH4: 1 | IAI4: 2 | IAJ4: 2012-12-02 | IAK4: qen | IAL4: 1 | IAM4: 2 | IAN4: 2012-12-02 | IAO4: qen | IAP4: 1 | IAQ4: 2 | IAR4: 2012-12-02 | IAS4: qen | IAT4: 1 | IAU4: 2 | IAV4: 2012-12-02 | IAW4: qen | IAX4: 1 | IAY4: 2 | IAZ4: 2012-12-02 | IBA4: qen | IBB4: 1 | IBC4: 2 | IBD4: 2012-12-02 | IBE4: qen | IBF4: 1 | IBG4: 2 | IBH4: 2012-12-02 | IBI4: qen | IBJ4: 1 | IBK4: 2 | IBL4: 2012-12-02 | IBM4: qen | IBN4: 1 | IBO4: 2 | IBP4: 2012-12-02 | IBQ4: qen | IBR4: 1 | IBS4: 2 | IBT4: 2012-12-02 | IBU4: qen | IBV4: 1 | IBW4: 2 | IBX4: 2012-12-02 | IBY4: qen | IBZ4: 1 | ICA4: 2 | ICB4: 2012-12-02 | ICC4: qen | ICD4: 1 | ICE4: 2 | ICF4: 2012-12-02 | ICG4: qen | ICH4: 1 | ICI4: 2 | ICJ4: 2012-12-02 | ICK4: qen | ICL4: 1 | ICM4: 2 | ICN4: 2012-12-02 | ICO4: qen | ICP4: 1 | ICQ4: 2 | ICR4: 2012-12-02 | ICS4: qen | ICT4: 1 | ICU4: 2 | ICV4: 2012-12-02 | ICW4: qen | ICX4: 1 | ICY4: 2 | ICZ4: 2012-12-02 | IDA4: qen | IDB4: 1 | IDC4: 2 | IDD4: 2012-12-02 | IDE4: qen | IDF4: 1 | IDG4: 2 | IDH4: 2012-12-02 | IDI4: qen | IDJ4: 1 | IDK4: 2 | IDL4: 2012-12-02 | IDM4: qen | IDN4: 1 | IDO4: 2 | IDP4: 2012-12-02 | IDQ4: qen | IDR4: 1 | IDS4: 2 | IDT4: 2012-12-02 | IDU4: qen | IDV4: 1 | IDW4: 2 | IDX4: 2012-12-02 | IDY4: qen | IDZ4: 1 | IEA4: 2 | IEB4: 2012-12-02 | IEC4: qen | IED4: 1 | IEE4: 2 | IEF4: 2012-12-02 | IEG4: qen | IEH4: 1 | IEI4: 2 | IEJ4: 2012-12-02 | IEK4: qen | IEL4: 1 | IEM4: 2 | IEN4: 2012-12-02 | IEO4: qen | IEP4: 1 | IEQ4: 2 | IER4: 2012-12-02 | IES4: qen | IET4: 1 | IEU4: 2 | IEV4: 2012-12-02 | IEW4: qen | IEX4: 1 | IEY4: 2 | IEZ4: 2012-12-02 | IFA4: qen | IFB4: 1 | IFC4: 2 | IFD4: 2012-12-02 | IFE4: qen | IFF4: 1 | IFG4: 2 | IFH4: 2012-12-02 | IFI4: qen | IFJ4: 1 | IFK4: 2 | IFL4: 2012-12-02 | IFM4: qen | IFN4: 1 | IFO4: 2 | IFP4: 2012-12-02 | IFQ4: qen | IFR4: 1 | IFS4: 2 | IFT4: 2012-12-02 | IFU4: qen | IFV4: 1 | IFW4: 2 | IFX4: 2012-12-02 | IFY4: qen | IFZ4: 1 | IGA4: 2 | IGB4: 2012-12-02 | IGC4: qen | IGD4: 1 | IGE4: 2 | IGF4: 2012-12-02 | IGG4: qen | IGH4: 1 | IGI4: 2 | IGJ4: 2012-12-02 | IGK4: qen | IGL4: 1 | IGM4: 2 | IGN4: 2012-12-02 | IGO4: qen | IGP4: 1 | IGQ4: 2 | IGR4: 2012-12-02 | IGS4: qen | IGT4: 1 | IGU4: 2 | IGV4: 2012-12-02 | IGW4: qen | IGX4: 1 | IGY4: 2 | IGZ4: 2012-12-02 | IHA4: qen | IHB4: 1 | IHC4: 2 | IHD4: 2012-12-02 | IHE4: qen | IHF4: 1 | IHG4: 2 | IHH4: 2012-12-02 | IHI4: qen | IHJ4: 1 | IHK4: 2 | IHL4: 2012-12-02 | IHM4: qen | IHN4: 1 | IHO4: 2 | IHP4: 2012-12-02 | IHQ4: qen | IHR4: 1 | IHS4: 2 | IHT4: 2012-12-02 | IHU4: qen | IHV4: 1 | IHW4: 2 | IHX4: 2012-12-02 | IHY4: qen | IHZ4: 1 | IIA4: 2 | IIB4: 2012-12-02 | IIC4: qen | IID4: 1 | IIE4: 2 | IIF4: 2012-12-02 | IIG4: qen | IIH4: 1 | III4: 2 | IIJ4: 2012-12-02 | IIK4: qen | IIL4: 1 | IIM4: 2 | IIN4: 2012-12-02 | IIO4: qen | IIP4: 1 | IIQ4: 2 | IIR4: 2012-12-02 | IIS4: qen | IIT4: 1 | IIU4: 2 | IIV4: 2012-12-02 | IIW4: qen | IIX4: 1 | IIY4: 2 | IIZ4: 2012-12-02 | IJA4: qen | IJB4: 1 | IJC4: 2 | IJD4: 2012-12-02 | IJE4: qen | IJF4: 1 | IJG4: 2 | IJH4: 2012-12-02 | IJI4: qen | IJJ4: 1 | IJK4: 2 | IJL4: 2012-12-02 | IJM4: qen | IJN4: 1 | IJO4: 2 | IJP4: 2012-12-02 | IJQ4: qen | IJR4: 1 | IJS4: 2 | IJT4: 2012-12-02 | IJU4: qen | IJV4: 1 | IJW4: 2 | IJX4: 2012-12-02 | IJY4: qen | IJZ4: 1 | IKA4: 2 | IKB4: 2012-12-02 | IKC4: qen | IKD4: 1 | IKE4: 2 | IKF4: 2012-12-02 | IKG4: qen | IKH4: 1 | IKI4: 2 | IKJ4: 2012-12-02 | IKK4: qen | IKL4: 1 | IKM4: 2 | IKN4: 2012-12-02 | IKO4: qen | IKP4: 1 | IKQ4: 2 | IKR4: 2012-12-02 | IKS4: qen | IKT4: 1 | IKU4: 2 | IKV4: 2012-12-02 | IKW4: qen | IKX4: 1 | IKY4: 2 | IKZ4: 2012-12-02 | ILA4: qen | ILB4: 1 | ILC4: 2 | ILD4: 2012-12-02 | ILE4: qen | ILF4: 1 | ILG4: 2 | ILH4: 2012-12-02 | ILI4: qen | ILJ4: 1 | ILK4: 2 | ILL4: 2012-12-02 | ILM4: qen | ILN4: 1 | ILO4: 2 | ILP4: 2012-12-02 | ILQ4: qen | ILR4: 1 | ILS4: 2 | ILT4: 2012-12-02 | ILU4: qen | ILV4: 1 | ILW4: 2 | ILX4: 2012-12-02 | ILY4: qen | ILZ4: 1 | IMA4: 2 | IMB4: 2012-12-02 | IMC4: qen | IMD4: 1 | IME4: 2 | IMF4: 2012-12-02 | IMG4: qen | IMH4: 1 | IMI4: 2 | IMJ4: 2012-12-02 | IMK4: qen | IML4: 1 | IMM4: 2 | IMN4: 2012-12-02 | IMO4: qen | IMP4: 1 | IMQ4: 2 | IMR4: 2012-12-02 | IMS4: qen | IMT4: 1 | IMU4: 2 | IMV4: 2012-12-02 | IMW4: qen | IMX4: 1 | IMY4: 2 | IMZ4: 2012-12-02 | INA4: qen | INB4: 1 | INC4: 2 | IND4: 2012-12-02 | INE4: qen | INF4: 1 | ING4: 2 | INH4: 2012-12-02 | INI4: qen | INJ4: 1 | INK4: 2 | INL4: 2012-12-02 | INM4: qen | INN4: 1 | INO4: 2 | INP4: 2012-12-02 | INQ4: qen | INR4: 1 | INS4: 2 | INT4: 2012-12-02 | INU4: qen | INV4: 1 | INW4: 2 | INX4: 2012-12-02 | INY4: qen | INZ4: 1 | IOA4: 2 | IOB4: 2012-12-02 | IOC4: qen | IOD4: 1 | IOE4: 2 | IOF4: 2012-12-02 | IOG4: qen | IOH4: 1 | IOI4: 2 | IOJ4: 2012-12-02 | IOK4: qen | IOL4: 1 | IOM4: 2 | ION4: 2012-12-02 | IOO4: qen | IOP4: 1 | IOQ4: 2 | IOR4: 2012-12-02 | IOS4: qen | IOT4: 1 | IOU4: 2 | IOV4: 2012-12-02 | IOW4: qen | IOX4: 1 | IOY4: 2 | IOZ4: 2012-12-02 | IPA4: qen | IPB4: 1 | IPC4: 2 | IPD4: 2012-12-02 | IPE4: qen | IPF4: 1 | IPG4: 2 | IPH4: 2012-12-02 | IPI4: qen | IPJ4: 1 | IPK4: 2 | IPL4: 2012-12-02 | IPM4: qen | IPN4: 1 | IPO4: 2 | IPP4: 2012-12-02 | IPQ4: qen | IPR4: 1 | IPS4: 2 | IPT4: 2012-12-02 | IPU4: qen | IPV4: 1 | IPW4: 2 | IPX4: 2012-12-02 | IPY4: qen | IPZ4: 1 | IQA4: 2 | IQB4: 2012-12-02 | IQC4: qen | IQD4: 1 | IQE4: 2 | IQF4: 2012-12-02 | IQG4: qen | IQH4: 1 | IQI4: 2 | IQJ4: 2012-12-02 | IQK4: qen | IQL4: 1 | IQM4: 2 | IQN4: 2012-12-02 | IQO4: qen | IQP4: 1 | IQQ4: 2 | IQR4: 2012-12-02 | IQS4: qen | IQT4: 1 | IQU4: 2 | IQV4: 2012-12-02 | IQW4: qen | IQX4: 1 | IQY4: 2 | IQZ4: 2012-12-02 | IRA4: qen | IRB4: 1 | IRC4: 2 | IRD4: 2012-12-02 | IRE4: qen | IRF4: 1 | IRG4: 2 | IRH4: 2012-12-02 | IRI4: qen | IRJ4: 1 | IRK4: 2 | IRL4: 2012-12-02 | IRM4: qen | IRN4: 1 | IRO4: 2 | IRP4: 2012-12-02 | IRQ4: qen | IRR4: 1 | IRS4: 2 | IRT4: 2012-12-02 | IRU4: qen | IRV4: 1 | IRW4: 2 | IRX4: 2012-12-02 | IRY4: qen | IRZ4: 1 | ISA4: 2 | ISB4: 2012-12-02 | ISC4: qen | ISD4: 1 | ISE4: 2 | ISF4: 2012-12-02 | ISG4: qen | ISH4: 1 | ISI4: 2 | ISJ4: 2012-12-02 | ISK4: qen | ISL4: 1 | ISM4: 2 | ISN4: 2012-12-02 | ISO4: qen | ISP4: 1 | ISQ4: 2 | ISR4: 2012-12-02 | ISS4: qen | IST4: 1 | ISU4: 2 | ISV4: 2012-12-02 | ISW4: qen | ISX4: 1 | ISY4: 2 | ISZ4: 2012-12-02 | ITA4: qen | ITB4: 1 | ITC4: 2 | ITD4: 2012-12-02 | ITE4: qen | ITF4: 1 | ITG4: 2 | ITH4: 2012-12-02 | ITI4: qen | ITJ4: 1 | ITK4: 2 | ITL4: 2012-12-02 | ITM4: qen | ITN4: 1 | ITO4: 2 | ITP4: 2012-12-02 | ITQ4: qen | ITR4: 1 | ITS4: 2 | ITT4: 2012-12-02 | ITU4: qen | ITV4: 1 | ITW4: 2 | ITX4: 2012-12-02 | ITY4: qen | ITZ4: 1 | IUA4: 2 | IUB4: 2012-12-02 | IUC4: qen | IUD4: 1 | IUE4: 2 | IUF4: 2012-12-02 | IUG4: qen | IUH4: 1 | IUI4: 2 | IUJ4: 2012-12-02 | IUK4: qen | IUL4: 1 | IUM4: 2 | IUN4: 2012-12-02 | IUO4: qen | IUP4: 1 | IUQ4: 2 | IUR4: 2012-12-02 | IUS4: qen | IUT4: 1 | IUU4: 2 | IUV4: 2012-12-02 | IUW4: qen | IUX4: 1 | IUY4: 2 | IUZ4: 2012-12-02 | IVA4: qen | IVB4: 1 | IVC4: 2 | IVD4: 2012-12-02 | IVE4: qen | IVF4: 1 | IVG4: 2 | IVH4: 2012-12-02 | IVI4: qen | IVJ4: 1 | IVK4: 2 | IVL4: 2012-12-02 | IVM4: qen | IVN4: 1 | IVO4: 2 | IVP4: 2012-12-02 | IVQ4: qen | IVR4: 1 | IVS4: 2 | IVT4: 2012-12-02 | IVU4: qen | IVV4: 1 | IVW4: 2 | IVX4: 2012-12-02 | IVY4: qen | IVZ4: 1 | IWA4: 2 | IWB4: 2012-12-02 | IWC4: qen | IWD4: 1 | IWE4: 2 | IWF4: 2012-12-02 | IWG4: qen | IWH4: 1 | IWI4: 2 | IWJ4: 2012-12-02 | IWK4: qen | IWL4: 1 | IWM4: 2 | IWN4: 2012-12-02 | IWO4: qen | IWP4: 1 | IWQ4: 2 | IWR4: 2012-12-02 | IWS4: qen | IWT4: 1 | IWU4: 2 | IWV4: 2012-12-02 | IWW4: qen | IWX4: 1 | IWY4: 2 | IWZ4: 2012-12-02 | IXA4: qen | IXB4: 1 | IXC4: 2 | IXD4: 2012-12-02 | IXE4: qen | IXF4: 1 | IXG4: 2 | IXH4: 2012-12-02 | IXI4: qen | IXJ4: 1 | IXK4: 2 | IXL4: 2012-12-02 | IXM4: qen | IXN4: 1 | IXO4: 2 | IXP4: 2012-12-02 | IXQ4: qen | IXR4: 1 | IXS4: 2 | IXT4: 2012-12-02 | IXU4: qen | IXV4: 1 | IXW4: 2 | IXX4: 2012-12-02 | IXY4: qen | IXZ4: 1 | IYA4: 2 | IYB4: 2012-12-02 | IYC4: qen | IYD4: 1 | IYE4: 2 | IYF4: 2012-12-02 | IYG4: qen | IYH4: 1 | IYI4: 2 | IYJ4: 2012-12-02 | IYK4: qen | IYL4: 1 | IYM4: 2 | IYN4: 2012-12-02 | IYO4: qen | IYP4: 1 | IYQ4: 2 | IYR4: 2012-12-02 | IYS4: qen | IYT4: 1 | IYU4: 2 | IYV4: 2012-12-02 | IYW4: qen | IYX4: 1 | IYY4: 2 | IYZ4: 2012-12-02 | IZA4: qen | IZB4: 1 | IZC4: 2 | IZD4: 2012-12-02 | IZE4: qen | IZF4: 1 | IZG4: 2 | IZH4: 2012-12-02 | IZI4: qen | IZJ4: 1 | IZK4: 2 | IZL4: 2012-12-02 | IZM4: qen | IZN4: 1 | IZO4: 2 | IZP4: 2012-12-02 | IZQ4: qen | IZR4: 1 | IZS4: 2 | IZT4: 2012-12-02 | IZU4: qen | IZV4: 1 | IZW4: 2 | IZX4: 2012-12-02 | IZY4: qen | IZZ4: 1 | JAA4: 2 | JAB4: 2012-12-02 | JAC4: qen | JAD4: 1 | JAE4: 2 | JAF4: 2012-12-02 | JAG4: qen | JAH4: 1 | JAI4: 2 | JAJ4: 2012-12-02 | JAK4: qen | JAL4: 1 | JAM4: 2 | JAN4: 2012-12-02 | JAO4: qen | JAP4: 1 | JAQ4: 2 | JAR4: 2012-12-02 | JAS4: qen | JAT4: 1 | JAU4: 2 | JAV4: 2012-12-02 | JAW4: qen | JAX4: 1 | JAY4: 2 | JAZ4: 2012-12-02 | JBA4: qen | JBB4: 1 | JBC4: 2 | JBD4: 2012-12-02 | JBE4: qen | JBF4: 1 | JBG4: 2 | JBH4: 2012-12-02 | JBI4: qen | JBJ4: 1 | JBK4: 2 | JBL4: 2012-12-02 | JBM4: qen | JBN4: 1 | JBO4: 2 | JBP4: 2012-12-02 | JBQ4: qen | JBR4: 1 | JBS4: 2 | JBT4: 2012-12-02 | JBU4: qen | JBV4: 1 | JBW4: 2 | JBX4: 2012-12-02 | JBY4: qen | JBZ4: 1 | JCA4: 2 | JCB4: 2012-12-02 | JCC4: qen | JCD4: 1 | JCE4: 2 | JCF4: 2012-12-02 | JCG4: qen | JCH4: 1 | JCI4: 2 | JCJ4: 2012-12-02 | JCK4: qen | JCL4: 1 | JCM4: 2 | JCN4: 2012-12-02 | JCO4: qen | JCP4: 1 | JCQ4: 2 | JCR4: 2012-12-02 | JCS4: qen | JCT4: 1 | JCU4: 2 | JCV4: 2012-12-02 | JCW4: qen | JCX4: 1 | JCY4: 2 | JCZ4: 2012-12-02 | JDA4: qen | JDB4: 1 | JDC4: 2 | JDD4: 2012-12-02 | JDE4: qen | JDF4: 1 | JDG4: 2 | JDH4: 2012-12-02 | JDI4: qen | JDJ4: 1 | JDK4: 2 | JDL4: 2012-12-02 | JDM4: qen | JDN4: 1 | JDO4: 2 | JDP4: 2012-12-02 | JDQ4: qen | JDR4: 1 | JDS4: 2 | JDT4: 2012-12-02 | JDU4: qen | JDV4: 1 | JDW4: 2 | JDX4: 2012-12-02 | JDY4: qen | JDZ4: 1 | JEA4: 2 | JEB4: 2012-12-02 | JEC4: qen | JED4: 1 | JEE4: 2 | JEF4: 2012-12-02 | JEG4: qen | JEH4: 1 | JEI4: 2 | JEJ4: 2012-12-02 | JEK4: qen | JEL4: 1 | JEM4: 2 | JEN4: 2012-12-02 | JEO4: qen | JEP4: 1 | JEQ4: 2 | JER4: 2012-12-02 | JES4: qen | JET4: 1 | JEU4: 2 | JEV4: 2012-12-02 | JEW4: qen | JEX4: 1 | JEY4: 2 | JEZ4: 2012-12-02 | JFA4: qen | JFB4: 1 | JFC4: 2 | JFD4: 2012-12-02 | JFE4: qen | JFF4: 1 | JFG4: 2 | JFH4: 2012-12-02 | JFI4: qen | JFJ4: 1 | JFK4: 2 | JFL4: 2012-12-02 | JFM4: qen | JFN4: 1 | JFO4: 2 | JFP4: 2012-12-02 | JFQ4: qen | JFR4: 1 | JFS4: 2 | JFT4: 2012-12-02 | JFU4: qen | JFV4: 1 | JFW4: 2 | JFX4: 2012-12-02 | JFY4: qen | JFZ4: 1 | JGA4: 2 | JGB4: 2012-12-02 | JGC4: qen | JGD4: 1 | JGE4: 2 | JGF4: 2012-12-02 | JGG4: qen | JGH4: 1 | JGI4: 2 | JGJ4: 2012-12-02 | JGK4: qen | JGL4: 1 | JGM4: 2 | JGN4: 2012-12-02 | JGO4: qen | JGP4: 1 | JGQ4: 2 | JGR4: 2012-12-02 | JGS4: qen | JGT4: 1 | JGU4: 2 | JGV4: 2012-12-02 | JGW4: qen | JGX4: 1 | JGY4: 2 | JGZ4: 2012-12-02 | JHA4: qen | JHB4: 1 | JHC4: 2 | JHD4: 2012-12-02 | JHE4: qen | JHF4: 1 | JHG4: 2 | JHH4: 2012-12-02 | JHI4: qen | JHJ4: 1 | JHK4: 2 | JHL4: 2012-12-02 | JHM4: qen | JHN4: 1 | JHO4: 2 | JHP4: 2012-12-02 | JHQ4: qen | JHR4: 1 | JHS4: 2 | JHT4: 2012-12-02 | JHU4: qen | JHV4: 1 | JHW4: 2 | JHX4: 2012-12-02 | JHY4: qen | JHZ4: 1 | JIA4: 2 | JIB4: 2012-12-02 | JIC4: qen | JID4: 1 | JIE4: 2 | JIF4: 2012-12-02 | JIG4: qen | JIH4: 1 | JII4: 2 | JIJ4: 2012-12-02 | JIK4: qen | JIL4: 1 | JIM4: 2 | JIN4: 2012-12-02 | JIO4: qen | JIP4: 1 | JIQ4: 2 | JIR4: 2012-12-02 | JIS4: qen | JIT4: 1 | JIU4: 2 | JIV4: 2012-12-02 | JIW4: qen | JIX4: 1 | JIY4: 2 | JIZ4: 2012-12-02 | JJA4: qen | JJB4: 1 | JJC4: 2 | JJD4: 2012-12-02 | JJE4: qen | JJF4: 1 | JJG4: 2 | JJH4: 2012-12-02 | JJI4: qen | JJJ4: 1 | JJK4: 2 | JJL4: 2012-12-02 | JJM4: qen | JJN4: 1 | JJO4: 2 | JJP4: 2012-12-02 | JJQ4: qen | JJR4: 1 | JJS4: 2 | JJT4: 2012-12-02 | JJU4: qen | JJV4: 1 | JJW4: 2 | JJX4: 2012-12-02 | JJY4: qen | JJZ4: 1 | JKA4: 2 | JKB4: 2012-12-02 | JKC4: qen | JKD4: 1 | JKE4: 2 | JKF4: 2012-12-02 | JKG4: qen | JKH4: 1 | JKI4: 2 | JKJ4: 2012-12-02 | JKK4: qen | JKL4: 1 | JKM4: 2 | JKN4: 2012-12-02 | JKO4: qen | JKP4: 1 | JKQ4: 2 | JKR4: 2012-12-02 | JKS4: qen | JKT4: 1 | JKU4: 2 | JKV4: 2012-12-02 | JKW4: qen | JKX4: 1 | JKY4: 2 | JKZ4: 2012-12-02 | JLA4: qen | JLB4: 1 | JLC4: 2 | JLD4: 2012-12-02 | JLE4: qen | JLF4: 1 | JLG4: 2 | JLH4: 2012-12-02 | JLI4: qen | JLJ4: 1 | JLK4: 2 | JLL4: 2012-12-02 | JLM4: qen | JLN4: 1 | JLO4: 2 | JLP4: 2012-12-02 | JLQ4: qen | JLR4: 1 | JLS4: 2 | JLT4: 2012-12-02 | JLU4: qen | JLV4: 1 | JLW4: 2 | JLX4: 2012-12-02 | JLY4: qen | JLZ4: 1 | JMA4: 2 | JMB4: 2012-12-02 | JMC4: qen | JMD4: 1 | JME4: 2 | JMF4: 2012-12-02 | JMG4: qen | JMH4: 1 | JMI4: 2 | JMJ4: 2012-12-02 | JMK4: qen | JML4: 1 | JMM4: 2 | JMN4: 2012-12-02 | JMO4: qen | JMP4: 1 | JMQ4: 2 | JMR4: 2012-12-02 | JMS4: qen | JMT4: 1 | JMU4: 2 | JMV4: 2012-12-02 | JMW4: qen | JMX4: 1 | JMY4: 2 | JMZ4: 2012-12-02 | JNA4: qen | JNB4: 1 | JNC4: 2 | JND4: 2012-12-02 | JNE4: qen | JNF4: 1 | JNG4: 2 | JNH4: 2012-12-02 | JNI4: qen | JNJ4: 1 | JNK4: 2 | JNL4: 2012-12-02 | JNM4: qen | JNN4: 1 | JNO4: 2 | JNP4: 2012-12-02 | JNQ4: qen | JNR4: 1 | JNS4: 2 | JNT4: 2012-12-02 | JNU4: qen | JNV4: 1 | JNW4: 2 | JNX4: 2012-12-02 | JNY4: qen | JNZ4: 1 | JOA4: 2 | JOB4: 2012-12-02 | JOC4: qen | JOD4: 1 | JOE4: 2 | JOF4: 2012-12-02 | JOG4: qen | JOH4: 1 | JOI4: 2 | JOJ4: 2012-12-02 | JOK4: qen | JOL4: 1 | JOM4: 2 | JON4: 2012-12-02 | JOO4: qen | JOP4: 1 | JOQ4: 2 | JOR4: 2012-12-02 | JOS4: qen | JOT4: 1 | JOU4: 2 | JOV4: 2012-12-02 | JOW4: qen | JOX4: 1 | JOY4: 2 | JOZ4: 2012-12-02 | JPA4: qen | JPB4: 1 | JPC4: 2 | JPD4: 2012-12-02 | JPE4: qen | JPF4: 1 | JPG4: 2 | JPH4: 2012-12-02 | JPI4: qen | JPJ4: 1 | JPK4: 2 | JPL4: 2012-12-02 | JPM4: qen | JPN4: 1 | JPO4: 2 | JPP4: 2012-12-02 | JPQ4: qen | JPR4: 1 | JPS4: 2 | JPT4: 2012-12-02 | JPU4: qen | JPV4: 1 | JPW4: 2 | JPX4: 2012-12-02 | JPY4: qen | JPZ4: 1 | JQA4: 2 | JQB4: 2012-12-02 | JQC4: qen | JQD4: 1 | JQE4: 2 | JQF4: 2012-12-02 | JQG4: qen | JQH4: 1 | JQI4: 2 | JQJ4: 2012-12-02 | JQK4: qen | JQL4: 1 | JQM4: 2 | JQN4: 2012-12-02 | JQO4: qen | JQP4: 1 | JQQ4: 2 | JQR4: 2012-12-02 | JQS4: qen | JQT4: 1 | JQU4: 2 | JQV4: 2012-12-02 | JQW4: qen | JQX4: 1 | JQY4: 2 | JQZ4: 2012-12-02 | JRA4: qen | JRB4: 1 | JRC4: 2 | JRD4: 2012-12-02 | JRE4: qen | JRF4: 1 | JRG4: 2 | JRH4: 2012-12-02 | JRI4: qen | JRJ4: 1 | JRK4: 2 | JRL4: 2012-12-02 | JRM4: qen | JRN4: 1 | JRO4: 2 | JRP4: 2012-12-02 | JRQ4: qen | JRR4: 1 | JRS4: 2 | JRT4: 2012-12-02 | JRU4: qen | JRV4: 1 | JRW4: 2 | JRX4: 2012-12-02 | JRY4: qen | JRZ4: 1 | JSA4: 2 | JSB4: 2012-12-02 | JSC4: qen | JSD4: 1 | JSE4: 2 | JSF4: 2012-12-02 | JSG4: qen | JSH4: 1 | JSI4: 2 | JSJ4: 2012-12-02 | JSK4: qen | JSL4: 1 | JSM4: 2 | JSN4: 2012-12-02 | JSO4: qen | JSP4: 1 | JSQ4: 2 | JSR4: 2012-12-02 | JSS4: qen | JST4: 1 | JSU4: 2 | JSV4: 2012-12-02 | JSW4: qen | JSX4: 1 | JSY4: 2 | JSZ4: 2012-12-02 | JTA4: qen | JTB4: 1 | JTC4: 2 | JTD4: 2012-12-02 | JTE4: qen | JTF4: 1 | JTG4: 2 | JTH4: 2012-12-02 | JTI4: qen | JTJ4: 1 | JTK4: 2 | JTL4: 2012-12-02 | JTM4: qen | JTN4: 1 | JTO4: 2 | JTP4: 2012-12-02 | JTQ4: qen | JTR4: 1 | JTS4: 2 | JTT4: 2012-12-02 | JTU4: qen | JTV4: 1 | JTW4: 2 | JTX4: 2012-12-02 | JTY4: qen | JTZ4: 1 | JUA4: 2 | JUB4: 2012-12-02 | JUC4: qen | JUD4: 1 | JUE4: 2 | JUF4: 2012-12-02 | JUG4: qen | JUH4: 1 | JUI4: 2 | JUJ4: 2012-12-02 | JUK4: qen | JUL4: 1 | JUM4: 2 | JUN4: 2012-12-02 | JUO4: qen | JUP4: 1 | JUQ4: 2 | JUR4: 2012-12-02 | JUS4: qen | JUT4: 1 | JUU4: 2 | JUV4: 2012-12-02 | JUW4: qen | JUX4: 1 | JUY4: 2 | JUZ4: 2012-12-02 | JVA4: qen | JVB4: 1 | JVC4: 2 | JVD4: 2012-12-02 | JVE4: qen | JVF4: 1 | JVG4: 2 | JVH4: 2012-12-02 | JVI4: qen | JVJ4: 1 | JVK4: 2 | JVL4: 2012-12-02 | JVM4: qen | JVN4: 1 | JVO4: 2 | JVP4: 2012-12-02 | JVQ4: qen | JVR4: 1 | JVS4: 2 | JVT4: 2012-12-02 | JVU4: qen | JVV4: 1 | JVW4: 2 | JVX4: 2012-12-02 | JVY4: qen | JVZ4: 1 | JWA4: 2 | JWB4: 2012-12-02 | JWC4: qen | JWD4: 1 | JWE4: 2 | JWF4: 2012-12-02 | JWG4: qen | JWH4: 1 | JWI4: 2 | JWJ4: 2012-12-02 | JWK4: qen | JWL4: 1 | JWM4: 2 | JWN4: 2012-12-02 | JWO4: qen | JWP4: 1 | JWQ4: 2 | JWR4: 2012-12-02 | JWS4: qen | JWT4: 1 | JWU4: 2 | JWV4: 2012-12-02 | JWW4: qen | JWX4: 1 | JWY4: 2 | JWZ4: 2012-12-02 | JXA4: qen | JXB4: 1 | JXC4: 2 | JXD4: 2012-12-02 | JXE4: qen | JXF4: 1 | JXG4: 2 | JXH4: 2012-12-02 | JXI4: qen | JXJ4: 1 | JXK4: 2 | JXL4: 2012-12-02 | JXM4: qen | JXN4: 1 | JXO4: 2 | JXP4: 2012-12-02 | JXQ4: qen | JXR4: 1 | JXS4: 2 | JXT4: 2012-12-02 | JXU4: qen | JXV4: 1 | JXW4: 2 | JXX4: 2012-12-02 | JXY4: qen | JXZ4: 1 | JYA4: 2 | JYB4: 2012-12-02 | JYC4: qen | JYD4: 1 | JYE4: 2 | JYF4: 2012-12-02 | JYG4: qen | JYH4: 1 | JYI4: 2 | JYJ4: 2012-12-02 | JYK4: qen | JYL4: 1 | JYM4: 2 | JYN4: 2012-12-02 | JYO4: qen | JYP4: 1 | JYQ4: 2 | JYR4: 2012-12-02 | JYS4: qen | JYT4: 1 | JYU4: 2 | JYV4: 2012-12-02 | JYW4: qen | JYX4: 1 | JYY4: 2 | JYZ4: 2012-12-02 | JZA4: qen | JZB4: 1 | JZC4: 2 | JZD4: 2012-12-02 | JZE4: qen | JZF4: 1 | JZG4: 2 | JZH4: 2012-12-02 | JZI4: qen | JZJ4: 1 | JZK4: 2 | JZL4: 2012-12-02 | JZM4: qen | JZN4: 1 | JZO4: 2 | JZP4: 2012-12-02 | JZQ4: qen | JZR4: 1 | JZS4: 2 | JZT4: 2012-12-02 | JZU4: qen | JZV4: 1 | JZW4: 2 | JZX4: 2012-12-02 | JZY4: qen | JZZ4: 1 | KAA4: 2 | KAB4: 2012-12-02 | KAC4: qen | KAD4: 1 | KAE4: 2 | KAF4: 2012-12-02 | KAG4: qen | KAH4: 1 | KAI4: 2 | KAJ4: 2012-12-02 | KAK4: qen | KAL4: 1 | KAM4: 2 | KAN4: 2012-12-02 | KAO4: qen | KAP4: 1 | KAQ4: 2 | KAR4: 2012-12-02 | KAS4: qen | KAT4: 1 | KAU4: 2 | KAV4: 2012-12-02 | KAW4: qen | KAX4: 1 | KAY4: 2 | KAZ4: 2012-12-02 | KBA4: qen | KBB4: 1 | KBC4: 2 | KBD4: 2012-12-02 | KBE4: qen | KBF4: 1 | KBG4: 2 | KBH4: 2012-12-02 | KBI4: qen | KBJ4: 1 | KBK4: 2 | KBL4: 2012-12-02 | KBM4: qen | KBN4: 1 | KBO4: 2 | KBP4: 2012-12-02 | KBQ4: qen | KBR4: 1 | KBS4: 2 | KBT4: 2012-12-02 | KBU4: qen | KBV4: 1 | KBW4: 2 | KBX4: 2012-12-02 | KBY4: qen | KBZ4: 1 | KCA4: 2 | KCB4: 2012-12-02 | KCC4: qen | KCD4: 1 | KCE4: 2 | KCF4: 2012-12-02 | KCG4: qen | KCH4: 1 | KCI4: 2 | KCJ4: 2012-12-02 | KCK4: qen | KCL4: 1 | KCM4: 2 | KCN4: 2012-12-02 | KCO4: qen | KCP4: 1 | KCQ4: 2 | KCR4: 2012-12-02 | KCS4: qen | KCT4: 1 | KCU4: 2 | KCV4: 2012-12-02 | KCW4: qen | KCX4: 1 | KCY4: 2 | KCZ4: 2012-12-02 | KDA4: qen | KDB4: 1 | KDC4: 2 | KDD4: 2012-12-02 | KDE4: qen | KDF4: 1 | KDG4: 2 | KDH4: 2012-12-02 | KDI4: qen | KDJ4: 1 | KDK4: 2 | KDL4: 2012-12-02 | KDM4: qen | KDN4: 1 | KDO4: 2 | KDP4: 2012-12-02 | KDQ4: qen | KDR4: 1 | KDS4: 2 | KDT4: 2012-12-02 | KDU4: qen | KDV4: 1 | KDW4: 2 | KDX4: 2012-12-02 | KDY4: qen | KDZ4: 1 | KEA4: 2 | KEB4: 2012-12-02 | KEC4: qen | KED4: 1 | KEE4: 2 | KEF4: 2012-12-02 | KEG4: qen | KEH4: 1 | KEI4: 2 | KEJ4: 2012-12-02 | KEK4: qen | KEL4: 1 | KEM4: 2 | KEN4: 2012-12-02 | KEO4: qen | KEP4: 1 | KEQ4: 2 | KER4: 2012-12-02 | KES4: qen | KET4: 1 | KEU4: 2 | KEV4: 2012-12-02 | KEW4: qen | KEX4: 1 | KEY4: 2 | KEZ4: 2012-12-02 | KFA4: qen | KFB4: 1 | KFC4: 2 | KFD4: 2012-12-02 | KFE4: qen | KFF4: 1 | KFG4: 2 | KFH4: 2012-12-02 | KFI4: qen | KFJ4: 1 | KFK4: 2 | KFL4: 2012-12-02 | KFM4: qen | KFN4: 1 | KFO4: 2 | KFP4: 2012-12-02 | KFQ4: qen | KFR4: 1 | KFS4: 2 | KFT4: 2012-12-02 | KFU4: qen | KFV4: 1 | KFW4: 2 | KFX4: 2012-12-02 | KFY4: qen | KFZ4: 1 | KGA4: 2 | KGB4: 2012-12-02 | KGC4: qen | KGD4: 1 | KGE4: 2 | KGF4: 2012-12-02 | KGG4: qen | KGH4: 1 | KGI4: 2 | KGJ4: 2012-12-02 | KGK4: qen | KGL4: 1 | KGM4: 2 | KGN4: 2012-12-02 | KGO4: qen | KGP4: 1 | KGQ4: 2 | KGR4: 2012-12-02 | KGS4: qen | KGT4: 1 | KGU4: 2 | KGV4: 2012-12-02 | KGW4: qen | KGX4: 1 | KGY4: 2 | KGZ4: 2012-12-02 | KHA4: qen | KHB4: 1 | KHC4: 2 | KHD4: 2012-12-02 | KHE4: qen | KHF4: 1 | KHG4: 2 | KHH4: 2012-12-02 | KHI4: qen | KHJ4: 1 | KHK4: 2 | KHL4: 2012-12-02 | KHM4: qen | KHN4: 1 | KHO4: 2 | KHP4: 2012-12-02 | KHQ4: qen | KHR4: 1 | KHS4: 2 | KHT4: 2012-12-02 | KHU4: qen | KHV4: 1 | KHW4: 2 | KHX4: 2012-12-02 | KHY4: qen | KHZ4: 1 | KIA4: 2 | KIB4: 2012-12-02 | KIC4: qen | KID4: 1 | KIE4: 2 | KIF4: 2012-12-02 | KIG4: qen | KIH4: 1 | KII4: 2 | KIJ4: 2012-12-02 | KIK4: qen | KIL4: 1 | KIM4: 2 | KIN4: 2012-12-02 | KIO4: qen | KIP4: 1 | KIQ4: 2 | KIR4: 2012-12-02 | KIS4: qen | KIT4: 1 | KIU4: 2 | KIV4: 2012-12-02 | KIW4: qen | KIX4: 1 | KIY4: 2 | KIZ4: 2012-12-02 | KJA4: qen | KJB4: 1 | KJC4: 2 | KJD4: 2012-12-02 | KJE4: qen | KJF4: 1 | KJG4: 2 | KJH4: 2012-12-02 | KJI4: qen | KJJ4: 1 | KJK4: 2 | KJL4: 2012-12-02 | KJM4: qen | KJN4: 1 | KJO4: 2 | KJP4: 2012-12-02 | KJQ4: qen | KJR4: 1 | KJS4: 2 | KJT4: 2012-12-02 | KJU4: qen | KJV4: 1 | KJW4: 2 | KJX4: 2012-12-02 | KJY4: qen | KJZ4: 1 | KKA4: 2 | KKB4: 2012-12-02 | KKC4: qen | KKD4: 1 | KKE4: 2 | KKF4: 2012-12-02 | KKG4: qen | KKH4: 1 | KKI4: 2 | KKJ4: 2012-12-02 | KKK4: qen | KKL4: 1 | KKM4: 2 | KKN4: 2012-12-02 | KKO4: qen | KKP4: 1 | KKQ4: 2 | KKR4: 2012-12-02 | KKS4: qen | KKT4: 1 | KKU4: 2 | KKV4: 2012-12-02 | KKW4: qen | KKX4: 1 | KKY4: 2 | KKZ4: 2012-12-02 | KLA4: qen | KLB4: 1 | KLC4: 2 | KLD4: 2012-12-02 | KLE4: qen | KLF4: 1 | KLG4: 2 | KLH4: 2012-12-02 | KLI4: qen | KLJ4: 1 | KLK4: 2 | KLL4: 2012-12-02 | KLM4: qen | KLN4: 1 | KLO4: 2 | KLP4: 2012-12-02 | KLQ4: qen | KLR4: 1 | KLS4: 2 | KLT4: 2012-12-02 | KLU4: qen | KLV4: 1 | KLW4: 2 | KLX4: 2012-12-02 | KLY4: qen | KLZ4: 1 | KMA4: 2 | KMB4: 2012-12-02 | KMC4: qen | KMD4: 1 | KME4: 2 | KMF4: 2012-12-02 | KMG4: qen | KMH4: 1 | KMI4: 2 | KMJ4: 2012-12-02 | KMK4: qen | KML4: 1 | KMM4: 2 | KMN4: 2012-12-02 | KMO4: qen | KMP4: 1 | KMQ4: 2 | KMR4: 2012-12-02 | KMS4: qen | KMT4: 1 | KMU4: 2 | KMV4: 2012-12-02 | KMW4: qen | KMX4: 1 | KMY4: 2 | KMZ4: 2012-12-02 | KNA4: qen | KNB4: 1 | KNC4: 2 | KND4: 2012-12-02 | KNE4: qen | KNF4: 1 | KNG4: 2 | KNH4: 2012-12-02 | KNI4: qen | KNJ4: 1 | KNK4: 2 | KNL4: 2012-12-02 | KNM4: qen | KNN4: 1 | KNO4: 2 | KNP4: 2012-12-02 | KNQ4: qen | KNR4: 1 | KNS4: 2 | KNT4: 2012-12-02 | KNU4: qen | KNV4: 1 | KNW4: 2 | KNX4: 2012-12-02 | KNY4: qen | KNZ4: 1 | KOA4: 2 | KOB4: 2012-12-02 | KOC4: qen | KOD4: 1 | KOE4: 2 | KOF4: 2012-12-02 | KOG4: qen | KOH4: 1 | KOI4: 2 | KOJ4: 2012-12-02 | KOK4: qen | KOL4: 1 | KOM4: 2 | KON4: 2012-12-02 | KOO4: qen | KOP4: 1 | KOQ4: 2 | KOR4: 2012-12-02 | KOS4: qen | KOT4: 1 | KOU4: 2 | KOV4: 2012-12-02 | KOW4: qen | KOX4: 1 | KOY4: 2 | KOZ4: 2012-12-02 | KPA4: qen | KPB4: 1 | KPC4: 2 | KPD4: 2012-12-02 | KPE4: qen | KPF4: 1 | KPG4: 2 | KPH4: 2012-12-02 | KPI4: qen | KPJ4: 1 | KPK4: 2 | KPL4: 2012-12-02 | KPM4: qen | KPN4: 1 | KPO4: 2 | KPP4: 2012-12-02 | KPQ4: qen | KPR4: 1 | KPS4: 2 | KPT4: 2012-12-02 | KPU4: qen | KPV4: 1 | KPW4: 2 | KPX4: 2012-12-02 | KPY4: qen | KPZ4: 1 | KQA4: 2 | KQB4: 2012-12-02 | KQC4: qen | KQD4: 1 | KQE4: 2 | KQF4: 2012-12-02 | KQG4: qen | KQH4: 1 | KQI4: 2 | KQJ4: 2012-12-02 | KQK4: qen | KQL4: 1 | KQM4: 2 | KQN4: 2012-12-02 | KQO4: qen | KQP4: 1 | KQQ4: 2 | KQR4: 2012-12-02 | KQS4: qen | KQT4: 1 | KQU4: 2 | KQV4: 2012-12-02 | KQW4: qen | KQX4: 1 | KQY4: 2 | KQZ4: 2012-12-02 | KRA4: qen | KRB4: 1 | KRC4: 2 | KRD4: 2012-12-02 | KRE4: qen | KRF4: 1 | KRG4: 2 | KRH4: 2012-12-02 | KRI4: qen | KRJ4: 1 | KRK4: 2 | KRL4: 2012-12-02 | KRM4: qen | KRN4: 1 | KRO4: 2 | KRP4: 2012-12-02 | KRQ4: qen | KRR4: 1 | KRS4: 2 | KRT4: 2012-12-02 | KRU4: qen | KRV4: 1 | KRW4: 2 | KRX4: 2012-12-02 | KRY4: qen | KRZ4: 1 | KSA4: 2 | KSB4: 2012-12-02 | KSC4: qen | KSD4: 1 | KSE4: 2 | KSF4: 2012-12-02 | KSG4: qen | KSH4: 1 | KSI4: 2 | KSJ4: 2012-12-02 | KSK4: qen | KSL4: 1 | KSM4: 2 | KSN4: 2012-12-02 | KSO4: qen | KSP4: 1 | KSQ4: 2 | KSR4: 2012-12-02 | KSS4: qen | KST4: 1 | KSU4: 2 | KSV4: 2012-12-02 | KSW4: qen | KSX4: 1 | KSY4: 2 | KSZ4: 2012-12-02 | KTA4: qen | KTB4: 1 | KTC4: 2 | KTD4: 2012-12-02 | KTE4: qen | KTF4: 1 | KTG4: 2 | KTH4: 2012-12-02 | KTI4: qen | KTJ4: 1 | KTK4: 2 | KTL4: 2012-12-02 | KTM4: qen | KTN4: 1 | KTO4: 2 | KTP4: 2012-12-02 | KTQ4: qen | KTR4: 1 | KTS4: 2 | KTT4: 2012-12-02 | KTU4: qen | KTV4: 1 | KTW4: 2 | KTX4: 2012-12-02 | KTY4: qen | KTZ4: 1 | KUA4: 2 | KUB4: 2012-12-02 | KUC4: qen | KUD4: 1 | KUE4: 2 | KUF4: 2012-12-02 | KUG4: qen | KUH4: 1 | KUI4: 2 | KUJ4: 2012-12-02 | KUK4: qen | KUL4: 1 | KUM4: 2 | KUN4: 2012-12-02 | KUO4: qen | KUP4: 1 | KUQ4: 2 | KUR4: 2012-12-02 | KUS4: qen | KUT4: 1 | KUU4: 2 | KUV4: 2012-12-02 | KUW4: qen | KUX4: 1 | KUY4: 2 | KUZ4: 2012-12-02 | KVA4: qen | KVB4: 1 | KVC4: 2 | KVD4: 2012-12-02 | KVE4: qen | KVF4: 1 | KVG4: 2 | KVH4: 2012-12-02 | KVI4: qen | KVJ4: 1 | KVK4: 2 | KVL4: 2012-12-02 | KVM4: qen | KVN4: 1 | KVO4: 2 | KVP4: 2012-12-02 | KVQ4: qen | KVR4: 1 | KVS4: 2 | KVT4: 2012-12-02 | KVU4: qen | KVV4: 1 | KVW4: 2 | KVX4: 2012-12-02 | KVY4: qen | KVZ4: 1 | KWA4: 2 | KWB4: 2012-12-02 | KWC4: qen | KWD4: 1 | KWE4: 2 | KWF4: 2012-12-02 | KWG4: qen | KWH4: 1 | KWI4: 2 | KWJ4: 2012-12-02 | KWK4: qen | KWL4: 1 | KWM4: 2 | KWN4: 2012-12-02 | KWO4: qen | KWP4: 1 | KWQ4: 2 | KWR4: 2012-12-02 | KWS4: qen | KWT4: 1 | KWU4: 2 | KWV4: 2012-12-02 | KWW4: qen | KWX4: 1 | KWY4: 2 | KWZ4: 2012-12-02 | KXA4: qen | KXB4: 1 | KXC4: 2 | KXD4: 2012-12-02 | KXE4: qen | KXF4: 1 | KXG4: 2 | KXH4: 2012-12-02 | KXI4: qen | KXJ4: 1 | KXK4: 2 | KXL4: 2012-12-02 | KXM4: qen | KXN4: 1 | KXO4: 2 | KXP4: 2012-12-02 | KXQ4: qen | KXR4: 1 | KXS4: 2 | KXT4: 2012-12-02 | KXU4: qen | KXV4: 1 | KXW4: 2 | KXX4: 2012-12-02 | KXY4: qen | KXZ4: 1 | KYA4: 2 | KYB4: 2012-12-02 | KYC4: qen | KYD4: 1 | KYE4: 2 | KYF4: 2012-12-02 | KYG4: qen | KYH4: 1 | KYI4: 2 | KYJ4: 2012-12-02 | KYK4: qen | KYL4: 1 | KYM4: 2 | KYN4: 2012-12-02 | KYO4: qen | KYP4: 1 | KYQ4: 2 | KYR4: 2012-12-02 | KYS4: qen | KYT4: 1 | KYU4: 2 | KYV4: 2012-12-02 | KYW4: qen | KYX4: 1 | KYY4: 2 | KYZ4: 2012-12-02 | KZA4: qen | KZB4: 1 | KZC4: 2 | KZD4: 2012-12-02 | KZE4: qen | KZF4: 1 | KZG4: 2 | KZH4: 2012-12-02 | KZI4: qen | KZJ4: 1 | KZK4: 2 | KZL4: 2012-12-02 | KZM4: qen | KZN4: 1 | KZO4: 2 | KZP4: 2012-12-02 | KZQ4: qen | KZR4: 1 | KZS4: 2 | KZT4: 2012-12-02 | KZU4: qen | KZV4: 1 | KZW4: 2 | KZX4: 2012-12-02 | KZY4: qen | KZZ4: 1 | LAA4: 2 | LAB4: 2012-12-02 | LAC4: qen | LAD4: 1 | LAE4: 2 | LAF4: 2012-12-02 | LAG4: qen | LAH4: 1 | LAI4: 2 | LAJ4: 2012-12-02 | LAK4: qen | LAL4: 1 | LAM4: 2 | LAN4: 2012-12-02 | LAO4: qen | LAP4: 1 | LAQ4: 2 | LAR4: 2012-12-02 | LAS4: qen | LAT4: 1 | LAU4: 2 | LAV4: 2012-12-02 | LAW4: qen | LAX4: 1 | LAY4: 2 | LAZ4: 2012-12-02 | LBA4: qen | LBB4: 1 | LBC4: 2 | LBD4: 2012-12-02 | LBE4: qen | LBF4: 1 | LBG4: 2 | LBH4: 2012-12-02 | LBI4: qen | LBJ4: 1 | LBK4: 2 | LBL4: 2012-12-02 | LBM4: qen | LBN4: 1 | LBO4: 2 | LBP4: 2012-12-02 | LBQ4: qen | LBR4: 1 | LBS4: 2 | LBT4: 2012-12-02 | LBU4: qen | LBV4: 1 | LBW4: 2 | LBX4: 2012-12-02 | LBY4: qen | LBZ4: 1 | LCA4: 2 | LCB4: 2012-12-02 | LCC4: qen | LCD4: 1 | LCE4: 2 | LCF4: 2012-12-02 | LCG4: qen | LCH4: 1 | LCI4: 2 | LCJ4: 2012-12-02 | LCK4: qen | LCL4: 1 | LCM4: 2 | LCN4: 2012-12-02 | LCO4: qen | LCP4: 1 | LCQ4: 2 | LCR4: 2012-12-02 | LCS4: qen | LCT4: 1 | LCU4: 2 | LCV4: 2012-12-02 | LCW4: qen | LCX4: 1 | LCY4: 2 | LCZ4: 2012-12-02 | LDA4: qen | LDB4: 1 | LDC4: 2 | LDD4: 2012-12-02 | LDE4: qen | LDF4: 1 | LDG4: 2 | LDH4: 2012-12-02 | LDI4: qen | LDJ4: 1 | LDK4: 2 | LDL4: 2012-12-02 | LDM4: qen | LDN4: 1 | LDO4: 2 | LDP4: 2012-12-02 | LDQ4: qen | LDR4: 1 | LDS4: 2 | LDT4: 2012-12-02 | LDU4: qen | LDV4: 1 | LDW4: 2 | LDX4: 2012-12-02 | LDY4: qen | LDZ4: 1 | LEA4: 2 | LEB4: 2012-12-02 | LEC4: qen | LED4: 1 | LEE4: 2 | LEF4: 2012-12-02 | LEG4: qen | LEH4: 1 | LEI4: 2 | LEJ4: 2012-12-02 | LEK4: qen | LEL4: 1 | LEM4: 2 | LEN4: 2012-12-02 | LEO4: qen | LEP4: 1 | LEQ4: 2 | LER4: 2012-12-02 | LES4: qen | LET4: 1 | LEU4: 2 | LEV4: 2012-12-02 | LEW4: qen | LEX4: 1 | LEY4: 2 | LEZ4: 2012-12-02 | LFA4: qen | LFB4: 1 | LFC4: 2 | LFD4: 2012-12-02 | LFE4: qen | LFF4: 1 | LFG4: 2 | LFH4: 2012-12-02 | LFI4: qen | LFJ4: 1 | LFK4: 2 | LFL4: 2012-12-02 | LFM4: qen | LFN4: 1 | LFO4: 2 | LFP4: 2012-12-02 | LFQ4: qen | LFR4: 1 | LFS4: 2 | LFT4: 2012-12-02 | LFU4: qen | LFV4: 1 | LFW4: 2 | LFX4: 2012-12-02 | LFY4: qen | LFZ4: 1 | LGA4: 2 | LGB4: 2012-12-02 | LGC4: qen | LGD4: 1 | LGE4: 2 | LGF4: 2012-12-02 | LGG4: qen | LGH4: 1 | LGI4: 2 | LGJ4: 2012-12-02 | LGK4: qen | LGL4: 1 | LGM4: 2 | LGN4: 2012-12-02 | LGO4: qen | LGP4: 1 | LGQ4: 2 | LGR4: 2012-12-02 | LGS4: qen | LGT4: 1 | LGU4: 2 | LGV4: 2012-12-02 | LGW4: qen | LGX4: 1 | LGY4: 2 | LGZ4: 2012-12-02 | LHA4: qen | LHB4: 1 | LHC4: 2 | LHD4: 2012-12-02 | LHE4: qen | LHF4: 1 | LHG4: 2 | LHH4: 2012-12-02 | LHI4: qen | LHJ4: 1 | LHK4: 2 | LHL4: 2012-12-02 | LHM4: qen | LHN4: 1 | LHO4: 2 | LHP4: 2012-12-02 | LHQ4: qen | LHR4: 1 | LHS4: 2 | LHT4: 2012-12-02 | LHU4: qen | LHV4: 1 | LHW4: 2 | LHX4: 2012-12-02 | LHY4: qen | LHZ4: 1 | LIA4: 2 | LIB4: 2012-12-02 | LIC4: qen | LID4: 1 | LIE4: 2 | LIF4: 2012-12-02 | LIG4: qen | LIH4: 1 | LII4: 2 | LIJ4: 2012-12-02 | LIK4: qen | LIL4: 1 | LIM4: 2 | LIN4: 2012-12-02 | LIO4: qen | LIP4: 1 | LIQ4: 2 | LIR4: 2012-12-02 | LIS4: qen | LIT4: 1 | LIU4: 2 | LIV4: 2012-12-02 | LIW4: qen | LIX4: 1 | LIY4: 2 | LIZ4: 2012-12-02 | LJA4: qen | LJB4: 1 | LJC4: 2 | LJD4: 2012-12-02 | LJE4: qen | LJF4: 1 | LJG4: 2 | LJH4: 2012-12-02 | LJI4: qen | LJJ4: 1 | LJK4: 2 | LJL4: 2012-12-02 | LJM4: qen | LJN4: 1 | LJO4: 2 | LJP4: 2012-12-02 | LJQ4: qen | LJR4: 1 | LJS4: 2 | LJT4: 2012-12-02 | LJU4: qen | LJV4: 1 | LJW4: 2 | LJX4: 2012-12-02 | LJY4: qen | LJZ4: 1 | LKA4: 2 | LKB4: 2012-12-02 | LKC4: qen | LKD4: 1 | LKE4: 2 | LKF4: 2012-12-02 | LKG4: qen | LKH4: 1 | LKI4: 2 | LKJ4: 2012-12-02 | LKK4: qen | LKL4: 1 | LKM4: 2 | LKN4: 2012-12-02 | LKO4: qen | LKP4: 1 | LKQ4: 2 | LKR4: 2012-12-02 | LKS4: qen | LKT4: 1 | LKU4: 2 | LKV4: 2012-12-02 | LKW4: qen | LKX4: 1 | LKY4: 2 | LKZ4: 2012-12-02 | LLA4: qen | LLB4: 1 | LLC4: 2 | LLD4: 2012-12-02 | LLE4: qen | LLF4: 1 | LLG4: 2 | LLH4: 2012-12-02 | LLI4: qen | LLJ4: 1 | LLK4: 2 | LLL4: 2012-12-02 | LLM4: qen | LLN4: 1 | LLO4: 2 | LLP4: 2012-12-02 | LLQ4: qen | LLR4: 1 | LLS4: 2 | LLT4: 2012-12-02 | LLU4: qen | LLV4: 1 | LLW4: 2 | LLX4: 2012-12-02 | LLY4: qen | LLZ4: 1 | LMA4: 2 | LMB4: 2012-12-02 | LMC4: qen | LMD4: 1 | LME4: 2 | LMF4: 2012-12-02 | LMG4: qen | LMH4: 1 | LMI4: 2 | LMJ4: 2012-12-02 | LMK4: qen | LML4: 1 | LMM4: 2 | LMN4: 2012-12-02 | LMO4: qen | LMP4: 1 | LMQ4: 2 | LMR4: 2012-12-02 | LMS4: qen | LMT4: 1 | LMU4: 2 | LMV4: 2012-12-02 | LMW4: qen | LMX4: 1 | LMY4: 2 | LMZ4: 2012-12-02 | LNA4: qen | LNB4: 1 | LNC4: 2 | LND4: 2012-12-02 | LNE4: qen | LNF4: 1 | LNG4: 2 | LNH4: 2012-12-02 | LNI4: qen | LNJ4: 1 | LNK4: 2 | LNL4: 2012-12-02 | LNM4: qen | LNN4: 1 | LNO4: 2 | LNP4: 2012-12-02 | LNQ4: qen | LNR4: 1 | LNS4: 2 | LNT4: 2012-12-02 | LNU4: qen | LNV4: 1 | LNW4: 2 | LNX4: 2012-12-02 | LNY4: qen | LNZ4: 1 | LOA4: 2 | LOB4: 2012-12-02 | LOC4: qen | LOD4: 1 | LOE4: 2 | LOF4: 2012-12-02 | LOG4: qen | LOH4: 1 | LOI4: 2 | LOJ4: 2012-12-02 | LOK4: qen | LOL4: 1 | LOM4: 2 | LON4: 2012-12-02 | LOO4: qen | LOP4: 1 | LOQ4: 2 | LOR4: 2012-12-02 | LOS4: qen | LOT4: 1 | LOU4: 2 | LOV4: 2012-12-02 | LOW4: qen | LOX4: 1 | LOY4: 2 | LOZ4: 2012-12-02 | LPA4: qen | LPB4: 1 | LPC4: 2 | LPD4: 2012-12-02 | LPE4: qen | LPF4: 1 | LPG4: 2 | LPH4: 2012-12-02 | LPI4: qen | LPJ4: 1 | LPK4: 2 | LPL4: 2012-12-02 | LPM4: qen | LPN4: 1 | LPO4: 2 | LPP4: 2012-12-02 | LPQ4: qen | LPR4: 1 | LPS4: 2 | LPT4: 2012-12-02 | LPU4: qen | LPV4: 1 | LPW4: 2 | LPX4: 2012-12-02 | LPY4: qen | LPZ4: 1 | LQA4: 2 | LQB4: 2012-12-02 | LQC4: qen | LQD4: 1 | LQE4: 2 | LQF4: 2012-12-02 | LQG4: qen | LQH4: 1 | LQI4: 2 | LQJ4: 2012-12-02 | LQK4: qen | LQL4: 1 | LQM4: 2 | LQN4: 2012-12-02 | LQO4: qen | LQP4: 1 | LQQ4: 2 | LQR4: 2012-12-02 | LQS4: qen | LQT4: 1 | LQU4: 2 | LQV4: 2012-12-02 | LQW4: qen | LQX4: 1 | LQY4: 2 | LQZ4: 2012-12-02 | LRA4: qen | LRB4: 1 | LRC4: 2 | LRD4: 2012-12-02 | LRE4: qen | LRF4: 1 | LRG4: 2 | LRH4: 2012-12-02 | LRI4: qen | LRJ4: 1 | LRK4: 2 | LRL4: 2012-12-02 | LRM4: qen | LRN4: 1 | LRO4: 2 | LRP4: 2012-12-02 | LRQ4: qen | LRR4: 1 | LRS4: 2 | LRT4: 2012-12-02 | LRU4: qen | LRV4: 1 | LRW4: 2 | LRX4: 2012-12-02 | LRY4: qen | LRZ4: 1 | LSA4: 2 | LSB4: 2012-12-02 | LSC4: qen | LSD4: 1 | LSE4: 2 | LSF4: 2012-12-02 | LSG4: qen | LSH4: 1 | LSI4: 2 | LSJ4: 2012-12-02 | LSK4: qen | LSL4: 1 | LSM4: 2 | LSN4: 2012-12-02 | LSO4: qen | LSP4: 1 | LSQ4: 2 | LSR4: 2012-12-02 | LSS4: qen | LST4: 1 | LSU4: 2 | LSV4: 2012-12-02 | LSW4: qen | LSX4: 1 | LSY4: 2 | LSZ4: 2012-12-02 | LTA4: qen | LTB4: 1 | LTC4: 2 | LTD4: 2012-12-02 | LTE4: qen | LTF4: 1 | LTG4: 2 | LTH4: 2012-12-02 | LTI4: qen | LTJ4: 1 | LTK4: 2 | LTL4: 2012-12-02 | LTM4: qen | LTN4: 1 | LTO4: 2 | LTP4: 2012-12-02 | LTQ4: qen | LTR4: 1 | LTS4: 2 | LTT4: 2012-12-02 | LTU4: qen | LTV4: 1 | LTW4: 2 | LTX4: 2012-12-02 | LTY4: qen | LTZ4: 1 | LUA4: 2 | LUB4: 2012-12-02 | LUC4: qen | LUD4: 1 | LUE4: 2 | LUF4: 2012-12-02 | LUG4: qen | LUH4: 1 | LUI4: 2 | LUJ4: 2012-12-02 | LUK4: qen | LUL4: 1 | LUM4: 2 | LUN4: 2012-12-02 | LUO4: qen | LUP4: 1 | LUQ4: 2 | LUR4: 2012-12-02 | LUS4: qen | LUT4: 1 | LUU4: 2 | LUV4: 2012-12-02 | LUW4: qen | LUX4: 1 | LUY4: 2 | LUZ4: 2012-12-02 | LVA4: qen | LVB4: 1 | LVC4: 2 | LVD4: 2012-12-02 | LVE4: qen | LVF4: 1 | LVG4: 2 | LVH4: 2012-12-02 | LVI4: qen | LVJ4: 1 | LVK4: 2 | LVL4: 2012-12-02 | LVM4: qen | LVN4: 1 | LVO4: 2 | LVP4: 2012-12-02 | LVQ4: qen | LVR4: 1 | LVS4: 2 | LVT4: 2012-12-02 | LVU4: qen | LVV4: 1 | LVW4: 2 | LVX4: 2012-12-02 | LVY4: qen | LVZ4: 1 | LWA4: 2 | LWB4: 2012-12-02 | LWC4: qen | LWD4: 1 | LWE4: 2 | LWF4: 2012-12-02 | LWG4: qen | LWH4: 1 | LWI4: 2 | LWJ4: 2012-12-02 | LWK4: qen | LWL4: 1 | LWM4: 2 | LWN4: 2012-12-02 | LWO4: qen | LWP4: 1 | LWQ4: 2 | LWR4: 2012-12-02 | LWS4: qen | LWT4: 1 | LWU4: 2 | LWV4: 2012-12-02 | LWW4: qen | LWX4: 1 | LWY4: 2 | LWZ4: 2012-12-02 | LXA4: qen | LXB4: 1 | LXC4: 2 | LXD4: 2012-12-02 | LXE4: qen | LXF4: 1 | LXG4: 2 | LXH4: 2012-12-02 | LXI4: qen | LXJ4: 1 | LXK4: 2 | LXL4: 2012-12-02 | LXM4: qen | LXN4: 1 | LXO4: 2 | LXP4: 2012-12-02 | LXQ4: qen | LXR4: 1 | LXS4: 2 | LXT4: 2012-12-02 | LXU4: qen | LXV4: 1 | LXW4: 2 | LXX4: 2012-12-02 | LXY4: qen | LXZ4: 1 | LYA4: 2 | LYB4: 2012-12-02 | LYC4: qen | LYD4: 1 | LYE4: 2 | LYF4: 2012-12-02 | LYG4: qen | LYH4: 1 | LYI4: 2 | LYJ4: 2012-12-02 | LYK4: qen | LYL4: 1 | LYM4: 2 | LYN4: 2012-12-02 | LYO4: qen | LYP4: 1 | LYQ4: 2 | LYR4: 2012-12-02 | LYS4: qen | LYT4: 1 | LYU4: 2 | LYV4: 2012-12-02 | LYW4: qen | LYX4: 1 | LYY4: 2 | LYZ4: 2012-12-02 | LZA4: qen | LZB4: 1 | LZC4: 2 | LZD4: 2012-12-02 | LZE4: qen | LZF4: 1 | LZG4: 2 | LZH4: 2012-12-02 | LZI4: qen | LZJ4: 1 | LZK4: 2 | LZL4: 2012-12-02 | LZM4: qen | LZN4: 1 | LZO4: 2 | LZP4: 2012-12-02 | LZQ4: qen | LZR4: 1 | LZS4: 2 | LZT4: 2012-12-02 | LZU4: qen | LZV4: 1 | LZW4: 2 | LZX4: 2012-12-02 | LZY4: qen | LZZ4: 1 | MAA4: 2 | MAB4: 2012-12-02 | MAC4: qen | MAD4: 1 | MAE4: 2 | MAF4: 2012-12-02 | MAG4: qen | MAH4: 1 | MAI4: 2 | MAJ4: 2012-12-02 | MAK4: qen | MAL4: 1 | MAM4: 2 | MAN4: 2012-12-02 | MAO4: qen | MAP4: 1 | MAQ4: 2 | MAR4: 2012-12-02 | MAS4: qen | MAT4: 1 | MAU4: 2 | MAV4: 2012-12-02 | MAW4: qen | MAX4: 1 | MAY4: 2 | MAZ4: 2012-12-02 | MBA4: qen | MBB4: 1 | MBC4: 2 | MBD4: 2012-12-02 | MBE4: qen | MBF4: 1 | MBG4: 2 | MBH4: 2012-12-02 | MBI4: qen | MBJ4: 1 | MBK4: 2 | MBL4: 2012-12-02 | MBM4: qen | MBN4: 1 | MBO4: 2 | MBP4: 2012-12-02 | MBQ4: qen | MBR4: 1 | MBS4: 2 | MBT4: 2012-12-02 | MBU4: qen | MBV4: 1 | MBW4: 2 | MBX4: 2012-12-02 | MBY4: qen | MBZ4: 1 | MCA4: 2 | MCB4: 2012-12-02 | MCC4: qen | MCD4: 1 | MCE4: 2 | MCF4: 2012-12-02 | MCG4: qen | MCH4: 1 | MCI4: 2 | MCJ4: 2012-12-02 | MCK4: qen | MCL4: 1 | MCM4: 2 | MCN4: 2012-12-02 | MCO4: qen | MCP4: 1 | MCQ4: 2 | MCR4: 2012-12-02 | MCS4: qen | MCT4: 1 | MCU4: 2 | MCV4: 2012-12-02 | MCW4: qen | MCX4: 1 | MCY4: 2 | MCZ4: 2012-12-02 | MDA4: qen | MDB4: 1 | MDC4: 2 | MDD4: 2012-12-02 | MDE4: qen | MDF4: 1 | MDG4: 2 | MDH4: 2012-12-02 | MDI4: qen | MDJ4: 1 | MDK4: 2 | MDL4: 2012-12-02 | MDM4: qen | MDN4: 1 | MDO4: 2 | MDP4: 2012-12-02 | MDQ4: qen | MDR4: 1 | MDS4: 2 | MDT4: 2012-12-02 | MDU4: qen | MDV4: 1 | MDW4: 2 | MDX4: 2012-12-02 | MDY4: qen | MDZ4: 1 | MEA4: 2 | MEB4: 2012-12-02 | MEC4: qen | MED4: 1 | MEE4: 2 | MEF4: 2012-12-02 | MEG4: qen | MEH4: 1 | MEI4: 2 | MEJ4: 2012-12-02 | MEK4: qen | MEL4: 1 | MEM4: 2 | MEN4: 2012-12-02 | MEO4: qen | MEP4: 1 | MEQ4: 2 | MER4: 2012-12-02 | MES4: qen | MET4: 1 | MEU4: 2 | MEV4: 2012-12-02 | MEW4: qen | MEX4: 1 | MEY4: 2 | MEZ4: 2012-12-02 | MFA4: qen | MFB4: 1 | MFC4: 2 | MFD4: 2012-12-02 | MFE4: qen | MFF4: 1 | MFG4: 2 | MFH4: 2012-12-02 | MFI4: qen | MFJ4: 1 | MFK4: 2 | MFL4: 2012-12-02 | MFM4: qen | MFN4: 1 | MFO4: 2 | MFP4: 2012-12-02 | MFQ4: qen | MFR4: 1 | MFS4: 2 | MFT4: 2012-12-02 | MFU4: qen | MFV4: 1 | MFW4: 2 | MFX4: 2012-12-02 | MFY4: qen | MFZ4: 1 | MGA4: 2 | MGB4: 2012-12-02 | MGC4: qen | MGD4: 1 | MGE4: 2 | MGF4: 2012-12-02 | MGG4: qen | MGH4: 1 | MGI4: 2 | MGJ4: 2012-12-02 | MGK4: qen | MGL4: 1 | MGM4: 2 | MGN4: 2012-12-02 | MGO4: qen | MGP4: 1 | MGQ4: 2 | MGR4: 2012-12-02 | MGS4: qen | MGT4: 1 | MGU4: 2 | MGV4: 2012-12-02 | MGW4: qen | MGX4: 1 | MGY4: 2 | MGZ4: 2012-12-02 | MHA4: qen | MHB4: 1 | MHC4: 2 | MHD4: 2012-12-02 | MHE4: qen | MHF4: 1 | MHG4: 2 | MHH4: 2012-12-02 | MHI4: qen | MHJ4: 1 | MHK4: 2 | MHL4: 2012-12-02 | MHM4: qen | MHN4: 1 | MHO4: 2 | MHP4: 2012-12-02 | MHQ4: qen | MHR4: 1 | MHS4: 2 | MHT4: 2012-12-02 | MHU4: qen | MHV4: 1 | MHW4: 2 | MHX4: 2012-12-02 | MHY4: qen | MHZ4: 1 | MIA4: 2 | MIB4: 2012-12-02 | MIC4: qen | MID4: 1 | MIE4: 2 | MIF4: 2012-12-02 | MIG4: qen | MIH4: 1 | MII4: 2 | MIJ4: 2012-12-02 | MIK4: qen | MIL4: 1 | MIM4: 2 | MIN4: 2012-12-02 | MIO4: qen | MIP4: 1 | MIQ4: 2 | MIR4: 2012-12-02 | MIS4: qen | MIT4: 1 | MIU4: 2 | MIV4: 2012-12-02 | MIW4: qen | MIX4: 1 | MIY4: 2 | MIZ4: 2012-12-02 | MJA4: qen | MJB4: 1 | MJC4: 2 | MJD4: 2012-12-02 | MJE4: qen | MJF4: 1 | MJG4: 2 | MJH4: 2012-12-02 | MJI4: qen | MJJ4: 1 | MJK4: 2 | MJL4: 2012-12-02 | MJM4: qen | MJN4: 1 | MJO4: 2 | MJP4: 2012-12-02 | MJQ4: qen | MJR4: 1 | MJS4: 2 | MJT4: 2012-12-02 | MJU4: qen | MJV4: 1 | MJW4: 2 | MJX4: 2012-12-02 | MJY4: qen | MJZ4: 1 | MKA4: 2 | MKB4: 2012-12-02 | MKC4: qen | MKD4: 1 | MKE4: 2 | MKF4: 2012-12-02 | MKG4: qen | MKH4: 1 | MKI4: 2 | MKJ4: 2012-12-02 | MKK4: qen | MKL4: 1 | MKM4: 2 | MKN4: 2012-12-02 | MKO4: qen | MKP4: 1 | MKQ4: 2 | MKR4: 2012-12-02 | MKS4: qen | MKT4: 1 | MKU4: 2 | MKV4: 2012-12-02 | MKW4: qen | MKX4: 1 | MKY4: 2 | MKZ4: 2012-12-02 | MLA4: qen | MLB4: 1 | MLC4: 2 | MLD4: 2012-12-02 | MLE4: qen | MLF4: 1 | MLG4: 2 | MLH4: 2012-12-02 | MLI4: qen | MLJ4: 1 | MLK4: 2 | MLL4: 2012-12-02 | MLM4: qen | MLN4: 1 | MLO4: 2 | MLP4: 2012-12-02 | MLQ4: qen | MLR4: 1 | MLS4: 2 | MLT4: 2012-12-02 | MLU4: qen | MLV4: 1 | MLW4: 2 | MLX4: 2012-12-02 | MLY4: qen | MLZ4: 1 | MMA4: 2 | MMB4: 2012-12-02 | MMC4: qen | MMD4: 1 | MME4: 2 | MMF4: 2012-12-02 | MMG4: qen | MMH4: 1 | MMI4: 2 | MMJ4: 2012-12-02 | MMK4: qen | MML4: 1 | MMM4: 2 | MMN4: 2012-12-02 | MMO4: qen | MMP4: 1 | MMQ4: 2 | MMR4: 2012-12-02 | MMS4: qen | MMT4: 1 | MMU4: 2 | MMV4: 2012-12-02 | MMW4: qen | MMX4: 1 | MMY4: 2 | MMZ4: 2012-12-02 | MNA4: qen | MNB4: 1 | MNC4: 2 | MND4: 2012-12-02 | MNE4: qen | MNF4: 1 | MNG4: 2 | MNH4: 2012-12-02 | MNI4: qen | MNJ4: 1 | MNK4: 2 | MNL4: 2012-12-02 | MNM4: qen | MNN4: 1 | MNO4: 2 | MNP4: 2012-12-02 | MNQ4: qen | MNR4: 1 | MNS4: 2 | MNT4: 2012-12-02 | MNU4: qen | MNV4: 1 | MNW4: 2 | MNX4: 2012-12-02 | MNY4: qen | MNZ4: 1 | MOA4: 2 | MOB4: 2012-12-02 | MOC4: qen | MOD4: 1 | MOE4: 2 | MOF4: 2012-12-02 | MOG4: qen | MOH4: 1 | MOI4: 2 | MOJ4: 2012-12-02 | MOK4: qen | MOL4: 1 | MOM4: 2 | MON4: 2012-12-02 | MOO4: qen | MOP4: 1 | MOQ4: 2 | MOR4: 2012-12-02 | MOS4: qen | MOT4: 1 | MOU4: 2 | MOV4: 2012-12-02 | MOW4: qen | MOX4: 1 | MOY4: 2 | MOZ4: 2012-12-02 | MPA4: qen | MPB4: 1 | MPC4: 2 | MPD4: 2012-12-02 | MPE4: qen | MPF4: 1 | MPG4: 2 | MPH4: 2012-12-02 | MPI4: qen | MPJ4: 1 | MPK4: 2 | MPL4: 2012-12-02 | MPM4: qen | MPN4: 1 | MPO4: 2 | MPP4: 2012-12-02 | MPQ4: qen | MPR4: 1 | MPS4: 2 | MPT4: 2012-12-02 | MPU4: qen | MPV4: 1 | MPW4: 2 | MPX4: 2012-12-02 | MPY4: qen | MPZ4: 1 | MQA4: 2 | MQB4: 2012-12-02 | MQC4: qen | MQD4: 1 | MQE4: 2 | MQF4: 2012-12-02 | MQG4: qen | MQH4: 1 | MQI4: 2 | MQJ4: 2012-12-02 | MQK4: qen | MQL4: 1 | MQM4: 2 | MQN4: 2012-12-02 | MQO4: qen | MQP4: 1 | MQQ4: 2 | MQR4: 2012-12-02 | MQS4: qen | MQT4: 1 | MQU4: 2 | MQV4: 2012-12-02 | MQW4: qen | MQX4: 1 | MQY4: 2 | MQZ4: 2012-12-02 | MRA4: qen | MRB4: 1 | MRC4: 2 | MRD4: 2012-12-02 | MRE4: qen | MRF4: 1 | MRG4: 2 | MRH4: 2012-12-02 | MRI4: qen | MRJ4: 1 | MRK4: 2 | MRL4: 2012-12-02 | MRM4: qen | MRN4: 1 | MRO4: 2 | MRP4: 2012-12-02 | MRQ4: qen | MRR4: 1 | MRS4: 2 | MRT4: 2012-12-02 | MRU4: qen | MRV4: 1 | MRW4: 2 | MRX4: 2012-12-02 | MRY4: qen | MRZ4: 1 | MSA4: 2 | MSB4: 2012-12-02 | MSC4: qen | MSD4: 1 | MSE4: 2 | MSF4: 2012-12-02 | MSG4: qen | MSH4: 1 | MSI4: 2 | MSJ4: 2012-12-02 | MSK4: qen | MSL4: 1 | MSM4: 2 | MSN4: 2012-12-02 | MSO4: qen | MSP4: 1 | MSQ4: 2 | MSR4: 2012-12-02 | MSS4: qen | MST4: 1 | MSU4: 2 | MSV4: 2012-12-02 | MSW4: qen | MSX4: 1 | MSY4: 2 | MSZ4: 2012-12-02 | MTA4: qen | MTB4: 1 | MTC4: 2 | MTD4: 2012-12-02 | MTE4: qen | MTF4: 1 | MTG4: 2 | MTH4: 2012-12-02 | MTI4: qen | MTJ4: 1 | MTK4: 2 | MTL4: 2012-12-02 | MTM4: qen | MTN4: 1 | MTO4: 2 | MTP4: 2012-12-02 | MTQ4: qen | MTR4: 1 | MTS4: 2 | MTT4: 2012-12-02 | MTU4: qen | MTV4: 1 | MTW4: 2 | MTX4: 2012-12-02 | MTY4: qen | MTZ4: 1 | MUA4: 2 | MUB4: 2012-12-02 | MUC4: qen | MUD4: 1 | MUE4: 2 | MUF4: 2012-12-02 | MUG4: qen | MUH4: 1 | MUI4: 2 | MUJ4: 2012-12-02 | MUK4: qen | MUL4: 1 | MUM4: 2 | MUN4: 2012-12-02 | MUO4: qen | MUP4: 1 | MUQ4: 2 | MUR4: 2012-12-02 | MUS4: qen | MUT4: 1 | MUU4: 2 | MUV4: 2012-12-02 | MUW4: qen | MUX4: 1 | MUY4: 2 | MUZ4: 2012-12-02 | MVA4: qen | MVB4: 1 | MVC4: 2 | MVD4: 2012-12-02 | MVE4: qen | MVF4: 1 | MVG4: 2 | MVH4: 2012-12-02 | MVI4: qen | MVJ4: 1 | MVK4: 2 | MVL4: 2012-12-02 | MVM4: qen | MVN4: 1 | MVO4: 2 | MVP4: 2012-12-02 | MVQ4: qen | MVR4: 1 | MVS4: 2 | MVT4: 2012-12-02 | MVU4: qen | MVV4: 1 | MVW4: 2 | MVX4: 2012-12-02 | MVY4: qen | MVZ4: 1 | MWA4: 2 | MWB4: 2012-12-02 | MWC4: qen | MWD4: 1 | MWE4: 2 | MWF4: 2012-12-02 | MWG4: qen | MWH4: 1 | MWI4: 2 | MWJ4: 2012-12-02 | MWK4: qen | MWL4: 1 | MWM4: 2 | MWN4: 2012-12-02 | MWO4: qen | MWP4: 1 | MWQ4: 2 | MWR4: 2012-12-02 | MWS4: qen | MWT4: 1 | MWU4: 2 | MWV4: 2012-12-02 | MWW4: qen | MWX4: 1 | MWY4: 2 | MWZ4: 2012-12-02 | MXA4: qen | MXB4: 1 | MXC4: 2 | MXD4: 2012-12-02 | MXE4: qen | MXF4: 1 | MXG4: 2 | MXH4: 2012-12-02 | MXI4: qen | MXJ4: 1 | MXK4: 2 | MXL4: 2012-12-02 | MXM4: qen | MXN4: 1 | MXO4: 2 | MXP4: 2012-12-02 | MXQ4: qen | MXR4: 1 | MXS4: 2 | MXT4: 2012-12-02 | MXU4: qen | MXV4: 1 | MXW4: 2 | MXX4: 2012-12-02 | MXY4: qen | MXZ4: 1 | MYA4: 2 | MYB4: 2012-12-02 | MYC4: qen | MYD4: 1 | MYE4: 2 | MYF4: 2012-12-02 | MYG4: qen | MYH4: 1 | MYI4: 2 | MYJ4: 2012-12-02 | MYK4: qen | MYL4: 1 | MYM4: 2 | MYN4: 2012-12-02 | MYO4: qen | MYP4: 1 | MYQ4: 2 | MYR4: 2012-12-02 | MYS4: qen | MYT4: 1 | MYU4: 2 | MYV4: 2012-12-02 | MYW4: qen | MYX4: 1 | MYY4: 2 | MYZ4: 2012-12-02 | MZA4: qen | MZB4: 1 | MZC4: 2 | MZD4: 2012-12-02 | MZE4: qen | MZF4: 1 | MZG4: 2 | MZH4: 2012-12-02 | MZI4: qen | MZJ4: 1 | MZK4: 2 | MZL4: 2012-12-02 | MZM4: qen | MZN4: 1 | MZO4: 2 | MZP4: 2012-12-02 | MZQ4: qen | MZR4: 1 | MZS4: 2 | MZT4: 2012-12-02 | MZU4: qen | MZV4: 1 | MZW4: 2 | MZX4: 2012-12-02 | MZY4: qen | MZZ4: 1 | NAA4: 2 | NAB4: 2012-12-02 | NAC4: qen | NAD4: 1 | NAE4: 2 | NAF4: 2012-12-02 | NAG4: qen | NAH4: 1 | NAI4: 2 | NAJ4: 2012-12-02 | NAK4: qen | NAL4: 1 | NAM4: 2 | NAN4: 2012-12-02 | NAO4: qen | NAP4: 1 | NAQ4: 2 | NAR4: 2012-12-02 | NAS4: qen | NAT4: 1 | NAU4: 2 | NAV4: 2012-12-02 | NAW4: qen | NAX4: 1 | NAY4: 2 | NAZ4: 2012-12-02 | NBA4: qen | NBB4: 1 | NBC4: 2 | NBD4: 2012-12-02 | NBE4: qen | NBF4: 1 | NBG4: 2 | NBH4: 2012-12-02 | NBI4: qen | NBJ4: 1 | NBK4: 2 | NBL4: 2012-12-02 | NBM4: qen | NBN4: 1 | NBO4: 2 | NBP4: 2012-12-02 | NBQ4: qen | NBR4: 1 | NBS4: 2 | NBT4: 2012-12-02 | NBU4: qen | NBV4: 1 | NBW4: 2 | NBX4: 2012-12-02 | NBY4: qen | NBZ4: 1 | NCA4: 2 | NCB4: 2012-12-02 | NCC4: qen | NCD4: 1 | NCE4: 2 | NCF4: 2012-12-02 | NCG4: qen | NCH4: 1 | NCI4: 2 | NCJ4: 2012-12-02 | NCK4: qen | NCL4: 1 | NCM4: 2 | NCN4: 2012-12-02 | NCO4: qen | NCP4: 1 | NCQ4: 2 | NCR4: 2012-12-02 | NCS4: qen | NCT4: 1 | NCU4: 2 | NCV4: 2012-12-02 | NCW4: qen | NCX4: 1 | NCY4: 2 | NCZ4: 2012-12-02 | NDA4: qen | NDB4: 1 | NDC4: 2 | NDD4: 2012-12-02 | NDE4: qen | NDF4: 1 | NDG4: 2 | NDH4: 2012-12-02 | NDI4: qen | NDJ4: 1 | NDK4: 2 | NDL4: 2012-12-02 | NDM4: qen | NDN4: 1 | NDO4: 2 | NDP4: 2012-12-02 | NDQ4: qen | NDR4: 1 | NDS4: 2 | NDT4: 2012-12-02 | NDU4: qen | NDV4: 1 | NDW4: 2 | NDX4: 2012-12-02 | NDY4: qen | NDZ4: 1 | NEA4: 2 | NEB4: 2012-12-02 | NEC4: qen | NED4: 1 | NEE4: 2 | NEF4: 2012-12-02 | NEG4: qen | NEH4: 1 | NEI4: 2 | NEJ4: 2012-12-02 | NEK4: qen | NEL4: 1 | NEM4: 2 | NEN4: 2012-12-02 | NEO4: qen | NEP4: 1 | NEQ4: 2 | NER4: 2012-12-02 | NES4: qen | NET4: 1 | NEU4: 2 | NEV4: 2012-12-02 | NEW4: qen | NEX4: 1 | NEY4: 2 | NEZ4: 2012-12-02 | NFA4: qen | NFB4: 1 | NFC4: 2 | NFD4: 2012-12-02 | NFE4: qen | NFF4: 1 | NFG4: 2 | NFH4: 2012-12-02 | NFI4: qen | NFJ4: 1 | NFK4: 2 | NFL4: 2012-12-02 | NFM4: qen | NFN4: 1 | NFO4: 2 | NFP4: 2012-12-02 | NFQ4: qen | NFR4: 1 | NFS4: 2 | NFT4: 2012-12-02 | NFU4: qen | NFV4: 1 | NFW4: 2 | NFX4: 2012-12-02 | NFY4: qen | NFZ4: 1 | NGA4: 2 | NGB4: 2012-12-02 | NGC4: qen | NGD4: 1 | NGE4: 2 | NGF4: 2012-12-02 | NGG4: qen | NGH4: 1 | NGI4: 2 | NGJ4: 2012-12-02 | NGK4: qen | NGL4: 1 | NGM4: 2 | NGN4: 2012-12-02 | NGO4: qen | NGP4: 1 | NGQ4: 2 | NGR4: 2012-12-02 | NGS4: qen | NGT4: 1 | NGU4: 2 | NGV4: 2012-12-02 | NGW4: qen | NGX4: 1 | NGY4: 2 | NGZ4: 2012-12-02 | NHA4: qen | NHB4: 1 | NHC4: 2 | NHD4: 2012-12-02 | NHE4: qen | NHF4: 1 | NHG4: 2 | NHH4: 2012-12-02 | NHI4: qen | NHJ4: 1 | NHK4: 2 | NHL4: 2012-12-02 | NHM4: qen | NHN4: 1 | NHO4: 2 | NHP4: 2012-12-02 | NHQ4: qen | NHR4: 1 | NHS4: 2 | NHT4: 2012-12-02 | NHU4: qen | NHV4: 1 | NHW4: 2 | NHX4: 2012-12-02 | NHY4: qen | NHZ4: 1 | NIA4: 2 | NIB4: 2012-12-02 | NIC4: qen | NID4: 1 | NIE4: 2 | NIF4: 2012-12-02 | NIG4: qen | NIH4: 1 | NII4: 2 | NIJ4: 2012-12-02 | NIK4: qen | NIL4: 1 | NIM4: 2 | NIN4: 2012-12-02 | NIO4: qen | NIP4: 1 | NIQ4: 2 | NIR4: 2012-12-02 | NIS4: qen | NIT4: 1 | NIU4: 2 | NIV4: 2012-12-02 | NIW4: qen | NIX4: 1 | NIY4: 2 | NIZ4: 2012-12-02 | NJA4: qen | NJB4: 1 | NJC4: 2 | NJD4: 2012-12-02 | NJE4: qen | NJF4: 1 | NJG4: 2 | NJH4: 2012-12-02 | NJI4: qen | NJJ4: 1 | NJK4: 2 | NJL4: 2012-12-02 | NJM4: qen | NJN4: 1 | NJO4: 2 | NJP4: 2012-12-02 | NJQ4: qen | NJR4: 1 | NJS4: 2 | NJT4: 2012-12-02 | NJU4: qen | NJV4: 1 | NJW4: 2 | NJX4: 2012-12-02 | NJY4: qen | NJZ4: 1 | NKA4: 2 | NKB4: 2012-12-02 | NKC4: qen | NKD4: 1 | NKE4: 2 | NKF4: 2012-12-02 | NKG4: qen | NKH4: 1 | NKI4: 2 | NKJ4: 2012-12-02 | NKK4: qen | NKL4: 1 | NKM4: 2 | NKN4: 2012-12-02 | NKO4: qen | NKP4: 1 | NKQ4: 2 | NKR4: 2012-12-02 | NKS4: qen | NKT4: 1 | NKU4: 2 | NKV4: 2012-12-02 | NKW4: qen | NKX4: 1 | NKY4: 2 | NKZ4: 2012-12-02 | NLA4: qen | NLB4: 1 | NLC4: 2 | NLD4: 2012-12-02 | NLE4: qen | NLF4: 1 | NLG4: 2 | NLH4: 2012-12-02 | NLI4: qen | NLJ4: 1 | NLK4: 2 | NLL4: 2012-12-02 | NLM4: qen | NLN4: 1 | NLO4: 2 | NLP4: 2012-12-02 | NLQ4: qen | NLR4: 1 | NLS4: 2 | NLT4: 2012-12-02 | NLU4: qen | NLV4: 1 | NLW4: 2 | NLX4: 2012-12-02 | NLY4: qen | NLZ4: 1 | NMA4: 2 | NMB4: 2012-12-02 | NMC4: qen | NMD4: 1 | NME4: 2 | NMF4: 2012-12-02 | NMG4: qen | NMH4: 1 | NMI4: 2 | NMJ4: 2012-12-02 | NMK4: qen | NML4: 1 | NMM4: 2 | NMN4: 2012-12-02 | NMO4: qen | NMP4: 1 | NMQ4: 2 | NMR4: 2012-12-02 | NMS4: qen | NMT4: 1 | NMU4: 2 | NMV4: 2012-12-02 | NMW4: qen | NMX4: 1 | NMY4: 2 | NMZ4: 2012-12-02 | NNA4: qen | NNB4: 1 | NNC4: 2 | NND4: 2012-12-02 | NNE4: qen | NNF4: 1 | NNG4: 2 | NNH4: 2012-12-02 | NNI4: qen | NNJ4: 1 | NNK4: 2 | NNL4: 2012-12-02 | NNM4: qen | NNN4: 1 | NNO4: 2 | NNP4: 2012-12-02 | NNQ4: qen | NNR4: 1 | NNS4: 2 | NNT4: 2012-12-02 | NNU4: qen | NNV4: 1 | NNW4: 2 | NNX4: 2012-12-02 | NNY4: qen | NNZ4: 1 | NOA4: 2 | NOB4: 2012-12-02 | NOC4: qen | NOD4: 1 | NOE4: 2 | NOF4: 2012-12-02 | NOG4: qen | NOH4: 1 | NOI4: 2 | NOJ4: 2012-12-02 | NOK4: qen | NOL4: 1 | NOM4: 2 | NON4: 2012-12-02 | NOO4: qen | NOP4: 1 | NOQ4: 2 | NOR4: 2012-12-02 | NOS4: qen | NOT4: 1 | NOU4: 2 | NOV4: 2012-12-02 | NOW4: qen | NOX4: 1 | NOY4: 2 | NOZ4: 2012-12-02 | NPA4: qen | NPB4: 1 | NPC4: 2 | NPD4: 2012-12-02 | NPE4: qen | NPF4: 1 | NPG4: 2 | NPH4: 2012-12-02 | NPI4: qen | NPJ4: 1 | NPK4: 2 | NPL4: 2012-12-02 | NPM4: qen | NPN4: 1 | NPO4: 2 | NPP4: 2012-12-02 | NPQ4: qen | NPR4: 1 | NPS4: 2 | NPT4: 2012-12-02 | NPU4: qen | NPV4: 1 | NPW4: 2 | NPX4: 2012-12-02 | NPY4: qen | NPZ4: 1 | NQA4: 2 | NQB4: 2012-12-02 | NQC4: qen | NQD4: 1 | NQE4: 2 | NQF4: 2012-12-02 | NQG4: qen | NQH4: 1 | NQI4: 2 | NQJ4: 2012-12-02 | NQK4: qen | NQL4: 1 | NQM4: 2 | NQN4: 2012-12-02 | NQO4: qen | NQP4: 1 | NQQ4: 2 | NQR4: 2012-12-02 | NQS4: qen | NQT4: 1 | NQU4: 2 | NQV4: 2012-12-02 | NQW4: qen | NQX4: 1 | NQY4: 2 | NQZ4: 2012-12-02 | NRA4: qen | NRB4: 1 | NRC4: 2 | NRD4: 2012-12-02 | NRE4: qen | NRF4: 1 | NRG4: 2 | NRH4: 2012-12-02 | NRI4: qen | NRJ4: 1 | NRK4: 2 | NRL4: 2012-12-02 | NRM4: qen | NRN4: 1 | NRO4: 2 | NRP4: 2012-12-02 | NRQ4: qen | NRR4: 1 | NRS4: 2 | NRT4: 2012-12-02 | NRU4: qen | NRV4: 1 | NRW4: 2 | NRX4: 2012-12-02 | NRY4: qen | NRZ4: 1 | NSA4: 2 | NSB4: 2012-12-02 | NSC4: qen | NSD4: 1 | NSE4: 2 | NSF4: 2012-12-02 | NSG4: qen | NSH4: 1 | NSI4: 2 | NSJ4: 2012-12-02 | NSK4: qen | NSL4: 1 | NSM4: 2 | NSN4: 2012-12-02 | NSO4: qen | NSP4: 1 | NSQ4: 2 | NSR4: 2012-12-02 | NSS4: qen | NST4: 1 | NSU4: 2 | NSV4: 2012-12-02 | NSW4: qen | NSX4: 1 | NSY4: 2 | NSZ4: 2012-12-02 | NTA4: qen | NTB4: 1 | NTC4: 2 | NTD4: 2012-12-02 | NTE4: qen | NTF4: 1 | NTG4: 2 | NTH4: 2012-12-02 | NTI4: qen | NTJ4: 1 | NTK4: 2 | NTL4: 2012-12-02 | NTM4: qen | NTN4: 1 | NTO4: 2 | NTP4: 2012-12-02 | NTQ4: qen | NTR4: 1 | NTS4: 2 | NTT4: 2012-12-02 | NTU4: qen | NTV4: 1 | NTW4: 2 | NTX4: 2012-12-02 | NTY4: qen | NTZ4: 1 | NUA4: 2 | NUB4: 2012-12-02 | NUC4: qen | NUD4: 1 | NUE4: 2 | NUF4: 2012-12-02 | NUG4: qen | NUH4: 1 | NUI4: 2 | NUJ4: 2012-12-02 | NUK4: qen | NUL4: 1 | NUM4: 2 | NUN4: 2012-12-02 | NUO4: qen | NUP4: 1 | NUQ4: 2 | NUR4: 2012-12-02 | NUS4: qen | NUT4: 1 | NUU4: 2 | NUV4: 2012-12-02 | NUW4: qen | NUX4: 1 | NUY4: 2 | NUZ4: 2012-12-02 | NVA4: qen | NVB4: 1 | NVC4: 2 | NVD4: 2012-12-02 | NVE4: qen | NVF4: 1 | NVG4: 2 | NVH4: 2012-12-02 | NVI4: qen | NVJ4: 1 | NVK4: 2 | NVL4: 2012-12-02 | NVM4: qen | NVN4: 1 | NVO4: 2 | NVP4: 2012-12-02 | NVQ4: qen | NVR4: 1 | NVS4: 2 | NVT4: 2012-12-02 | NVU4: qen | NVV4: 1 | NVW4: 2 | NVX4: 2012-12-02 | NVY4: qen | NVZ4: 1 | NWA4: 2 | NWB4: 2012-12-02 | NWC4: qen | NWD4: 1 | NWE4: 2 | NWF4: 2012-12-02 | NWG4: qen | NWH4: 1 | NWI4: 2 | NWJ4: 2012-12-02 | NWK4: qen | NWL4: 1 | NWM4: 2 | NWN4: 2012-12-02 | NWO4: qen | NWP4: 1 | NWQ4: 2 | NWR4: 2012-12-02 | NWS4: qen | NWT4: 1 | NWU4: 2 | NWV4: 2012-12-02 | NWW4: qen | NWX4: 1 | NWY4: 2 | NWZ4: 2012-12-02 | NXA4: qen | NXB4: 1 | NXC4: 2 | NXD4: 2012-12-02 | NXE4: qen | NXF4: 1 | NXG4: 2 | NXH4: 2012-12-02 | NXI4: qen | NXJ4: 1 | NXK4: 2 | NXL4: 2012-12-02 | NXM4: qen | NXN4: 1 | NXO4: 2 | NXP4: 2012-12-02 | NXQ4: qen | NXR4: 1 | NXS4: 2 | NXT4: 2012-12-02 | NXU4: qen | NXV4: 1 | NXW4: 2 | NXX4: 2012-12-02 | NXY4: qen | NXZ4: 1 | NYA4: 2 | NYB4: 2012-12-02 | NYC4: qen | NYD4: 1 | NYE4: 2 | NYF4: 2012-12-02 | NYG4: qen | NYH4: 1 | NYI4: 2 | NYJ4: 2012-12-02 | NYK4: qen | NYL4: 1 | NYM4: 2 | NYN4: 2012-12-02 | NYO4: qen | NYP4: 1 | NYQ4: 2 | NYR4: 2012-12-02 | NYS4: qen | NYT4: 1 | NYU4: 2 | NYV4: 2012-12-02 | NYW4: qen | NYX4: 1 | NYY4: 2 | NYZ4: 2012-12-02 | NZA4: qen | NZB4: 1 | NZC4: 2 | NZD4: 2012-12-02 | NZE4: qen | NZF4: 1 | NZG4: 2 | NZH4: 2012-12-02 | NZI4: qen | NZJ4: 1 | NZK4: 2 | NZL4: 2012-12-02 | NZM4: qen | NZN4: 1 | NZO4: 2 | NZP4: 2012-12-02 | NZQ4: qen | NZR4: 1 | NZS4: 2 | NZT4: 2012-12-02 | NZU4: qen | NZV4: 1 | NZW4: 2 | NZX4: 2012-12-02 | NZY4: qen | NZZ4: 1 | OAA4: 2 | OAB4: 2012-12-02 | OAC4: qen | OAD4: 1 | OAE4: 2 | OAF4: 2012-12-02 | OAG4: qen | OAH4: 1 | OAI4: 2 | OAJ4: 2012-12-02 | OAK4: qen | OAL4: 1 | OAM4: 2 | OAN4: 2012-12-02 | OAO4: qen | OAP4: 1 | OAQ4: 2 | OAR4: 2012-12-02 | OAS4: qen | OAT4: 1 | OAU4: 2 | OAV4: 2012-12-02 | OAW4: qen | OAX4: 1 | OAY4: 2 | OAZ4: 2012-12-02 | OBA4: qen | OBB4: 1 | OBC4: 2 | OBD4: 2012-12-02 | OBE4: qen | OBF4: 1 | OBG4: 2 | OBH4: 2012-12-02 | OBI4: qen | OBJ4: 1 | OBK4: 2 | OBL4: 2012-12-02 | OBM4: qen | OBN4: 1 | OBO4: 2 | OBP4: 2012-12-02 | OBQ4: qen | OBR4: 1 | OBS4: 2 | OBT4: 2012-12-02 | OBU4: qen | OBV4: 1 | OBW4: 2 | OBX4: 2012-12-02 | OBY4: qen | OBZ4: 1 | OCA4: 2 | OCB4: 2012-12-02 | OCC4: qen | OCD4: 1 | OCE4: 2 | OCF4: 2012-12-02 | OCG4: qen | OCH4: 1 | OCI4: 2 | OCJ4: 2012-12-02 | OCK4: qen | OCL4: 1 | OCM4: 2 | OCN4: 2012-12-02 | OCO4: qen | OCP4: 1 | OCQ4: 2 | OCR4: 2012-12-02 | OCS4: qen | OCT4: 1 | OCU4: 2 | OCV4: 2012-12-02 | OCW4: qen | OCX4: 1 | OCY4: 2 | OCZ4: 2012-12-02 | ODA4: qen | ODB4: 1 | ODC4: 2 | ODD4: 2012-12-02 | ODE4: qen | ODF4: 1 | ODG4: 2 | ODH4: 2012-12-02 | ODI4: qen | ODJ4: 1 | ODK4: 2 | ODL4: 2012-12-02 | ODM4: qen | ODN4: 1 | ODO4: 2 | ODP4: 2012-12-02 | ODQ4: qen | ODR4: 1 | ODS4: 2 | ODT4: 2012-12-02 | ODU4: qen | ODV4: 1 | ODW4: 2 | ODX4: 2012-12-02 | ODY4: qen | ODZ4: 1 | OEA4: 2 | OEB4: 2012-12-02 | OEC4: qen | OED4: 1 | OEE4: 2 | OEF4: 2012-12-02 | OEG4: qen | OEH4: 1 | OEI4: 2 | OEJ4: 2012-12-02 | OEK4: qen | OEL4: 1 | OEM4: 2 | OEN4: 2012-12-02 | OEO4: qen | OEP4: 1 | OEQ4: 2 | OER4: 2012-12-02 | OES4: qen | OET4: 1 | OEU4: 2 | OEV4: 2012-12-02 | OEW4: qen | OEX4: 1 | OEY4: 2 | OEZ4: 2012-12-02 | OFA4: qen | OFB4: 1 | OFC4: 2 | OFD4: 2012-12-02 | OFE4: qen | OFF4: 1 | OFG4: 2 | OFH4: 2012-12-02 | OFI4: qen | OFJ4: 1 | OFK4: 2 | OFL4: 2012-12-02 | OFM4: qen | OFN4: 1 | OFO4: 2 | OFP4: 2012-12-02 | OFQ4: qen | OFR4: 1 | OFS4: 2 | OFT4: 2012-12-02 | OFU4: qen | OFV4: 1 | OFW4: 2 | OFX4: 2012-12-02 | OFY4: qen | OFZ4: 1 | OGA4: 2 | OGB4: 2012-12-02 | OGC4: qen | OGD4: 1 | OGE4: 2 | OGF4: 2012-12-02 | OGG4: qen | OGH4: 1 | OGI4: 2 | OGJ4: 2012-12-02 | OGK4: qen | OGL4: 1 | OGM4: 2 | OGN4: 2012-12-02 | OGO4: qen | OGP4: 1 | OGQ4: 2 | OGR4: 2012-12-02 | OGS4: qen | OGT4: 1 | OGU4: 2 | OGV4: 2012-12-02 | OGW4: qen | OGX4: 1 | OGY4: 2 | OGZ4: 2012-12-02 | OHA4: qen | OHB4: 1 | OHC4: 2 | OHD4: 2012-12-02 | OHE4: qen | OHF4: 1 | OHG4: 2 | OHH4: 2012-12-02 | OHI4: qen | OHJ4: 1 | OHK4: 2 | OHL4: 2012-12-02 | OHM4: qen | OHN4: 1 | OHO4: 2 | OHP4: 2012-12-02 | OHQ4: qen | OHR4: 1 | OHS4: 2 | OHT4: 2012-12-02 | OHU4: qen | OHV4: 1 | OHW4: 2 | OHX4: 2012-12-02 | OHY4: qen | OHZ4: 1 | OIA4: 2 | OIB4: 2012-12-02 | OIC4: qen | OID4: 1 | OIE4: 2 | OIF4: 2012-12-02 | OIG4: qen | OIH4: 1 | OII4: 2 | OIJ4: 2012-12-02 | OIK4: qen | OIL4: 1 | OIM4: 2 | OIN4: 2012-12-02 | OIO4: qen | OIP4: 1 | OIQ4: 2 | OIR4: 2012-12-02 | OIS4: qen | OIT4: 1 | OIU4: 2 | OIV4: 2012-12-02 | OIW4: qen | OIX4: 1 | OIY4: 2 | OIZ4: 2012-12-02 | OJA4: qen | OJB4: 1 | OJC4: 2 | OJD4: 2012-12-02 | OJE4: qen | OJF4: 1 | OJG4: 2 | OJH4: 2012-12-02 | OJI4: qen | OJJ4: 1 | OJK4: 2 | OJL4: 2012-12-02 | OJM4: qen | OJN4: 1 | OJO4: 2 | OJP4: 2012-12-02 | OJQ4: qen | OJR4: 1 | OJS4: 2 | OJT4: 2012-12-02 | OJU4: qen | OJV4: 1 | OJW4: 2 | OJX4: 2012-12-02 | OJY4: qen | OJZ4: 1 | OKA4: 2 | OKB4: 2012-12-02 | OKC4: qen | OKD4: 1 | OKE4: 2 | OKF4: 2012-12-02 | OKG4: qen | OKH4: 1 | OKI4: 2 | OKJ4: 2012-12-02 | OKK4: qen | OKL4: 1 | OKM4: 2 | OKN4: 2012-12-02 | OKO4: qen | OKP4: 1 | OKQ4: 2 | OKR4: 2012-12-02 | OKS4: qen | OKT4: 1 | OKU4: 2 | OKV4: 2012-12-02 | OKW4: qen | OKX4: 1 | OKY4: 2 | OKZ4: 2012-12-02 | OLA4: qen | OLB4: 1 | OLC4: 2 | OLD4: 2012-12-02 | OLE4: qen | OLF4: 1 | OLG4: 2 | OLH4: 2012-12-02 | OLI4: qen | OLJ4: 1 | OLK4: 2 | OLL4: 2012-12-02 | OLM4: qen | OLN4: 1 | OLO4: 2 | OLP4: 2012-12-02 | OLQ4: qen | OLR4: 1 | OLS4: 2 | OLT4: 2012-12-02 | OLU4: qen | OLV4: 1 | OLW4: 2 | OLX4: 2012-12-02 | OLY4: qen | OLZ4: 1 | OMA4: 2 | OMB4: 2012-12-02 | OMC4: qen | OMD4: 1 | OME4: 2 | OMF4: 2012-12-02 | OMG4: qen | OMH4: 1 | OMI4: 2 | OMJ4: 2012-12-02 | OMK4: qen | OML4: 1 | OMM4: 2 | OMN4: 2012-12-02 | OMO4: qen | OMP4: 1 | OMQ4: 2 | OMR4: 2012-12-02 | OMS4: qen | OMT4: 1 | OMU4: 2 | OMV4: 2012-12-02 | OMW4: qen | OMX4: 1 | OMY4: 2 | OMZ4: 2012-12-02 | ONA4: qen | ONB4: 1 | ONC4: 2 | OND4: 2012-12-02 | ONE4: qen | ONF4: 1 | ONG4: 2 | ONH4: 2012-12-02 | ONI4: qen | ONJ4: 1 | ONK4: 2 | ONL4: 2012-12-02 | ONM4: qen | ONN4: 1 | ONO4: 2 | ONP4: 2012-12-02 | ONQ4: qen | ONR4: 1 | ONS4: 2 | ONT4: 2012-12-02 | ONU4: qen | ONV4: 1 | ONW4: 2 | ONX4: 2012-12-02 | ONY4: qen | ONZ4: 1 | OOA4: 2 | OOB4: 2012-12-02 | OOC4: qen | OOD4: 1 | OOE4: 2 | OOF4: 2012-12-02 | OOG4: qen | OOH4: 1 | OOI4: 2 | OOJ4: 2012-12-02 | OOK4: qen | OOL4: 1 | OOM4: 2 | OON4: 2012-12-02 | OOO4: qen | OOP4: 1 | OOQ4: 2 | OOR4: 2012-12-02 | OOS4: qen | OOT4: 1 | OOU4: 2 | OOV4: 2012-12-02 | OOW4: qen | OOX4: 1 | OOY4: 2 | OOZ4: 2012-12-02 | OPA4: qen | OPB4: 1 | OPC4: 2 | OPD4: 2012-12-02 | OPE4: qen | OPF4: 1 | OPG4: 2 | OPH4: 2012-12-02 | OPI4: qen | OPJ4: 1 | OPK4: 2 | OPL4: 2012-12-02 | OPM4: qen | OPN4: 1 | OPO4: 2 | OPP4: 2012-12-02 | OPQ4: qen | OPR4: 1 | OPS4: 2 | OPT4: 2012-12-02 | OPU4: qen | OPV4: 1 | OPW4: 2 | OPX4: 2012-12-02 | OPY4: qen | OPZ4: 1 | OQA4: 2 | OQB4: 2012-12-02 | OQC4: qen | OQD4: 1 | OQE4: 2 | OQF4: 2012-12-02 | OQG4: qen | OQH4: 1 | OQI4: 2 | OQJ4: 2012-12-02 | OQK4: qen | OQL4: 1 | OQM4: 2 | OQN4: 2012-12-02 | OQO4: qen | OQP4: 1 | OQQ4: 2 | OQR4: 2012-12-02 | OQS4: qen | OQT4: 1 | OQU4: 2 | OQV4: 2012-12-02 | OQW4: qen | OQX4: 1 | OQY4: 2 | OQZ4: 2012-12-02 | ORA4: qen | ORB4: 1 | ORC4: 2 | ORD4: 2012-12-02 | ORE4: qen | ORF4: 1 | ORG4: 2 | ORH4: 2012-12-02 | ORI4: qen | ORJ4: 1 | ORK4: 2 | ORL4: 2012-12-02 | ORM4: qen | ORN4: 1 | ORO4: 2 | ORP4: 2012-12-02 | ORQ4: qen | ORR4: 1 | ORS4: 2 | ORT4: 2012-12-02 | ORU4: qen | ORV4: 1 | ORW4: 2 | ORX4: 2012-12-02 | ORY4: qen | ORZ4: 1 | OSA4: 2 | OSB4: 2012-12-02 | OSC4: qen | OSD4: 1 | OSE4: 2 | OSF4: 2012-12-02 | OSG4: qen | OSH4: 1 | OSI4: 2 | OSJ4: 2012-12-02 | OSK4: qen | OSL4: 1 | OSM4: 2 | OSN4: 2012-12-02 | OSO4: qen | OSP4: 1 | OSQ4: 2 | OSR4: 2012-12-02 | OSS4: qen | OST4: 1 | OSU4: 2 | OSV4: 2012-12-02 | OSW4: qen | OSX4: 1 | OSY4: 2 | OSZ4: 2012-12-02 | OTA4: qen | OTB4: 1 | OTC4: 2 | OTD4: 2012-12-02 | OTE4: qen | OTF4: 1 | OTG4: 2 | OTH4: 2012-12-02 | OTI4: qen | OTJ4: 1 | OTK4: 2 | OTL4: 2012-12-02 | OTM4: qen | OTN4: 1 | OTO4: 2 | OTP4: 2012-12-02 | OTQ4: qen | OTR4: 1 | OTS4: 2 | OTT4: 2012-12-02 | OTU4: qen | OTV4: 1 | OTW4: 2 | OTX4: 2012-12-02 | OTY4: qen | OTZ4: 1 | OUA4: 2 | OUB4: 2012-12-02 | OUC4: qen | OUD4: 1 | OUE4: 2 | OUF4: 2012-12-02 | OUG4: qen | OUH4: 1 | OUI4: 2 | OUJ4: 2012-12-02 | OUK4: qen | OUL4: 1 | OUM4: 2 | OUN4: 2012-12-02 | OUO4: qen | OUP4: 1 | OUQ4: 2 | OUR4: 2012-12-02 | OUS4: qen | OUT4: 1 | OUU4: 2 | OUV4: 2012-12-02 | OUW4: qen | OUX4: 1 | OUY4: 2 | OUZ4: 2012-12-02 | OVA4: qen | OVB4: 1 | OVC4: 2 | OVD4: 2012-12-02 | OVE4: qen | OVF4: 1 | OVG4: 2 | OVH4: 2012-12-02 | OVI4: qen | OVJ4: 1 | OVK4: 2 | OVL4: 2012-12-02 | OVM4: qen | OVN4: 1 | OVO4: 2 | OVP4: 2012-12-02 | OVQ4: qen | OVR4: 1 | OVS4: 2 | OVT4: 2012-12-02 | OVU4: qen | OVV4: 1 | OVW4: 2 | OVX4: 2012-12-02 | OVY4: qen | OVZ4: 1 | OWA4: 2 | OWB4: 2012-12-02 | OWC4: qen | OWD4: 1 | OWE4: 2 | OWF4: 2012-12-02 | OWG4: qen | OWH4: 1 | OWI4: 2 | OWJ4: 2012-12-02 | OWK4: qen | OWL4: 1 | OWM4: 2 | OWN4: 2012-12-02 | OWO4: qen | OWP4: 1 | OWQ4: 2 | OWR4: 2012-12-02 | OWS4: qen | OWT4: 1 | OWU4: 2 | OWV4: 2012-12-02 | OWW4: qen | OWX4: 1 | OWY4: 2 | OWZ4: 2012-12-02 | OXA4: qen | OXB4: 1 | OXC4: 2 | OXD4: 2012-12-02 | OXE4: qen | OXF4: 1 | OXG4: 2 | OXH4: 2012-12-02 | OXI4: qen | OXJ4: 1 | OXK4: 2 | OXL4: 2012-12-02 | OXM4: qen | OXN4: 1 | OXO4: 2 | OXP4: 2012-12-02 | OXQ4: qen | OXR4: 1 | OXS4: 2 | OXT4: 2012-12-02 | OXU4: qen | OXV4: 1 | OXW4: 2 | OXX4: 2012-12-02 | OXY4: qen | OXZ4: 1 | OYA4: 2 | OYB4: 2012-12-02 | OYC4: qen | OYD4: 1 | OYE4: 2 | OYF4: 2012-12-02 | OYG4: qen | OYH4: 1 | OYI4: 2 | OYJ4: 2012-12-02 | OYK4: qen | OYL4: 1 | OYM4: 2 | OYN4: 2012-12-02 | OYO4: qen | OYP4: 1 | OYQ4: 2 | OYR4: 2012-12-02 | OYS4: qen | OYT4: 1 | OYU4: 2 | OYV4: 2012-12-02 | OYW4: qen | OYX4: 1 | OYY4: 2 | OYZ4: 2012-12-02 | OZA4: qen | OZB4: 1 | OZC4: 2 | OZD4: 2012-12-02 | OZE4: qen | OZF4: 1 | OZG4: 2 | OZH4: 2012-12-02 | OZI4: qen | OZJ4: 1 | OZK4: 2 | OZL4: 2012-12-02 | OZM4: qen | OZN4: 1 | OZO4: 2 | OZP4: 2012-12-02 | OZQ4: qen | OZR4: 1 | OZS4: 2 | OZT4: 2012-12-02 | OZU4: qen | OZV4: 1 | OZW4: 2 | OZX4: 2012-12-02 | OZY4: qen | OZZ4: 1 | PAA4: 2 | PAB4: 2012-12-02 | PAC4: qen | PAD4: 1 | PAE4: 2 | PAF4: 2012-12-02 | PAG4: qen | PAH4: 1 | PAI4: 2 | PAJ4: 2012-12-02 | PAK4: qen | PAL4: 1 | PAM4: 2 | PAN4: 2012-12-02 | PAO4: qen | PAP4: 1 | PAQ4: 2 | PAR4: 2012-12-02 | PAS4: qen | PAT4: 1 | PAU4: 2 | PAV4: 2012-12-02 | PAW4: qen | PAX4: 1 | PAY4: 2 | PAZ4: 2012-12-02 | PBA4: qen | PBB4: 1 | PBC4: 2 | PBD4: 2012-12-02 | PBE4: qen | PBF4: 1 | PBG4: 2 | PBH4: 2012-12-02 | PBI4: qen | PBJ4: 1 | PBK4: 2 | PBL4: 2012-12-02 | PBM4: qen | PBN4: 1 | PBO4: 2 | PBP4: 2012-12-02 | PBQ4: qen | PBR4: 1 | PBS4: 2 | PBT4: 2012-12-02 | PBU4: qen | PBV4: 1 | PBW4: 2 | PBX4: 2012-12-02 | PBY4: qen | PBZ4: 1 | PCA4: 2 | PCB4: 2012-12-02 | PCC4: qen | PCD4: 1 | PCE4: 2 | PCF4: 2012-12-02 | PCG4: qen | PCH4: 1 | PCI4: 2 | PCJ4: 2012-12-02 | PCK4: qen | PCL4: 1 | PCM4: 2 | PCN4: 2012-12-02 | PCO4: qen | PCP4: 1 | PCQ4: 2 | PCR4: 2012-12-02 | PCS4: qen | PCT4: 1 | PCU4: 2 | PCV4: 2012-12-02 | PCW4: qen | PCX4: 1 | PCY4: 2 | PCZ4: 2012-12-02 | PDA4: qen | PDB4: 1 | PDC4: 2 | PDD4: 2012-12-02 | PDE4: qen | PDF4: 1 | PDG4: 2 | PDH4: 2012-12-02 | PDI4: qen | PDJ4: 1 | PDK4: 2 | PDL4: 2012-12-02 | PDM4: qen | PDN4: 1 | PDO4: 2 | PDP4: 2012-12-02 | PDQ4: qen | PDR4: 1 | PDS4: 2 | PDT4: 2012-12-02 | PDU4: qen | PDV4: 1 | PDW4: 2 | PDX4: 2012-12-02 | PDY4: qen | PDZ4: 1 | PEA4: 2 | PEB4: 2012-12-02 | PEC4: qen | PED4: 1 | PEE4: 2 | PEF4: 2012-12-02 | PEG4: qen | PEH4: 1 | PEI4: 2 | PEJ4: 2012-12-02 | PEK4: qen | PEL4: 1 | PEM4: 2 | PEN4: 2012-12-02 | PEO4: qen | PEP4: 1 | PEQ4: 2 | PER4: 2012-12-02 | PES4: qen | PET4: 1 | PEU4: 2 | PEV4: 2012-12-02 | PEW4: qen | PEX4: 1 | PEY4: 2 | PEZ4: 2012-12-02 | PFA4: qen | PFB4: 1 | PFC4: 2 | PFD4: 2012-12-02 | PFE4: qen | PFF4: 1 | PFG4: 2 | PFH4: 2012-12-02 | PFI4: qen | PFJ4: 1 | PFK4: 2 | PFL4: 2012-12-02 | PFM4: qen | PFN4: 1 | PFO4: 2 | PFP4: 2012-12-02 | PFQ4: qen | PFR4: 1 | PFS4: 2 | PFT4: 2012-12-02 | PFU4: qen | PFV4: 1 | PFW4: 2 | PFX4: 2012-12-02 | PFY4: qen | PFZ4: 1 | PGA4: 2 | PGB4: 2012-12-02 | PGC4: qen | PGD4: 1 | PGE4: 2 | PGF4: 2012-12-02 | PGG4: qen | PGH4: 1 | PGI4: 2 | PGJ4: 2012-12-02 | PGK4: qen | PGL4: 1 | PGM4: 2 | PGN4: 2012-12-02 | PGO4: qen | PGP4: 1 | PGQ4: 2 | PGR4: 2012-12-02 | PGS4: qen | PGT4: 1 | PGU4: 2 | PGV4: 2012-12-02 | PGW4: qen | PGX4: 1 | PGY4: 2 | PGZ4: 2012-12-02 | PHA4: qen | PHB4: 1 | PHC4: 2 | PHD4: 2012-12-02 | PHE4: qen | PHF4: 1 | PHG4: 2 | PHH4: 2012-12-02 | PHI4: qen | PHJ4: 1 | PHK4: 2 | PHL4: 2012-12-02 | PHM4: qen | PHN4: 1 | PHO4: 2 | PHP4: 2012-12-02 | PHQ4: qen | PHR4: 1 | PHS4: 2 | PHT4: 2012-12-02 | PHU4: qen | PHV4: 1 | PHW4: 2 | PHX4: 2012-12-02 | PHY4: qen | PHZ4: 1 | PIA4: 2 | PIB4: 2012-12-02 | PIC4: qen | PID4: 1 | PIE4: 2 | PIF4: 2012-12-02 | PIG4: qen | PIH4: 1 | PII4: 2 | PIJ4: 2012-12-02 | PIK4: qen | PIL4: 1 | PIM4: 2 | PIN4: 2012-12-02 | PIO4: qen | PIP4: 1 | PIQ4: 2 | PIR4: 2012-12-02 | PIS4: qen | PIT4: 1 | PIU4: 2 | PIV4: 2012-12-02 | PIW4: qen | PIX4: 1 | PIY4: 2 | PIZ4: 2012-12-02 | PJA4: qen | PJB4: 1 | PJC4: 2 | PJD4: 2012-12-02 | PJE4: qen | PJF4: 1 | PJG4: 2 | PJH4: 2012-12-02 | PJI4: qen | PJJ4: 1 | PJK4: 2 | PJL4: 2012-12-02 | PJM4: qen | PJN4: 1 | PJO4: 2 | PJP4: 2012-12-02 | PJQ4: qen | PJR4: 1 | PJS4: 2 | PJT4: 2012-12-02 | PJU4: qen | PJV4: 1 | PJW4: 2 | PJX4: 2012-12-02 | PJY4: qen | PJZ4: 1 | PKA4: 2 | PKB4: 2012-12-02 | PKC4: qen | PKD4: 1 | PKE4: 2 | PKF4: 2012-12-02 | PKG4: qen | PKH4: 1 | PKI4: 2 | PKJ4: 2012-12-02 | PKK4: qen | PKL4: 1 | PKM4: 2 | PKN4: 2012-12-02 | PKO4: qen | PKP4: 1 | PKQ4: 2 | PKR4: 2012-12-02 | PKS4: qen | PKT4: 1 | PKU4: 2 | PKV4: 2012-12-02 | PKW4: qen | PKX4: 1 | PKY4: 2 | PKZ4: 2012-12-02 | PLA4: qen | PLB4: 1 | PLC4: 2 | PLD4: 2012-12-02 | PLE4: qen | PLF4: 1 | PLG4: 2 | PLH4: 2012-12-02 | PLI4: qen | PLJ4: 1 | PLK4: 2 | PLL4: 2012-12-02 | PLM4: qen | PLN4: 1 | PLO4: 2 | PLP4: 2012-12-02 | PLQ4: qen | PLR4: 1 | PLS4: 2 | PLT4: 2012-12-02 | PLU4: qen | PLV4: 1 | PLW4: 2 | PLX4: 2012-12-02 | PLY4: qen | PLZ4: 1 | PMA4: 2 | PMB4: 2012-12-02 | PMC4: qen | PMD4: 1 | PME4: 2 | PMF4: 2012-12-02 | PMG4: qen | PMH4: 1 | PMI4: 2 | PMJ4: 2012-12-02 | PMK4: qen | PML4: 1 | PMM4: 2 | PMN4: 2012-12-02 | PMO4: qen | PMP4: 1 | PMQ4: 2 | PMR4: 2012-12-02 | PMS4: qen | PMT4: 1 | PMU4: 2 | PMV4: 2012-12-02 | PMW4: qen | PMX4: 1 | PMY4: 2 | PMZ4: 2012-12-02 | PNA4: qen | PNB4: 1 | PNC4: 2 | PND4: 2012-12-02 | PNE4: qen | PNF4: 1 | PNG4: 2 | PNH4: 2012-12-02 | PNI4: qen | PNJ4: 1 | PNK4: 2 | PNL4: 2012-12-02 | PNM4: qen | PNN4: 1 | PNO4: 2 | PNP4: 2012-12-02 | PNQ4: qen | PNR4: 1 | PNS4: 2 | PNT4: 2012-12-02 | PNU4: qen | PNV4: 1 | PNW4: 2 | PNX4: 2012-12-02 | PNY4: qen | PNZ4: 1 | POA4: 2 | POB4: 2012-12-02 | POC4: qen | POD4: 1 | POE4: 2 | POF4: 2012-12-02 | POG4: qen | POH4: 1 | POI4: 2 | POJ4: 2012-12-02 | POK4: qen | POL4: 1 | POM4: 2 | PON4: 2012-12-02 | POO4: qen | POP4: 1 | POQ4: 2 | POR4: 2012-12-02 | POS4: qen | POT4: 1 | POU4: 2 | POV4: 2012-12-02 | POW4: qen | POX4: 1 | POY4: 2 | POZ4: 2012-12-02 | PPA4: qen | PPB4: 1 | PPC4: 2 | PPD4: 2012-12-02 | PPE4: qen | PPF4: 1 | PPG4: 2 | PPH4: 2012-12-02 | PPI4: qen | PPJ4: 1 | PPK4: 2 | PPL4: 2012-12-02 | PPM4: qen | PPN4: 1 | PPO4: 2 | PPP4: 2012-12-02 | PPQ4: qen | PPR4: 1 | PPS4: 2 | PPT4: 2012-12-02 | PPU4: qen | PPV4: 1 | PPW4: 2 | PPX4: 2012-12-02 | PPY4: qen | PPZ4: 1 | PQA4: 2 | PQB4: 2012-12-02 | PQC4: qen | PQD4: 1 | PQE4: 2 | PQF4: 2012-12-02 | PQG4: qen | PQH4: 1 | PQI4: 2 | PQJ4: 2012-12-02 | PQK4: qen | PQL4: 1 | PQM4: 2 | PQN4: 2012-12-02 | PQO4: qen | PQP4: 1 | PQQ4: 2 | PQR4: 2012-12-02 | PQS4: qen | PQT4: 1 | PQU4: 2 | PQV4: 2012-12-02 | PQW4: qen | PQX4: 1 | PQY4: 2 | PQZ4: 2012-12-02 | PRA4: qen | PRB4: 1 | PRC4: 2 | PRD4: 2012-12-02 | PRE4: qen | PRF4: 1 | PRG4: 2 | PRH4: 2012-12-02 | PRI4: qen | PRJ4: 1 | PRK4: 2 | PRL4: 2012-12-02 | PRM4: qen | PRN4: 1 | PRO4: 2 | PRP4: 2012-12-02 | PRQ4: qen | PRR4: 1 | PRS4: 2 | PRT4: 2012-12-02 | PRU4: qen | PRV4: 1 | PRW4: 2 | PRX4: 2012-12-02 | PRY4: qen | PRZ4: 1 | PSA4: 2 | PSB4: 2012-12-02 | PSC4: qen | PSD4: 1 | PSE4: 2 | PSF4: 2012-12-02 | PSG4: qen | PSH4: 1 | PSI4: 2 | PSJ4: 2012-12-02 | PSK4: qen | PSL4: 1 | PSM4: 2 | PSN4: 2012-12-02 | PSO4: qen | PSP4: 1 | PSQ4: 2 | PSR4: 2012-12-02 | PSS4: qen | PST4: 1 | PSU4: 2 | PSV4: 2012-12-02 | PSW4: qen | PSX4: 1 | PSY4: 2 | PSZ4: 2012-12-02 | PTA4: qen | PTB4: 1 | PTC4: 2 | PTD4: 2012-12-02 | PTE4: qen | PTF4: 1 | PTG4: 2 | PTH4: 2012-12-02 | PTI4: qen | PTJ4: 1 | PTK4: 2 | PTL4: 2012-12-02 | PTM4: qen | PTN4: 1 | PTO4: 2 | PTP4: 2012-12-02 | PTQ4: qen | PTR4: 1 | PTS4: 2 | PTT4: 2012-12-02 | PTU4: qen | PTV4: 1 | PTW4: 2 | PTX4: 2012-12-02 | PTY4: qen | PTZ4: 1 | PUA4: 2 | PUB4: 2012-12-02 | PUC4: qen | PUD4: 1 | PUE4: 2 | PUF4: 2012-12-02 | PUG4: qen | PUH4: 1 | PUI4: 2 | PUJ4: 2012-12-02 | PUK4: qen | PUL4: 1 | PUM4: 2 | PUN4: 2012-12-02 | PUO4: qen | PUP4: 1 | PUQ4: 2 | PUR4: 2012-12-02 | PUS4: qen | PUT4: 1 | PUU4: 2 | PUV4: 2012-12-02 | PUW4: qen | PUX4: 1 | PUY4: 2 | PUZ4: 2012-12-02 | PVA4: qen | PVB4: 1 | PVC4: 2 | PVD4: 2012-12-02 | PVE4: qen | PVF4: 1 | PVG4: 2 | PVH4: 2012-12-02 | PVI4: qen | PVJ4: 1 | PVK4: 2 | PVL4: 2012-12-02 | PVM4: qen | PVN4: 1 | PVO4: 2 | PVP4: 2012-12-02 | PVQ4: qen | PVR4: 1 | PVS4: 2 | PVT4: 2012-12-02 | PVU4: qen | PVV4: 1 | PVW4: 2 | PVX4: 2012-12-02 | PVY4: qen | PVZ4: 1 | PWA4: 2 | PWB4: 2012-12-02 | PWC4: qen | PWD4: 1 | PWE4: 2 | PWF4: 2012-12-02 | PWG4: qen | PWH4: 1 | PWI4: 2 | PWJ4: 2012-12-02 | PWK4: qen | PWL4: 1 | PWM4: 2 | PWN4: 2012-12-02 | PWO4: qen | PWP4: 1 | PWQ4: 2 | PWR4: 2012-12-02 | PWS4: qen | PWT4: 1 | PWU4: 2 | PWV4: 2012-12-02 | PWW4: qen | PWX4: 1 | PWY4: 2 | PWZ4: 2012-12-02 | PXA4: qen | PXB4: 1 | PXC4: 2 | PXD4: 2012-12-02 | PXE4: qen | PXF4: 1 | PXG4: 2 | PXH4: 2012-12-02 | PXI4: qen | PXJ4: 1 | PXK4: 2 | PXL4: 2012-12-02 | PXM4: qen | PXN4: 1 | PXO4: 2 | PXP4: 2012-12-02 | PXQ4: qen | PXR4: 1 | PXS4: 2 | PXT4: 2012-12-02 | PXU4: qen | PXV4: 1 | PXW4: 2 | PXX4: 2012-12-02 | PXY4: qen | PXZ4: 1 | PYA4: 2 | PYB4: 2012-12-02 | PYC4: qen | PYD4: 1 | PYE4: 2 | PYF4: 2012-12-02 | PYG4: qen | PYH4: 1 | PYI4: 2 | PYJ4: 2012-12-02 | PYK4: qen | PYL4: 1 | PYM4: 2 | PYN4: 2012-12-02 | PYO4: qen | PYP4: 1 | PYQ4: 2 | PYR4: 2012-12-02 | PYS4: qen | PYT4: 1 | PYU4: 2 | PYV4: 2012-12-02 | PYW4: qen | PYX4: 1 | PYY4: 2 | PYZ4: 2012-12-02 | PZA4: qen | PZB4: 1 | PZC4: 2 | PZD4: 2012-12-02 | PZE4: qen | PZF4: 1 | PZG4: 2 | PZH4: 2012-12-02 | PZI4: qen | PZJ4: 1 | PZK4: 2 | PZL4: 2012-12-02 | PZM4: qen | PZN4: 1 | PZO4: 2 | PZP4: 2012-12-02 | PZQ4: qen | PZR4: 1 | PZS4: 2 | PZT4: 2012-12-02 | PZU4: qen | PZV4: 1 | PZW4: 2 | PZX4: 2012-12-02 | PZY4: qen | PZZ4: 1 | QAA4: 2 | QAB4: 2012-12-02 | QAC4: qen | QAD4: 1 | QAE4: 2 | QAF4: 2012-12-02 | QAG4: qen | QAH4: 1 | QAI4: 2 | QAJ4: 2012-12-02 | QAK4: qen | QAL4: 1 | QAM4: 2 | QAN4: 2012-12-02 | QAO4: qen | QAP4: 1 | QAQ4: 2 | QAR4: 2012-12-02 | QAS4: qen | QAT4: 1 | QAU4: 2 | QAV4: 2012-12-02 | QAW4: qen | QAX4: 1 | QAY4: 2 | QAZ4: 2012-12-02 | QBA4: qen | QBB4: 1 | QBC4: 2 | QBD4: 2012-12-02 | QBE4: qen | QBF4: 1 | QBG4: 2 | QBH4: 2012-12-02 | QBI4: qen | QBJ4: 1 | QBK4: 2 | QBL4: 2012-12-02 | QBM4: qen | QBN4: 1 | QBO4: 2 | QBP4: 2012-12-02 | QBQ4: qen | QBR4: 1 | QBS4: 2 | QBT4: 2012-12-02 | QBU4: qen | QBV4: 1 | QBW4: 2 | QBX4: 2012-12-02 | QBY4: qen | QBZ4: 1 | QCA4: 2 | QCB4: 2012-12-02 | QCC4: qen | QCD4: 1 | QCE4: 2 | QCF4: 2012-12-02 | QCG4: qen | QCH4: 1 | QCI4: 2 | QCJ4: 2012-12-02 | QCK4: qen | QCL4: 1 | QCM4: 2 | QCN4: 2012-12-02 | QCO4: qen | QCP4: 1 | QCQ4: 2 | QCR4: 2012-12-02 | QCS4: qen | QCT4: 1 | QCU4: 2 | QCV4: 2012-12-02 | QCW4: qen | QCX4: 1 | QCY4: 2 | QCZ4: 2012-12-02 | QDA4: qen | QDB4: 1 | QDC4: 2 | QDD4: 2012-12-02 | QDE4: qen | QDF4: 1 | QDG4: 2 | QDH4: 2012-12-02 | QDI4: qen | QDJ4: 1 | QDK4: 2 | QDL4: 2012-12-02 | QDM4: qen | QDN4: 1 | QDO4: 2 | QDP4: 2012-12-02 | QDQ4: qen | QDR4: 1 | QDS4: 2 | QDT4: 2012-12-02 | QDU4: qen | QDV4: 1 | QDW4: 2 | QDX4: 2012-12-02 | QDY4: qen | QDZ4: 1 | QEA4: 2 | QEB4: 2012-12-02 | QEC4: qen | QED4: 1 | QEE4: 2 | QEF4: 2012-12-02 | QEG4: qen | QEH4: 1 | QEI4: 2 | QEJ4: 2012-12-02 | QEK4: qen | QEL4: 1 | QEM4: 2 | QEN4: 2012-12-02 | QEO4: qen | QEP4: 1 | QEQ4: 2 | QER4: 2012-12-02 | QES4: qen | QET4: 1 | QEU4: 2 | QEV4: 2012-12-02 | QEW4: qen | QEX4: 1 | QEY4: 2 | QEZ4: 2012-12-02 | QFA4: qen | QFB4: 1 | QFC4: 2 | QFD4: 2012-12-02 | QFE4: qen | QFF4: 1 | QFG4: 2 | QFH4: 2012-12-02 | QFI4: qen | QFJ4: 1 | QFK4: 2 | QFL4: 2012-12-02 | QFM4: qen | QFN4: 1 | QFO4: 2 | QFP4: 2012-12-02 | QFQ4: qen | QFR4: 1 | QFS4: 2 | QFT4: 2012-12-02 | QFU4: qen | QFV4: 1 | QFW4: 2 | QFX4: 2012-12-02 | QFY4: qen | QFZ4: 1 | QGA4: 2 | QGB4: 2012-12-02 | QGC4: qen | QGD4: 1 | QGE4: 2 | QGF4: 2012-12-02 | QGG4: qen | QGH4: 1 | QGI4: 2 | QGJ4: 2012-12-02 | QGK4: qen | QGL4: 1 | QGM4: 2 | QGN4: 2012-12-02 | QGO4: qen | QGP4: 1 | QGQ4: 2 | QGR4: 2012-12-02 | QGS4: qen | QGT4: 1 | QGU4: 2 | QGV4: 2012-12-02 | QGW4: qen | QGX4: 1 | QGY4: 2 | QGZ4: 2012-12-02 | QHA4: qen | QHB4: 1 | QHC4: 2 | QHD4: 2012-12-02 | QHE4: qen | QHF4: 1 | QHG4: 2 | QHH4: 2012-12-02 | QHI4: qen | QHJ4: 1 | QHK4: 2 | QHL4: 2012-12-02 | QHM4: qen | QHN4: 1 | QHO4: 2 | QHP4: 2012-12-02 | QHQ4: qen | QHR4: 1 | QHS4: 2 | QHT4: 2012-12-02 | QHU4: qen | QHV4: 1 | QHW4: 2 | QHX4: 2012-12-02 | QHY4: qen | QHZ4: 1 | QIA4: 2 | QIB4: 2012-12-02 | QIC4: qen | QID4: 1 | QIE4: 2 | QIF4: 2012-12-02 | QIG4: qen | QIH4: 1 | QII4: 2 | QIJ4: 2012-12-02 | QIK4: qen | QIL4: 1 | QIM4: 2 | QIN4: 2012-12-02 | QIO4: qen | QIP4: 1 | QIQ4: 2 | QIR4: 2012-12-02 | QIS4: qen | QIT4: 1 | QIU4: 2 | QIV4: 2012-12-02 | QIW4: qen | QIX4: 1 | QIY4: 2 | QIZ4: 2012-12-02 | QJA4: qen | QJB4: 1 | QJC4: 2 | QJD4: 2012-12-02 | QJE4: qen | QJF4: 1 | QJG4: 2 | QJH4: 2012-12-02 | QJI4: qen | QJJ4: 1 | QJK4: 2 | QJL4: 2012-12-02 | QJM4: qen | QJN4: 1 | QJO4: 2 | QJP4: 2012-12-02 | QJQ4: qen | QJR4: 1 | QJS4: 2 | QJT4: 2012-12-02 | QJU4: qen | QJV4: 1 | QJW4: 2 | QJX4: 2012-12-02 | QJY4: qen | QJZ4: 1 | QKA4: 2 | QKB4: 2012-12-02 | QKC4: qen | QKD4: 1 | QKE4: 2 | QKF4: 2012-12-02 | QKG4: qen | QKH4: 1 | QKI4: 2 | QKJ4: 2012-12-02 | QKK4: qen | QKL4: 1 | QKM4: 2 | QKN4: 2012-12-02 | QKO4: qen | QKP4: 1 | QKQ4: 2 | QKR4: 2012-12-02 | QKS4: qen | QKT4: 1 | QKU4: 2 | QKV4: 2012-12-02 | QKW4: qen | QKX4: 1 | QKY4: 2 | QKZ4: 2012-12-02 | QLA4: qen | QLB4: 1 | QLC4: 2 | QLD4: 2012-12-02 | QLE4: qen | QLF4: 1 | QLG4: 2 | QLH4: 2012-12-02 | QLI4: qen | QLJ4: 1 | QLK4: 2 | QLL4: 2012-12-02 | QLM4: qen | QLN4: 1 | QLO4: 2 | QLP4: 2012-12-02 | QLQ4: qen | QLR4: 1 | QLS4: 2 | QLT4: 2012-12-02 | QLU4: qen | QLV4: 1 | QLW4: 2 | QLX4: 2012-12-02 | QLY4: qen | QLZ4: 1 | QMA4: 2 | QMB4: 2012-12-02 | QMC4: qen | QMD4: 1 | QME4: 2 | QMF4: 2012-12-02 | QMG4: qen | QMH4: 1 | QMI4: 2 | QMJ4: 2012-12-02 | QMK4: qen | QML4: 1 | QMM4: 2 | QMN4: 2012-12-02 | QMO4: qen | QMP4: 1 | QMQ4: 2 | QMR4: 2012-12-02 | QMS4: qen | QMT4: 1 | QMU4: 2 | QMV4: 2012-12-02 | QMW4: qen | QMX4: 1 | QMY4: 2 | QMZ4: 2012-12-02 | QNA4: qen | QNB4: 1 | QNC4: 2 | QND4: 2012-12-02 | QNE4: qen | QNF4: 1 | QNG4: 2 | QNH4: 2012-12-02 | QNI4: qen | QNJ4: 1 | QNK4: 2 | QNL4: 2012-12-02 | QNM4: qen | QNN4: 1 | QNO4: 2 | QNP4: 2012-12-02 | QNQ4: qen | QNR4: 1 | QNS4: 2 | QNT4: 2012-12-02 | QNU4: qen | QNV4: 1 | QNW4: 2 | QNX4: 2012-12-02 | QNY4: qen | QNZ4: 1 | QOA4: 2 | QOB4: 2012-12-02 | QOC4: qen | QOD4: 1 | QOE4: 2 | QOF4: 2012-12-02 | QOG4: qen | QOH4: 1 | QOI4: 2 | QOJ4: 2012-12-02 | QOK4: qen | QOL4: 1 | QOM4: 2 | QON4: 2012-12-02 | QOO4: qen | QOP4: 1 | QOQ4: 2 | QOR4: 2012-12-02 | QOS4: qen | QOT4: 1 | QOU4: 2 | QOV4: 2012-12-02 | QOW4: qen | QOX4: 1 | QOY4: 2 | QOZ4: 2012-12-02 | QPA4: qen | QPB4: 1 | QPC4: 2 | QPD4: 2012-12-02 | QPE4: qen | QPF4: 1 | QPG4: 2 | QPH4: 2012-12-02 | QPI4: qen | QPJ4: 1 | QPK4: 2 | QPL4: 2012-12-02 | QPM4: qen | QPN4: 1 | QPO4: 2 | QPP4: 2012-12-02 | QPQ4: qen | QPR4: 1 | QPS4: 2 | QPT4: 2012-12-02 | QPU4: qen | QPV4: 1 | QPW4: 2 | QPX4: 2012-12-02 | QPY4: qen | QPZ4: 1 | QQA4: 2 | QQB4: 2012-12-02 | QQC4: qen | QQD4: 1 | QQE4: 2 | QQF4: 2012-12-02 | QQG4: qen | QQH4: 1 | QQI4: 2 | QQJ4: 2012-12-02 | QQK4: qen | QQL4: 1 | QQM4: 2 | QQN4: 2012-12-02 | QQO4: qen | QQP4: 1 | QQQ4: 2 | QQR4: 2012-12-02 | QQS4: qen | QQT4: 1 | QQU4: 2 | QQV4: 2012-12-02 | QQW4: qen | QQX4: 1 | QQY4: 2 | QQZ4: 2012-12-02 | QRA4: qen | QRB4: 1 | QRC4: 2 | QRD4: 2012-12-02 | QRE4: qen | QRF4: 1 | QRG4: 2 | QRH4: 2012-12-02 | QRI4: qen | QRJ4: 1 | QRK4: 2 | QRL4: 2012-12-02 | QRM4: qen | QRN4: 1 | QRO4: 2 | QRP4: 2012-12-02 | QRQ4: qen | QRR4: 1 | QRS4: 2 | QRT4: 2012-12-02 | QRU4: qen | QRV4: 1 | QRW4: 2 | QRX4: 2012-12-02 | QRY4: qen | QRZ4: 1 | QSA4: 2 | QSB4: 2012-12-02 | QSC4: qen | QSD4: 1 | QSE4: 2 | QSF4: 2012-12-02 | QSG4: qen | QSH4: 1 | QSI4: 2 | QSJ4: 2012-12-02 | QSK4: qen | QSL4: 1 | QSM4: 2 | QSN4: 2012-12-02 | QSO4: qen | QSP4: 1 | QSQ4: 2 | QSR4: 2012-12-02 | QSS4: qen | QST4: 1 | QSU4: 2 | QSV4: 2012-12-02 | QSW4: qen | QSX4: 1 | QSY4: 2 | QSZ4: 2012-12-02 | QTA4: qen | QTB4: 1 | QTC4: 2 | QTD4: 2012-12-02 | QTE4: qen | QTF4: 1 | QTG4: 2 | QTH4: 2012-12-02 | QTI4: qen | QTJ4: 1 | QTK4: 2 | QTL4: 2012-12-02 | QTM4: qen | QTN4: 1 | QTO4: 2 | QTP4: 2012-12-02 | QTQ4: qen | QTR4: 1 | QTS4: 2 | QTT4: 2012-12-02 | QTU4: qen | QTV4: 1 | QTW4: 2 | QTX4: 2012-12-02 | QTY4: qen | QTZ4: 1 | QUA4: 2 | QUB4: 2012-12-02 | QUC4: qen | QUD4: 1 | QUE4: 2 | QUF4: 2012-12-02 | QUG4: qen | QUH4: 1 | QUI4: 2 | QUJ4: 2012-12-02 | QUK4: qen | QUL4: 1 | QUM4: 2 | QUN4: 2012-12-02 | QUO4: qen | QUP4: 1 | QUQ4: 2 | QUR4: 2012-12-02 | QUS4: qen | QUT4: 1 | QUU4: 2 | QUV4: 2012-12-02 | QUW4: qen | QUX4: 1 | QUY4: 2 | QUZ4: 2012-12-02 | QVA4: qen | QVB4: 1 | QVC4: 2 | QVD4: 2012-12-02 | QVE4: qen | QVF4: 1 | QVG4: 2 | QVH4: 2012-12-02 | QVI4: qen | QVJ4: 1 | QVK4: 2 | QVL4: 2012-12-02 | QVM4: qen | QVN4: 1 | QVO4: 2 | QVP4: 2012-12-02 | QVQ4: qen | QVR4: 1 | QVS4: 2 | QVT4: 2012-12-02 | QVU4: qen | QVV4: 1 | QVW4: 2 | QVX4: 2012-12-02 | QVY4: qen | QVZ4: 1 | QWA4: 2 | QWB4: 2012-12-02 | QWC4: qen | QWD4: 1 | QWE4: 2 | QWF4: 2012-12-02 | QWG4: qen | QWH4: 1 | QWI4: 2 | QWJ4: 2012-12-02 | QWK4: qen | QWL4: 1 | QWM4: 2 | QWN4: 2012-12-02 | QWO4: qen | QWP4: 1 | QWQ4: 2 | QWR4: 2012-12-02 | QWS4: qen | QWT4: 1 | QWU4: 2 | QWV4: 2012-12-02 | QWW4: qen | QWX4: 1 | QWY4: 2 | QWZ4: 2012-12-02 | QXA4: qen | QXB4: 1 | QXC4: 2 | QXD4: 2012-12-02 | QXE4: qen | QXF4: 1 | QXG4: 2 | QXH4: 2012-12-02 | QXI4: qen | QXJ4: 1 | QXK4: 2 | QXL4: 2012-12-02 | QXM4: qen | QXN4: 1 | QXO4: 2 | QXP4: 2012-12-02 | QXQ4: qen | QXR4: 1 | QXS4: 2 | QXT4: 2012-12-02 | QXU4: qen | QXV4: 1 | QXW4: 2 | QXX4: 2012-12-02 | QXY4: qen | QXZ4: 1 | QYA4: 2 | QYB4: 2012-12-02 | QYC4: qen | QYD4: 1 | QYE4: 2 | QYF4: 2012-12-02 | QYG4: qen | QYH4: 1 | QYI4: 2 | QYJ4: 2012-12-02 | QYK4: qen | QYL4: 1 | QYM4: 2 | QYN4: 2012-12-02 | QYO4: qen | QYP4: 1 | QYQ4: 2 | QYR4: 2012-12-02 | QYS4: qen | QYT4: 1 | QYU4: 2 | QYV4: 2012-12-02 | QYW4: qen | QYX4: 1 | QYY4: 2 | QYZ4: 2012-12-02 | QZA4: qen | QZB4: 1 | QZC4: 2 | QZD4: 2012-12-02 | QZE4: qen | QZF4: 1 | QZG4: 2 | QZH4: 2012-12-02 | QZI4: qen | QZJ4: 1 | QZK4: 2 | QZL4: 2012-12-02 | QZM4: qen | QZN4: 1 | QZO4: 2 | QZP4: 2012-12-02 | QZQ4: qen | QZR4: 1 | QZS4: 2 | QZT4: 2012-12-02 | QZU4: qen | QZV4: 1 | QZW4: 2 | QZX4: 2012-12-02 | QZY4: qen | QZZ4: 1 | RAA4: 2 | RAB4: 2012-12-02 | RAC4: qen | RAD4: 1 | RAE4: 2 | RAF4: 2012-12-02 | RAG4: qen | RAH4: 1 | RAI4: 2 | RAJ4: 2012-12-02 | RAK4: qen | RAL4: 1 | RAM4: 2 | RAN4: 2012-12-02 | RAO4: qen | RAP4: 1 | RAQ4: 2 | RAR4: 2012-12-02 | RAS4: qen | RAT4: 1 | RAU4: 2 | RAV4: 2012-12-02 | RAW4: qen | RAX4: 1 | RAY4: 2 | RAZ4: 2012-12-02 | RBA4: qen | RBB4: 1 | RBC4: 2 | RBD4: 2012-12-02 | RBE4: qen | RBF4: 1 | RBG4: 2 | RBH4: 2012-12-02 | RBI4: qen | RBJ4: 1 | RBK4: 2 | RBL4: 2012-12-02 | RBM4: qen | RBN4: 1 | RBO4: 2 | RBP4: 2012-12-02 | RBQ4: qen | RBR4: 1 | RBS4: 2 | RBT4: 2012-12-02 | RBU4: qen | RBV4: 1 | RBW4: 2 | RBX4: 2012-12-02 | RBY4: qen | RBZ4: 1 | RCA4: 2 | RCB4: 2012-12-02 | RCC4: qen | RCD4: 1 | RCE4: 2 | RCF4: 2012-12-02 | RCG4: qen | RCH4: 1 | RCI4: 2 | RCJ4: 2012-12-02 | RCK4: qen | RCL4: 1 | RCM4: 2 | RCN4: 2012-12-02 | RCO4: qen | RCP4: 1 | RCQ4: 2 | RCR4: 2012-12-02 | RCS4: qen | RCT4: 1 | RCU4: 2 | RCV4: 2012-12-02 | RCW4: qen | RCX4: 1 | RCY4: 2 | RCZ4: 2012-12-02 | RDA4: qen | RDB4: 1 | RDC4: 2 | RDD4: 2012-12-02 | RDE4: qen | RDF4: 1 | RDG4: 2 | RDH4: 2012-12-02 | RDI4: qen | RDJ4: 1 | RDK4: 2 | RDL4: 2012-12-02 | RDM4: qen | RDN4: 1 | RDO4: 2 | RDP4: 2012-12-02 | RDQ4: qen | RDR4: 1 | RDS4: 2 | RDT4: 2012-12-02 | RDU4: qen | RDV4: 1 | RDW4: 2 | RDX4: 2012-12-02 | RDY4: qen | RDZ4: 1 | REA4: 2 | REB4: 2012-12-02 | REC4: qen | RED4: 1 | REE4: 2 | REF4: 2012-12-02 | REG4: qen | REH4: 1 | REI4: 2 | REJ4: 2012-12-02 | REK4: qen | REL4: 1 | REM4: 2 | REN4: 2012-12-02 | REO4: qen | REP4: 1 | REQ4: 2 | RER4: 2012-12-02 | RES4: qen | RET4: 1 | REU4: 2 | REV4: 2012-12-02 | REW4: qen | REX4: 1 | REY4: 2 | REZ4: 2012-12-02 | RFA4: qen | RFB4: 1 | RFC4: 2 | RFD4: 2012-12-02 | RFE4: qen | RFF4: 1 | RFG4: 2 | RFH4: 2012-12-02 | RFI4: qen | RFJ4: 1 | RFK4: 2 | RFL4: 2012-12-02 | RFM4: qen | RFN4: 1 | RFO4: 2 | RFP4: 2012-12-02 | RFQ4: qen | RFR4: 1 | RFS4: 2 | RFT4: 2012-12-02 | RFU4: qen | RFV4: 1 | RFW4: 2 | RFX4: 2012-12-02 | RFY4: qen | RFZ4: 1 | RGA4: 2 | RGB4: 2012-12-02 | RGC4: qen | RGD4: 1 | RGE4: 2 | RGF4: 2012-12-02 | RGG4: qen | RGH4: 1 | RGI4: 2 | RGJ4: 2012-12-02 | RGK4: qen | RGL4: 1 | RGM4: 2 | RGN4: 2012-12-02 | RGO4: qen | RGP4: 1 | RGQ4: 2 | RGR4: 2012-12-02 | RGS4: qen | RGT4: 1 | RGU4: 2 | RGV4: 2012-12-02 | RGW4: qen | RGX4: 1 | RGY4: 2 | RGZ4: 2012-12-02 | RHA4: qen | RHB4: 1 | RHC4: 2 | RHD4: 2012-12-02 | RHE4: qen | RHF4: 1 | RHG4: 2 | RHH4: 2012-12-02 | RHI4: qen | RHJ4: 1 | RHK4: 2 | RHL4: 2012-12-02 | RHM4: qen | RHN4: 1 | RHO4: 2 | RHP4: 2012-12-02 | RHQ4: qen | RHR4: 1 | RHS4: 2 | RHT4: 2012-12-02 | RHU4: qen | RHV4: 1 | RHW4: 2 | RHX4: 2012-12-02 | RHY4: qen | RHZ4: 1 | RIA4: 2 | RIB4: 2012-12-02 | RIC4: qen | RID4: 1 | RIE4: 2 | RIF4: 2012-12-02 | RIG4: qen | RIH4: 1 | RII4: 2 | RIJ4: 2012-12-02 | RIK4: qen | RIL4: 1 | RIM4: 2 | RIN4: 2012-12-02 | RIO4: qen | RIP4: 1 | RIQ4: 2 | RIR4: 2012-12-02 | RIS4: qen | RIT4: 1 | RIU4: 2 | RIV4: 2012-12-02 | RIW4: qen | RIX4: 1 | RIY4: 2 | RIZ4: 2012-12-02 | RJA4: qen | RJB4: 1 | RJC4: 2 | RJD4: 2012-12-02 | RJE4: qen | RJF4: 1 | RJG4: 2 | RJH4: 2012-12-02 | RJI4: qen | RJJ4: 1 | RJK4: 2 | RJL4: 2012-12-02 | RJM4: qen | RJN4: 1 | RJO4: 2 | RJP4: 2012-12-02 | RJQ4: qen | RJR4: 1 | RJS4: 2 | RJT4: 2012-12-02 | RJU4: qen | RJV4: 1 | RJW4: 2 | RJX4: 2012-12-02 | RJY4: qen | RJZ4: 1 | RKA4: 2 | RKB4: 2012-12-02 | RKC4: qen | RKD4: 1 | RKE4: 2 | RKF4: 2012-12-02 | RKG4: qen | RKH4: 1 | RKI4: 2 | RKJ4: 2012-12-02 | RKK4: qen | RKL4: 1 | RKM4: 2 | RKN4: 2012-12-02 | RKO4: qen | RKP4: 1 | RKQ4: 2 | RKR4: 2012-12-02 | RKS4: qen | RKT4: 1 | RKU4: 2 | RKV4: 2012-12-02 | RKW4: qen | RKX4: 1 | RKY4: 2 | RKZ4: 2012-12-02 | RLA4: qen | RLB4: 1 | RLC4: 2 | RLD4: 2012-12-02 | RLE4: qen | RLF4: 1 | RLG4: 2 | RLH4: 2012-12-02 | RLI4: qen | RLJ4: 1 | RLK4: 2 | RLL4: 2012-12-02 | RLM4: qen | RLN4: 1 | RLO4: 2 | RLP4: 2012-12-02 | RLQ4: qen | RLR4: 1 | RLS4: 2 | RLT4: 2012-12-02 | RLU4: qen | RLV4: 1 | RLW4: 2 | RLX4: 2012-12-02 | RLY4: qen | RLZ4: 1 | RMA4: 2 | RMB4: 2012-12-02 | RMC4: qen | RMD4: 1 | RME4: 2 | RMF4: 2012-12-02 | RMG4: qen | RMH4: 1 | RMI4: 2 | RMJ4: 2012-12-02 | RMK4: qen | RML4: 1 | RMM4: 2 | RMN4: 2012-12-02 | RMO4: qen | RMP4: 1 | RMQ4: 2 | RMR4: 2012-12-02 | RMS4: qen | RMT4: 1 | RMU4: 2 | RMV4: 2012-12-02 | RMW4: qen | RMX4: 1 | RMY4: 2 | RMZ4: 2012-12-02 | RNA4: qen | RNB4: 1 | RNC4: 2 | RND4: 2012-12-02 | RNE4: qen | RNF4: 1 | RNG4: 2 | RNH4: 2012-12-02 | RNI4: qen | RNJ4: 1 | RNK4: 2 | RNL4: 2012-12-02 | RNM4: qen | RNN4: 1 | RNO4: 2 | RNP4: 2012-12-02 | RNQ4: qen | RNR4: 1 | RNS4: 2 | RNT4: 2012-12-02 | RNU4: qen | RNV4: 1 | RNW4: 2 | RNX4: 2012-12-02 | RNY4: qen | RNZ4: 1 | ROA4: 2 | ROB4: 2012-12-02 | ROC4: qen | ROD4: 1 | ROE4: 2 | ROF4: 2012-12-02 | ROG4: qen | ROH4: 1 | ROI4: 2 | ROJ4: 2012-12-02 | ROK4: qen | ROL4: 1 | ROM4: 2 | RON4: 2012-12-02 | ROO4: qen | ROP4: 1 | ROQ4: 2 | ROR4: 2012-12-02 | ROS4: qen | ROT4: 1 | ROU4: 2 | ROV4: 2012-12-02 | ROW4: qen | ROX4: 1 | ROY4: 2 | ROZ4: 2012-12-02 | RPA4: qen | RPB4: 1 | RPC4: 2 | RPD4: 2012-12-02 | RPE4: qen | RPF4: 1 | RPG4: 2 | RPH4: 2012-12-02 | RPI4: qen | RPJ4: 1 | RPK4: 2 | RPL4: 2012-12-02 | RPM4: qen | RPN4: 1 | RPO4: 2 | RPP4: 2012-12-02 | RPQ4: qen | RPR4: 1 | RPS4: 2 | RPT4: 2012-12-02 | RPU4: qen | RPV4: 1 | RPW4: 2 | RPX4: 2012-12-02 | RPY4: qen | RPZ4: 1 | RQA4: 2 | RQB4: 2012-12-02 | RQC4: qen | RQD4: 1 | RQE4: 2 | RQF4: 2012-12-02 | RQG4: qen | RQH4: 1 | RQI4: 2 | RQJ4: 2012-12-02 | RQK4: qen | RQL4: 1 | RQM4: 2 | RQN4: 2012-12-02 | RQO4: qen | RQP4: 1 | RQQ4: 2 | RQR4: 2012-12-02 | RQS4: qen | RQT4: 1 | RQU4: 2 | RQV4: 2012-12-02 | RQW4: qen | RQX4: 1 | RQY4: 2 | RQZ4: 2012-12-02 | RRA4: qen | RRB4: 1 | RRC4: 2 | RRD4: 2012-12-02 | RRE4: qen | RRF4: 1 | RRG4: 2 | RRH4: 2012-12-02 | RRI4: qen | RRJ4: 1 | RRK4: 2 | RRL4: 2012-12-02 | RRM4: qen | RRN4: 1 | RRO4: 2 | RRP4: 2012-12-02 | RRQ4: qen | RRR4: 1 | RRS4: 2 | RRT4: 2012-12-02 | RRU4: qen | RRV4: 1 | RRW4: 2 | RRX4: 2012-12-02 | RRY4: qen | RRZ4: 1 | RSA4: 2 | RSB4: 2012-12-02 | RSC4: qen | RSD4: 1 | RSE4: 2 | RSF4: 2012-12-02 | RSG4: qen | RSH4: 1 | RSI4: 2 | RSJ4: 2012-12-02 | RSK4: qen | RSL4: 1 | RSM4: 2 | RSN4: 2012-12-02 | RSO4: qen | RSP4: 1 | RSQ4: 2 | RSR4: 2012-12-02 | RSS4: qen | RST4: 1 | RSU4: 2 | RSV4: 2012-12-02 | RSW4: qen | RSX4: 1 | RSY4: 2 | RSZ4: 2012-12-02 | RTA4: qen | RTB4: 1 | RTC4: 2 | RTD4: 2012-12-02 | RTE4: qen | RTF4: 1 | RTG4: 2 | RTH4: 2012-12-02 | RTI4: qen | RTJ4: 1 | RTK4: 2 | RTL4: 2012-12-02 | RTM4: qen | RTN4: 1 | RTO4: 2 | RTP4: 2012-12-02 | RTQ4: qen | RTR4: 1 | RTS4: 2 | RTT4: 2012-12-02 | RTU4: qen | RTV4: 1 | RTW4: 2 | RTX4: 2012-12-02 | RTY4: qen | RTZ4: 1 | RUA4: 2 | RUB4: 2012-12-02 | RUC4: qen | RUD4: 1 | RUE4: 2 | RUF4: 2012-12-02 | RUG4: qen | RUH4: 1 | RUI4: 2 | RUJ4: 2012-12-02 | RUK4: qen | RUL4: 1 | RUM4: 2 | RUN4: 2012-12-02 | RUO4: qen | RUP4: 1 | RUQ4: 2 | RUR4: 2012-12-02 | RUS4: qen | RUT4: 1 | RUU4: 2 | RUV4: 2012-12-02 | RUW4: qen | RUX4: 1 | RUY4: 2 | RUZ4: 2012-12-02 | RVA4: qen | RVB4: 1 | RVC4: 2 | RVD4: 2012-12-02 | RVE4: qen | RVF4: 1 | RVG4: 2 | RVH4: 2012-12-02 | RVI4: qen | RVJ4: 1 | RVK4: 2 | RVL4: 2012-12-02 | RVM4: qen | RVN4: 1 | RVO4: 2 | RVP4: 2012-12-02 | RVQ4: qen | RVR4: 1 | RVS4: 2 | RVT4: 2012-12-02 | RVU4: qen | RVV4: 1 | RVW4: 2 | RVX4: 2012-12-02 | RVY4: qen | RVZ4: 1 | RWA4: 2 | RWB4: 2012-12-02 | RWC4: qen | RWD4: 1 | RWE4: 2 | RWF4: 2012-12-02 | RWG4: qen | RWH4: 1 | RWI4: 2 | RWJ4: 2012-12-02 | RWK4: qen | RWL4: 1 | RWM4: 2 | RWN4: 2012-12-02 | RWO4: qen | RWP4: 1 | RWQ4: 2 | RWR4: 2012-12-02 | RWS4: qen | RWT4: 1 | RWU4: 2 | RWV4: 2012-12-02 | RWW4: qen | RWX4: 1 | RWY4: 2 | RWZ4: 2012-12-02 | RXA4: qen | RXB4: 1 | RXC4: 2 | RXD4: 2012-12-02 | RXE4: qen | RXF4: 1 | RXG4: 2 | RXH4: 2012-12-02 | RXI4: qen | RXJ4: 1 | RXK4: 2 | RXL4: 2012-12-02 | RXM4: qen | RXN4: 1 | RXO4: 2 | RXP4: 2012-12-02 | RXQ4: qen | RXR4: 1 | RXS4: 2 | RXT4: 2012-12-02 | RXU4: qen | RXV4: 1 | RXW4: 2 | RXX4: 2012-12-02 | RXY4: qen | RXZ4: 1 | RYA4: 2 | RYB4: 2012-12-02 | RYC4: qen | RYD4: 1 | RYE4: 2 | RYF4: 2012-12-02 | RYG4: qen | RYH4: 1 | RYI4: 2 | RYJ4: 2012-12-02 | RYK4: qen | RYL4: 1 | RYM4: 2 | RYN4: 2012-12-02 | RYO4: qen | RYP4: 1 | RYQ4: 2 | RYR4: 2012-12-02 | RYS4: qen | RYT4: 1 | RYU4: 2 | RYV4: 2012-12-02 | RYW4: qen | RYX4: 1 | RYY4: 2 | RYZ4: 2012-12-02 | RZA4: qen | RZB4: 1 | RZC4: 2 | RZD4: 2012-12-02 | RZE4: qen | RZF4: 1 | RZG4: 2 | RZH4: 2012-12-02 | RZI4: qen | RZJ4: 1 | RZK4: 2 | RZL4: 2012-12-02 | RZM4: qen | RZN4: 1 | RZO4: 2 | RZP4: 2012-12-02 | RZQ4: qen | RZR4: 1 | RZS4: 2 | RZT4: 2012-12-02 | RZU4: qen | RZV4: 1 | RZW4: 2 | RZX4: 2012-12-02 | RZY4: qen | RZZ4: 1 | SAA4: 2 | SAB4: 2012-12-02 | SAC4: qen | SAD4: 1 | SAE4: 2 | SAF4: 2012-12-02 | SAG4: qen | SAH4: 1 | SAI4: 2 | SAJ4: 2012-12-02 | SAK4: qen | SAL4: 1 | SAM4: 2 | SAN4: 2012-12-02 | SAO4: qen | SAP4: 1 | SAQ4: 2 | SAR4: 2012-12-02 | SAS4: qen | SAT4: 1 | SAU4: 2 | SAV4: 2012-12-02 | SAW4: qen | SAX4: 1 | SAY4: 2 | SAZ4: 2012-12-02 | SBA4: qen | SBB4: 1 | SBC4: 2 | SBD4: 2012-12-02 | SBE4: qen | SBF4: 1 | SBG4: 2 | SBH4: 2012-12-02 | SBI4: qen | SBJ4: 1 | SBK4: 2 | SBL4: 2012-12-02 | SBM4: qen | SBN4: 1 | SBO4: 2 | SBP4: 2012-12-02 | SBQ4: qen | SBR4: 1 | SBS4: 2 | SBT4: 2012-12-02 | SBU4: qen | SBV4: 1 | SBW4: 2 | SBX4: 2012-12-02 | SBY4: qen | SBZ4: 1 | SCA4: 2 | SCB4: 2012-12-02 | SCC4: qen | SCD4: 1 | SCE4: 2 | SCF4: 2012-12-02 | SCG4: qen | SCH4: 1 | SCI4: 2 | SCJ4: 2012-12-02 | SCK4: qen | SCL4: 1 | SCM4: 2 | SCN4: 2012-12-02 | SCO4: qen | SCP4: 1 | SCQ4: 2 | SCR4: 2012-12-02 | SCS4: qen | SCT4: 1 | SCU4: 2 | SCV4: 2012-12-02 | SCW4: qen | SCX4: 1 | SCY4: 2 | SCZ4: 2012-12-02 | SDA4: qen | SDB4: 1 | SDC4: 2 | SDD4: 2012-12-02 | SDE4: qen | SDF4: 1 | SDG4: 2 | SDH4: 2012-12-02 | SDI4: qen | SDJ4: 1 | SDK4: 2 | SDL4: 2012-12-02 | SDM4: qen | SDN4: 1 | SDO4: 2 | SDP4: 2012-12-02 | SDQ4: qen | SDR4: 1 | SDS4: 2 | SDT4: 2012-12-02 | SDU4: qen | SDV4: 1 | SDW4: 2 | SDX4: 2012-12-02 | SDY4: qen | SDZ4: 1 | SEA4: 2 | SEB4: 2012-12-02 | SEC4: qen | SED4: 1 | SEE4: 2 | SEF4: 2012-12-02 | SEG4: qen | SEH4: 1 | SEI4: 2 | SEJ4: 2012-12-02 | SEK4: qen | SEL4: 1 | SEM4: 2 | SEN4: 2012-12-02 | SEO4: qen | SEP4: 1 | SEQ4: 2 | SER4: 2012-12-02 | SES4: qen | SET4: 1 | SEU4: 2 | SEV4: 2012-12-02 | SEW4: qen | SEX4: 1 | SEY4: 2 | SEZ4: 2012-12-02 | SFA4: qen | SFB4: 1 | SFC4: 2 | SFD4: 2012-12-02 | SFE4: qen | SFF4: 1 | SFG4: 2 | SFH4: 2012-12-02 | SFI4: qen | SFJ4: 1 | SFK4: 2 | SFL4: 2012-12-02 | SFM4: qen | SFN4: 1 | SFO4: 2 | SFP4: 2012-12-02 | SFQ4: qen | SFR4: 1 | SFS4: 2 | SFT4: 2012-12-02 | SFU4: qen | SFV4: 1 | SFW4: 2 | SFX4: 2012-12-02 | SFY4: qen | SFZ4: 1 | SGA4: 2 | SGB4: 2012-12-02 | SGC4: qen | SGD4: 1 | SGE4: 2 | SGF4: 2012-12-02 | SGG4: qen | SGH4: 1 | SGI4: 2 | SGJ4: 2012-12-02 | SGK4: qen | SGL4: 1 | SGM4: 2 | SGN4: 2012-12-02 | SGO4: qen | SGP4: 1 | SGQ4: 2 | SGR4: 2012-12-02 | SGS4: qen | SGT4: 1 | SGU4: 2 | SGV4: 2012-12-02 | SGW4: qen | SGX4: 1 | SGY4: 2 | SGZ4: 2012-12-02 | SHA4: qen | SHB4: 1 | SHC4: 2 | SHD4: 2012-12-02 | SHE4: qen | SHF4: 1 | SHG4: 2 | SHH4: 2012-12-02 | SHI4: qen | SHJ4: 1 | SHK4: 2 | SHL4: 2012-12-02 | SHM4: qen | SHN4: 1 | SHO4: 2 | SHP4: 2012-12-02 | SHQ4: qen | SHR4: 1 | SHS4: 2 | SHT4: 2012-12-02 | SHU4: qen | SHV4: 1 | SHW4: 2 | SHX4: 2012-12-02 | SHY4: qen | SHZ4: 1 | SIA4: 2 | SIB4: 2012-12-02 | SIC4: qen | SID4: 1 | SIE4: 2 | SIF4: 2012-12-02 | SIG4: qen | SIH4: 1 | SII4: 2 | SIJ4: 2012-12-02 | SIK4: qen | SIL4: 1 | SIM4: 2 | SIN4: 2012-12-02 | SIO4: qen | SIP4: 1 | SIQ4: 2 | SIR4: 2012-12-02 | SIS4: qen | SIT4: 1 | SIU4: 2 | SIV4: 2012-12-02 | SIW4: qen | SIX4: 1 | SIY4: 2 | SIZ4: 2012-12-02 | SJA4: qen | SJB4: 1 | SJC4: 2 | SJD4: 2012-12-02 | SJE4: qen | SJF4: 1 | SJG4: 2 | SJH4: 2012-12-02 | SJI4: qen | SJJ4: 1 | SJK4: 2 | SJL4: 2012-12-02 | SJM4: qen | SJN4: 1 | SJO4: 2 | SJP4: 2012-12-02 | SJQ4: qen | SJR4: 1 | SJS4: 2 | SJT4: 2012-12-02 | SJU4: qen | SJV4: 1 | SJW4: 2 | SJX4: 2012-12-02 | SJY4: qen | SJZ4: 1 | SKA4: 2 | SKB4: 2012-12-02 | SKC4: qen | SKD4: 1 | SKE4: 2 | SKF4: 2012-12-02 | SKG4: qen | SKH4: 1 | SKI4: 2 | SKJ4: 2012-12-02 | SKK4: qen | SKL4: 1 | SKM4: 2 | SKN4: 2012-12-02 | SKO4: qen | SKP4: 1 | SKQ4: 2 | SKR4: 2012-12-02 | SKS4: qen | SKT4: 1 | SKU4: 2 | SKV4: 2012-12-02 | SKW4: qen | SKX4: 1 | SKY4: 2 | SKZ4: 2012-12-02 | SLA4: qen | SLB4: 1 | SLC4: 2 | SLD4: 2012-12-02 | SLE4: qen | SLF4: 1 | SLG4: 2 | SLH4: 2012-12-02 | SLI4: qen | SLJ4: 1 | SLK4: 2 | SLL4: 2012-12-02 | SLM4: qen | SLN4: 1 | SLO4: 2 | SLP4: 2012-12-02 | SLQ4: qen | SLR4: 1 | SLS4: 2 | SLT4: 2012-12-02 | SLU4: qen | SLV4: 1 | SLW4: 2 | SLX4: 2012-12-02 | SLY4: qen | SLZ4: 1 | SMA4: 2 | SMB4: 2012-12-02 | SMC4: qen | SMD4: 1 | SME4: 2 | SMF4: 2012-12-02 | SMG4: qen | SMH4: 1 | SMI4: 2 | SMJ4: 2012-12-02 | SMK4: qen | SML4: 1 | SMM4: 2 | SMN4: 2012-12-02 | SMO4: qen | SMP4: 1 | SMQ4: 2 | SMR4: 2012-12-02 | SMS4: qen | SMT4: 1 | SMU4: 2 | SMV4: 2012-12-02 | SMW4: qen | SMX4: 1 | SMY4: 2 | SMZ4: 2012-12-02 | SNA4: qen | SNB4: 1 | SNC4: 2 | SND4: 2012-12-02 | SNE4: qen | SNF4: 1 | SNG4: 2 | SNH4: 2012-12-02 | SNI4: qen | SNJ4: 1 | SNK4: 2 | SNL4: 2012-12-02 | SNM4: qen | SNN4: 1 | SNO4: 2 | SNP4: 2012-12-02 | SNQ4: qen | SNR4: 1 | SNS4: 2 | SNT4: 2012-12-02 | SNU4: qen | SNV4: 1 | SNW4: 2 | SNX4: 2012-12-02 | SNY4: qen | SNZ4: 1 | SOA4: 2 | SOB4: 2012-12-02 | SOC4: qen | SOD4: 1 | SOE4: 2 | SOF4: 2012-12-02 | SOG4: qen | SOH4: 1 | SOI4: 2 | SOJ4: 2012-12-02 | SOK4: qen | SOL4: 1 | SOM4: 2 | SON4: 2012-12-02 | SOO4: qen | SOP4: 1 | SOQ4: 2 | SOR4: 2012-12-02 | SOS4: qen | SOT4: 1 | SOU4: 2 | SOV4: 2012-12-02 | SOW4: qen | SOX4: 1 | SOY4: 2 | SOZ4: 2012-12-02 | SPA4: qen | SPB4: 1 | SPC4: 2 | SPD4: 2012-12-02 | SPE4: qen | SPF4: 1 | SPG4: 2 | SPH4: 2012-12-02 | SPI4: qen | SPJ4: 1 | SPK4: 2 | SPL4: 2012-12-02 | SPM4: qen | SPN4: 1 | SPO4: 2 | SPP4: 2012-12-02 | SPQ4: qen | SPR4: 1 | SPS4: 2 | SPT4: 2012-12-02 | SPU4: qen | SPV4: 1 | SPW4: 2 | SPX4: 2012-12-02 | SPY4: qen | SPZ4: 1 | SQA4: 2 | SQB4: 2012-12-02 | SQC4: qen | SQD4: 1 | SQE4: 2 | SQF4: 2012-12-02 | SQG4: qen | SQH4: 1 | SQI4: 2 | SQJ4: 2012-12-02 | SQK4: qen | SQL4: 1 | SQM4: 2 | SQN4: 2012-12-02 | SQO4: qen | SQP4: 1 | SQQ4: 2 | SQR4: 2012-12-02 | SQS4: qen | SQT4: 1 | SQU4: 2 | SQV4: 2012-12-02 | SQW4: qen | SQX4: 1 | SQY4: 2 | SQZ4: 2012-12-02 | SRA4: qen | SRB4: 1 | SRC4: 2 | SRD4: 2012-12-02 | SRE4: qen | SRF4: 1 | SRG4: 2 | SRH4: 2012-12-02 | SRI4: qen | SRJ4: 1 | SRK4: 2 | SRL4: 2012-12-02 | SRM4: qen | SRN4: 1 | SRO4: 2 | SRP4: 2012-12-02 | SRQ4: qen | SRR4: 1 | SRS4: 2 | SRT4: 2012-12-02 | SRU4: qen | SRV4: 1 | SRW4: 2 | SRX4: 2012-12-02 | SRY4: qen | SRZ4: 1 | SSA4: 2 | SSB4: 2012-12-02 | SSC4: qen | SSD4: 1 | SSE4: 2 | SSF4: 2012-12-02 | SSG4: qen | SSH4: 1 | SSI4: 2 | SSJ4: 2012-12-02 | SSK4: qen | SSL4: 1 | SSM4: 2 | SSN4: 2012-12-02 | SSO4: qen | SSP4: 1 | SSQ4: 2 | SSR4: 2012-12-02 | SSS4: qen | SST4: 1 | SSU4: 2 | SSV4: 2012-12-02 | SSW4: qen | SSX4: 1 | SSY4: 2 | SSZ4: 2012-12-02 | STA4: qen | STB4: 1 | STC4: 2 | STD4: 2012-12-02 | STE4: qen | STF4: 1 | STG4: 2 | STH4: 2012-12-02 | STI4: qen | STJ4: 1 | STK4: 2 | STL4: 2012-12-02 | STM4: qen | STN4: 1 | STO4: 2 | STP4: 2012-12-02 | STQ4: qen | STR4: 1 | STS4: 2 | STT4: 2012-12-02 | STU4: qen | STV4: 1 | STW4: 2 | STX4: 2012-12-02 | STY4: qen | STZ4: 1 | SUA4: 2 | SUB4: 2012-12-02 | SUC4: qen | SUD4: 1 | SUE4: 2 | SUF4: 2012-12-02 | SUG4: qen | SUH4: 1 | SUI4: 2 | SUJ4: 2012-12-02 | SUK4: qen | SUL4: 1 | SUM4: 2 | SUN4: 2012-12-02 | SUO4: qen | SUP4: 1 | SUQ4: 2 | SUR4: 2012-12-02 | SUS4: qen | SUT4: 1 | SUU4: 2 | SUV4: 2012-12-02 | SUW4: qen | SUX4: 1 | SUY4: 2 | SUZ4: 2012-12-02 | SVA4: qen | SVB4: 1 | SVC4: 2 | SVD4: 2012-12-02 | SVE4: qen | SVF4: 1 | SVG4: 2 | SVH4: 2012-12-02 | SVI4: qen | SVJ4: 1 | SVK4: 2 | SVL4: 2012-12-02 | SVM4: qen | SVN4: 1 | SVO4: 2 | SVP4: 2012-12-02 | SVQ4: qen | SVR4: 1 | SVS4: 2 | SVT4: 2012-12-02 | SVU4: qen | SVV4: 1 | SVW4: 2 | SVX4: 2012-12-02 | SVY4: qen | SVZ4: 1 | SWA4: 2 | SWB4: 2012-12-02 | SWC4: qen | SWD4: 1 | SWE4: 2 | SWF4: 2012-12-02 | SWG4: qen | SWH4: 1 | SWI4: 2 | SWJ4: 2012-12-02 | SWK4: qen | SWL4: 1 | SWM4: 2 | SWN4: 2012-12-02 | SWO4: qen | SWP4: 1 | SWQ4: 2 | SWR4: 2012-12-02 | SWS4: qen | SWT4: 1 | SWU4: 2 | SWV4: 2012-12-02 | SWW4: qen | SWX4: 1 | SWY4: 2 | SWZ4: 2012-12-02 | SXA4: qen | SXB4: 1 | SXC4: 2 | SXD4: 2012-12-02 | SXE4: qen | SXF4: 1 | SXG4: 2 | SXH4: 2012-12-02 | SXI4: qen | SXJ4: 1 | SXK4: 2 | SXL4: 2012-12-02 | SXM4: qen | SXN4: 1 | SXO4: 2 | SXP4: 2012-12-02 | SXQ4: qen | SXR4: 1 | SXS4: 2 | SXT4: 2012-12-02 | SXU4: qen | SXV4: 1 | SXW4: 2 | SXX4: 2012-12-02 | SXY4: qen | SXZ4: 1 | SYA4: 2 | SYB4: 2012-12-02 | SYC4: qen | SYD4: 1 | SYE4: 2 | SYF4: 2012-12-02 | SYG4: qen | SYH4: 1 | SYI4: 2 | SYJ4: 2012-12-02 | SYK4: qen | SYL4: 1 | SYM4: 2 | SYN4: 2012-12-02 | SYO4: qen | SYP4: 1 | SYQ4: 2 | SYR4: 2012-12-02 | SYS4: qen | SYT4: 1 | SYU4: 2 | SYV4: 2012-12-02 | SYW4: qen | SYX4: 1 | SYY4: 2 | SYZ4: 2012-12-02 | SZA4: qen | SZB4: 1 | SZC4: 2 | SZD4: 2012-12-02 | SZE4: qen | SZF4: 1 | SZG4: 2 | SZH4: 2012-12-02 | SZI4: qen | SZJ4: 1 | SZK4: 2 | SZL4: 2012-12-02 | SZM4: qen | SZN4: 1 | SZO4: 2 | SZP4: 2012-12-02 | SZQ4: qen | SZR4: 1 | SZS4: 2 | SZT4: 2012-12-02 | SZU4: qen | SZV4: 1 | SZW4: 2 | SZX4: 2012-12-02 | SZY4: qen | SZZ4: 1 | TAA4: 2 | TAB4: 2012-12-02 | TAC4: qen | TAD4: 1 | TAE4: 2 | TAF4: 2012-12-02 | TAG4: qen | TAH4: 1 | TAI4: 2 | TAJ4: 2012-12-02 | TAK4: qen | TAL4: 1 | TAM4: 2 | TAN4: 2012-12-02 | TAO4: qen | TAP4: 1 | TAQ4: 2 | TAR4: 2012-12-02 | TAS4: qen | TAT4: 1 | TAU4: 2 | TAV4: 2012-12-02 | TAW4: qen | TAX4: 1 | TAY4: 2 | TAZ4: 2012-12-02 | TBA4: qen | TBB4: 1 | TBC4: 2 | TBD4: 2012-12-02 | TBE4: qen | TBF4: 1 | TBG4: 2 | TBH4: 2012-12-02 | TBI4: qen | TBJ4: 1 | TBK4: 2 | TBL4: 2012-12-02 | TBM4: qen | TBN4: 1 | TBO4: 2 | TBP4: 2012-12-02 | TBQ4: qen | TBR4: 1 | TBS4: 2 | TBT4: 2012-12-02 | TBU4: qen | TBV4: 1 | TBW4: 2 | TBX4: 2012-12-02 | TBY4: qen | TBZ4: 1 | TCA4: 2 | TCB4: 2012-12-02 | TCC4: qen | TCD4: 1 | TCE4: 2 | TCF4: 2012-12-02 | TCG4: qen | TCH4: 1 | TCI4: 2 | TCJ4: 2012-12-02 | TCK4: qen | TCL4: 1 | TCM4: 2 | TCN4: 2012-12-02 | TCO4: qen | TCP4: 1 | TCQ4: 2 | TCR4: 2012-12-02 | TCS4: qen | TCT4: 1 | TCU4: 2 | TCV4: 2012-12-02 | TCW4: qen | TCX4: 1 | TCY4: 2 | TCZ4: 2012-12-02 | TDA4: qen | TDB4: 1 | TDC4: 2 | TDD4: 2012-12-02 | TDE4: qen | TDF4: 1 | TDG4: 2 | TDH4: 2012-12-02 | TDI4: qen | TDJ4: 1 | TDK4: 2 | TDL4: 2012-12-02 | TDM4: qen | TDN4: 1 | TDO4: 2 | TDP4: 2012-12-02 | TDQ4: qen | TDR4: 1 | TDS4: 2 | TDT4: 2012-12-02 | TDU4: qen | TDV4: 1 | TDW4: 2 | TDX4: 2012-12-02 | TDY4: qen | TDZ4: 1 | TEA4: 2 | TEB4: 2012-12-02 | TEC4: qen | TED4: 1 | TEE4: 2 | TEF4: 2012-12-02 | TEG4: qen | TEH4: 1 | TEI4: 2 | TEJ4: 2012-12-02 | TEK4: qen | TEL4: 1 | TEM4: 2 | TEN4: 2012-12-02 | TEO4: qen | TEP4: 1 | TEQ4: 2 | TER4: 2012-12-02 | TES4: qen | TET4: 1 | TEU4: 2 | TEV4: 2012-12-02 | TEW4: qen | TEX4: 1 | TEY4: 2 | TEZ4: 2012-12-02 | TFA4: qen | TFB4: 1 | TFC4: 2 | TFD4: 2012-12-02 | TFE4: qen | TFF4: 1 | TFG4: 2 | TFH4: 2012-12-02 | TFI4: qen | TFJ4: 1 | TFK4: 2 | TFL4: 2012-12-02 | TFM4: qen | TFN4: 1 | TFO4: 2 | TFP4: 2012-12-02 | TFQ4: qen | TFR4: 1 | TFS4: 2 | TFT4: 2012-12-02 | TFU4: qen | TFV4: 1 | TFW4: 2 | TFX4: 2012-12-02 | TFY4: qen | TFZ4: 1 | TGA4: 2 | TGB4: 2012-12-02 | TGC4: qen | TGD4: 1 | TGE4: 2 | TGF4: 2012-12-02 | TGG4: qen | TGH4: 1 | TGI4: 2 | TGJ4: 2012-12-02 | TGK4: qen | TGL4: 1 | TGM4: 2 | TGN4: 2012-12-02 | TGO4: qen | TGP4: 1 | TGQ4: 2 | TGR4: 2012-12-02 | TGS4: qen | TGT4: 1 | TGU4: 2 | TGV4: 2012-12-02 | TGW4: qen | TGX4: 1 | TGY4: 2 | TGZ4: 2012-12-02 | THA4: qen | THB4: 1 | THC4: 2 | THD4: 2012-12-02 | THE4: qen | THF4: 1 | THG4: 2 | THH4: 2012-12-02 | THI4: qen | THJ4: 1 | THK4: 2 | THL4: 2012-12-02 | THM4: qen | THN4: 1 | THO4: 2 | THP4: 2012-12-02 | THQ4: qen | THR4: 1 | THS4: 2 | THT4: 2012-12-02 | THU4: qen | THV4: 1 | THW4: 2 | THX4: 2012-12-02 | THY4: qen | THZ4: 1 | TIA4: 2 | TIB4: 2012-12-02 | TIC4: qen | TID4: 1 | TIE4: 2 | TIF4: 2012-12-02 | TIG4: qen | TIH4: 1 | TII4: 2 | TIJ4: 2012-12-02 | TIK4: qen | TIL4: 1 | TIM4: 2 | TIN4: 2012-12-02 | TIO4: qen | TIP4: 1 | TIQ4: 2 | TIR4: 2012-12-02 | TIS4: qen | TIT4: 1 | TIU4: 2 | TIV4: 2012-12-02 | TIW4: qen | TIX4: 1 | TIY4: 2 | TIZ4: 2012-12-02 | TJA4: qen | TJB4: 1 | TJC4: 2 | TJD4: 2012-12-02 | TJE4: qen | TJF4: 1 | TJG4: 2 | TJH4: 2012-12-02 | TJI4: qen | TJJ4: 1 | TJK4: 2 | TJL4: 2012-12-02 | TJM4: qen | TJN4: 1 | TJO4: 2 | TJP4: 2012-12-02 | TJQ4: qen | TJR4: 1 | TJS4: 2 | TJT4: 2012-12-02 | TJU4: qen | TJV4: 1 | TJW4: 2 | TJX4: 2012-12-02 | TJY4: qen | TJZ4: 1 | TKA4: 2 | TKB4: 2012-12-02 | TKC4: qen | TKD4: 1 | TKE4: 2 | TKF4: 2012-12-02 | TKG4: qen | TKH4: 1 | TKI4: 2 | TKJ4: 2012-12-02 | TKK4: qen | TKL4: 1 | TKM4: 2 | TKN4: 2012-12-02 | TKO4: qen | TKP4: 1 | TKQ4: 2 | TKR4: 2012-12-02 | TKS4: qen | TKT4: 1 | TKU4: 2 | TKV4: 2012-12-02 | TKW4: qen | TKX4: 1 | TKY4: 2 | TKZ4: 2012-12-02 | TLA4: qen | TLB4: 1 | TLC4: 2 | TLD4: 2012-12-02 | TLE4: qen | TLF4: 1 | TLG4: 2 | TLH4: 2012-12-02 | TLI4: qen | TLJ4: 1 | TLK4: 2 | TLL4: 2012-12-02 | TLM4: qen | TLN4: 1 | TLO4: 2 | TLP4: 2012-12-02 | TLQ4: qen | TLR4: 1 | TLS4: 2 | TLT4: 2012-12-02 | TLU4: qen | TLV4: 1 | TLW4: 2 | TLX4: 2012-12-02 | TLY4: qen | TLZ4: 1 | TMA4: 2 | TMB4: 2012-12-02 | TMC4: qen | TMD4: 1 | TME4: 2 | TMF4: 2012-12-02 | TMG4: qen | TMH4: 1 | TMI4: 2 | TMJ4: 2012-12-02 | TMK4: qen | TML4: 1 | TMM4: 2 | TMN4: 2012-12-02 | TMO4: qen | TMP4: 1 | TMQ4: 2 | TMR4: 2012-12-02 | TMS4: qen | TMT4: 1 | TMU4: 2 | TMV4: 2012-12-02 | TMW4: qen | TMX4: 1 | TMY4: 2 | TMZ4: 2012-12-02 | TNA4: qen | TNB4: 1 | TNC4: 2 | TND4: 2012-12-02 | TNE4: qen | TNF4: 1 | TNG4: 2 | TNH4: 2012-12-02 | TNI4: qen | TNJ4: 1 | TNK4: 2 | TNL4: 2012-12-02 | TNM4: qen | TNN4: 1 | TNO4: 2 | TNP4: 2012-12-02 | TNQ4: qen | TNR4: 1 | TNS4: 2 | TNT4: 2012-12-02 | TNU4: qen | TNV4: 1 | TNW4: 2 | TNX4: 2012-12-02 | TNY4: qen | TNZ4: 1 | TOA4: 2 | TOB4: 2012-12-02 | TOC4: qen | TOD4: 1 | TOE4: 2 | TOF4: 2012-12-02 | TOG4: qen | TOH4: 1 | TOI4: 2 | TOJ4: 2012-12-02 | TOK4: qen | TOL4: 1 | TOM4: 2 | TON4: 2012-12-02 | TOO4: qen | TOP4: 1 | TOQ4: 2 | TOR4: 2012-12-02 | TOS4: qen | TOT4: 1 | TOU4: 2 | TOV4: 2012-12-02 | TOW4: qen | TOX4: 1 | TOY4: 2 | TOZ4: 2012-12-02 | TPA4: qen | TPB4: 1 | TPC4: 2 | TPD4: 2012-12-02 | TPE4: qen | TPF4: 1 | TPG4: 2 | TPH4: 2012-12-02 | TPI4: qen | TPJ4: 1 | TPK4: 2 | TPL4: 2012-12-02 | TPM4: qen | TPN4: 1 | TPO4: 2 | TPP4: 2012-12-02 | TPQ4: qen | TPR4: 1 | TPS4: 2 | TPT4: 2012-12-02 | TPU4: qen | TPV4: 1 | TPW4: 2 | TPX4: 2012-12-02 | TPY4: qen | TPZ4: 1 | TQA4: 2 | TQB4: 2012-12-02 | TQC4: qen | TQD4: 1 | TQE4: 2 | TQF4: 2012-12-02 | TQG4: qen | TQH4: 1 | TQI4: 2 | TQJ4: 2012-12-02 | TQK4: qen | TQL4: 1 | TQM4: 2 | TQN4: 2012-12-02 | TQO4: qen | TQP4: 1 | TQQ4: 2 | TQR4: 2012-12-02 | TQS4: qen | TQT4: 1 | TQU4: 2 | TQV4: 2012-12-02 | TQW4: qen | TQX4: 1 | TQY4: 2 | TQZ4: 2012-12-02 | TRA4: qen | TRB4: 1 | TRC4: 2 | TRD4: 2012-12-02 | TRE4: qen | TRF4: 1 | TRG4: 2 | TRH4: 2012-12-02 | TRI4: qen | TRJ4: 1 | TRK4: 2 | TRL4: 2012-12-02 | TRM4: qen | TRN4: 1 | TRO4: 2 | TRP4: 2012-12-02 | TRQ4: qen | TRR4: 1 | TRS4: 2 | TRT4: 2012-12-02 | TRU4: qen | TRV4: 1 | TRW4: 2 | TRX4: 2012-12-02 | TRY4: qen | TRZ4: 1 | TSA4: 2 | TSB4: 2012-12-02 | TSC4: qen | TSD4: 1 | TSE4: 2 | TSF4: 2012-12-02 | TSG4: qen | TSH4: 1 | TSI4: 2 | TSJ4: 2012-12-02 | TSK4: qen | TSL4: 1 | TSM4: 2 | TSN4: 2012-12-02 | TSO4: qen | TSP4: 1 | TSQ4: 2 | TSR4: 2012-12-02 | TSS4: qen | TST4: 1 | TSU4: 2 | TSV4: 2012-12-02 | TSW4: qen | TSX4: 1 | TSY4: 2 | TSZ4: 2012-12-02 | TTA4: qen | TTB4: 1 | TTC4: 2 | TTD4: 2012-12-02 | TTE4: qen | TTF4: 1 | TTG4: 2 | TTH4: 2012-12-02 | TTI4: qen | TTJ4: 1 | TTK4: 2 | TTL4: 2012-12-02 | TTM4: qen | TTN4: 1 | TTO4: 2 | TTP4: 2012-12-02 | TTQ4: qen | TTR4: 1 | TTS4: 2 | TTT4: 2012-12-02 | TTU4: qen | TTV4: 1 | TTW4: 2 | TTX4: 2012-12-02 | TTY4: qen | TTZ4: 1 | TUA4: 2 | TUB4: 2012-12-02 | TUC4: qen | TUD4: 1 | TUE4: 2 | TUF4: 2012-12-02 | TUG4: qen | TUH4: 1 | TUI4: 2 | TUJ4: 2012-12-02 | TUK4: qen | TUL4: 1 | TUM4: 2 | TUN4: 2012-12-02 | TUO4: qen | TUP4: 1 | TUQ4: 2 | TUR4: 2012-12-02 | TUS4: qen | TUT4: 1 | TUU4: 2 | TUV4: 2012-12-02 | TUW4: qen | TUX4: 1 | TUY4: 2 | TUZ4: 2012-12-02 | TVA4: qen | TVB4: 1 | TVC4: 2 | TVD4: 2012-12-02 | TVE4: qen | TVF4: 1 | TVG4: 2 | TVH4: 2012-12-02 | TVI4: qen | TVJ4: 1 | TVK4: 2 | TVL4: 2012-12-02 | TVM4: qen | TVN4: 1 | TVO4: 2 | TVP4: 2012-12-02 | TVQ4: qen | TVR4: 1 | TVS4: 2 | TVT4: 2012-12-02 | TVU4: qen | TVV4: 1 | TVW4: 2 | TVX4: 2012-12-02 | TVY4: qen | TVZ4: 1 | TWA4: 2 | TWB4: 2012-12-02 | TWC4: qen | TWD4: 1 | TWE4: 2 | TWF4: 2012-12-02 | TWG4: qen | TWH4: 1 | TWI4: 2 | TWJ4: 2012-12-02 | TWK4: qen | TWL4: 1 | TWM4: 2 | TWN4: 2012-12-02 | TWO4: qen | TWP4: 1 | TWQ4: 2 | TWR4: 2012-12-02 | TWS4: qen | TWT4: 1 | TWU4: 2 | TWV4: 2012-12-02 | TWW4: qen | TWX4: 1 | TWY4: 2 | TWZ4: 2012-12-02 | TXA4: qen | TXB4: 1 | TXC4: 2 | TXD4: 2012-12-02 | TXE4: qen | TXF4: 1 | TXG4: 2 | TXH4: 2012-12-02 | TXI4: qen | TXJ4: 1 | TXK4: 2 | TXL4: 2012-12-02 | TXM4: qen | TXN4: 1 | TXO4: 2 | TXP4: 2012-12-02 | TXQ4: qen | TXR4: 1 | TXS4: 2 | TXT4: 2012-12-02 | TXU4: qen | TXV4: 1 | TXW4: 2 | TXX4: 2012-12-02 | TXY4: qen | TXZ4: 1 | TYA4: 2 | TYB4: 2012-12-02 | TYC4: qen | TYD4: 1 | TYE4: 2 | TYF4: 2012-12-02 | TYG4: qen | TYH4: 1 | TYI4: 2 | TYJ4: 2012-12-02 | TYK4: qen | TYL4: 1 | TYM4: 2 | TYN4: 2012-12-02 | TYO4: qen | TYP4: 1 | TYQ4: 2 | TYR4: 2012-12-02 | TYS4: qen | TYT4: 1 | TYU4: 2 | TYV4: 2012-12-02 | TYW4: qen | TYX4: 1 | TYY4: 2 | TYZ4: 2012-12-02 | TZA4: qen | TZB4: 1 | TZC4: 2 | TZD4: 2012-12-02 | TZE4: qen | TZF4: 1 | TZG4: 2 | TZH4: 2012-12-02 | TZI4: qen | TZJ4: 1 | TZK4: 2 | TZL4: 2012-12-02 | TZM4: qen | TZN4: 1 | TZO4: 2 | TZP4: 2012-12-02 | TZQ4: qen | TZR4: 1 | TZS4: 2 | TZT4: 2012-12-02 | TZU4: qen | TZV4: 1 | TZW4: 2 | TZX4: 2012-12-02 | TZY4: qen | TZZ4: 1 | UAA4: 2 | UAB4: 2012-12-02 | UAC4: qen | UAD4: 1 | UAE4: 2 | UAF4: 2012-12-02 | UAG4: qen | UAH4: 1 | UAI4: 2 | UAJ4: 2012-12-02 | UAK4: qen | UAL4: 1 | UAM4: 2 | UAN4: 2012-12-02 | UAO4: qen | UAP4: 1 | UAQ4: 2 | UAR4: 2012-12-02 | UAS4: qen | UAT4: 1 | UAU4: 2 | UAV4: 2012-12-02 | UAW4: qen | UAX4: 1 | UAY4: 2 | UAZ4: 2012-12-02 | UBA4: qen | UBB4: 1 | UBC4: 2 | UBD4: 2012-12-02 | UBE4: qen | UBF4: 1 | UBG4: 2 | UBH4: 2012-12-02 | UBI4: qen | UBJ4: 1 | UBK4: 2 | UBL4: 2012-12-02 | UBM4: qen | UBN4: 1 | UBO4: 2 | UBP4: 2012-12-02 | UBQ4: qen | UBR4: 1 | UBS4: 2 | UBT4: 2012-12-02 | UBU4: qen | UBV4: 1 | UBW4: 2 | UBX4: 2012-12-02 | UBY4: qen | UBZ4: 1 | UCA4: 2 | UCB4: 2012-12-02 | UCC4: qen | UCD4: 1 | UCE4: 2 | UCF4: 2012-12-02 | UCG4: qen | UCH4: 1 | UCI4: 2 | UCJ4: 2012-12-02 | UCK4: qen | UCL4: 1 | UCM4: 2 | UCN4: 2012-12-02 | UCO4: qen | UCP4: 1 | UCQ4: 2 | UCR4: 2012-12-02 | UCS4: qen | UCT4: 1 | UCU4: 2 | UCV4: 2012-12-02 | UCW4: qen | UCX4: 1 | UCY4: 2 | UCZ4: 2012-12-02 | UDA4: qen | UDB4: 1 | UDC4: 2 | UDD4: 2012-12-02 | UDE4: qen | UDF4: 1 | UDG4: 2 | UDH4: 2012-12-02 | UDI4: qen | UDJ4: 1 | UDK4: 2 | UDL4: 2012-12-02 | UDM4: qen | UDN4: 1 | UDO4: 2 | UDP4: 2012-12-02 | UDQ4: qen | UDR4: 1 | UDS4: 2 | UDT4: 2012-12-02 | UDU4: qen | UDV4: 1 | UDW4: 2 | UDX4: 2012-12-02 | UDY4: qen | UDZ4: 1 | UEA4: 2 | UEB4: 2012-12-02 | UEC4: qen | UED4: 1 | UEE4: 2 | UEF4: 2012-12-02 | UEG4: qen | UEH4: 1 | UEI4: 2 | UEJ4: 2012-12-02 | UEK4: qen | UEL4: 1 | UEM4: 2 | UEN4: 2012-12-02 | UEO4: qen | UEP4: 1 | UEQ4: 2 | UER4: 2012-12-02 | UES4: qen | UET4: 1 | UEU4: 2 | UEV4: 2012-12-02 | UEW4: qen | UEX4: 1 | UEY4: 2 | UEZ4: 2012-12-02 | UFA4: qen | UFB4: 1 | UFC4: 2 | UFD4: 2012-12-02 | UFE4: qen | UFF4: 1 | UFG4: 2 | UFH4: 2012-12-02 | UFI4: qen | UFJ4: 1 | UFK4: 2 | UFL4: 2012-12-02 | UFM4: qen | UFN4: 1 | UFO4: 2 | UFP4: 2012-12-02 | UFQ4: qen | UFR4: 1 | UFS4: 2 | UFT4: 2012-12-02 | UFU4: qen | UFV4: 1 | UFW4: 2 | UFX4: 2012-12-02 | UFY4: qen | UFZ4: 1 | UGA4: 2 | UGB4: 2012-12-02 | UGC4: qen | UGD4: 1 | UGE4: 2 | UGF4: 2012-12-02 | UGG4: qen | UGH4: 1 | UGI4: 2 | UGJ4: 2012-12-02 | UGK4: qen | UGL4: 1 | UGM4: 2 | UGN4: 2012-12-02 | UGO4: qen | UGP4: 1 | UGQ4: 2 | UGR4: 2012-12-02 | UGS4: qen | UGT4: 1 | UGU4: 2 | UGV4: 2012-12-02 | UGW4: qen | UGX4: 1 | UGY4: 2 | UGZ4: 2012-12-02 | UHA4: qen | UHB4: 1 | UHC4: 2 | UHD4: 2012-12-02 | UHE4: qen | UHF4: 1 | UHG4: 2 | UHH4: 2012-12-02 | UHI4: qen | UHJ4: 1 | UHK4: 2 | UHL4: 2012-12-02 | UHM4: qen | UHN4: 1 | UHO4: 2 | UHP4: 2012-12-02 | UHQ4: qen | UHR4: 1 | UHS4: 2 | UHT4: 2012-12-02 | UHU4: qen | UHV4: 1 | UHW4: 2 | UHX4: 2012-12-02 | UHY4: qen | UHZ4: 1 | UIA4: 2 | UIB4: 2012-12-02 | UIC4: qen | UID4: 1 | UIE4: 2 | UIF4: 2012-12-02 | UIG4: qen | UIH4: 1 | UII4: 2 | UIJ4: 2012-12-02 | UIK4: qen | UIL4: 1 | UIM4: 2 | UIN4: 2012-12-02 | UIO4: qen | UIP4: 1 | UIQ4: 2 | UIR4: 2012-12-02 | UIS4: qen | UIT4: 1 | UIU4: 2 | UIV4: 2012-12-02 | UIW4: qen | UIX4: 1 | UIY4: 2 | UIZ4: 2012-12-02 | UJA4: qen | UJB4: 1 | UJC4: 2 | UJD4: 2012-12-02 | UJE4: qen | UJF4: 1 | UJG4: 2 | UJH4: 2012-12-02 | UJI4: qen | UJJ4: 1 | UJK4: 2 | UJL4: 2012-12-02 | UJM4: qen | UJN4: 1 | UJO4: 2 | UJP4: 2012-12-02 | UJQ4: qen | UJR4: 1 | UJS4: 2 | UJT4: 2012-12-02 | UJU4: qen | UJV4: 1 | UJW4: 2 | UJX4: 2012-12-02 | UJY4: qen | UJZ4: 1 | UKA4: 2 | UKB4: 2012-12-02 | UKC4: qen | UKD4: 1 | UKE4: 2 | UKF4: 2012-12-02 | UKG4: qen | UKH4: 1 | UKI4: 2 | UKJ4: 2012-12-02 | UKK4: qen | UKL4: 1 | UKM4: 2 | UKN4: 2012-12-02 | UKO4: qen | UKP4: 1 | UKQ4: 2 | UKR4: 2012-12-02 | UKS4: qen | UKT4: 1 | UKU4: 2 | UKV4: 2012-12-02 | UKW4: qen | UKX4: 1 | UKY4: 2 | UKZ4: 2012-12-02 | ULA4: qen | ULB4: 1 | ULC4: 2 | ULD4: 2012-12-02 | ULE4: qen | ULF4: 1 | ULG4: 2 | ULH4: 2012-12-02 | ULI4: qen | ULJ4: 1 | ULK4: 2 | ULL4: 2012-12-02 | ULM4: qen | ULN4: 1 | ULO4: 2 | ULP4: 2012-12-02 | ULQ4: qen | ULR4: 1 | ULS4: 2 | ULT4: 2012-12-02 | ULU4: qen | ULV4: 1 | ULW4: 2 | ULX4: 2012-12-02 | ULY4: qen | ULZ4: 1 | UMA4: 2 | UMB4: 2012-12-02 | UMC4: qen | UMD4: 1 | UME4: 2 | UMF4: 2012-12-02 | UMG4: qen | UMH4: 1 | UMI4: 2 | UMJ4: 2012-12-02 | UMK4: qen | UML4: 1 | UMM4: 2 | UMN4: 2012-12-02 | UMO4: qen | UMP4: 1 | UMQ4: 2 | UMR4: 2012-12-02 | UMS4: qen | UMT4: 1 | UMU4: 2 | UMV4: 2012-12-02 | UMW4: qen | UMX4: 1 | UMY4: 2 | UMZ4: 2012-12-02 | UNA4: qen | UNB4: 1 | UNC4: 2 | UND4: 2012-12-02 | UNE4: qen | UNF4: 1 | UNG4: 2 | UNH4: 2012-12-02 | UNI4: qen | UNJ4: 1 | UNK4: 2 | UNL4: 2012-12-02 | UNM4: qen | UNN4: 1 | UNO4: 2 | UNP4: 2012-12-02 | UNQ4: qen | UNR4: 1 | UNS4: 2 | UNT4: 2012-12-02 | UNU4: qen | UNV4: 1 | UNW4: 2 | UNX4: 2012-12-02 | UNY4: qen | UNZ4: 1 | UOA4: 2 | UOB4: 2012-12-02 | UOC4: qen | UOD4: 1 | UOE4: 2 | UOF4: 2012-12-02 | UOG4: qen | UOH4: 1 | UOI4: 2 | UOJ4: 2012-12-02 | UOK4: qen | UOL4: 1 | UOM4: 2 | UON4: 2012-12-02 | UOO4: qen | UOP4: 1 | UOQ4: 2 | UOR4: 2012-12-02 | UOS4: qen | UOT4: 1 | UOU4: 2 | UOV4: 2012-12-02 | UOW4: qen | UOX4: 1 | UOY4: 2 | UOZ4: 2012-12-02 | UPA4: qen | UPB4: 1 | UPC4: 2 | UPD4: 2012-12-02 | UPE4: qen | UPF4: 1 | UPG4: 2 | UPH4: 2012-12-02 | UPI4: qen | UPJ4: 1 | UPK4: 2 | UPL4: 2012-12-02 | UPM4: qen | UPN4: 1 | UPO4: 2 | UPP4: 2012-12-02 | UPQ4: qen | UPR4: 1 | UPS4: 2 | UPT4: 2012-12-02 | UPU4: qen | UPV4: 1 | UPW4: 2 | UPX4: 2012-12-02 | UPY4: qen | UPZ4: 1 | UQA4: 2 | UQB4: 2012-12-02 | UQC4: qen | UQD4: 1 | UQE4: 2 | UQF4: 2012-12-02 | UQG4: qen | UQH4: 1 | UQI4: 2 | UQJ4: 2012-12-02 | UQK4: qen | UQL4: 1 | UQM4: 2 | UQN4: 2012-12-02 | UQO4: qen | UQP4: 1 | UQQ4: 2 | UQR4: 2012-12-02 | UQS4: qen | UQT4: 1 | UQU4: 2 | UQV4: 2012-12-02 | UQW4: qen | UQX4: 1 | UQY4: 2 | UQZ4: 2012-12-02 | URA4: qen | URB4: 1 | URC4: 2 | URD4: 2012-12-02 | URE4: qen | URF4: 1 | URG4: 2 | URH4: 2012-12-02 | URI4: qen | URJ4: 1 | URK4: 2 | URL4: 2012-12-02 | URM4: qen | URN4: 1 | URO4: 2 | URP4: 2012-12-02 | URQ4: qen | URR4: 1 | URS4: 2 | URT4: 2012-12-02 | URU4: qen | URV4: 1 | URW4: 2 | URX4: 2012-12-02 | URY4: qen | URZ4: 1 | USA4: 2 | USB4: 2012-12-02 | USC4: qen | USD4: 1 | USE4: 2 | USF4: 2012-12-02 | USG4: qen | USH4: 1 | USI4: 2 | USJ4: 2012-12-02 | USK4: qen | USL4: 1 | USM4: 2 | USN4: 2012-12-02 | USO4: qen | USP4: 1 | USQ4: 2 | USR4: 2012-12-02 | USS4: qen | UST4: 1 | USU4: 2 | USV4: 2012-12-02 | USW4: qen | USX4: 1 | USY4: 2 | USZ4: 2012-12-02 | UTA4: qen | UTB4: 1 | UTC4: 2 | UTD4: 2012-12-02 | UTE4: qen | UTF4: 1 | UTG4: 2 | UTH4: 2012-12-02 | UTI4: qen | UTJ4: 1 | UTK4: 2 | UTL4: 2012-12-02 | UTM4: qen | UTN4: 1 | UTO4: 2 | UTP4: 2012-12-02 | UTQ4: qen | UTR4: 1 | UTS4: 2 | UTT4: 2012-12-02 | UTU4: qen | UTV4: 1 | UTW4: 2 | UTX4: 2012-12-02 | UTY4: qen | UTZ4: 1 | UUA4: 2 | UUB4: 2012-12-02 | UUC4: qen | UUD4: 1 | UUE4: 2 | UUF4: 2012-12-02 | UUG4: qen | UUH4: 1 | UUI4: 2 | UUJ4: 2012-12-02 | UUK4: qen | UUL4: 1 | UUM4: 2 | UUN4: 2012-12-02 | UUO4: qen | UUP4: 1 | UUQ4: 2 | UUR4: 2012-12-02 | UUS4: qen | UUT4: 1 | UUU4: 2 | UUV4: 2012-12-02 | UUW4: qen | UUX4: 1 | UUY4: 2 | UUZ4: 2012-12-02 | UVA4: qen | UVB4: 1 | UVC4: 2 | UVD4: 2012-12-02 | UVE4: qen | UVF4: 1 | UVG4: 2 | UVH4: 2012-12-02 | UVI4: qen | UVJ4: 1 | UVK4: 2 | UVL4: 2012-12-02 | UVM4: qen | UVN4: 1 | UVO4: 2 | UVP4: 2012-12-02 | UVQ4: qen | UVR4: 1 | UVS4: 2 | UVT4: 2012-12-02 | UVU4: qen | UVV4: 1 | UVW4: 2 | UVX4: 2012-12-02 | UVY4: qen | UVZ4: 1 | UWA4: 2 | UWB4: 2012-12-02 | UWC4: qen | UWD4: 1 | UWE4: 2 | UWF4: 2012-12-02 | UWG4: qen | UWH4: 1 | UWI4: 2 | UWJ4: 2012-12-02 | UWK4: qen | UWL4: 1 | UWM4: 2 | UWN4: 2012-12-02 | UWO4: qen | UWP4: 1 | UWQ4: 2 | UWR4: 2012-12-02 | UWS4: qen | UWT4: 1 | UWU4: 2 | UWV4: 2012-12-02 | UWW4: qen | UWX4: 1 | UWY4: 2 | UWZ4: 2012-12-02 | UXA4: qen | UXB4: 1 | UXC4: 2 | UXD4: 2012-12-02 | UXE4: qen | UXF4: 1 | UXG4: 2 | UXH4: 2012-12-02 | UXI4: qen | UXJ4: 1 | UXK4: 2 | UXL4: 2012-12-02 | UXM4: qen | UXN4: 1 | UXO4: 2 | UXP4: 2012-12-02 | UXQ4: qen | UXR4: 1 | UXS4: 2 | UXT4: 2012-12-02 | UXU4: qen | UXV4: 1 | UXW4: 2 | UXX4: 2012-12-02 | UXY4: qen | UXZ4: 1 | UYA4: 2 | UYB4: 2012-12-02 | UYC4: qen | UYD4: 1 | UYE4: 2 | UYF4: 2012-12-02 | UYG4: qen | UYH4: 1 | UYI4: 2 | UYJ4: 2012-12-02 | UYK4: qen | UYL4: 1 | UYM4: 2 | UYN4: 2012-12-02 | UYO4: qen | UYP4: 1 | UYQ4: 2 | UYR4: 2012-12-02 | UYS4: qen | UYT4: 1 | UYU4: 2 | UYV4: 2012-12-02 | UYW4: qen | UYX4: 1 | UYY4: 2 | UYZ4: 2012-12-02 | UZA4: qen | UZB4: 1 | UZC4: 2 | UZD4: 2012-12-02 | UZE4: qen | UZF4: 1 | UZG4: 2 | UZH4: 2012-12-02 | UZI4: qen | UZJ4: 1 | UZK4: 2 | UZL4: 2012-12-02 | UZM4: qen | UZN4: 1 | UZO4: 2 | UZP4: 2012-12-02 | UZQ4: qen | UZR4: 1 | UZS4: 2 | UZT4: 2012-12-02 | UZU4: qen | UZV4: 1 | UZW4: 2 | UZX4: 2012-12-02 | UZY4: qen | UZZ4: 1 | VAA4: 2 | VAB4: 2012-12-02 | VAC4: qen | VAD4: 1 | VAE4: 2 | VAF4: 2012-12-02 | VAG4: qen | VAH4: 1 | VAI4: 2 | VAJ4: 2012-12-02 | VAK4: qen | VAL4: 1 | VAM4: 2 | VAN4: 2012-12-02 | VAO4: qen | VAP4: 1 | VAQ4: 2 | VAR4: 2012-12-02 | VAS4: qen | VAT4: 1 | VAU4: 2 | VAV4: 2012-12-02 | VAW4: qen | VAX4: 1 | VAY4: 2 | VAZ4: 2012-12-02 | VBA4: qen | VBB4: 1 | VBC4: 2 | VBD4: 2012-12-02 | VBE4: qen | VBF4: 1 | VBG4: 2 | VBH4: 2012-12-02 | VBI4: qen | VBJ4: 1 | VBK4: 2 | VBL4: 2012-12-02 | VBM4: qen | VBN4: 1 | VBO4: 2 | VBP4: 2012-12-02 | VBQ4: qen | VBR4: 1 | VBS4: 2 | VBT4: 2012-12-02 | VBU4: qen | VBV4: 1 | VBW4: 2 | VBX4: 2012-12-02 | VBY4: qen | VBZ4: 1 | VCA4: 2 | VCB4: 2012-12-02 | VCC4: qen | VCD4: 1 | VCE4: 2 | VCF4: 2012-12-02 | VCG4: qen | VCH4: 1 | VCI4: 2 | VCJ4: 2012-12-02 | VCK4: qen | VCL4: 1 | VCM4: 2 | VCN4: 2012-12-02 | VCO4: qen | VCP4: 1 | VCQ4: 2 | VCR4: 2012-12-02 | VCS4: qen | VCT4: 1 | VCU4: 2 | VCV4: 2012-12-02 | VCW4: qen | VCX4: 1 | VCY4: 2 | VCZ4: 2012-12-02 | VDA4: qen | VDB4: 1 | VDC4: 2 | VDD4: 2012-12-02 | VDE4: qen | VDF4: 1 | VDG4: 2 | VDH4: 2012-12-02 | VDI4: qen | VDJ4: 1 | VDK4: 2 | VDL4: 2012-12-02 | VDM4: qen | VDN4: 1 | VDO4: 2 | VDP4: 2012-12-02 | VDQ4: qen | VDR4: 1 | VDS4: 2 | VDT4: 2012-12-02 | VDU4: qen | VDV4: 1 | VDW4: 2 | VDX4: 2012-12-02 | VDY4: qen | VDZ4: 1 | VEA4: 2 | VEB4: 2012-12-02 | VEC4: qen | VED4: 1 | VEE4: 2 | VEF4: 2012-12-02 | VEG4: qen | VEH4: 1 | VEI4: 2 | VEJ4: 2012-12-02 | VEK4: qen | VEL4: 1 | VEM4: 2 | VEN4: 2012-12-02 | VEO4: qen | VEP4: 1 | VEQ4: 2 | VER4: 2012-12-02 | VES4: qen | VET4: 1 | VEU4: 2 | VEV4: 2012-12-02 | VEW4: qen | VEX4: 1 | VEY4: 2 | VEZ4: 2012-12-02 | VFA4: qen | VFB4: 1 | VFC4: 2 | VFD4: 2012-12-02 | VFE4: qen | VFF4: 1 | VFG4: 2 | VFH4: 2012-12-02 | VFI4: qen | VFJ4: 1 | VFK4: 2 | VFL4: 2012-12-02 | VFM4: qen | VFN4: 1 | VFO4: 2 | VFP4: 2012-12-02 | VFQ4: qen | VFR4: 1 | VFS4: 2 | VFT4: 2012-12-02 | VFU4: qen | VFV4: 1 | VFW4: 2 | VFX4: 2012-12-02 | VFY4: qen | VFZ4: 1 | VGA4: 2 | VGB4: 2012-12-02 | VGC4: qen | VGD4: 1 | VGE4: 2 | VGF4: 2012-12-02 | VGG4: qen | VGH4: 1 | VGI4: 2 | VGJ4: 2012-12-02 | VGK4: qen | VGL4: 1 | VGM4: 2 | VGN4: 2012-12-02 | VGO4: qen | VGP4: 1 | VGQ4: 2 | VGR4: 2012-12-02 | VGS4: qen | VGT4: 1 | VGU4: 2 | VGV4: 2012-12-02 | VGW4: qen | VGX4: 1 | VGY4: 2 | VGZ4: 2012-12-02 | VHA4: qen | VHB4: 1 | VHC4: 2 | VHD4: 2012-12-02 | VHE4: qen | VHF4: 1 | VHG4: 2 | VHH4: 2012-12-02 | VHI4: qen | VHJ4: 1 | VHK4: 2 | VHL4: 2012-12-02 | VHM4: qen | VHN4: 1 | VHO4: 2 | VHP4: 2012-12-02 | VHQ4: qen | VHR4: 1 | VHS4: 2 | VHT4: 2012-12-02 | VHU4: qen | VHV4: 1 | VHW4: 2 | VHX4: 2012-12-02 | VHY4: qen | VHZ4: 1 | VIA4: 2 | VIB4: 2012-12-02 | VIC4: qen | VID4: 1 | VIE4: 2 | VIF4: 2012-12-02 | VIG4: qen | VIH4: 1 | VII4: 2 | VIJ4: 2012-12-02 | VIK4: qen | VIL4: 1 | VIM4: 2 | VIN4: 2012-12-02 | VIO4: qen | VIP4: 1 | VIQ4: 2 | VIR4: 2012-12-02 | VIS4: qen | VIT4: 1 | VIU4: 2 | VIV4: 2012-12-02 | VIW4: qen | VIX4: 1 | VIY4: 2 | VIZ4: 2012-12-02 | VJA4: qen | VJB4: 1 | VJC4: 2 | VJD4: 2012-12-02 | VJE4: qen | VJF4: 1 | VJG4: 2 | VJH4: 2012-12-02 | VJI4: qen | VJJ4: 1 | VJK4: 2 | VJL4: 2012-12-02 | VJM4: qen | VJN4: 1 | VJO4: 2 | VJP4: 2012-12-02 | VJQ4: qen | VJR4: 1 | VJS4: 2 | VJT4: 2012-12-02 | VJU4: qen | VJV4: 1 | VJW4: 2 | VJX4: 2012-12-02 | VJY4: qen | VJZ4: 1 | VKA4: 2 | VKB4: 2012-12-02 | VKC4: qen | VKD4: 1 | VKE4: 2 | VKF4: 2012-12-02 | VKG4: qen | VKH4: 1 | VKI4: 2 | VKJ4: 2012-12-02 | VKK4: qen | VKL4: 1 | VKM4: 2 | VKN4: 2012-12-02 | VKO4: qen | VKP4: 1 | VKQ4: 2 | VKR4: 2012-12-02 | VKS4: qen | VKT4: 1 | VKU4: 2 | VKV4: 2012-12-02 | VKW4: qen | VKX4: 1 | VKY4: 2 | VKZ4: 2012-12-02 | VLA4: qen | VLB4: 1 | VLC4: 2 | VLD4: 2012-12-02 | VLE4: qen | VLF4: 1 | VLG4: 2 | VLH4: 2012-12-02 | VLI4: qen | VLJ4: 1 | VLK4: 2 | VLL4: 2012-12-02 | VLM4: qen | VLN4: 1 | VLO4: 2 | VLP4: 2012-12-02 | VLQ4: qen | VLR4: 1 | VLS4: 2 | VLT4: 2012-12-02 | VLU4: qen | VLV4: 1 | VLW4: 2 | VLX4: 2012-12-02 | VLY4: qen | VLZ4: 1 | VMA4: 2 | VMB4: 2012-12-02 | VMC4: qen | VMD4: 1 | VME4: 2 | VMF4: 2012-12-02 | VMG4: qen | VMH4: 1 | VMI4: 2 | VMJ4: 2012-12-02 | VMK4: qen | VML4: 1 | VMM4: 2 | VMN4: 2012-12-02 | VMO4: qen | VMP4: 1 | VMQ4: 2 | VMR4: 2012-12-02 | VMS4: qen | VMT4: 1 | VMU4: 2 | VMV4: 2012-12-02 | VMW4: qen | VMX4: 1 | VMY4: 2 | VMZ4: 2012-12-02 | VNA4: qen | VNB4: 1 | VNC4: 2 | VND4: 2012-12-02 | VNE4: qen | VNF4: 1 | VNG4: 2 | VNH4: 2012-12-02 | VNI4: qen | VNJ4: 1 | VNK4: 2 | VNL4: 2012-12-02 | VNM4: qen | VNN4: 1 | VNO4: 2 | VNP4: 2012-12-02 | VNQ4: qen | VNR4: 1 | VNS4: 2 | VNT4: 2012-12-02 | VNU4: qen | VNV4: 1 | VNW4: 2 | VNX4: 2012-12-02 | VNY4: qen | VNZ4: 1 | VOA4: 2 | VOB4: 2012-12-02 | VOC4: qen | VOD4: 1 | VOE4: 2 | VOF4: 2012-12-02 | VOG4: qen | VOH4: 1 | VOI4: 2 | VOJ4: 2012-12-02 | VOK4: qen | VOL4: 1 | VOM4: 2 | VON4: 2012-12-02 | VOO4: qen | VOP4: 1 | VOQ4: 2 | VOR4: 2012-12-02 | VOS4: qen | VOT4: 1 | VOU4: 2 | VOV4: 2012-12-02 | VOW4: qen | VOX4: 1 | VOY4: 2 | VOZ4: 2012-12-02 | VPA4: qen | VPB4: 1 | VPC4: 2 | VPD4: 2012-12-02 | VPE4: qen | VPF4: 1 | VPG4: 2 | VPH4: 2012-12-02 | VPI4: qen | VPJ4: 1 | VPK4: 2 | VPL4: 2012-12-02 | VPM4: qen | VPN4: 1 | VPO4: 2 | VPP4: 2012-12-02 | VPQ4: qen | VPR4: 1 | VPS4: 2 | VPT4: 2012-12-02 | VPU4: qen | VPV4: 1 | VPW4: 2 | VPX4: 2012-12-02 | VPY4: qen | VPZ4: 1 | VQA4: 2 | VQB4: 2012-12-02 | VQC4: qen | VQD4: 1 | VQE4: 2 | VQF4: 2012-12-02 | VQG4: qen | VQH4: 1 | VQI4: 2 | VQJ4: 2012-12-02 | VQK4: qen | VQL4: 1 | VQM4: 2 | VQN4: 2012-12-02 | VQO4: qen | VQP4: 1 | VQQ4: 2 | VQR4: 2012-12-02 | VQS4: qen | VQT4: 1 | VQU4: 2 | VQV4: 2012-12-02 | VQW4: qen | VQX4: 1 | VQY4: 2 | VQZ4: 2012-12-02 | VRA4: qen | VRB4: 1 | VRC4: 2 | VRD4: 2012-12-02 | VRE4: qen | VRF4: 1 | VRG4: 2 | VRH4: 2012-12-02 | VRI4: qen | VRJ4: 1 | VRK4: 2 | VRL4: 2012-12-02 | VRM4: qen | VRN4: 1 | VRO4: 2 | VRP4: 2012-12-02 | VRQ4: qen | VRR4: 1 | VRS4: 2 | VRT4: 2012-12-02 | VRU4: qen | VRV4: 1 | VRW4: 2 | VRX4: 2012-12-02 | VRY4: qen | VRZ4: 1 | VSA4: 2 | VSB4: 2012-12-02 | VSC4: qen | VSD4: 1 | VSE4: 2 | VSF4: 2012-12-02 | VSG4: qen | VSH4: 1 | VSI4: 2 | VSJ4: 2012-12-02 | VSK4: qen | VSL4: 1 | VSM4: 2 | VSN4: 2012-12-02 | VSO4: qen | VSP4: 1 | VSQ4: 2 | VSR4: 2012-12-02 | VSS4: qen | VST4: 1 | VSU4: 2 | VSV4: 2012-12-02 | VSW4: qen | VSX4: 1 | VSY4: 2 | VSZ4: 2012-12-02 | VTA4: qen | VTB4: 1 | VTC4: 2 | VTD4: 2012-12-02 | VTE4: qen | VTF4: 1 | VTG4: 2 | VTH4: 2012-12-02 | VTI4: qen | VTJ4: 1 | VTK4: 2 | VTL4: 2012-12-02 | VTM4: qen | VTN4: 1 | VTO4: 2 | VTP4: 2012-12-02 | VTQ4: qen | VTR4: 1 | VTS4: 2 | VTT4: 2012-12-02 | VTU4: qen | VTV4: 1 | VTW4: 2 | VTX4: 2012-12-02 | VTY4: qen | VTZ4: 1 | VUA4: 2 | VUB4: 2012-12-02 | VUC4: qen | VUD4: 1 | VUE4: 2 | VUF4: 2012-12-02 | VUG4: qen | VUH4: 1 | VUI4: 2 | VUJ4: 2012-12-02 | VUK4: qen | VUL4: 1 | VUM4: 2 | VUN4: 2012-12-02 | VUO4: qen | VUP4: 1 | VUQ4: 2 | VUR4: 2012-12-02 | VUS4: qen | VUT4: 1 | VUU4: 2 | VUV4: 2012-12-02 | VUW4: qen | VUX4: 1 | VUY4: 2 | VUZ4: 2012-12-02 | VVA4: qen | VVB4: 1 | VVC4: 2 | VVD4: 2012-12-02 | VVE4: qen | VVF4: 1 | VVG4: 2 | VVH4: 2012-12-02 | VVI4: qen | VVJ4: 1 | VVK4: 2 | VVL4: 2012-12-02 | VVM4: qen | VVN4: 1 | VVO4: 2 | VVP4: 2012-12-02 | VVQ4: qen | VVR4: 1 | VVS4: 2 | VVT4: 2012-12-02 | VVU4: qen | VVV4: 1 | VVW4: 2 | VVX4: 2012-12-02 | VVY4: qen | VVZ4: 1 | VWA4: 2 | VWB4: 2012-12-02 | VWC4: qen | VWD4: 1 | VWE4: 2 | VWF4: 2012-12-02 | VWG4: qen | VWH4: 1 | VWI4: 2 | VWJ4: 2012-12-02 | VWK4: qen | VWL4: 1 | VWM4: 2 | VWN4: 2012-12-02 | VWO4: qen | VWP4: 1 | VWQ4: 2 | VWR4: 2012-12-02 | VWS4: qen | VWT4: 1 | VWU4: 2 | VWV4: 2012-12-02 | VWW4: qen | VWX4: 1 | VWY4: 2 | VWZ4: 2012-12-02 | VXA4: qen | VXB4: 1 | VXC4: 2 | VXD4: 2012-12-02 | VXE4: qen | VXF4: 1 | VXG4: 2 | VXH4: 2012-12-02 | VXI4: qen | VXJ4: 1 | VXK4: 2 | VXL4: 2012-12-02 | VXM4: qen | VXN4: 1 | VXO4: 2 | VXP4: 2012-12-02 | VXQ4: qen | VXR4: 1 | VXS4: 2 | VXT4: 2012-12-02 | VXU4: qen | VXV4: 1 | VXW4: 2 | VXX4: 2012-12-02 | VXY4: qen | VXZ4: 1 | VYA4: 2 | VYB4: 2012-12-02 | VYC4: qen | VYD4: 1 | VYE4: 2 | VYF4: 2012-12-02 | VYG4: qen | VYH4: 1 | VYI4: 2 | VYJ4: 2012-12-02 | VYK4: qen | VYL4: 1 | VYM4: 2 | VYN4: 2012-12-02 | VYO4: qen | VYP4: 1 | VYQ4: 2 | VYR4: 2012-12-02 | VYS4: qen | VYT4: 1 | VYU4: 2 | VYV4: 2012-12-02 | VYW4: qen | VYX4: 1 | VYY4: 2 | VYZ4: 2012-12-02 | VZA4: qen | VZB4: 1 | VZC4: 2 | VZD4: 2012-12-02 | VZE4: qen | VZF4: 1 | VZG4: 2 | VZH4: 2012-12-02 | VZI4: qen | VZJ4: 1 | VZK4: 2 | VZL4: 2012-12-02 | VZM4: qen | VZN4: 1 | VZO4: 2 | VZP4: 2012-12-02 | VZQ4: qen | VZR4: 1 | VZS4: 2 | VZT4: 2012-12-02 | VZU4: qen | VZV4: 1 | VZW4: 2 | VZX4: 2012-12-02 | VZY4: qen | VZZ4: 1 | WAA4: 2 | WAB4: 2012-12-02 | WAC4: qen | WAD4: 1 | WAE4: 2 | WAF4: 2012-12-02 | WAG4: qen | WAH4: 1 | WAI4: 2 | WAJ4: 2012-12-02 | WAK4: qen | WAL4: 1 | WAM4: 2 | WAN4: 2012-12-02 | WAO4: qen | WAP4: 1 | WAQ4: 2 | WAR4: 2012-12-02 | WAS4: qen | WAT4: 1 | WAU4: 2 | WAV4: 2012-12-02 | WAW4: qen | WAX4: 1 | WAY4: 2 | WAZ4: 2012-12-02 | WBA4: qen | WBB4: 1 | WBC4: 2 | WBD4: 2012-12-02 | WBE4: qen | WBF4: 1 | WBG4: 2 | WBH4: 2012-12-02 | WBI4: qen | WBJ4: 1 | WBK4: 2 | WBL4: 2012-12-02 | WBM4: qen | WBN4: 1 | WBO4: 2 | WBP4: 2012-12-02 | WBQ4: qen | WBR4: 1 | WBS4: 2 | WBT4: 2012-12-02 | WBU4: qen | WBV4: 1 | WBW4: 2 | WBX4: 2012-12-02 | WBY4: qen | WBZ4: 1 | WCA4: 2 | WCB4: 2012-12-02 | WCC4: qen | WCD4: 1 | WCE4: 2 | WCF4: 2012-12-02 | WCG4: qen | WCH4: 1 | WCI4: 2 | WCJ4: 2012-12-02 | WCK4: qen | WCL4: 1 | WCM4: 2 | WCN4: 2012-12-02 | WCO4: qen | WCP4: 1 | WCQ4: 2 | WCR4: 2012-12-02 | WCS4: qen | WCT4: 1 | WCU4: 2 | WCV4: 2012-12-02 | WCW4: qen | WCX4: 1 | WCY4: 2 | WCZ4: 2012-12-02 | WDA4: qen | WDB4: 1 | WDC4: 2 | WDD4: 2012-12-02 | WDE4: qen | WDF4: 1 | WDG4: 2 | WDH4: 2012-12-02 | WDI4: qen | WDJ4: 1 | WDK4: 2 | WDL4: 2012-12-02 | WDM4: qen | WDN4: 1 | WDO4: 2 | WDP4: 2012-12-02 | WDQ4: qen | WDR4: 1 | WDS4: 2 | WDT4: 2012-12-02 | WDU4: qen | WDV4: 1 | WDW4: 2 | WDX4: 2012-12-02 | WDY4: qen | WDZ4: 1 | WEA4: 2 | WEB4: 2012-12-02 | WEC4: qen | WED4: 1 | WEE4: 2 | WEF4: 2012-12-02 | WEG4: qen | WEH4: 1 | WEI4: 2 | WEJ4: 2012-12-02 | WEK4: qen | WEL4: 1 | WEM4: 2 | WEN4: 2012-12-02 | WEO4: qen | WEP4: 1 | WEQ4: 2 | WER4: 2012-12-02 | WES4: qen | WET4: 1 | WEU4: 2 | WEV4: 2012-12-02 | WEW4: qen | WEX4: 1 | WEY4: 2 | WEZ4: 2012-12-02 | WFA4: qen | WFB4: 1 | WFC4: 2 | WFD4: 2012-12-02 | WFE4: qen | WFF4: 1 | WFG4: 2 | WFH4: 2012-12-02 | WFI4: qen | WFJ4: 1 | WFK4: 2 | WFL4: 2012-12-02 | WFM4: qen | WFN4: 1 | WFO4: 2 | WFP4: 2012-12-02 | WFQ4: qen | WFR4: 1 | WFS4: 2 | WFT4: 2012-12-02 | WFU4: qen | WFV4: 1 | WFW4: 2 | WFX4: 2012-12-02 | WFY4: qen | WFZ4: 1 | WGA4: 2 | WGB4: 2012-12-02 | WGC4: qen | WGD4: 1 | WGE4: 2 | WGF4: 2012-12-02 | WGG4: qen | WGH4: 1 | WGI4: 2 | WGJ4: 2012-12-02 | WGK4: qen | WGL4: 1 | WGM4: 2 | WGN4: 2012-12-02 | WGO4: qen | WGP4: 1 | WGQ4: 2 | WGR4: 2012-12-02 | WGS4: qen | WGT4: 1 | WGU4: 2 | WGV4: 2012-12-02 | WGW4: qen | WGX4: 1 | WGY4: 2 | WGZ4: 2012-12-02 | WHA4: qen | WHB4: 1 | WHC4: 2 | WHD4: 2012-12-02 | WHE4: qen | WHF4: 1 | WHG4: 2 | WHH4: 2012-12-02 | WHI4: qen | WHJ4: 1 | WHK4: 2 | WHL4: 2012-12-02 | WHM4: qen | WHN4: 1 | WHO4: 2 | WHP4: 2012-12-02 | WHQ4: qen | WHR4: 1 | WHS4: 2 | WHT4: 2012-12-02 | WHU4: qen | WHV4: 1 | WHW4: 2 | WHX4: 2012-12-02 | WHY4: qen | WHZ4: 1 | WIA4: 2 | WIB4: 2012-12-02 | WIC4: qen | WID4: 1 | WIE4: 2 | WIF4: 2012-12-02 | WIG4: qen | WIH4: 1 | WII4: 2 | WIJ4: 2012-12-02 | WIK4: qen | WIL4: 1 | WIM4: 2 | WIN4: 2012-12-02 | WIO4: qen | WIP4: 1 | WIQ4: 2 | WIR4: 2012-12-02 | WIS4: qen | WIT4: 1 | WIU4: 2 | WIV4: 2012-12-02 | WIW4: qen | WIX4: 1 | WIY4: 2 | WIZ4: 2012-12-02 | WJA4: qen | WJB4: 1 | WJC4: 2 | WJD4: 2012-12-02 | WJE4: qen | WJF4: 1 | WJG4: 2 | WJH4: 2012-12-02 | WJI4: qen | WJJ4: 1 | WJK4: 2 | WJL4: 2012-12-02 | WJM4: qen | WJN4: 1 | WJO4: 2 | WJP4: 2012-12-02 | WJQ4: qen | WJR4: 1 | WJS4: 2 | WJT4: 2012-12-02 | WJU4: qen | WJV4: 1 | WJW4: 2 | WJX4: 2012-12-02 | WJY4: qen | WJZ4: 1 | WKA4: 2 | WKB4: 2012-12-02 | WKC4: qen | WKD4: 1 | WKE4: 2 | WKF4: 2012-12-02 | WKG4: qen | WKH4: 1 | WKI4: 2 | WKJ4: 2012-12-02 | WKK4: qen | WKL4: 1 | WKM4: 2 | WKN4: 2012-12-02 | WKO4: qen | WKP4: 1 | WKQ4: 2 | WKR4: 2012-12-02 | WKS4: qen | WKT4: 1 | WKU4: 2 | WKV4: 2012-12-02 | WKW4: qen | WKX4: 1 | WKY4: 2 | WKZ4: 2012-12-02 | WLA4: qen | WLB4: 1 | WLC4: 2 | WLD4: 2012-12-02 | WLE4: qen | WLF4: 1 | WLG4: 2 | WLH4: 2012-12-02 | WLI4: qen | WLJ4: 1 | WLK4: 2 | WLL4: 2012-12-02 | WLM4: qen | WLN4: 1 | WLO4: 2 | WLP4: 2012-12-02 | WLQ4: qen | WLR4: 1 | WLS4: 2 | WLT4: 2012-12-02 | WLU4: qen | WLV4: 1 | WLW4: 2 | WLX4: 2012-12-02 | WLY4: qen | WLZ4: 1 | WMA4: 2 | WMB4: 2012-12-02 | WMC4: qen | WMD4: 1 | WME4: 2 | WMF4: 2012-12-02 | WMG4: qen | WMH4: 1 | WMI4: 2 | WMJ4: 2012-12-02 | WMK4: qen | WML4: 1 | WMM4: 2 | WMN4: 2012-12-02 | WMO4: qen | WMP4: 1 | WMQ4: 2 | WMR4: 2012-12-02 | WMS4: qen | WMT4: 1 | WMU4: 2 | WMV4: 2012-12-02 | WMW4: qen | WMX4: 1 | WMY4: 2 | WMZ4: 2012-12-02 | WNA4: qen | WNB4: 1 | WNC4: 2 | WND4: 2012-12-02 | WNE4: qen | WNF4: 1 | WNG4: 2 | WNH4: 2012-12-02 | WNI4: qen | WNJ4: 1 | WNK4: 2 | WNL4: 2012-12-02 | WNM4: qen | WNN4: 1 | WNO4: 2 | WNP4: 2012-12-02 | WNQ4: qen | WNR4: 1 | WNS4: 2 | WNT4: 2012-12-02 | WNU4: qen | WNV4: 1 | WNW4: 2 | WNX4: 2012-12-02 | WNY4: qen | WNZ4: 1 | WOA4: 2 | WOB4: 2012-12-02 | WOC4: qen | WOD4: 1 | WOE4: 2 | WOF4: 2012-12-02 | WOG4: qen | WOH4: 1 | WOI4: 2 | WOJ4: 2012-12-02 | WOK4: qen | WOL4: 1 | WOM4: 2 | WON4: 2012-12-02 | WOO4: qen | WOP4: 1 | WOQ4: 2 | WOR4: 2012-12-02 | WOS4: qen | WOT4: 1 | WOU4: 2 | WOV4: 2012-12-02 | WOW4: qen | WOX4: 1 | WOY4: 2 | WOZ4: 2012-12-02 | WPA4: qen | WPB4: 1 | WPC4: 2 | WPD4: 2012-12-02 | WPE4: qen | WPF4: 1 | WPG4: 2 | WPH4: 2012-12-02 | WPI4: qen | WPJ4: 1 | WPK4: 2 | WPL4: 2012-12-02 | WPM4: qen | WPN4: 1 | WPO4: 2 | WPP4: 2012-12-02 | WPQ4: qen | WPR4: 1 | WPS4: 2 | WPT4: 2012-12-02 | WPU4: qen | WPV4: 1 | WPW4: 2 | WPX4: 2012-12-02 | WPY4: qen | WPZ4: 1 | WQA4: 2 | WQB4: 2012-12-02 | WQC4: qen | WQD4: 1 | WQE4: 2 | WQF4: 2012-12-02 | WQG4: qen | WQH4: 1 | WQI4: 2 | WQJ4: 2012-12-02 | WQK4: qen | WQL4: 1 | WQM4: 2 | WQN4: 2012-12-02 | WQO4: qen | WQP4: 1 | WQQ4: 2 | WQR4: 2012-12-02 | WQS4: qen | WQT4: 1 | WQU4: 2 | WQV4: 2012-12-02 | WQW4: qen | WQX4: 1 | WQY4: 2 | WQZ4: 2012-12-02 | WRA4: qen | WRB4: 1 | WRC4: 2 | WRD4: 2012-12-02 | WRE4: qen | WRF4: 1 | WRG4: 2 | WRH4: 2012-12-02 | WRI4: qen | WRJ4: 1 | WRK4: 2 | WRL4: 2012-12-02 | WRM4: qen | WRN4: 1 | WRO4: 2 | WRP4: 2012-12-02 | WRQ4: qen | WRR4: 1 | WRS4: 2 | WRT4: 2012-12-02 | WRU4: qen | WRV4: 1 | WRW4: 2 | WRX4: 2012-12-02 | WRY4: qen | WRZ4: 1 | WSA4: 2 | WSB4: 2012-12-02 | WSC4: qen | WSD4: 1 | WSE4: 2 | WSF4: 2012-12-02 | WSG4: qen | WSH4: 1 | WSI4: 2 | WSJ4: 2012-12-02 | WSK4: qen | WSL4: 1 | WSM4: 2 | WSN4: 2012-12-02 | WSO4: qen | WSP4: 1 | WSQ4: 2 | WSR4: 2012-12-02 | WSS4: qen | WST4: 1 | WSU4: 2 | WSV4: 2012-12-02 | WSW4: qen | WSX4: 1 | WSY4: 2 | WSZ4: 2012-12-02 | WTA4: qen | WTB4: 1 | WTC4: 2 | WTD4: 2012-12-02 | WTE4: qen | WTF4: 1 | WTG4: 2 | WTH4: 2012-12-02 | WTI4: qen | WTJ4: 1 | WTK4: 2 | WTL4: 2012-12-02 | WTM4: qen | WTN4: 1 | WTO4: 2 | WTP4: 2012-12-02 | WTQ4: qen | WTR4: 1 | WTS4: 2 | WTT4: 2012-12-02 | WTU4: qen | WTV4: 1 | WTW4: 2 | WTX4: 2012-12-02 | WTY4: qen | WTZ4: 1 | WUA4: 2 | WUB4: 2012-12-02 | WUC4: qen | WUD4: 1 | WUE4: 2 | WUF4: 2012-12-02 | WUG4: qen | WUH4: 1 | WUI4: 2 | WUJ4: 2012-12-02 | WUK4: qen | WUL4: 1 | WUM4: 2 | WUN4: 2012-12-02 | WUO4: qen | WUP4: 1 | WUQ4: 2 | WUR4: 2012-12-02 | WUS4: qen | WUT4: 1 | WUU4: 2 | WUV4: 2012-12-02 | WUW4: qen | WUX4: 1 | WUY4: 2 | WUZ4: 2012-12-02 | WVA4: qen | WVB4: 1 | WVC4: 2 | WVD4: 2012-12-02 | WVE4: qen | WVF4: 1 | WVG4: 2 | WVH4: 2012-12-02 | WVI4: qen | WVJ4: 1 | WVK4: 2 | WVL4: 2012-12-02 | WVM4: qen | WVN4: 1 | WVO4: 2 | WVP4: 2012-12-02 | WVQ4: qen | WVR4: 1 | WVS4: 2 | WVT4: 2012-12-02 | WVU4: qen | WVV4: 1 | WVW4: 2 | WVX4: 2012-12-02 | WVY4: qen | WVZ4: 1 | WWA4: 2 | WWB4: 2012-12-02 | WWC4: qen | WWD4: 1 | WWE4: 2 | WWF4: 2012-12-02 | WWG4: qen | WWH4: 1 | WWI4: 2 | WWJ4: 2012-12-02 | WWK4: qen | WWL4: 1 | WWM4: 2 | WWN4: 2012-12-02 | WWO4: qen | WWP4: 1 | WWQ4: 2 | WWR4: 2012-12-02 | WWS4: qen | WWT4: 1 | WWU4: 2 | WWV4: 2012-12-02 | WWW4: qen | WWX4: 1 | WWY4: 2 | WWZ4: 2012-12-02 | WXA4: qen | WXB4: 1 | WXC4: 2 | WXD4: 2012-12-02 | WXE4: qen | WXF4: 1 | WXG4: 2 | WXH4: 2012-12-02 | WXI4: qen | WXJ4: 1 | WXK4: 2 | WXL4: 2012-12-02 | WXM4: qen | WXN4: 1 | WXO4: 2 | WXP4: 2012-12-02 | WXQ4: qen | WXR4: 1 | WXS4: 2 | WXT4: 2012-12-02 | WXU4: qen | WXV4: 1 | WXW4: 2 | WXX4: 2012-12-02 | WXY4: qen | WXZ4: 1 | WYA4: 2 | WYB4: 2012-12-02 | WYC4: qen | WYD4: 1 | WYE4: 2 | WYF4: 2012-12-02 | WYG4: qen | WYH4: 1 | WYI4: 2 | WYJ4: 2012-12-02 | WYK4: qen | WYL4: 1 | WYM4: 2 | WYN4: 2012-12-02 | WYO4: qen | WYP4: 1 | WYQ4: 2 | WYR4: 2012-12-02 | WYS4: qen | WYT4: 1 | WYU4: 2 | WYV4: 2012-12-02 | WYW4: qen | WYX4: 1 | WYY4: 2 | WYZ4: 2012-12-02 | WZA4: qen | WZB4: 1 | WZC4: 2 | WZD4: 2012-12-02 | WZE4: qen | WZF4: 1 | WZG4: 2 | WZH4: 2012-12-02 | WZI4: qen | WZJ4: 1 | WZK4: 2 | WZL4: 2012-12-02 | WZM4: qen | WZN4: 1 | WZO4: 2 | WZP4: 2012-12-02 | WZQ4: qen | WZR4: 1 | WZS4: 2 | WZT4: 2012-12-02 | WZU4: qen | WZV4: 1 | WZW4: 2 | WZX4: 2012-12-02 | WZY4: qen | WZZ4: 1 | XAA4: 2 | XAB4: 2012-12-02 | XAC4: qen | XAD4: 1 | XAE4: 2 | XAF4: 2012-12-02 | XAG4: qen | XAH4: 1 | XAI4: 2 | XAJ4: 2012-12-02 | XAK4: qen | XAL4: 1 | XAM4: 2 | XAN4: 2012-12-02 | XAO4: qen | XAP4: 1 | XAQ4: 2 | XAR4: 2012-12-02 | XAS4: qen | XAT4: 1 | XAU4: 2 | XAV4: 2012-12-02 | XAW4: qen | XAX4: 1 | XAY4: 2 | XAZ4: 2012-12-02 | XBA4: qen | XBB4: 1 | XBC4: 2 | XBD4: 2012-12-02 | XBE4: qen | XBF4: 1 | XBG4: 2 | XBH4: 2012-12-02 | XBI4: qen | XBJ4: 1 | XBK4: 2 | XBL4: 2012-12-02 | XBM4: qen | XBN4: 1 | XBO4: 2 | XBP4: 2012-12-02 | XBQ4: qen | XBR4: 1 | XBS4: 2 | XBT4: 2012-12-02 | XBU4: qen | XBV4: 1 | XBW4: 2 | XBX4: 2012-12-02 | XBY4: qen | XBZ4: 1 | XCA4: 2 | XCB4: 2012-12-02 | XCC4: qen | XCD4: 1 | XCE4: 2 | XCF4: 2012-12-02 | XCG4: qen | XCH4: 1 | XCI4: 2 | XCJ4: 2012-12-02 | XCK4: qen | XCL4: 1 | XCM4: 2 | XCN4: 2012-12-02 | XCO4: qen | XCP4: 1 | XCQ4: 2 | XCR4: 2012-12-02 | XCS4: qen | XCT4: 1 | XCU4: 2 | XCV4: 2012-12-02 | XCW4: qen | XCX4: 1 | XCY4: 2 | XCZ4: 2012-12-02 | XDA4: qen | XDB4: 1 | XDC4: 2 | XDD4: 2012-12-02 | XDE4: qen | XDF4: 1 | XDG4: 2 | XDH4: 2012-12-02 | XDI4: qen | XDJ4: 1 | XDK4: 2 | XDL4: 2012-12-02 | XDM4: qen | XDN4: 1 | XDO4: 2 | XDP4: 2012-12-02 | XDQ4: qen | XDR4: 1 | XDS4: 2 | XDT4: 2012-12-02 | XDU4: qen | XDV4: 1 | XDW4: 2 | XDX4: 2012-12-02 | XDY4: qen | XDZ4: 1 | XEA4: 2 | XEB4: 2012-12-02 | XEC4: qen | XED4: 1 | XEE4: 2 | XEF4: 2012-12-02 | XEG4: qen | XEH4: 1 | XEI4: 2 | XEJ4: 2012-12-02 | XEK4: qen | XEL4: 1 | XEM4: 2 | XEN4: 2012-12-02 | XEO4: qen | XEP4: 1 | XEQ4: 2 | XER4: 2012-12-02 | XES4: qen | XET4: 1 | XEU4: 2 | XEV4: 2012-12-02 | XEW4: qen | XEX4: 1 | XEY4: 2 | XEZ4: 2012-12-02 | XFA4: qen | XFB4: 1 | XFC4: 2
A5: 2012-12-03 | B5: ara | C5: 1 | D5: 9\12 | I5: 5 | J5: 10 | K5: -10 | L5: 494.5
A6: 2012-12-05 | B6: bak | C6: 1 | D6: 2\4 | G6: 2.4 | I6: 10 | J6: 20 | K6: 4 | L6: 498.5
A7: 2012-12-06 | B7: war | C7: 1 | D7: 2\4 | G7: 1.6 | I7: 5 | J7: 10 | K7: -2 | L7: 496.5
A8: 2012-12-09 | B8: gee | C8: 1 | D8: 8\9 | G8: 1.8 | I8: 5 | J8: 10 | K8: -1 | L8: 495.5
A9: 2012-12-11 | B9: mac | C9: 1 | D9: 1\2 | I9: 5 | J9: 10 | K9: -10 | L9: 485.5
A10: 2012-12-12 | B10: can | C10: 2 | D10: 3 | E10: one | G10: 2 | I10: 10 | J10: 20 | K10: 0 | L10: 485.5
A11: 2012-12-13 | B11: kyn | C11: 1 | D11: 2\7 | G11: 2.9 | I11: 5 | J11: 10 | K11: 4.5 | L11: 490
A12: 2012-12-14 | B12: bed | C12: 2 | D12: 4\7 | G12: 2.7 | I12: 5 | J12: 10 | K12: 3.5 | L12: 493.5
A13: 2012-12-15 | B13: mpk | C13: 1 | D13: 3\4 | I13: 5 | J13: 10 | K13: -10 | L13: 483.5
A14: 2012-12-16 | B14: wer | C14: 2 | D14: 5\8 | G14: 2.9 | I14: 10 | J14: 20 | K14: 9 | L14: 492.5
A15: 2012-12-17 | B15: dub | C15: 2 | D15: 1\2 | I15: 5 | J15: 10 | K15: -10 | L15: 482.5
A16: 2012-12-18 | B16: dub | C16: 1 | D16: 1\2 | G16: 4.6 | I16: 10 | J16: 20 | K16: 26 | L16: 508.5
A17: 2012-12-19 | B17: gaw | C17: 1 | D17: 1\2 | I17: 5 | J17: 10 | K17: -10 | L17: 498.5
A18: 2012-12-20 | B18: sey | C18: 1 | D18: 1\9 | I18: 10 | J18: 20 | K18: -20 | L18: 478.5
A19: 2012-12-22 | B19: mop | C19: 1 | D19: 2\4 | G19: 8 | I19: 15 | J19: 30 | K19: 90 | L19: 568.5
A20: 2012-12-23 | B20: pol | C20: 2 | D20: 4\5 | G20: 2.8 | I20: 10 | J20: 20 | K20: 8 | L20: 576.5
A21: 2012-12-24 | B21: ora | C21: 1 | D21: 1\2 | G21: 1.7 | I21: 5 | J21: 10 | K21: -1.5 | L21: 575
A22: 2012-12-26 | B22: cau | C22: 1 | D22: 2\4 | G22: 2.5 | I22: 5 | J22: 10 | K22: 2.5 | L22: 577.5
A23: 2012-12-28 | B23: cab | C23: 1 | D23: 1\2 | G23: 3.3 | I23: 5 | J23: 10 | K23: 6.5 | L23: 584
A24: 2012-12-29 | B24: mpk | C24: 1 | D24: 3\5 | G24: 2.1 | I24: 5 | J24: 10 | K24: 0.5 | L24: 584.5
A25: 2012-12-30 | B25: nar | C25: 1 | D25: 1\3 | G25: 3.7 | I25: 5 | J25: 10 | K25: 8.5 | L25: 593
A26: 2013-01-01 | B26: nar | C26: 1 | D26: 3 | G26: 1.5 | I26: 5 | J26: 10 | K26: -2.5 | L26: 590.5
A27: 2013-01-01 | B27: nar | C27: 1 | D27: 3\4 | I27: 5 | J27: 10 | K27: -10 | L27: 580.5
A28: 2013-01-02 | B28: doo | C28: 1 | D28: 2\3 | G28: 1.8 | I28: 10 | J28: 20 | K28: -2 | L28: 578.5
A29: 2013-01-03 | B29: kyn | C29: 1 | D29: 2\7 | I29: 5 | J29: 10 | K29: -10 | L29: 568.5
A30: 2013-01-04 | B30: wat | C30: 1 | D30: 2\6 | G30: 2.9 | I30: 10 | J30: 20 | K30: 9 | L30: 577.5
A31: 2013-01-05 | B31: cau | C31: 1 | D31: 3\6 | G31: 2.5 | I31: 5 | J31: 10 | K31: 2.5 | L31: 580
A32: 2013-01-06 | B32: gil | C32: 1 | D32: 6\8 | I32: 5 | J32: 10 | K32: -10 | L32: 570 | M32: 23
A33: 2013-01-07 | B33: moy | C33: 1 | D33: 2\4 | G33: 3.6 | I33: 10 | J33: 20 | K33: 16 | L33: 586 | M33: 86
A34: 2013-01-08 | B34: ech | C34: 3 | D34: 3\5 | I34: 5 | J34: 10 | K34: -10 | L34: 576
A35: 2013-01-09 | B35: gaw | C35: 1 | D35: 4\8 | I35: 10 | J35: 20 | K35: -20 | L35: 556
A36: 2013-01-10 | B36: pen | C36: 3 | D36: 4\5 | G36: 1.6 | I36: 15 | J36: 30 | K36: -6 | L36: 550
A37: 2013-01-11 | B37: cab | C37: 1 | D37: 1\5 | I37: 10 | J37: 20 | K37: -20 | L37: 530
A38: 2013-01-12 | B38: qen | C38: 1 | D38: 1\3 | G38: 4.7 | I38: 15 | J38: 30 | K38: 40.5 | L38: 570.5
A39: 2013-01-13 | B39: cow | C39: 1 | D39: 3\6 | G39: 2.1 | I39: 10 | J39: 20 | K39: 1 | L39: 571.5
A40: 2013-01-14 | B40: ara | C40: 2 | D40: 3\4 | I40: 5 | J40: 10 | K40: =G40*I40-J40 -> -10 | L40: =L39+K40 -> 561.5
A41: 2013-01-15 | B41: now | C41: 1 | D41: 2\3 | G41: 3.5 | I41: 10 | J41: 20 | K41: 15 | L41: 576.5
A42: 2013-01-16 | B42: wyo | C42: 1 | D42: 1\3 | I42: 5 | J42: 10 | K42: -10 | L42: 566.5
D43: 1\3 | I43: 10 | J43: 20 | K43: -20 | L43: 546.5
D44: 1\3 | I44: 0 | K44: 0 | L44: 546.5
D45: 1\3 | I45: 0 | K45: 0 | L45: 546.5
D46: 1\3 | I46: 0 | K46: 0 | L46: 546.5
D47: 1\3 | I47: 0 | K47: 0 | L47: 546.5
D48: 1\3 | I48: 0 | K48: 0 | L48: 546.5
I49: 0 | K49: 0 | L49: 546.5
I50: 0 | K50: 0 | L50: 546.5
I51: 0 | K51: 0 | L51: 546.5
I52: 0 | K52: 0 | L52: 546.5
I53: 0 | K53: 0 | L53: 546.5
I54: 0 | K54: 0 | L54: 546.5
I55: 0 | K55: 0 | L55: 546.5
